Workbook

Sheet Summary 2015
A1: Montana-Dakota Utilities Co.
A2: Gas Utility - South Dakota
A3: Conservation Portfolio Summary
A4: 2015
C7: Actual 2015 | K7: Lifetime
A8: Programs | C8: Participants | E8: Cost | G8: Dk Savings | I8: Cost/Dk | K8: Dk Savings
A9: Residential Program
A10: Furnaces - 95+% AFUE - New | C10: =+'Total Program Inputs'!C11 -> 136 | E10: =+'Total Program Inputs'!M11 -> 43831 | G10: =+'Total Program Inputs'!E11 -> 1086 | I10: =+ROUND(E10/G10,2) -> 40.36 | K10: =+'Res .95+% Res Furnace - NEW'!M36 -> 21720
A11: Furnaces - 95+% AFUE - Repl. | C11: =+'Total Program Inputs'!C12 -> 202 | E11: =+'Total Program Inputs'!M12 -> 65103 | G11: =+'Total Program Inputs'!E12 -> 2559 | I11: 25.44 | K11: =+'Res .95+% Res Furnace - Replace'!M36 -> 51180
A12: Water Heating (.67 EF) | C12: =+'Total Program Inputs'!C13 -> 4 | E12: =+'Total Program Inputs'!M13 -> 429 | G12: =+'Total Program Inputs'!E13 -> 18 | I12: 23.83 | K12: =+'Res Water Heating .67 EF'!M36 -> 180
A13: Programmable Thermostats | C13: =+'Total Program Inputs'!C14 -> 152 | E13: =+'Total Program Inputs'!M14 -> 3266 | G13: =+'Total Program Inputs'!E14 -> 441 | I13: 7.41 | K13: =+'Programmable Thermostats'!M36 -> 4410
A14: Total Residential | C14: =SUM(C10:C13) -> 494 | E14: =SUM(E10:E13) -> 112629 | G14: =SUM(G10:G13) -> 4104 | I14: 27.44 | K14: =SUM(K10:K13) -> 77490
A16: Commercial Program
A17: Furnaces - 95+% AFUE - New | C17: =+'Total Program Inputs'!C17 -> 0 | E17: =+'Total Program Inputs'!M17 -> 0 | G17: =+'Total Program Inputs'!E17 -> 0
A18: Furnaces - 95+% AFUE - Repl. | C18: =+'Total Program Inputs'!C18 -> 6 | E18: =+'Total Program Inputs'!M18 -> 1934 | G18: =+'Total Program Inputs'!E18 -> 150 | I18: 12.89 | K18: =+'Comm 95+% Furnace - Replace'!M36 -> 3000
A19: Custom Efficiency | C19: =+'Total Program Inputs'!C19 -> 0 | E19: =+'Total Program Inputs'!M19 -> 0 | G19: =+'Total Program Inputs'!E19 -> 0
A20: Total Commercial | C20: =SUM(C17:C19) -> 6 | E20: =SUM(E17:E19) -> 1934 | G20: =SUM(G17:G19) -> 150 | I20: 12.89 | K20: =SUM(K17:K19) -> 3000
A22: Total Programs | C22: =+C14+C20 -> 500 | E22: =+E14+E20 -> 114563 | G22: =+G14+G20 -> 4254 | I22: 26.93 | K22: =+K14+K20 -> 80490
A27: Water heater program discontinued in 2015, reflects rebates for water heaters installed in 2014.

Sheet Database Inputs
A1: South Dakota Natural Gas DSM Programs
A2: Technical Assumptions
I3: Cost Assumptions
D4: Technical Assumptions
B5: Participation | H5: Average
C6: Number of | F6: Average | G6: Average | H6: Non-Energy | L6: Average
B7: Customer | C7: Participants | D7: Project | E7: Baseline | F7: High | G7: dk Saved | H7: Benefits | I7: Cost | J7: Cost High | K7: incremental | L7: Incentive
A8: 2015 Program Year | B8: Class | C8: 2015 | D8: Life | E8: Efficiency | F8: Efficiency | G8: / part | H8: / Part | I8: Std Equip | J8: Eff Equip | K8: Cost | L8: / Part | M8: Technical Notes
A9: Residential
A10: Furnace Tier 2 - 95%+ AFUE - New | B10: Residential | C10: =+'Total Program Inputs'!C11 -> 136 | D10: 20 | E10: 90 | F10: 95 | G10: =+'Total Program Inputs'!Q11 -> 8 | H10: 732 | I10: 1380 | J10: 2000 | K10: 302 | L10: 300 | M10: 75,000 btuh Average | O10: 0
A11: Furnace Tier 2 - 95%+ AFUE - Replacement | B11: Residential | C11: =+'Total Program Inputs'!C12 -> 202 | D11: 20 | E11: 80 | F11: 95 | G11: =+'Total Program Inputs'!Q12 -> 12.7 | H11: 732 | I11: 880 | J11: 2000 | K11: 650 | L11: 300 | M11: 75,000 btuh Average | O11: 75,000 btuh Avg.
A12: Water Heating Tier 2 (.67 EF) | B12: Residential | C12: =+'Total Program Inputs'!C13 -> 4 | D12: 10 | E12: 0.58 | F12: 0.67 | G12: =+'Total Program Inputs'!Q13 -> 4.5 | H12: 0 | I12: NA | J12: NA | K12: 100 | L12: 100 | M12: 40 Gallon | O12: 40 gal.
A13: Programmable Thermostats | B13: Residential | C13: =+'Total Program Inputs'!C14 -> 152 | D13: 10 | E13: NA | F13: NA | G13: =+'Total Program Inputs'!Q14 -> 2.9 | H13: 0 | K13: 60 | L13: 20
A15: Commercial
A16: Furnace Tier 2 - 95%+ AFUE - New | B16: Commercial | C16: =+'Total Program Inputs'!C17 -> 0 | D16: 20 | E16: 90 | F16: 95 | G16: =+'Total Program Inputs'!Q17 ->  | H16: 732 | I16: 880 | J16: 2000 | K16: 302 | L16: 300 | M16: 75,000 btuh Average
A17: Furnace Tier 2 - 95%+ AFUE - Replacement | B17: Commercial | C17: =+'Total Program Inputs'!C18 -> 6 | D17: 20 | E17: 80 | F17: 95 | G17: =+'Total Program Inputs'!Q18 -> 25 | H17: 732 | I17: 880 | J17: 2000 | K17: 650 | L17: 300 | M17: 75,000 btuh Average
A18: Custom Efficiency | B18: Commercial | C18: =+'Total Program Inputs'!C19 -> 0 | D18: 15 | E18: NA | F18: NA | G18: =+'Total Program Inputs'!Q19 ->  | H18: 0 | I18: NA | J18: NA | K18: 3000 | L18: 600
A19: Totals | C19: =SUM(C10:C18) -> 500

Sheet Total Program Inputs
A1: Montana-Dakota Utilities Co.
A2: Gas Utility - South Dakota
A3: DSM Summary
A4: Actual 2015
G8: Incentive | I8: Admin | K8: Admin | M8: Total
C9: Participants | E9: Dk Savings | G9: Expense | I9: Allocation | K9: Expense 1/ | M9: Expense | O9: Incentive | Q9: dk/part.
A10: Residential
A11: High Efficiency Furnace - 95%+ (new) | C11: 136 | E11: 1086 | G11: 40800 | I11: =+ROUND(G11/$G$22,4) -> 0.3826 | K11: =+ROUND(I11*$C$28,0) -> 3031 | M11: =+G11+K11 -> 43831 | O11: 300 | Q11: =ROUND(+E11/C11,1) -> 8
A12: High Efficiency Furnace - 95%+ | C12: 202 | E12: 2559 | G12: 60600 | I12: =+ROUND(G12/$G$22,4) -> 0.5683 | K12: =+ROUND(I12*$C$28,0) -> 4503 | M12: 65103 | O12: 300 | Q12: =ROUND(+E12/C12,1) -> 12.7
A13: High Efficiency Water Heater (.67+ EF) 1/ | C13: 4 | E13: 18 | G13: 400 | I13: =+ROUND(G13/$G$22,4)-0.0001 -> 0.0037 | K13: =+ROUND(I13*$C$28,0) -> 29 | M13: 429 | O13: 100 | Q13: 4.5
A14: Programmable Thermostats | C14: 152 | E14: 441 | G14: 3040 | I14: =+ROUND(G14/$G$22,4) -> 0.0285 | K14: =+ROUND(I14*$C$28,0) -> 226 | M14: 3266 | O14: 20 | Q14: 2.9
A15: Total Residential | C15: =SUM(C11:C14) -> 494 | E15: =SUM(E11:E14) -> 4104 | G15: =SUM(G11:G14) -> 104840 | I15: =SUM(I11:I14) -> 0.9831 | K15: =SUM(K11:K14) -> 7789 | M15: =SUM(M11:M14) -> 112629
A16: Commmercial & Industrial
A17: High Efficiency Furnace - 95%+ (new) | C17: 0 | E17: 0 | G17: =+ROUND(O17*C17,0) -> 0 | I17: =+ROUND(G17/$G$22,4) -> 0 | K17: =+ROUND(I17*$C$28,0) -> 0 | M17: =+G17+K17 -> 0 | O17: 300 | Q17: =ROUND(+E17/C17,1) -> 
A18: High Efficiency Furnace - 95%+ (replacement) | C18: 6 | E18: 150 | G18: 1800 | I18: =+ROUND(G18/$G$22,4) -> 0.0169 | K18: =+ROUND(I18*$C$28,0) -> 134 | M18: =+G18+K18 -> 1934 | O18: 300 | Q18: 25
A19: Custom | C19: 0 | E19: 0 | G19: =+ROUND(O19*C19,0) -> 0 | I19: =+ROUND(G19/$G$22,4) -> 0 | K19: =+ROUND(I19*$C$28,0) -> 0 | M19: =+G19+K19 -> 0 | O19: 600
A20: Total Commercial and Industrial | C20: =SUM(C17:C19) -> 6 | E20: =SUM(E17:E19) -> 150 | G20: =SUM(G17:G19) -> 1800 | I20: =SUM(I17:I19) -> 0.0169 | K20: =SUM(K17:K19) -> 134 | M20: =SUM(M17:M19) -> 1934
A22: Total South Dakota | C22: =+C15+C20 -> 500 | E22: =+E15+E20 -> 4254 | G22: =+G15+G20 -> 106640 | I22: =+I20+I15 -> 1 | K22: =+K15+K20 -> 7923 | M22: =+M15+M20 -> 114563
A24: 1/ Program discontinued in 2015, reflects rebates for water heaters installed in 2014.
A25: 2/ Administration expense allocated on incentive costs.
Q27: =100/28 -> 3.571428571
A28: Admin costs | C28: =+'[1]2015 Actual Alloc'!$K$21 -> 7923

Sheet Summary of Ratios
A1: Montana-Dakota Utilities Co.
A2: South Dakota Gas DSM Program Summary
A3: Benefit/Cost Ratios
A4: Actual 2015
G6: Total
B7: Customer | G7: Resource
A8: Program | B8: Class | C8: RIM | D8: Utility | E8: Societal | F8: Participant | G8: Cost
A9: Total Portfolio | C9: ='Total Program'!G42 -> 1.19 | D9: ='Total Program'!G43 -> 1.89 | E9: ='Total Program'!G44 -> 2.29 | F9: ='Total Program'!G45 -> 4.565869359 | G9: ='Total Program'!G46 -> 1.56
A11: Furnace (95+%) - New | B11: Residential | C11: =+'Res .95+% Res Furnace - NEW'!G42 -> 0.93 | D11: =+'Res .95+% Res Furnace - NEW'!G43 -> 1.32 | E11: =+'Res .95+% Res Furnace - NEW'!G44 -> 3.04 | F11: =+'Res .95+% Res Furnace - NEW'!G45 -> 7.189983444 | G11: =+'Res .95+% Res Furnace - NEW'!G46 -> 2.07
A12: Furnace (95+%) - Replacement | B12: Residential | C12: ='Res .95+% Res Furnace - Replace'!G42 -> 1.26 | D12: ='Res .95+% Res Furnace - Replace'!G43 -> 2.09 | E12: ='Res .95+% Res Furnace - Replace'!G44 -> 2.03 | F12: ='Res .95+% Res Furnace - Replace'!G45 -> 3.871309977 | G12: ='Res .95+% Res Furnace - Replace'!G46 -> 1.37
A13: Water Heating (.67 EF) | B13: Residential | C13: ='Res Water Heating .67 EF'!G42 -> 1 | D13: ='Res Water Heating .67 EF'!G43 -> 1.42 | E13: ='Res Water Heating .67 EF'!G44 -> 1.81 | F13: ='Res Water Heating .67 EF'!G45 -> 3.1475 | G13: ='Res Water Heating .67 EF'!G46 -> 1.42
A14: Programmable Thermostats | B14: Residential | C14: ='Programmable Thermostats'!G42 -> 1.88 | D14: ='Programmable Thermostats'!G43 -> 4.41 | E14: ='Programmable Thermostats'!G44 -> 1.97 | F14: ='Programmable Thermostats'!G45 -> 2.640570175 | G14: ='Programmable Thermostats'!G46 -> 1.54
A15: Furnace (95+%) - New | B15: Commercial
A16: Furnace (95+%) - Replacement | B16: Commercial | C16: ='Comm 95+% Furnace - Replace'!G42 -> 2.1 | D16: ='Comm 95+% Furnace - Replace'!G43 -> 4.13 | E16: ='Comm 95+% Furnace - Replace'!G44 -> 3.5 | F16: ='Comm 95+% Furnace - Replace'!G45 -> 4.961794872 | G16: ='Comm 95+% Furnace - Replace'!G46 -> 2.34
A17: Custom Efficiency | B17: Commercial

Sheet Gas Input Table Summary
A1: Montana-Dakota Utilities Co.
A2: 2015 Input Data Summary
A3: South Dakota Natural Gas Conservation Model - Actual 2015 Results
A6: Input No. | B6: Input Data Description | C6: Information Source | D6: SD Res. | E6: SD Comm.
A7: 1 | B7: Retail Rate ($/dk) | C7: Weighted Average of SD retail rate using projected 2016 gas costs & February 2016 pipeline and distribution | D7: =+'Gas Costs'!C11 -> 5.972 | E7: =+'Gas Costs'!E11 -> 5.53
B8: Escalation Rate | D8: 0.035 | E8: 0.035
A9: 2 | B9: Non-Gas Fuel Retail ($/fuel/unit) | C9: Average retail cost of non gas fuel if measures also saves kWh, gallons of water, etc. (for analysis purposes, used electric as Non-Gas Fuel Retail Rate) | D9: =+'Gas Costs'!G40 -> 0.14206 | E9: =+'Gas Costs'!G53 -> 0.135
B10: Escalation Rate | D10: 0.035 | E10: 0.035
B11: Non-Gas Fuel Units (ie. kWh, Gallons, etc) | D11: Kwh | E11: Kwh
A12: 3 | B12: Commodity Cost ($/dk) | C12: Estimated 2016 gas costs and February 2016 pipeline commodity | D12: =+'Gas Costs'!E17 -> 2.577 | E12: =+D12 -> 2.577
B13: Escalation Rate | D13: 0.035 | E13: 0.035
A14: 4 | B14: Demand Cost ($/dk/Yr) | C14: Annual cost of firm capacity on pipeline - Feburary 2016 PGA | D14: =+'Gas Costs'!C24 -> 142.21 | E14: =+D14 -> 142.21
B15: Escalation Rate | D15: 0.01 | E15: 0.01
A16: 5 | B16: Peak Reduction Factor | C16: Estimated average peak day reduction factor caused by implementing the measure (s) | D16: 0.01 | E16: 0.01
A17: 6 | B17: Variable O&M ($/dk) | C17: Estimated variable O&M that will be avoided due the implementing the measure | D17: 0 | E17: 0
B18: Escalation Rate | D18: 0 | E18: 0
A19: 7 | B19: Non-Gas Fuel Cost ($/Fuel Unit) | C19: Average commodity cost of non gas fuel if measures also saves kWh, gallons of water, etc. (for analysis purposes, used electric as Non-Gas Fuel Cost) | D19: =+'Gas Costs'!C59 -> 0.0218 | E19: =+D19 -> 0.0218
B20: Escalation Rate | D20: 0.035 | E20: 0.035
A21: 8 | B21: Non-Gas Fuel Loss Factor | C21: Non-Gas fuel loss factor (for analysis purposes, used Montana-Dakota 12 month ending July 2014loss factor) | D21: 0.051 | E21: =+D21 -> 0.051
A22: 9 | B22: Gas Environmental Damage Factor | C22: Per the 2013-2015 CIP triennium from Minnesota approved by the Minnesota Division of Energy Resources Staff | D22: 0.35 | E22: =+D22 -> 0.35
B23: Escalation Rate | D23: 0.023 | E23: 0.023
A24: 10 | B24: Non Gas Fuel Environmental Damage Factor | C24: Not Applicable | D24: 0 | E24: 0
B25: Escalation Rate | D25: 0 | E25: 0
A26: 11 | B26: Participant Discount Rate | D26: 0.1 | E26: 0.1
A27: 12 | B27: Utility Discount Rate | C27: Montana-Dakota's authorized average cost of capital | D27: 0.076 | E27: =+D27 -> 0.076
A28: 13 | B28: Societal Discount Rate | C28: Equal to the 30 year T-Bill rate average for Twelve Months Ending September 16, 2014 | D28: 0.0356 | E28: =+D28 -> 0.0356
A29: 14 | B29: General Input Data Year = | C29: Year data was input | D29: 2014 | E29: 2014
A30: 15 | B30: Project Analysis Year | C30: Year(s) program will be implemented | D30: 2015 | E30: 2015
D31: 2016 | E31: 2016
D32: 2017 | E32: 2017
A33: 16 | B33: Utility Project Costs | C33: Total direct cost to the utility caused by implementing the program(s)
A34: 17 | B34: Direct Participant Costs ($/Part.) | C34: Direct costs that the participant would have to participate in the program
A35: 18 | B35: Participant Non-Energy Costs (Annual $/Part.) Yr. 1 | C35: Annual participant non-energy costs if applicable caused by implementing the measure (Not Applicable) | D35: 0 | E35: 0
B36: Yr. 2 | D36: 0 | E36: 0
B37: Yr. 3 | D37: 0 | E37: 0
B38: Escalation Rate Yr. 1 | D38: 0 | E38: 0
B39: Escalation Rate Yr. 2 | D39: 0 | E39: 0
B40: Escalation Rate Yr. 3 | D40: 0 | E40: 0
A41: 19 | B41: Participant Non-Energy Savings (Annual $/Part) Yr. 1 | C41: Participant non energy savings if applicable caused by implementing the measure (Not Applicable) | D41: 0 | E41: 0
B42: Yr. 2 | D42: 0 | E42: 0
B43: Yr. 3 | D43: 0 | E43: 0
B44: Escalation Rate Yr. 1 | D44: 0 | E44: 0
B45: Escalation Rate Yr. 2 | D45: 0 | E45: 0
B46: Escalation Rate Yr. 3 | D46: 0.014 | E46: 0.014
A47: 20 | B47: Project Life (Years) | C47: Based on the estimated useful life of the energy saving equipment (20 years maximum)
A48: 21 | B48: Avg. Dk/Part. Saved | C48: Avg energy reduction (Dk) caused by the program(s)
A49: 22 | B49: Avg Non-Gas Fuel Units/Part. Saved Yr. 1 | C49: Average non-gas fuel units saved or added due to implementing the measure (for analysis purposes, used Kwh)
B50: Yr. 2 | D50: 0 | E50: 0
B51: Yr. 3 | D51: 0 | E51: 0
A52: 22a | B52: Avg Additional Non-Gas Fuel Units/ Part. Used Yr. 1 | D52: 0 | E52: 0
B53: Yr. 2 | D53: 0 | E53: 0
B54: Yr. 3 | D54: 0 | E54: 0
A55: 23 | B55: Number of Participants | C55: Total number of expected participants is the program(s)
A56: 24 | B56: Total Annual Dk Saved | C56: Total Dk saved from the program in the year implemented
A57: 25 | B57: Incentive/Participant | C57: Incentive provided to the participant
A58: 26 | B58: Distribution Delivery Charge | C58: Weighted Average of Montana-Dakota's Distribution Delivery Charge | D58: 1.744 | E58: 1.302
A59: 27 | B59: Effective Fed & State Income Tax Rate | C59: Montana-Dakota's effective tax rate | D59: 0.35 | E59: 0.35

Sheet Total Program
A1: NATURAL GAS CONSERVATION PROGRAMS/DEMAND-SIDE MANAGEMENT | K1: Table 1 | AD1: Table 2 | AP1: Table 3 | BG1: Table 4 | BV1: Table 5
A2: BEN/COST ANALYSIS FOR GAS CONSERVATION | K2: Ratepayer Impact Measure Test | AD2: Utility Cost Test | AP2: Societal Test | BG2: Participant Test | BV2: Total Resource Cost Test
A4: Company: | B4: Montana-Dakota Utilities Co. | K4: Company: | M4: =B4 -> Montana-Dakota Utilities Co. | AD4: Company: | AF4: =B4 -> Montana-Dakota Utilities Co. | AP4: Company: | AR4: =AF4 -> Montana-Dakota Utilities Co. | BH4: Company: | BI4: =AR4 -> Montana-Dakota Utilities Co. | BW4: Company: | BX4: =BI4 -> Montana-Dakota Utilities Co.
A5: Project: | B5: Total South Dakota Program | K5: Project: | M5: =$B$5 -> Total South Dakota Program | AD5: Project: | AF5: =$B$5 -> Total South Dakota Program | AP5: Project: | AR5: =$B$5 -> Total South Dakota Program | BH5: Project: | BI5: =$B$5 -> Total South Dakota Program | BW5: Project: | BX5: =$B$5 -> Total South Dakota Program
A6: Program Years: | B6: Actual 2015
N7: Benefits | X7: Costs | AF7: Benefits | AJ7: Costs | AR7: Benefits | BB7: Costs | BI7: Benefits | BR7: Costs | BX7: Benefits | CC7: Costs
A8: Input Data | F8: 2015 | AB8: Annual | AN8: Annual | AT8: Non-Gas | BE8: Annual | BT8: Annual | CG8: Annual
M9: Total | N9: Gas | O9: Gas | P9: Variable | Q9: Variable | R9: Total | S9: Peak Dk | T9: Dmd | U9: Total | W9: Distribution | Y9: Program | AA9: Total | AB9: Benefits | AF9: Total | AG9: Total | AH9: Annual | AJ9: Program | AL9: Utility | AN9: Benefits | AR9: Total | AS9: Total | AT9: Energy | AU9: Non-Gas | AV9: Environmental | AW9: Environmental | AZ9: Annual | BB9: Utility | BC9: Participants' | BD9: Annual | BE9: Benefits | BJ9: Total | BL9: Gas | BM9: Non-Gas | BN9: Non-Gas | BP9: Total | BR9: Direct | BT9: Benefits | BX9: Total | BY9: Total | BZ9: Non-Gas | CA9: Total | CC9: Utility | CD9: Participants' | CG9: Benefits
A10: 1) Retail Rate ($/Dk) = | E10: 16) Utility Project Costs | M10: Energy | N10: Commodity | O10: Commodity | P10: O & M | Q10: O & M | R10: Energy | S10: Demand | T10: Savings | U10: Demand | V10: Total | W10: Delivery | X10: Lost | Y10: Admin | Z10: Incentive | AA10: Program | AB10: Less | AF10: Energy | AG10: Demand | AH10: Total | AJ10: Admin | AK10: Incentive | AL10: Program | AN10: Less | AR10: Energy | AS10: Demand | AT10: Savings | AU10: Energy | AV10: Damage | AW10: Damage | AZ10: Total | BB10: Program | BC10: Costs Net | BD10: Total | BE10: Less | BI10: Incentives | BJ10: Energy | BK10: Retail | BL10: Bill | BM10: Fuel | BN10: Energy | BP10: Annual | BR10: Participant | BT10: Less | BX10: Energy | BY10: Demand | BZ10: Energy | CA10: Annual | CC10: Program | CD10: Costs Net | CE10: Total | CG10: Less
A11: Escalation Rate = | E11: 16a) Administrative & Operating Costs | F11: =+'Total Program Inputs'!K22 -> 7923 | J11: t | M11: Reduction | N11: Cost/Dk | O11: Savings | P11: Cost/Dk | Q11: Savings | R11: Savings | S11: Reduction | T11: '/ Unit | U11: Savings | V11: Savings | W11: Charge | X11: Margin | Y11: Costs | Z11: Costs | AA11: Costs | AB11: Costs | AF11: Savings | AG11: Savings | AH11: Savings | AJ11: Costs | AK11: Costs | AL11: Costs | AN11: Costs | AR11: Savings | AS11: Savings | AT11: ($/Part.) | AU11: Savings | AV11: Savings/Dk | AW11: Savings | AZ11: Savings | BB11: Costs | BC11: of Rebate | BD11: Costs | BE11: Costs | BI11: Received | BJ11: Reduction | BK11: Rate | BL11: Savings | BM11: Retail Rate | BN11: Savings | BP11: Benefits | BR11: Costs | BT11: Costs | BX11: Savings | BY11: Savings | BZ11: Savings | CA11: Benefits | CC11: Costs | CD11: of Rebate | CE11: Costs | CG11: Costs
E12: 16b) Incentive Costs = | F12: =+'Total Program Inputs'!G22 -> 106640 | L12: Year | M12: (A) | N12: (B) | O12: (C) | P12: (D) | Q12: (E) | R12: (F) | S12: (G) | T12: (H) | U12: (I) | V12: (J) | W12: (K) | X12: (L) | Y12: (M) | Z12: (N) | AA12: (O) | AB12: (P) | AE12: Year | AF12: (A) | AG12: (B) | AH12: (C) | AJ12: (D) | AK12: (E) | AL12: (F) | AN12: (G) | AQ12: Year | AR12: (A) | AS12: (B) | AT12: (C) | AU12: (D) | AV12: (E) | AW12: (F) | AZ12: (G) | BB12: (H) | BC12: (I) | BD12: (J) | BE12: (K) | BH12: Year | BI12: (A) | BJ12: (B) | BK12: (C) | BL12: (D) | BM12: (E) | BN12: (F) | BP12: (G) | BR12: (H) | BT12: (I) | BW12: Year | BX12: (A) | BY12: (B) | BZ12: (C) | CA12: (D) | CC12: (E) | CD12: (F) | CE12: (G) | CG12: (H)
A13: 2) Non-Gas Fuel Retail Rate ($/Fuel Unit) = | E13: 16c) Total Utility Project Costs = | F13: =SUM(F11:F12) -> 114563
A14: Escalation Rate = | J14: =$C$47-$C$45 -> 1 | L14: =$C$47 -> 2015 | M14: =+ROUND('Res .95+% Res Furnace - NEW'!M14+'Res .95+% Res Furnace - Replace'!M14+'Res Water Heating .67 EF'!M14+'Programmable Thermostats'!M14+'Comm 95+ Furnace - New'!M14+'Comm 95+% Furnace - Replace'!M14+Custom!M14,0) -> 4254 | N14: =+ROUND('Res .95+% Res Furnace - NEW'!N14+'Res .95+% Res Furnace - Replace'!N14+'Res Water Heating .67 EF'!N14+'Programmable Thermostats'!N14+'Comm 95+ Furnace - New'!N14+'Comm 95+% Furnace - Replace'!N14+Custom!N14,0) -> 18 | O14: =+ROUND('Res .95+% Res Furnace - NEW'!O14+'Res .95+% Res Furnace - Replace'!O14+'Res Water Heating .67 EF'!O14+'Programmable Thermostats'!O14+'Comm 95+ Furnace - New'!O14+'Comm 95+% Furnace - Replace'!O14+Custom!O14,0) -> 10963 | P14: =+ROUND('Res .95+% Res Furnace - NEW'!P14+'Res .95+% Res Furnace - Replace'!P14+'Res Water Heating .67 EF'!P14+'Programmable Thermostats'!P14+'Comm 95+ Furnace - New'!P14+'Comm 95+% Furnace - Replace'!P14+Custom!P14,0) -> 0 | Q14: =+ROUND('Res .95+% Res Furnace - NEW'!Q14+'Res .95+% Res Furnace - Replace'!Q14+'Res Water Heating .67 EF'!Q14+'Programmable Thermostats'!Q14+'Comm 95+ Furnace - New'!Q14+'Comm 95+% Furnace - Replace'!Q14+Custom!Q14,0) -> 0 | R14: =+ROUND('Res .95+% Res Furnace - NEW'!R14+'Res .95+% Res Furnace - Replace'!R14+'Res Water Heating .67 EF'!R14+'Programmable Thermostats'!R14+'Comm 95+ Furnace - New'!R14+'Comm 95+% Furnace - Replace'!R14+Custom!R14,0) -> 10963 | S14: =+ROUND('Res .95+% Res Furnace - NEW'!S14+'Res .95+% Res Furnace - Replace'!S14+'Res Water Heating .67 EF'!S14+'Programmable Thermostats'!S14+'Comm 95+ Furnace - New'!S14+'Comm 95+% Furnace - Replace'!S14+Custom!S14,0) -> 43 | T14: =+ROUND('Res .95+% Res Furnace - NEW'!T14+'Res .95+% Res Furnace - Replace'!T14+'Res Water Heating .67 EF'!T14+'Programmable Thermostats'!T14+'Comm 95+ Furnace - New'!T14+'Comm 95+% Furnace - Replace'!T14+Custom!T14,0) -> 994 | U14: =+ROUND('Res .95+% Res Furnace - NEW'!U14+'Res .95+% Res Furnace - Replace'!U14+'Res Water Heating .67 EF'!U14+'Programmable Thermostats'!U14+'Comm 95+ Furnace - New'!U14+'Comm 95+% Furnace - Replace'!U14+Custom!U14,0) -> 6049 | V14: =ROUND(+U14+R14,0) -> 17012 | X14: =+ROUND('Res .95+% Res Furnace - NEW'!X14+'Res .95+% Res Furnace - Replace'!X14+'Res Water Heating .67 EF'!X14+'Programmable Thermostats'!X14+'Comm 95+ Furnace - New'!X14+'Comm 95+% Furnace - Replace'!X14+Custom!X14,0) -> 4945 | Y14: =+ROUND('Res .95+% Res Furnace - NEW'!Y14+'Res .95+% Res Furnace - Replace'!Y14+'Res Water Heating .67 EF'!Y14+'Programmable Thermostats'!Y14+'Comm 95+ Furnace - New'!Y14+'Comm 95+% Furnace - Replace'!Y14+Custom!Y14,0) -> 7923 | Z14: =+ROUND('Res .95+% Res Furnace - NEW'!Z14+'Res .95+% Res Furnace - Replace'!Z14+'Res Water Heating .67 EF'!Z14+'Programmable Thermostats'!Z14+'Comm 95+ Furnace - New'!Z14+'Comm 95+% Furnace - Replace'!Z14+Custom!Z14,0) -> 106640 | AA14: =SUM(X14:Z14) -> 119508 | AB14: =V14-AA14 -> -102496 | AE14: =$C$47 -> 2015 | AF14: =+R14 -> 10963 | AG14: =+U14 -> 6049 | AH14: =+AG14+AF14 -> 17012 | AJ14: =ROUND(Y14,0) -> 7923 | AK14: =ROUND(Z14,0) -> 106640 | AL14: =SUM(AJ14:AK14) -> 114563 | AN14: =+AH14-AL14 -> -97551 | AQ14: =$C$47 -> 2015 | AR14: =AF14 -> 10963 | AS14: =+AG14 -> 6049 | AT14: 17012 | AU14: =+ROUND('Res .95+% Res Furnace - NEW'!AT14+'Res .95+% Res Furnace - Replace'!AU14+'Res Water Heating .67 EF'!AU14+'Programmable Thermostats'!AU14+'Comm 95+ Furnace - New'!AU14+'Comm 95+% Furnace - Replace'!AU14+Custom!AU14,0) -> 6043 | AV14: =+ROUND('Res .95+% Res Furnace - NEW'!AU14+'Res .95+% Res Furnace - Replace'!AV14+'Res Water Heating .67 EF'!AV14+'Programmable Thermostats'!AV14+'Comm 95+ Furnace - New'!AV14+'Comm 95+% Furnace - Replace'!AV14+Custom!AV14,0) -> 3 | AW14: =+ROUND('Res .95+% Res Furnace - NEW'!AV14+'Res .95+% Res Furnace - Replace'!AW14+'Res Water Heating .67 EF'!AW14+'Programmable Thermostats'!AW14+'Comm 95+ Furnace - New'!AW14+'Comm 95+% Furnace - Replace'!AW14+Custom!AW14,0) -> 1523 | AZ14: =ROUND(AR14+AS14+AU14+AW14+AY14,0) -> 24578 | BB14: =+ROUND('Res .95+% Res Furnace - NEW'!BA14+'Res .95+% Res Furnace - Replace'!BB14+'Res Water Heating .67 EF'!BB14+'Programmable Thermostats'!BB14+'Comm 95+ Furnace - New'!BB14+'Comm 95+% Furnace - Replace'!BB14+Custom!BB14,0) -> 114563 | BC14: =+ROUND('Res .95+% Res Furnace - NEW'!BB14+'Res .95+% Res Furnace - Replace'!BC14+'Res Water Heating .67 EF'!BC14+'Programmable Thermostats'!BC14+'Comm 95+ Furnace - New'!BC14+'Comm 95+% Furnace - Replace'!BC14+Custom!BC14,0) -> 79152 | BD14: =BB14+BC14 -> 193715 | BE14: =AZ14-BD14 -> -169137 | BH14: =$C$47 -> 2015 | BI14: =+ROUND('Res .95+% Res Furnace - NEW'!BH14+'Res .95+% Res Furnace - Replace'!BI14+'Res Water Heating .67 EF'!BI14+'Programmable Thermostats'!BI14+'Comm 95+ Furnace - New'!BI14+'Comm 95+% Furnace - Replace'!BI14+Custom!BI14,0) -> 106640 | BJ14: =+ROUND('Res .95+% Res Furnace - NEW'!BI14+'Res .95+% Res Furnace - Replace'!BJ14+'Res Water Heating .67 EF'!BJ14+'Programmable Thermostats'!BJ14+'Comm 95+ Furnace - New'!BJ14+'Comm 95+% Furnace - Replace'!BJ14+Custom!BJ14,0) -> 4254 | BK14: =+ROUND('Res .95+% Res Furnace - NEW'!BJ14+'Res .95+% Res Furnace - Replace'!BK14+'Res Water Heating .67 EF'!BK14+'Programmable Thermostats'!BK14+'Comm 95+ Furnace - New'!BK14+'Comm 95+% Furnace - Replace'!BK14+Custom!BK14,0) -> 42 | BL14: =+ROUND('Res .95+% Res Furnace - NEW'!BK14+'Res .95+% Res Furnace - Replace'!BL14+'Res Water Heating .67 EF'!BL14+'Programmable Thermostats'!BL14+'Comm 95+ Furnace - New'!BL14+'Comm 95+% Furnace - Replace'!BL14+Custom!BL14,0) -> 26226 | BM14: =+ROUND('Res .95+% Res Furnace - NEW'!BL14+'Res .95+% Res Furnace - Replace'!BM14+'Res Water Heating .67 EF'!BM14+'Programmable Thermostats'!BM14+'Comm 95+ Furnace - New'!BM14+'Comm 95+% Furnace - Replace'!BM14+Custom!BM14,0) -> 1 | BN14: =+ROUND('Res .95+% Res Furnace - NEW'!BM14+'Res .95+% Res Furnace - Replace'!BN14+'Res Water Heating .67 EF'!BN14+'Programmable Thermostats'!BN14+'Comm 95+ Furnace - New'!BN14+'Comm 95+% Furnace - Replace'!BN14+Custom!BN14,0) -> 36985 | BP14: =BI14+BL14+BN14+BO14 -> 169851 | BR14: =+ROUND('Res .95+% Res Furnace - NEW'!BQ14+'Res .95+% Res Furnace - Replace'!BR14+'Res Water Heating .67 EF'!BR14+'Programmable Thermostats'!BR14+'Comm 95+ Furnace - New'!BR14+'Comm 95+% Furnace - Replace'!BR14+Custom!BR14,0) -> 185792 | BT14: =BP14-BR14 -> -15941 | BW14: =$C$47 -> 2015 | BX14: =$R14 -> 10963 | BY14: =U14 -> 6049 | BZ14: =AU14 -> 6043 | CA14: =SUM(BX14:BZ14) -> 23055 | CC14: =BB14 -> 114563 | CD14: =BC14 -> 79152 | CE14: =SUM(CC14:CD14) -> 193715 | CG14: =CA14-CE14 -> -170660
A15: Non-Gas Fuel Units (ie. kWh,Gallons, etc) = | E15: 17) Direct Participant Costs ($/Part.) = | J15: =J14+1 -> 2 | L15: =L14+1 -> 2016 | M15: =+ROUND('Res .95+% Res Furnace - NEW'!M15+'Res .95+% Res Furnace - Replace'!M15+'Res Water Heating .67 EF'!M15+'Programmable Thermostats'!M15+'Comm 95+ Furnace - New'!M15+'Comm 95+% Furnace - Replace'!M15+Custom!M15,0) -> 4254 | N15: =+ROUND('Res .95+% Res Furnace - NEW'!N15+'Res .95+% Res Furnace - Replace'!N15+'Res Water Heating .67 EF'!N15+'Programmable Thermostats'!N15+'Comm 95+ Furnace - New'!N15+'Comm 95+% Furnace - Replace'!N15+Custom!N15,0) -> 19 | O15: =+ROUND('Res .95+% Res Furnace - NEW'!O15+'Res .95+% Res Furnace - Replace'!O15+'Res Water Heating .67 EF'!O15+'Programmable Thermostats'!O15+'Comm 95+ Furnace - New'!O15+'Comm 95+% Furnace - Replace'!O15+Custom!O15,0) -> 11345 | P15: =+ROUND('Res .95+% Res Furnace - NEW'!P15+'Res .95+% Res Furnace - Replace'!P15+'Res Water Heating .67 EF'!P15+'Programmable Thermostats'!P15+'Comm 95+ Furnace - New'!P15+'Comm 95+% Furnace - Replace'!P15+Custom!P15,0) -> 0 | Q15: =+ROUND('Res .95+% Res Furnace - NEW'!Q15+'Res .95+% Res Furnace - Replace'!Q15+'Res Water Heating .67 EF'!Q15+'Programmable Thermostats'!Q15+'Comm 95+ Furnace - New'!Q15+'Comm 95+% Furnace - Replace'!Q15+Custom!Q15,0) -> 0 | R15: =+ROUND('Res .95+% Res Furnace - NEW'!R15+'Res .95+% Res Furnace - Replace'!R15+'Res Water Heating .67 EF'!R15+'Programmable Thermostats'!R15+'Comm 95+ Furnace - New'!R15+'Comm 95+% Furnace - Replace'!R15+Custom!R15,0) -> 11345 | S15: =+ROUND('Res .95+% Res Furnace - NEW'!S15+'Res .95+% Res Furnace - Replace'!S15+'Res Water Heating .67 EF'!S15+'Programmable Thermostats'!S15+'Comm 95+ Furnace - New'!S15+'Comm 95+% Furnace - Replace'!S15+Custom!S15,0) -> 43 | T15: =+ROUND('Res .95+% Res Furnace - NEW'!T15+'Res .95+% Res Furnace - Replace'!T15+'Res Water Heating .67 EF'!T15+'Programmable Thermostats'!T15+'Comm 95+ Furnace - New'!T15+'Comm 95+% Furnace - Replace'!T15+Custom!T15,0) -> 1008 | U15: =+ROUND('Res .95+% Res Furnace - NEW'!U15+'Res .95+% Res Furnace - Replace'!U15+'Res Water Heating .67 EF'!U15+'Programmable Thermostats'!U15+'Comm 95+ Furnace - New'!U15+'Comm 95+% Furnace - Replace'!U15+Custom!U15,0) -> 6135 | V15: =ROUND(+U15+R15,0) -> 17480 | X15: =+ROUND('Res .95+% Res Furnace - NEW'!X15+'Res .95+% Res Furnace - Replace'!X15+'Res Water Heating .67 EF'!X15+'Programmable Thermostats'!X15+'Comm 95+ Furnace - New'!X15+'Comm 95+% Furnace - Replace'!X15+Custom!X15,0) -> 5119 | Y15: =+ROUND('Res .95+% Res Furnace - NEW'!Y15+'Res .95+% Res Furnace - Replace'!Y15+'Res Water Heating .67 EF'!Y15+'Programmable Thermostats'!Y15+'Comm 95+ Furnace - New'!Y15+'Comm 95+% Furnace - Replace'!Y15+Custom!Y15,0) -> 0 | Z15: =+ROUND('Res .95+% Res Furnace - NEW'!Z15+'Res .95+% Res Furnace - Replace'!Z15+'Res Water Heating .67 EF'!Z15+'Programmable Thermostats'!Z15+'Comm 95+ Furnace - New'!Z15+'Comm 95+% Furnace - Replace'!Z15+Custom!Z15,0) -> 0 | AA15: =SUM(X15:Z15) -> 5119 | AB15: =V15-AA15 -> 12361 | AE15: =AE14+1 -> 2016 | AF15: 11345 | AG15: 6135 | AH15: =+AG15+AF15 -> 17480 | AJ15: =ROUND(Y15,0) -> 0 | AK15: 0 | AL15: 0 | AN15: 17480 | AQ15: =AQ14+1 -> 2016 | AR15: 11345 | AS15: 6135 | AT15: 17480 | AU15: =+ROUND('Res .95+% Res Furnace - NEW'!AT15+'Res .95+% Res Furnace - Replace'!AU15+'Res Water Heating .67 EF'!AU15+'Programmable Thermostats'!AU15+'Comm 95+ Furnace - New'!AU15+'Comm 95+% Furnace - Replace'!AU15+Custom!AU15,0) -> 6296 | AV15: =+ROUND('Res .95+% Res Furnace - NEW'!AU15+'Res .95+% Res Furnace - Replace'!AV15+'Res Water Heating .67 EF'!AV15+'Programmable Thermostats'!AV15+'Comm 95+ Furnace - New'!AV15+'Comm 95+% Furnace - Replace'!AV15+Custom!AV15,0) -> 3 | AW15: =+ROUND('Res .95+% Res Furnace - NEW'!AV15+'Res .95+% Res Furnace - Replace'!AW15+'Res Water Heating .67 EF'!AW15+'Programmable Thermostats'!AW15+'Comm 95+ Furnace - New'!AW15+'Comm 95+% Furnace - Replace'!AW15+Custom!AW15,0) -> 1557 | AZ15: =ROUND(AR15+AS15+AU15+AW15+AY15,0) -> 25333 | BB15: =+ROUND('Res .95+% Res Furnace - NEW'!BA15+'Res .95+% Res Furnace - Replace'!BB15+'Res Water Heating .67 EF'!BB15+'Programmable Thermostats'!BB15+'Comm 95+ Furnace - New'!BB15+'Comm 95+% Furnace - Replace'!BB15+Custom!BB15,0) -> 0 | BC15: =+ROUND('Res .95+% Res Furnace - NEW'!BB15+'Res .95+% Res Furnace - Replace'!BC15+'Res Water Heating .67 EF'!BC15+'Programmable Thermostats'!BC15+'Comm 95+ Furnace - New'!BC15+'Comm 95+% Furnace - Replace'!BC15+Custom!BC15,0) -> 0 | BD15: =BB15+BC15 -> 0 | BE15: 25333 | BH15: =BH14+1 -> 2016 | BI15: =+ROUND('Res .95+% Res Furnace - NEW'!BH15+'Res .95+% Res Furnace - Replace'!BI15+'Res Water Heating .67 EF'!BI15+'Programmable Thermostats'!BI15+'Comm 95+ Furnace - New'!BI15+'Comm 95+% Furnace - Replace'!BI15+Custom!BI15,0) -> 0 | BJ15: =+ROUND('Res .95+% Res Furnace - NEW'!BI15+'Res .95+% Res Furnace - Replace'!BJ15+'Res Water Heating .67 EF'!BJ15+'Programmable Thermostats'!BJ15+'Comm 95+ Furnace - New'!BJ15+'Comm 95+% Furnace - Replace'!BJ15+Custom!BJ15,0) -> 4254 | BK15: =+ROUND('Res .95+% Res Furnace - NEW'!BJ15+'Res .95+% Res Furnace - Replace'!BK15+'Res Water Heating .67 EF'!BK15+'Programmable Thermostats'!BK15+'Comm 95+ Furnace - New'!BK15+'Comm 95+% Furnace - Replace'!BK15+Custom!BK15,0) -> 43 | BL15: =+ROUND('Res .95+% Res Furnace - NEW'!BK15+'Res .95+% Res Furnace - Replace'!BL15+'Res Water Heating .67 EF'!BL15+'Programmable Thermostats'!BL15+'Comm 95+ Furnace - New'!BL15+'Comm 95+% Furnace - Replace'!BL15+Custom!BL15,0) -> 27142 | BM15: =+ROUND('Res .95+% Res Furnace - NEW'!BL15+'Res .95+% Res Furnace - Replace'!BM15+'Res Water Heating .67 EF'!BM15+'Programmable Thermostats'!BM15+'Comm 95+ Furnace - New'!BM15+'Comm 95+% Furnace - Replace'!BM15+Custom!BM15,0) -> 1 | BN15: =+ROUND('Res .95+% Res Furnace - NEW'!BM15+'Res .95+% Res Furnace - Replace'!BN15+'Res Water Heating .67 EF'!BN15+'Programmable Thermostats'!BN15+'Comm 95+ Furnace - New'!BN15+'Comm 95+% Furnace - Replace'!BN15+Custom!BN15,0) -> 38244 | BP15: 65386 | BR15: =+ROUND('Res .95+% Res Furnace - NEW'!BQ15+'Res .95+% Res Furnace - Replace'!BR15+'Res Water Heating .67 EF'!BR15+'Programmable Thermostats'!BR15+'Comm 95+ Furnace - New'!BR15+'Comm 95+% Furnace - Replace'!BR15+Custom!BR15,0) -> 0 | BT15: =BP15-BR15 -> 65386 | BW15: =BW14+1 -> 2016 | BX15: 11345 | BY15: =U15 -> 6135 | BZ15: =AU15 -> 6296 | CA15: =SUM(BX15:BZ15) -> 23776 | CC15: =BB15 -> 0 | CD15: 0 | CE15: =SUM(CC15:CD15) -> 0 | CG15: =CA15-CE15 -> 23776
J16: 3 | L16: 2017 | M16: =+ROUND('Res .95+% Res Furnace - NEW'!M16+'Res .95+% Res Furnace - Replace'!M16+'Res Water Heating .67 EF'!M16+'Programmable Thermostats'!M16+'Comm 95+ Furnace - New'!M16+'Comm 95+% Furnace - Replace'!M16+Custom!M16,0) -> 4254 | N16: =+ROUND('Res .95+% Res Furnace - NEW'!N16+'Res .95+% Res Furnace - Replace'!N16+'Res Water Heating .67 EF'!N16+'Programmable Thermostats'!N16+'Comm 95+ Furnace - New'!N16+'Comm 95+% Furnace - Replace'!N16+Custom!N16,0) -> 19 | O16: =+ROUND('Res .95+% Res Furnace - NEW'!O16+'Res .95+% Res Furnace - Replace'!O16+'Res Water Heating .67 EF'!O16+'Programmable Thermostats'!O16+'Comm 95+ Furnace - New'!O16+'Comm 95+% Furnace - Replace'!O16+Custom!O16,0) -> 11745 | P16: =+ROUND('Res .95+% Res Furnace - NEW'!P16+'Res .95+% Res Furnace - Replace'!P16+'Res Water Heating .67 EF'!P16+'Programmable Thermostats'!P16+'Comm 95+ Furnace - New'!P16+'Comm 95+% Furnace - Replace'!P16+Custom!P16,0) -> 0 | Q16: =+ROUND('Res .95+% Res Furnace - NEW'!Q16+'Res .95+% Res Furnace - Replace'!Q16+'Res Water Heating .67 EF'!Q16+'Programmable Thermostats'!Q16+'Comm 95+ Furnace - New'!Q16+'Comm 95+% Furnace - Replace'!Q16+Custom!Q16,0) -> 0 | R16: =+ROUND('Res .95+% Res Furnace - NEW'!R16+'Res .95+% Res Furnace - Replace'!R16+'Res Water Heating .67 EF'!R16+'Programmable Thermostats'!R16+'Comm 95+ Furnace - New'!R16+'Comm 95+% Furnace - Replace'!R16+Custom!R16,0) -> 11745 | S16: =+ROUND('Res .95+% Res Furnace - NEW'!S16+'Res .95+% Res Furnace - Replace'!S16+'Res Water Heating .67 EF'!S16+'Programmable Thermostats'!S16+'Comm 95+ Furnace - New'!S16+'Comm 95+% Furnace - Replace'!S16+Custom!S16,0) -> 43 | T16: =+ROUND('Res .95+% Res Furnace - NEW'!T16+'Res .95+% Res Furnace - Replace'!T16+'Res Water Heating .67 EF'!T16+'Programmable Thermostats'!T16+'Comm 95+ Furnace - New'!T16+'Comm 95+% Furnace - Replace'!T16+Custom!T16,0) -> 1015 | U16: =+ROUND('Res .95+% Res Furnace - NEW'!U16+'Res .95+% Res Furnace - Replace'!U16+'Res Water Heating .67 EF'!U16+'Programmable Thermostats'!U16+'Comm 95+ Furnace - New'!U16+'Comm 95+% Furnace - Replace'!U16+Custom!U16,0) -> 6178 | V16: 17923 | X16: =+ROUND('Res .95+% Res Furnace - NEW'!X16+'Res .95+% Res Furnace - Replace'!X16+'Res Water Heating .67 EF'!X16+'Programmable Thermostats'!X16+'Comm 95+ Furnace - New'!X16+'Comm 95+% Furnace - Replace'!X16+Custom!X16,0) -> 5300 | Y16: =+ROUND('Res .95+% Res Furnace - NEW'!Y16+'Res .95+% Res Furnace - Replace'!Y16+'Res Water Heating .67 EF'!Y16+'Programmable Thermostats'!Y16+'Comm 95+ Furnace - New'!Y16+'Comm 95+% Furnace - Replace'!Y16+Custom!Y16,0) -> 0 | Z16: =+ROUND('Res .95+% Res Furnace - NEW'!Z16+'Res .95+% Res Furnace - Replace'!Z16+'Res Water Heating .67 EF'!Z16+'Programmable Thermostats'!Z16+'Comm 95+ Furnace - New'!Z16+'Comm 95+% Furnace - Replace'!Z16+Custom!Z16,0) -> 0 | AA16: 5300 | AB16: 12623 | AE16: 2017 | AF16: 11745 | AG16: 6178 | AH16: =+AG16+AF16 -> 17923 | AJ16: 0 | AK16: 0 | AL16: 0 | AN16: 17923 | AQ16: 2017 | AR16: 11745 | AS16: 6178 | AT16: 17923 | AU16: =+ROUND('Res .95+% Res Furnace - NEW'!AT16+'Res .95+% Res Furnace - Replace'!AU16+'Res Water Heating .67 EF'!AU16+'Programmable Thermostats'!AU16+'Comm 95+ Furnace - New'!AU16+'Comm 95+% Furnace - Replace'!AU16+Custom!AU16,0) -> 6296 | AV16: =+ROUND('Res .95+% Res Furnace - NEW'!AU16+'Res .95+% Res Furnace - Replace'!AV16+'Res Water Heating .67 EF'!AV16+'Programmable Thermostats'!AV16+'Comm 95+ Furnace - New'!AV16+'Comm 95+% Furnace - Replace'!AV16+Custom!AV16,0) -> 3 | AW16: =+ROUND('Res .95+% Res Furnace - NEW'!AV16+'Res .95+% Res Furnace - Replace'!AW16+'Res Water Heating .67 EF'!AW16+'Programmable Thermostats'!AW16+'Comm 95+ Furnace - New'!AW16+'Comm 95+% Furnace - Replace'!AW16+Custom!AW16,0) -> 1595 | AZ16: 25814 | BB16: =+ROUND('Res .95+% Res Furnace - NEW'!BA16+'Res .95+% Res Furnace - Replace'!BB16+'Res Water Heating .67 EF'!BB16+'Programmable Thermostats'!BB16+'Comm 95+ Furnace - New'!BB16+'Comm 95+% Furnace - Replace'!BB16+Custom!BB16,0) -> 0 | BC16: =+ROUND('Res .95+% Res Furnace - NEW'!BB16+'Res .95+% Res Furnace - Replace'!BC16+'Res Water Heating .67 EF'!BC16+'Programmable Thermostats'!BC16+'Comm 95+ Furnace - New'!BC16+'Comm 95+% Furnace - Replace'!BC16+Custom!BC16,0) -> 0 | BD16: 0 | BE16: 25814 | BH16: 2017 | BI16: =+ROUND('Res .95+% Res Furnace - NEW'!BH16+'Res .95+% Res Furnace - Replace'!BI16+'Res Water Heating .67 EF'!BI16+'Programmable Thermostats'!BI16+'Comm 95+ Furnace - New'!BI16+'Comm 95+% Furnace - Replace'!BI16+Custom!BI16,0) -> 0 | BJ16: =+ROUND('Res .95+% Res Furnace - NEW'!BI16+'Res .95+% Res Furnace - Replace'!BJ16+'Res Water Heating .67 EF'!BJ16+'Programmable Thermostats'!BJ16+'Comm 95+ Furnace - New'!BJ16+'Comm 95+% Furnace - Replace'!BJ16+Custom!BJ16,0) -> 4254 | BK16: =+ROUND('Res .95+% Res Furnace - NEW'!BJ16+'Res .95+% Res Furnace - Replace'!BK16+'Res Water Heating .67 EF'!BK16+'Programmable Thermostats'!BK16+'Comm 95+ Furnace - New'!BK16+'Comm 95+% Furnace - Replace'!BK16+Custom!BK16,0) -> 45 | BL16: =+ROUND('Res .95+% Res Furnace - NEW'!BK16+'Res .95+% Res Furnace - Replace'!BL16+'Res Water Heating .67 EF'!BL16+'Programmable Thermostats'!BL16+'Comm 95+ Furnace - New'!BL16+'Comm 95+% Furnace - Replace'!BL16+Custom!BL16,0) -> 28092 | BM16: =+ROUND('Res .95+% Res Furnace - NEW'!BL16+'Res .95+% Res Furnace - Replace'!BM16+'Res Water Heating .67 EF'!BM16+'Programmable Thermostats'!BM16+'Comm 95+ Furnace - New'!BM16+'Comm 95+% Furnace - Replace'!BM16+Custom!BM16,0) -> 1 | BN16: =+ROUND('Res .95+% Res Furnace - NEW'!BM16+'Res .95+% Res Furnace - Replace'!BN16+'Res Water Heating .67 EF'!BN16+'Programmable Thermostats'!BN16+'Comm 95+ Furnace - New'!BN16+'Comm 95+% Furnace - Replace'!BN16+Custom!BN16,0) -> 39751 | BP16: 67843 | BR16: =+ROUND('Res .95+% Res Furnace - NEW'!BQ16+'Res .95+% Res Furnace - Replace'!BR16+'Res Water Heating .67 EF'!BR16+'Programmable Thermostats'!BR16+'Comm 95+ Furnace - New'!BR16+'Comm 95+% Furnace - Replace'!BR16+Custom!BR16,0) -> 0 | BT16: 67843 | BW16: 2017 | BX16: 11745 | BY16: 6178 | BZ16: 6296 | CA16: 24219 | CC16: 0 | CD16: 0 | CE16: 0 | CG16: 24219
A17: 3) Commodity Cost ($/Dk) = | E17: 18) Participant Non-Energy Costs (Annual $/Part.) = | J17: 4 | L17: 2018 | M17: =+ROUND('Res .95+% Res Furnace - NEW'!M17+'Res .95+% Res Furnace - Replace'!M17+'Res Water Heating .67 EF'!M17+'Programmable Thermostats'!M17+'Comm 95+ Furnace - New'!M17+'Comm 95+% Furnace - Replace'!M17+Custom!M17,0) -> 4254 | N17: =+ROUND('Res .95+% Res Furnace - NEW'!N17+'Res .95+% Res Furnace - Replace'!N17+'Res Water Heating .67 EF'!N17+'Programmable Thermostats'!N17+'Comm 95+ Furnace - New'!N17+'Comm 95+% Furnace - Replace'!N17+Custom!N17,0) -> 20 | O17: =+ROUND('Res .95+% Res Furnace - NEW'!O17+'Res .95+% Res Furnace - Replace'!O17+'Res Water Heating .67 EF'!O17+'Programmable Thermostats'!O17+'Comm 95+ Furnace - New'!O17+'Comm 95+% Furnace - Replace'!O17+Custom!O17,0) -> 12154 | P17: =+ROUND('Res .95+% Res Furnace - NEW'!P17+'Res .95+% Res Furnace - Replace'!P17+'Res Water Heating .67 EF'!P17+'Programmable Thermostats'!P17+'Comm 95+ Furnace - New'!P17+'Comm 95+% Furnace - Replace'!P17+Custom!P17,0) -> 0 | Q17: =+ROUND('Res .95+% Res Furnace - NEW'!Q17+'Res .95+% Res Furnace - Replace'!Q17+'Res Water Heating .67 EF'!Q17+'Programmable Thermostats'!Q17+'Comm 95+ Furnace - New'!Q17+'Comm 95+% Furnace - Replace'!Q17+Custom!Q17,0) -> 0 | R17: =+ROUND('Res .95+% Res Furnace - NEW'!R17+'Res .95+% Res Furnace - Replace'!R17+'Res Water Heating .67 EF'!R17+'Programmable Thermostats'!R17+'Comm 95+ Furnace - New'!R17+'Comm 95+% Furnace - Replace'!R17+Custom!R17,0) -> 12154 | S17: =+ROUND('Res .95+% Res Furnace - NEW'!S17+'Res .95+% Res Furnace - Replace'!S17+'Res Water Heating .67 EF'!S17+'Programmable Thermostats'!S17+'Comm 95+ Furnace - New'!S17+'Comm 95+% Furnace - Replace'!S17+Custom!S17,0) -> 43 | T17: =+ROUND('Res .95+% Res Furnace - NEW'!T17+'Res .95+% Res Furnace - Replace'!T17+'Res Water Heating .67 EF'!T17+'Programmable Thermostats'!T17+'Comm 95+ Furnace - New'!T17+'Comm 95+% Furnace - Replace'!T17+Custom!T17,0) -> 1029 | U17: =+ROUND('Res .95+% Res Furnace - NEW'!U17+'Res .95+% Res Furnace - Replace'!U17+'Res Water Heating .67 EF'!U17+'Programmable Thermostats'!U17+'Comm 95+ Furnace - New'!U17+'Comm 95+% Furnace - Replace'!U17+Custom!U17,0) -> 6262 | V17: 18416 | X17: =+ROUND('Res .95+% Res Furnace - NEW'!X17+'Res .95+% Res Furnace - Replace'!X17+'Res Water Heating .67 EF'!X17+'Programmable Thermostats'!X17+'Comm 95+ Furnace - New'!X17+'Comm 95+% Furnace - Replace'!X17+Custom!X17,0) -> 5484 | Y17: =+ROUND('Res .95+% Res Furnace - NEW'!Y17+'Res .95+% Res Furnace - Replace'!Y17+'Res Water Heating .67 EF'!Y17+'Programmable Thermostats'!Y17+'Comm 95+ Furnace - New'!Y17+'Comm 95+% Furnace - Replace'!Y17+Custom!Y17,0) -> 0 | Z17: =+ROUND('Res .95+% Res Furnace - NEW'!Z17+'Res .95+% Res Furnace - Replace'!Z17+'Res Water Heating .67 EF'!Z17+'Programmable Thermostats'!Z17+'Comm 95+ Furnace - New'!Z17+'Comm 95+% Furnace - Replace'!Z17+Custom!Z17,0) -> 0 | AA17: 5484 | AB17: 12932 | AE17: 2018 | AF17: 12154 | AG17: 6262 | AH17: 18416 | AJ17: 0 | AK17: 0 | AL17: 0 | AN17: 18416 | AQ17: 2018 | AR17: 12154 | AS17: 6262 | AT17: 18416 | AU17: =+ROUND('Res .95+% Res Furnace - NEW'!AT17+'Res .95+% Res Furnace - Replace'!AU17+'Res Water Heating .67 EF'!AU17+'Programmable Thermostats'!AU17+'Comm 95+ Furnace - New'!AU17+'Comm 95+% Furnace - Replace'!AU17+Custom!AU17,0) -> 6546 | AV17: =+ROUND('Res .95+% Res Furnace - NEW'!AU17+'Res .95+% Res Furnace - Replace'!AV17+'Res Water Heating .67 EF'!AV17+'Programmable Thermostats'!AV17+'Comm 95+ Furnace - New'!AV17+'Comm 95+% Furnace - Replace'!AV17+Custom!AV17,0) -> 3 | AW17: =+ROUND('Res .95+% Res Furnace - NEW'!AV17+'Res .95+% Res Furnace - Replace'!AW17+'Res Water Heating .67 EF'!AW17+'Programmable Thermostats'!AW17+'Comm 95+ Furnace - New'!AW17+'Comm 95+% Furnace - Replace'!AW17+Custom!AW17,0) -> 1629 | AZ17: 26591 | BB17: =+ROUND('Res .95+% Res Furnace - NEW'!BA17+'Res .95+% Res Furnace - Replace'!BB17+'Res Water Heating .67 EF'!BB17+'Programmable Thermostats'!BB17+'Comm 95+ Furnace - New'!BB17+'Comm 95+% Furnace - Replace'!BB17+Custom!BB17,0) -> 0 | BC17: =+ROUND('Res .95+% Res Furnace - NEW'!BB17+'Res .95+% Res Furnace - Replace'!BC17+'Res Water Heating .67 EF'!BC17+'Programmable Thermostats'!BC17+'Comm 95+ Furnace - New'!BC17+'Comm 95+% Furnace - Replace'!BC17+Custom!BC17,0) -> 0 | BD17: 0 | BE17: 26591 | BH17: 2018 | BI17: =+ROUND('Res .95+% Res Furnace - NEW'!BH17+'Res .95+% Res Furnace - Replace'!BI17+'Res Water Heating .67 EF'!BI17+'Programmable Thermostats'!BI17+'Comm 95+ Furnace - New'!BI17+'Comm 95+% Furnace - Replace'!BI17+Custom!BI17,0) -> 0 | BJ17: =+ROUND('Res .95+% Res Furnace - NEW'!BI17+'Res .95+% Res Furnace - Replace'!BJ17+'Res Water Heating .67 EF'!BJ17+'Programmable Thermostats'!BJ17+'Comm 95+ Furnace - New'!BJ17+'Comm 95+% Furnace - Replace'!BJ17+Custom!BJ17,0) -> 4254 | BK17: =+ROUND('Res .95+% Res Furnace - NEW'!BJ17+'Res .95+% Res Furnace - Replace'!BK17+'Res Water Heating .67 EF'!BK17+'Programmable Thermostats'!BK17+'Comm 95+ Furnace - New'!BK17+'Comm 95+% Furnace - Replace'!BK17+Custom!BK17,0) -> 46 | BL17: =+ROUND('Res .95+% Res Furnace - NEW'!BK17+'Res .95+% Res Furnace - Replace'!BL17+'Res Water Heating .67 EF'!BL17+'Programmable Thermostats'!BL17+'Comm 95+ Furnace - New'!BL17+'Comm 95+% Furnace - Replace'!BL17+Custom!BL17,0) -> 29076 | BM17: =+ROUND('Res .95+% Res Furnace - NEW'!BL17+'Res .95+% Res Furnace - Replace'!BM17+'Res Water Heating .67 EF'!BM17+'Programmable Thermostats'!BM17+'Comm 95+ Furnace - New'!BM17+'Comm 95+% Furnace - Replace'!BM17+Custom!BM17,0) -> 1 | BN17: =+ROUND('Res .95+% Res Furnace - NEW'!BM17+'Res .95+% Res Furnace - Replace'!BN17+'Res Water Heating .67 EF'!BN17+'Programmable Thermostats'!BN17+'Comm 95+ Furnace - New'!BN17+'Comm 95+% Furnace - Replace'!BN17+Custom!BN17,0) -> 41010 | BP17: 70086 | BR17: =+ROUND('Res .95+% Res Furnace - NEW'!BQ17+'Res .95+% Res Furnace - Replace'!BR17+'Res Water Heating .67 EF'!BR17+'Programmable Thermostats'!BR17+'Comm 95+ Furnace - New'!BR17+'Comm 95+% Furnace - Replace'!BR17+Custom!BR17,0) -> 0 | BT17: 70086 | BW17: 2018 | BX17: 12154 | BY17: 6262 | BZ17: 6546 | CA17: 24962 | CC17: 0 | CD17: 0 | CE17: 0 | CG17: 24962
A18: Escalation Rate = | E18: Escalation Rate = | J18: 5 | L18: 2019 | M18: =+ROUND('Res .95+% Res Furnace - NEW'!M18+'Res .95+% Res Furnace - Replace'!M18+'Res Water Heating .67 EF'!M18+'Programmable Thermostats'!M18+'Comm 95+ Furnace - New'!M18+'Comm 95+% Furnace - Replace'!M18+Custom!M18,0) -> 4254 | N18: =+ROUND('Res .95+% Res Furnace - NEW'!N18+'Res .95+% Res Furnace - Replace'!N18+'Res Water Heating .67 EF'!N18+'Programmable Thermostats'!N18+'Comm 95+ Furnace - New'!N18+'Comm 95+% Furnace - Replace'!N18+Custom!N18,0) -> 21 | O18: =+ROUND('Res .95+% Res Furnace - NEW'!O18+'Res .95+% Res Furnace - Replace'!O18+'Res Water Heating .67 EF'!O18+'Programmable Thermostats'!O18+'Comm 95+ Furnace - New'!O18+'Comm 95+% Furnace - Replace'!O18+Custom!O18,0) -> 12579 | P18: =+ROUND('Res .95+% Res Furnace - NEW'!P18+'Res .95+% Res Furnace - Replace'!P18+'Res Water Heating .67 EF'!P18+'Programmable Thermostats'!P18+'Comm 95+ Furnace - New'!P18+'Comm 95+% Furnace - Replace'!P18+Custom!P18,0) -> 0 | Q18: =+ROUND('Res .95+% Res Furnace - NEW'!Q18+'Res .95+% Res Furnace - Replace'!Q18+'Res Water Heating .67 EF'!Q18+'Programmable Thermostats'!Q18+'Comm 95+ Furnace - New'!Q18+'Comm 95+% Furnace - Replace'!Q18+Custom!Q18,0) -> 0 | R18: =+ROUND('Res .95+% Res Furnace - NEW'!R18+'Res .95+% Res Furnace - Replace'!R18+'Res Water Heating .67 EF'!R18+'Programmable Thermostats'!R18+'Comm 95+ Furnace - New'!R18+'Comm 95+% Furnace - Replace'!R18+Custom!R18,0) -> 12579 | S18: =+ROUND('Res .95+% Res Furnace - NEW'!S18+'Res .95+% Res Furnace - Replace'!S18+'Res Water Heating .67 EF'!S18+'Programmable Thermostats'!S18+'Comm 95+ Furnace - New'!S18+'Comm 95+% Furnace - Replace'!S18+Custom!S18,0) -> 43 | T18: =+ROUND('Res .95+% Res Furnace - NEW'!T18+'Res .95+% Res Furnace - Replace'!T18+'Res Water Heating .67 EF'!T18+'Programmable Thermostats'!T18+'Comm 95+ Furnace - New'!T18+'Comm 95+% Furnace - Replace'!T18+Custom!T18,0) -> 1036 | U18: =+ROUND('Res .95+% Res Furnace - NEW'!U18+'Res .95+% Res Furnace - Replace'!U18+'Res Water Heating .67 EF'!U18+'Programmable Thermostats'!U18+'Comm 95+ Furnace - New'!U18+'Comm 95+% Furnace - Replace'!U18+Custom!U18,0) -> 6305 | V18: 18884 | X18: =+ROUND('Res .95+% Res Furnace - NEW'!X18+'Res .95+% Res Furnace - Replace'!X18+'Res Water Heating .67 EF'!X18+'Programmable Thermostats'!X18+'Comm 95+ Furnace - New'!X18+'Comm 95+% Furnace - Replace'!X18+Custom!X18,0) -> 5676 | Y18: =+ROUND('Res .95+% Res Furnace - NEW'!Y18+'Res .95+% Res Furnace - Replace'!Y18+'Res Water Heating .67 EF'!Y18+'Programmable Thermostats'!Y18+'Comm 95+ Furnace - New'!Y18+'Comm 95+% Furnace - Replace'!Y18+Custom!Y18,0) -> 0 | Z18: =+ROUND('Res .95+% Res Furnace - NEW'!Z18+'Res .95+% Res Furnace - Replace'!Z18+'Res Water Heating .67 EF'!Z18+'Programmable Thermostats'!Z18+'Comm 95+ Furnace - New'!Z18+'Comm 95+% Furnace - Replace'!Z18+Custom!Z18,0) -> 0 | AA18: 5676 | AB18: 13208 | AE18: 2019 | AF18: 12579 | AG18: 6305 | AH18: 18884 | AJ18: 0 | AK18: 0 | AL18: 0 | AN18: 18884 | AQ18: 2019 | AR18: 12579 | AS18: 6305 | AT18: 18884 | AU18: =+ROUND('Res .95+% Res Furnace - NEW'!AT18+'Res .95+% Res Furnace - Replace'!AU18+'Res Water Heating .67 EF'!AU18+'Programmable Thermostats'!AU18+'Comm 95+ Furnace - New'!AU18+'Comm 95+% Furnace - Replace'!AU18+Custom!AU18,0) -> 6799 | AV18: =+ROUND('Res .95+% Res Furnace - NEW'!AU18+'Res .95+% Res Furnace - Replace'!AV18+'Res Water Heating .67 EF'!AV18+'Programmable Thermostats'!AV18+'Comm 95+ Furnace - New'!AV18+'Comm 95+% Furnace - Replace'!AV18+Custom!AV18,0) -> 3 | AW18: =+ROUND('Res .95+% Res Furnace - NEW'!AV18+'Res .95+% Res Furnace - Replace'!AW18+'Res Water Heating .67 EF'!AW18+'Programmable Thermostats'!AW18+'Comm 95+ Furnace - New'!AW18+'Comm 95+% Furnace - Replace'!AW18+Custom!AW18,0) -> 1668 | AZ18: 27351 | BB18: =+ROUND('Res .95+% Res Furnace - NEW'!BA18+'Res .95+% Res Furnace - Replace'!BB18+'Res Water Heating .67 EF'!BB18+'Programmable Thermostats'!BB18+'Comm 95+ Furnace - New'!BB18+'Comm 95+% Furnace - Replace'!BB18+Custom!BB18,0) -> 0 | BC18: =+ROUND('Res .95+% Res Furnace - NEW'!BB18+'Res .95+% Res Furnace - Replace'!BC18+'Res Water Heating .67 EF'!BC18+'Programmable Thermostats'!BC18+'Comm 95+ Furnace - New'!BC18+'Comm 95+% Furnace - Replace'!BC18+Custom!BC18,0) -> 0 | BD18: 0 | BE18: 27351 | BH18: 2019 | BI18: =+ROUND('Res .95+% Res Furnace - NEW'!BH18+'Res .95+% Res Furnace - Replace'!BI18+'Res Water Heating .67 EF'!BI18+'Programmable Thermostats'!BI18+'Comm 95+ Furnace - New'!BI18+'Comm 95+% Furnace - Replace'!BI18+Custom!BI18,0) -> 0 | BJ18: =+ROUND('Res .95+% Res Furnace - NEW'!BI18+'Res .95+% Res Furnace - Replace'!BJ18+'Res Water Heating .67 EF'!BJ18+'Programmable Thermostats'!BJ18+'Comm 95+ Furnace - New'!BJ18+'Comm 95+% Furnace - Replace'!BJ18+Custom!BJ18,0) -> 4254 | BK18: =+ROUND('Res .95+% Res Furnace - NEW'!BJ18+'Res .95+% Res Furnace - Replace'!BK18+'Res Water Heating .67 EF'!BK18+'Programmable Thermostats'!BK18+'Comm 95+ Furnace - New'!BK18+'Comm 95+% Furnace - Replace'!BK18+Custom!BK18,0) -> 48 | BL18: =+ROUND('Res .95+% Res Furnace - NEW'!BK18+'Res .95+% Res Furnace - Replace'!BL18+'Res Water Heating .67 EF'!BL18+'Programmable Thermostats'!BL18+'Comm 95+ Furnace - New'!BL18+'Comm 95+% Furnace - Replace'!BL18+Custom!BL18,0) -> 30095 | BM18: =+ROUND('Res .95+% Res Furnace - NEW'!BL18+'Res .95+% Res Furnace - Replace'!BM18+'Res Water Heating .67 EF'!BM18+'Programmable Thermostats'!BM18+'Comm 95+ Furnace - New'!BM18+'Comm 95+% Furnace - Replace'!BM18+Custom!BM18,0) -> 1 | BN18: =+ROUND('Res .95+% Res Furnace - NEW'!BM18+'Res .95+% Res Furnace - Replace'!BN18+'Res Water Heating .67 EF'!BN18+'Programmable Thermostats'!BN18+'Comm 95+ Furnace - New'!BN18+'Comm 95+% Furnace - Replace'!BN18+Custom!BN18,0) -> 42516 | BP18: 72611 | BR18: =+ROUND('Res .95+% Res Furnace - NEW'!BQ18+'Res .95+% Res Furnace - Replace'!BR18+'Res Water Heating .67 EF'!BR18+'Programmable Thermostats'!BR18+'Comm 95+ Furnace - New'!BR18+'Comm 95+% Furnace - Replace'!BR18+Custom!BR18,0) -> 0 | BT18: 72611 | BW18: 2019 | BX18: 12579 | BY18: 6305 | BZ18: 6799 | CA18: 25683 | CC18: 0 | CD18: 0 | CE18: 0 | CG18: 25683 | DB18: t
J19: 6 | L19: 2020 | M19: =+ROUND('Res .95+% Res Furnace - NEW'!M19+'Res .95+% Res Furnace - Replace'!M19+'Res Water Heating .67 EF'!M19+'Programmable Thermostats'!M19+'Comm 95+ Furnace - New'!M19+'Comm 95+% Furnace - Replace'!M19+Custom!M19,0) -> 4254 | N19: =+ROUND('Res .95+% Res Furnace - NEW'!N19+'Res .95+% Res Furnace - Replace'!N19+'Res Water Heating .67 EF'!N19+'Programmable Thermostats'!N19+'Comm 95+ Furnace - New'!N19+'Comm 95+% Furnace - Replace'!N19+Custom!N19,0) -> 21 | O19: =+ROUND('Res .95+% Res Furnace - NEW'!O19+'Res .95+% Res Furnace - Replace'!O19+'Res Water Heating .67 EF'!O19+'Programmable Thermostats'!O19+'Comm 95+ Furnace - New'!O19+'Comm 95+% Furnace - Replace'!O19+Custom!O19,0) -> 13021 | P19: =+ROUND('Res .95+% Res Furnace - NEW'!P19+'Res .95+% Res Furnace - Replace'!P19+'Res Water Heating .67 EF'!P19+'Programmable Thermostats'!P19+'Comm 95+ Furnace - New'!P19+'Comm 95+% Furnace - Replace'!P19+Custom!P19,0) -> 0 | Q19: =+ROUND('Res .95+% Res Furnace - NEW'!Q19+'Res .95+% Res Furnace - Replace'!Q19+'Res Water Heating .67 EF'!Q19+'Programmable Thermostats'!Q19+'Comm 95+ Furnace - New'!Q19+'Comm 95+% Furnace - Replace'!Q19+Custom!Q19,0) -> 0 | R19: =+ROUND('Res .95+% Res Furnace - NEW'!R19+'Res .95+% Res Furnace - Replace'!R19+'Res Water Heating .67 EF'!R19+'Programmable Thermostats'!R19+'Comm 95+ Furnace - New'!R19+'Comm 95+% Furnace - Replace'!R19+Custom!R19,0) -> 13021 | S19: =+ROUND('Res .95+% Res Furnace - NEW'!S19+'Res .95+% Res Furnace - Replace'!S19+'Res Water Heating .67 EF'!S19+'Programmable Thermostats'!S19+'Comm 95+ Furnace - New'!S19+'Comm 95+% Furnace - Replace'!S19+Custom!S19,0) -> 43 | T19: =+ROUND('Res .95+% Res Furnace - NEW'!T19+'Res .95+% Res Furnace - Replace'!T19+'Res Water Heating .67 EF'!T19+'Programmable Thermostats'!T19+'Comm 95+ Furnace - New'!T19+'Comm 95+% Furnace - Replace'!T19+Custom!T19,0) -> 1043 | U19: =+ROUND('Res .95+% Res Furnace - NEW'!U19+'Res .95+% Res Furnace - Replace'!U19+'Res Water Heating .67 EF'!U19+'Programmable Thermostats'!U19+'Comm 95+ Furnace - New'!U19+'Comm 95+% Furnace - Replace'!U19+Custom!U19,0) -> 6348 | V19: 19369 | X19: =+ROUND('Res .95+% Res Furnace - NEW'!X19+'Res .95+% Res Furnace - Replace'!X19+'Res Water Heating .67 EF'!X19+'Programmable Thermostats'!X19+'Comm 95+ Furnace - New'!X19+'Comm 95+% Furnace - Replace'!X19+Custom!X19,0) -> 5875 | Y19: =+ROUND('Res .95+% Res Furnace - NEW'!Y19+'Res .95+% Res Furnace - Replace'!Y19+'Res Water Heating .67 EF'!Y19+'Programmable Thermostats'!Y19+'Comm 95+ Furnace - New'!Y19+'Comm 95+% Furnace - Replace'!Y19+Custom!Y19,0) -> 0 | Z19: =+ROUND('Res .95+% Res Furnace - NEW'!Z19+'Res .95+% Res Furnace - Replace'!Z19+'Res Water Heating .67 EF'!Z19+'Programmable Thermostats'!Z19+'Comm 95+ Furnace - New'!Z19+'Comm 95+% Furnace - Replace'!Z19+Custom!Z19,0) -> 0 | AA19: 5875 | AB19: 13494 | AE19: 2020 | AF19: 13021 | AG19: 6348 | AH19: 19369 | AJ19: 0 | AK19: 0 | AL19: 0 | AN19: 19369 | AQ19: 2020 | AR19: 13021 | AS19: 6348 | AT19: 19369 | AU19: =+ROUND('Res .95+% Res Furnace - NEW'!AT19+'Res .95+% Res Furnace - Replace'!AU19+'Res Water Heating .67 EF'!AU19+'Programmable Thermostats'!AU19+'Comm 95+ Furnace - New'!AU19+'Comm 95+% Furnace - Replace'!AU19+Custom!AU19,0) -> 7050 | AV19: =+ROUND('Res .95+% Res Furnace - NEW'!AU19+'Res .95+% Res Furnace - Replace'!AV19+'Res Water Heating .67 EF'!AV19+'Programmable Thermostats'!AV19+'Comm 95+ Furnace - New'!AV19+'Comm 95+% Furnace - Replace'!AV19+Custom!AV19,0) -> 3 | AW19: =+ROUND('Res .95+% Res Furnace - NEW'!AV19+'Res .95+% Res Furnace - Replace'!AW19+'Res Water Heating .67 EF'!AW19+'Programmable Thermostats'!AW19+'Comm 95+ Furnace - New'!AW19+'Comm 95+% Furnace - Replace'!AW19+Custom!AW19,0) -> 1705 | AZ19: 28124 | BB19: =+ROUND('Res .95+% Res Furnace - NEW'!BA19+'Res .95+% Res Furnace - Replace'!BB19+'Res Water Heating .67 EF'!BB19+'Programmable Thermostats'!BB19+'Comm 95+ Furnace - New'!BB19+'Comm 95+% Furnace - Replace'!BB19+Custom!BB19,0) -> 0 | BC19: =+ROUND('Res .95+% Res Furnace - NEW'!BB19+'Res .95+% Res Furnace - Replace'!BC19+'Res Water Heating .67 EF'!BC19+'Programmable Thermostats'!BC19+'Comm 95+ Furnace - New'!BC19+'Comm 95+% Furnace - Replace'!BC19+Custom!BC19,0) -> 0 | BD19: 0 | BE19: 28124 | BH19: 2020 | BI19: =+ROUND('Res .95+% Res Furnace - NEW'!BH19+'Res .95+% Res Furnace - Replace'!BI19+'Res Water Heating .67 EF'!BI19+'Programmable Thermostats'!BI19+'Comm 95+ Furnace - New'!BI19+'Comm 95+% Furnace - Replace'!BI19+Custom!BI19,0) -> 0 | BJ19: =+ROUND('Res .95+% Res Furnace - NEW'!BI19+'Res .95+% Res Furnace - Replace'!BJ19+'Res Water Heating .67 EF'!BJ19+'Programmable Thermostats'!BJ19+'Comm 95+ Furnace - New'!BJ19+'Comm 95+% Furnace - Replace'!BJ19+Custom!BJ19,0) -> 4254 | BK19: =+ROUND('Res .95+% Res Furnace - NEW'!BJ19+'Res .95+% Res Furnace - Replace'!BK19+'Res Water Heating .67 EF'!BK19+'Programmable Thermostats'!BK19+'Comm 95+ Furnace - New'!BK19+'Comm 95+% Furnace - Replace'!BK19+Custom!BK19,0) -> 50 | BL19: =+ROUND('Res .95+% Res Furnace - NEW'!BK19+'Res .95+% Res Furnace - Replace'!BL19+'Res Water Heating .67 EF'!BL19+'Programmable Thermostats'!BL19+'Comm 95+ Furnace - New'!BL19+'Comm 95+% Furnace - Replace'!BL19+Custom!BL19,0) -> 31147 | BM19: =+ROUND('Res .95+% Res Furnace - NEW'!BL19+'Res .95+% Res Furnace - Replace'!BM19+'Res Water Heating .67 EF'!BM19+'Programmable Thermostats'!BM19+'Comm 95+ Furnace - New'!BM19+'Comm 95+% Furnace - Replace'!BM19+Custom!BM19,0) -> 1 | BN19: =+ROUND('Res .95+% Res Furnace - NEW'!BM19+'Res .95+% Res Furnace - Replace'!BN19+'Res Water Heating .67 EF'!BN19+'Programmable Thermostats'!BN19+'Comm 95+ Furnace - New'!BN19+'Comm 95+% Furnace - Replace'!BN19+Custom!BN19,0) -> 44027 | BP19: 75174 | BR19: =+ROUND('Res .95+% Res Furnace - NEW'!BQ19+'Res .95+% Res Furnace - Replace'!BR19+'Res Water Heating .67 EF'!BR19+'Programmable Thermostats'!BR19+'Comm 95+ Furnace - New'!BR19+'Comm 95+% Furnace - Replace'!BR19+Custom!BR19,0) -> 0 | BT19: 75174 | BW19: 2020 | BX19: 13021 | BY19: 6348 | BZ19: 7050 | CA19: 26419 | CC19: 0 | CD19: 0 | CE19: 0 | CG19: 26419
A20: 4) Demand Cost ($/Unit/Yr) = | E20: 19) Participant Non-Energy Savings (Annual $/Part) = | J20: 7 | L20: 2021 | M20: =+ROUND('Res .95+% Res Furnace - NEW'!M20+'Res .95+% Res Furnace - Replace'!M20+'Res Water Heating .67 EF'!M20+'Programmable Thermostats'!M20+'Comm 95+ Furnace - New'!M20+'Comm 95+% Furnace - Replace'!M20+Custom!M20,0) -> 4254 | N20: =+ROUND('Res .95+% Res Furnace - NEW'!N20+'Res .95+% Res Furnace - Replace'!N20+'Res Water Heating .67 EF'!N20+'Programmable Thermostats'!N20+'Comm 95+ Furnace - New'!N20+'Comm 95+% Furnace - Replace'!N20+Custom!N20,0) -> 22 | O20: =+ROUND('Res .95+% Res Furnace - NEW'!O20+'Res .95+% Res Furnace - Replace'!O20+'Res Water Heating .67 EF'!O20+'Programmable Thermostats'!O20+'Comm 95+ Furnace - New'!O20+'Comm 95+% Furnace - Replace'!O20+Custom!O20,0) -> 13476 | P20: =+ROUND('Res .95+% Res Furnace - NEW'!P20+'Res .95+% Res Furnace - Replace'!P20+'Res Water Heating .67 EF'!P20+'Programmable Thermostats'!P20+'Comm 95+ Furnace - New'!P20+'Comm 95+% Furnace - Replace'!P20+Custom!P20,0) -> 0 | Q20: =+ROUND('Res .95+% Res Furnace - NEW'!Q20+'Res .95+% Res Furnace - Replace'!Q20+'Res Water Heating .67 EF'!Q20+'Programmable Thermostats'!Q20+'Comm 95+ Furnace - New'!Q20+'Comm 95+% Furnace - Replace'!Q20+Custom!Q20,0) -> 0 | R20: =+ROUND('Res .95+% Res Furnace - NEW'!R20+'Res .95+% Res Furnace - Replace'!R20+'Res Water Heating .67 EF'!R20+'Programmable Thermostats'!R20+'Comm 95+ Furnace - New'!R20+'Comm 95+% Furnace - Replace'!R20+Custom!R20,0) -> 13476 | S20: =+ROUND('Res .95+% Res Furnace - NEW'!S20+'Res .95+% Res Furnace - Replace'!S20+'Res Water Heating .67 EF'!S20+'Programmable Thermostats'!S20+'Comm 95+ Furnace - New'!S20+'Comm 95+% Furnace - Replace'!S20+Custom!S20,0) -> 43 | T20: =+ROUND('Res .95+% Res Furnace - NEW'!T20+'Res .95+% Res Furnace - Replace'!T20+'Res Water Heating .67 EF'!T20+'Programmable Thermostats'!T20+'Comm 95+ Furnace - New'!T20+'Comm 95+% Furnace - Replace'!T20+Custom!T20,0) -> 1057 | U20: =+ROUND('Res .95+% Res Furnace - NEW'!U20+'Res .95+% Res Furnace - Replace'!U20+'Res Water Heating .67 EF'!U20+'Programmable Thermostats'!U20+'Comm 95+ Furnace - New'!U20+'Comm 95+% Furnace - Replace'!U20+Custom!U20,0) -> 6433 | V20: 19909 | X20: =+ROUND('Res .95+% Res Furnace - NEW'!X20+'Res .95+% Res Furnace - Replace'!X20+'Res Water Heating .67 EF'!X20+'Programmable Thermostats'!X20+'Comm 95+ Furnace - New'!X20+'Comm 95+% Furnace - Replace'!X20+Custom!X20,0) -> 6081 | Y20: =+ROUND('Res .95+% Res Furnace - NEW'!Y20+'Res .95+% Res Furnace - Replace'!Y20+'Res Water Heating .67 EF'!Y20+'Programmable Thermostats'!Y20+'Comm 95+ Furnace - New'!Y20+'Comm 95+% Furnace - Replace'!Y20+Custom!Y20,0) -> 0 | Z20: =+ROUND('Res .95+% Res Furnace - NEW'!Z20+'Res .95+% Res Furnace - Replace'!Z20+'Res Water Heating .67 EF'!Z20+'Programmable Thermostats'!Z20+'Comm 95+ Furnace - New'!Z20+'Comm 95+% Furnace - Replace'!Z20+Custom!Z20,0) -> 0 | AA20: 6081 | AB20: 13828 | AE20: 2021 | AF20: 13476 | AG20: 6433 | AH20: 19909 | AJ20: 0 | AK20: 0 | AL20: 0 | AN20: 19909 | AQ20: 2021 | AR20: 13476 | AS20: 6433 | AT20: 19909 | AU20: =+ROUND('Res .95+% Res Furnace - NEW'!AT20+'Res .95+% Res Furnace - Replace'!AU20+'Res Water Heating .67 EF'!AU20+'Programmable Thermostats'!AU20+'Comm 95+ Furnace - New'!AU20+'Comm 95+% Furnace - Replace'!AU20+Custom!AU20,0) -> 7302 | AV20: =+ROUND('Res .95+% Res Furnace - NEW'!AU20+'Res .95+% Res Furnace - Replace'!AV20+'Res Water Heating .67 EF'!AV20+'Programmable Thermostats'!AV20+'Comm 95+ Furnace - New'!AV20+'Comm 95+% Furnace - Replace'!AV20+Custom!AV20,0) -> 3 | AW20: =+ROUND('Res .95+% Res Furnace - NEW'!AV20+'Res .95+% Res Furnace - Replace'!AW20+'Res Water Heating .67 EF'!AW20+'Programmable Thermostats'!AW20+'Comm 95+ Furnace - New'!AW20+'Comm 95+% Furnace - Replace'!AW20+Custom!AW20,0) -> 1744 | AZ20: 28955 | BB20: =+ROUND('Res .95+% Res Furnace - NEW'!BA20+'Res .95+% Res Furnace - Replace'!BB20+'Res Water Heating .67 EF'!BB20+'Programmable Thermostats'!BB20+'Comm 95+ Furnace - New'!BB20+'Comm 95+% Furnace - Replace'!BB20+Custom!BB20,0) -> 0 | BC20: =+ROUND('Res .95+% Res Furnace - NEW'!BB20+'Res .95+% Res Furnace - Replace'!BC20+'Res Water Heating .67 EF'!BC20+'Programmable Thermostats'!BC20+'Comm 95+ Furnace - New'!BC20+'Comm 95+% Furnace - Replace'!BC20+Custom!BC20,0) -> 0 | BD20: 0 | BE20: 28955 | BH20: 2021 | BI20: =+ROUND('Res .95+% Res Furnace - NEW'!BH20+'Res .95+% Res Furnace - Replace'!BI20+'Res Water Heating .67 EF'!BI20+'Programmable Thermostats'!BI20+'Comm 95+ Furnace - New'!BI20+'Comm 95+% Furnace - Replace'!BI20+Custom!BI20,0) -> 0 | BJ20: =+ROUND('Res .95+% Res Furnace - NEW'!BI20+'Res .95+% Res Furnace - Replace'!BJ20+'Res Water Heating .67 EF'!BJ20+'Programmable Thermostats'!BJ20+'Comm 95+ Furnace - New'!BJ20+'Comm 95+% Furnace - Replace'!BJ20+Custom!BJ20,0) -> 4254 | BK20: =+ROUND('Res .95+% Res Furnace - NEW'!BJ20+'Res .95+% Res Furnace - Replace'!BK20+'Res Water Heating .67 EF'!BK20+'Programmable Thermostats'!BK20+'Comm 95+ Furnace - New'!BK20+'Comm 95+% Furnace - Replace'!BK20+Custom!BK20,0) -> 52 | BL20: =+ROUND('Res .95+% Res Furnace - NEW'!BK20+'Res .95+% Res Furnace - Replace'!BL20+'Res Water Heating .67 EF'!BL20+'Programmable Thermostats'!BL20+'Comm 95+ Furnace - New'!BL20+'Comm 95+% Furnace - Replace'!BL20+Custom!BL20,0) -> 32237 | BM20: =+ROUND('Res .95+% Res Furnace - NEW'!BL20+'Res .95+% Res Furnace - Replace'!BM20+'Res Water Heating .67 EF'!BM20+'Programmable Thermostats'!BM20+'Comm 95+ Furnace - New'!BM20+'Comm 95+% Furnace - Replace'!BM20+Custom!BM20,0) -> 1 | BN20: =+ROUND('Res .95+% Res Furnace - NEW'!BM20+'Res .95+% Res Furnace - Replace'!BN20+'Res Water Heating .67 EF'!BN20+'Programmable Thermostats'!BN20+'Comm 95+ Furnace - New'!BN20+'Comm 95+% Furnace - Replace'!BN20+Custom!BN20,0) -> 45537 | BP20: 77774 | BR20: =+ROUND('Res .95+% Res Furnace - NEW'!BQ20+'Res .95+% Res Furnace - Replace'!BR20+'Res Water Heating .67 EF'!BR20+'Programmable Thermostats'!BR20+'Comm 95+ Furnace - New'!BR20+'Comm 95+% Furnace - Replace'!BR20+Custom!BR20,0) -> 0 | BT20: 77774 | BW20: 2021 | BX20: 13476 | BY20: 6433 | BZ20: 7302 | CA20: 27211 | CC20: 0 | CD20: 0 | CE20: 0 | CG20: 27211
A21: Escalation Rate = | E21: Escalation Rate = | J21: 8 | L21: 2022 | M21: =+ROUND('Res .95+% Res Furnace - NEW'!M21+'Res .95+% Res Furnace - Replace'!M21+'Res Water Heating .67 EF'!M21+'Programmable Thermostats'!M21+'Comm 95+ Furnace - New'!M21+'Comm 95+% Furnace - Replace'!M21+Custom!M21,0) -> 4254 | N21: =+ROUND('Res .95+% Res Furnace - NEW'!N21+'Res .95+% Res Furnace - Replace'!N21+'Res Water Heating .67 EF'!N21+'Programmable Thermostats'!N21+'Comm 95+ Furnace - New'!N21+'Comm 95+% Furnace - Replace'!N21+Custom!N21,0) -> 23 | O21: =+ROUND('Res .95+% Res Furnace - NEW'!O21+'Res .95+% Res Furnace - Replace'!O21+'Res Water Heating .67 EF'!O21+'Programmable Thermostats'!O21+'Comm 95+ Furnace - New'!O21+'Comm 95+% Furnace - Replace'!O21+Custom!O21,0) -> 13949 | P21: =+ROUND('Res .95+% Res Furnace - NEW'!P21+'Res .95+% Res Furnace - Replace'!P21+'Res Water Heating .67 EF'!P21+'Programmable Thermostats'!P21+'Comm 95+ Furnace - New'!P21+'Comm 95+% Furnace - Replace'!P21+Custom!P21,0) -> 0 | Q21: =+ROUND('Res .95+% Res Furnace - NEW'!Q21+'Res .95+% Res Furnace - Replace'!Q21+'Res Water Heating .67 EF'!Q21+'Programmable Thermostats'!Q21+'Comm 95+ Furnace - New'!Q21+'Comm 95+% Furnace - Replace'!Q21+Custom!Q21,0) -> 0 | R21: =+ROUND('Res .95+% Res Furnace - NEW'!R21+'Res .95+% Res Furnace - Replace'!R21+'Res Water Heating .67 EF'!R21+'Programmable Thermostats'!R21+'Comm 95+ Furnace - New'!R21+'Comm 95+% Furnace - Replace'!R21+Custom!R21,0) -> 13949 | S21: =+ROUND('Res .95+% Res Furnace - NEW'!S21+'Res .95+% Res Furnace - Replace'!S21+'Res Water Heating .67 EF'!S21+'Programmable Thermostats'!S21+'Comm 95+ Furnace - New'!S21+'Comm 95+% Furnace - Replace'!S21+Custom!S21,0) -> 43 | T21: =+ROUND('Res .95+% Res Furnace - NEW'!T21+'Res .95+% Res Furnace - Replace'!T21+'Res Water Heating .67 EF'!T21+'Programmable Thermostats'!T21+'Comm 95+ Furnace - New'!T21+'Comm 95+% Furnace - Replace'!T21+Custom!T21,0) -> 1064 | U21: =+ROUND('Res .95+% Res Furnace - NEW'!U21+'Res .95+% Res Furnace - Replace'!U21+'Res Water Heating .67 EF'!U21+'Programmable Thermostats'!U21+'Comm 95+ Furnace - New'!U21+'Comm 95+% Furnace - Replace'!U21+Custom!U21,0) -> 6475 | V21: 20424 | X21: =+ROUND('Res .95+% Res Furnace - NEW'!X21+'Res .95+% Res Furnace - Replace'!X21+'Res Water Heating .67 EF'!X21+'Programmable Thermostats'!X21+'Comm 95+ Furnace - New'!X21+'Comm 95+% Furnace - Replace'!X21+Custom!X21,0) -> 6294 | Y21: =+ROUND('Res .95+% Res Furnace - NEW'!Y21+'Res .95+% Res Furnace - Replace'!Y21+'Res Water Heating .67 EF'!Y21+'Programmable Thermostats'!Y21+'Comm 95+ Furnace - New'!Y21+'Comm 95+% Furnace - Replace'!Y21+Custom!Y21,0) -> 0 | Z21: =+ROUND('Res .95+% Res Furnace - NEW'!Z21+'Res .95+% Res Furnace - Replace'!Z21+'Res Water Heating .67 EF'!Z21+'Programmable Thermostats'!Z21+'Comm 95+ Furnace - New'!Z21+'Comm 95+% Furnace - Replace'!Z21+Custom!Z21,0) -> 0 | AA21: 6294 | AB21: 14130 | AE21: 2022 | AF21: 13949 | AG21: 6475 | AH21: 20424 | AJ21: 0 | AK21: 0 | AL21: 0 | AN21: 20424 | AQ21: 2022 | AR21: 13949 | AS21: 6475 | AT21: 20424 | AU21: =+ROUND('Res .95+% Res Furnace - NEW'!AT21+'Res .95+% Res Furnace - Replace'!AU21+'Res Water Heating .67 EF'!AU21+'Programmable Thermostats'!AU21+'Comm 95+ Furnace - New'!AU21+'Comm 95+% Furnace - Replace'!AU21+Custom!AU21,0) -> 7555 | AV21: =+ROUND('Res .95+% Res Furnace - NEW'!AU21+'Res .95+% Res Furnace - Replace'!AV21+'Res Water Heating .67 EF'!AV21+'Programmable Thermostats'!AV21+'Comm 95+ Furnace - New'!AV21+'Comm 95+% Furnace - Replace'!AV21+Custom!AV21,0) -> 3 | AW21: =+ROUND('Res .95+% Res Furnace - NEW'!AV21+'Res .95+% Res Furnace - Replace'!AW21+'Res Water Heating .67 EF'!AW21+'Programmable Thermostats'!AW21+'Comm 95+ Furnace - New'!AW21+'Comm 95+% Furnace - Replace'!AW21+Custom!AW21,0) -> 1787 | AZ21: 29766 | BB21: =+ROUND('Res .95+% Res Furnace - NEW'!BA21+'Res .95+% Res Furnace - Replace'!BB21+'Res Water Heating .67 EF'!BB21+'Programmable Thermostats'!BB21+'Comm 95+ Furnace - New'!BB21+'Comm 95+% Furnace - Replace'!BB21+Custom!BB21,0) -> 0 | BC21: =+ROUND('Res .95+% Res Furnace - NEW'!BB21+'Res .95+% Res Furnace - Replace'!BC21+'Res Water Heating .67 EF'!BC21+'Programmable Thermostats'!BC21+'Comm 95+ Furnace - New'!BC21+'Comm 95+% Furnace - Replace'!BC21+Custom!BC21,0) -> 0 | BD21: 0 | BE21: 29766 | BH21: 2022 | BI21: =+ROUND('Res .95+% Res Furnace - NEW'!BH21+'Res .95+% Res Furnace - Replace'!BI21+'Res Water Heating .67 EF'!BI21+'Programmable Thermostats'!BI21+'Comm 95+ Furnace - New'!BI21+'Comm 95+% Furnace - Replace'!BI21+Custom!BI21,0) -> 0 | BJ21: =+ROUND('Res .95+% Res Furnace - NEW'!BI21+'Res .95+% Res Furnace - Replace'!BJ21+'Res Water Heating .67 EF'!BJ21+'Programmable Thermostats'!BJ21+'Comm 95+ Furnace - New'!BJ21+'Comm 95+% Furnace - Replace'!BJ21+Custom!BJ21,0) -> 4254 | BK21: =+ROUND('Res .95+% Res Furnace - NEW'!BJ21+'Res .95+% Res Furnace - Replace'!BK21+'Res Water Heating .67 EF'!BK21+'Programmable Thermostats'!BK21+'Comm 95+ Furnace - New'!BK21+'Comm 95+% Furnace - Replace'!BK21+Custom!BK21,0) -> 53 | BL21: =+ROUND('Res .95+% Res Furnace - NEW'!BK21+'Res .95+% Res Furnace - Replace'!BL21+'Res Water Heating .67 EF'!BL21+'Programmable Thermostats'!BL21+'Comm 95+ Furnace - New'!BL21+'Comm 95+% Furnace - Replace'!BL21+Custom!BL21,0) -> 33366 | BM21: =+ROUND('Res .95+% Res Furnace - NEW'!BL21+'Res .95+% Res Furnace - Replace'!BM21+'Res Water Heating .67 EF'!BM21+'Programmable Thermostats'!BM21+'Comm 95+ Furnace - New'!BM21+'Comm 95+% Furnace - Replace'!BM21+Custom!BM21,0) -> 1 | BN21: =+ROUND('Res .95+% Res Furnace - NEW'!BM21+'Res .95+% Res Furnace - Replace'!BN21+'Res Water Heating .67 EF'!BN21+'Programmable Thermostats'!BN21+'Comm 95+ Furnace - New'!BN21+'Comm 95+% Furnace - Replace'!BN21+Custom!BN21,0) -> 47049 | BP21: 80415 | BR21: =+ROUND('Res .95+% Res Furnace - NEW'!BQ21+'Res .95+% Res Furnace - Replace'!BR21+'Res Water Heating .67 EF'!BR21+'Programmable Thermostats'!BR21+'Comm 95+ Furnace - New'!BR21+'Comm 95+% Furnace - Replace'!BR21+Custom!BR21,0) -> 0 | BT21: 80415 | BW21: 2022 | BX21: 13949 | BY21: 6475 | BZ21: 7555 | CA21: 27979 | CC21: 0 | CD21: 0 | CE21: 0 | CG21: 27979 | DB21: =$J14 -> 1
J22: 9 | L22: 2023 | M22: =+ROUND('Res .95+% Res Furnace - NEW'!M22+'Res .95+% Res Furnace - Replace'!M22+'Res Water Heating .67 EF'!M22+'Programmable Thermostats'!M22+'Comm 95+ Furnace - New'!M22+'Comm 95+% Furnace - Replace'!M22+Custom!M22,0) -> 4254 | N22: =+ROUND('Res .95+% Res Furnace - NEW'!N22+'Res .95+% Res Furnace - Replace'!N22+'Res Water Heating .67 EF'!N22+'Programmable Thermostats'!N22+'Comm 95+ Furnace - New'!N22+'Comm 95+% Furnace - Replace'!N22+Custom!N22,0) -> 24 | O22: =+ROUND('Res .95+% Res Furnace - NEW'!O22+'Res .95+% Res Furnace - Replace'!O22+'Res Water Heating .67 EF'!O22+'Programmable Thermostats'!O22+'Comm 95+ Furnace - New'!O22+'Comm 95+% Furnace - Replace'!O22+Custom!O22,0) -> 14434 | P22: =+ROUND('Res .95+% Res Furnace - NEW'!P22+'Res .95+% Res Furnace - Replace'!P22+'Res Water Heating .67 EF'!P22+'Programmable Thermostats'!P22+'Comm 95+ Furnace - New'!P22+'Comm 95+% Furnace - Replace'!P22+Custom!P22,0) -> 0 | Q22: =+ROUND('Res .95+% Res Furnace - NEW'!Q22+'Res .95+% Res Furnace - Replace'!Q22+'Res Water Heating .67 EF'!Q22+'Programmable Thermostats'!Q22+'Comm 95+ Furnace - New'!Q22+'Comm 95+% Furnace - Replace'!Q22+Custom!Q22,0) -> 0 | R22: =+ROUND('Res .95+% Res Furnace - NEW'!R22+'Res .95+% Res Furnace - Replace'!R22+'Res Water Heating .67 EF'!R22+'Programmable Thermostats'!R22+'Comm 95+ Furnace - New'!R22+'Comm 95+% Furnace - Replace'!R22+Custom!R22,0) -> 14434 | S22: =+ROUND('Res .95+% Res Furnace - NEW'!S22+'Res .95+% Res Furnace - Replace'!S22+'Res Water Heating .67 EF'!S22+'Programmable Thermostats'!S22+'Comm 95+ Furnace - New'!S22+'Comm 95+% Furnace - Replace'!S22+Custom!S22,0) -> 43 | T22: =+ROUND('Res .95+% Res Furnace - NEW'!T22+'Res .95+% Res Furnace - Replace'!T22+'Res Water Heating .67 EF'!T22+'Programmable Thermostats'!T22+'Comm 95+ Furnace - New'!T22+'Comm 95+% Furnace - Replace'!T22+Custom!T22,0) -> 1078 | U22: =+ROUND('Res .95+% Res Furnace - NEW'!U22+'Res .95+% Res Furnace - Replace'!U22+'Res Water Heating .67 EF'!U22+'Programmable Thermostats'!U22+'Comm 95+ Furnace - New'!U22+'Comm 95+% Furnace - Replace'!U22+Custom!U22,0) -> 6561 | V22: 20995 | X22: =+ROUND('Res .95+% Res Furnace - NEW'!X22+'Res .95+% Res Furnace - Replace'!X22+'Res Water Heating .67 EF'!X22+'Programmable Thermostats'!X22+'Comm 95+ Furnace - New'!X22+'Comm 95+% Furnace - Replace'!X22+Custom!X22,0) -> 6514 | Y22: =+ROUND('Res .95+% Res Furnace - NEW'!Y22+'Res .95+% Res Furnace - Replace'!Y22+'Res Water Heating .67 EF'!Y22+'Programmable Thermostats'!Y22+'Comm 95+ Furnace - New'!Y22+'Comm 95+% Furnace - Replace'!Y22+Custom!Y22,0) -> 0 | Z22: =+ROUND('Res .95+% Res Furnace - NEW'!Z22+'Res .95+% Res Furnace - Replace'!Z22+'Res Water Heating .67 EF'!Z22+'Programmable Thermostats'!Z22+'Comm 95+ Furnace - New'!Z22+'Comm 95+% Furnace - Replace'!Z22+Custom!Z22,0) -> 0 | AA22: 6514 | AB22: 14481 | AE22: 2023 | AF22: 14434 | AG22: 6561 | AH22: 20995 | AJ22: 0 | AK22: 0 | AL22: 0 | AN22: 20995 | AQ22: 2023 | AR22: 14434 | AS22: 6561 | AT22: 20995 | AU22: =+ROUND('Res .95+% Res Furnace - NEW'!AT22+'Res .95+% Res Furnace - Replace'!AU22+'Res Water Heating .67 EF'!AU22+'Programmable Thermostats'!AU22+'Comm 95+ Furnace - New'!AU22+'Comm 95+% Furnace - Replace'!AU22+Custom!AU22,0) -> 7806 | AV22: =+ROUND('Res .95+% Res Furnace - NEW'!AU22+'Res .95+% Res Furnace - Replace'!AV22+'Res Water Heating .67 EF'!AV22+'Programmable Thermostats'!AV22+'Comm 95+ Furnace - New'!AV22+'Comm 95+% Furnace - Replace'!AV22+Custom!AV22,0) -> 3 | AW22: =+ROUND('Res .95+% Res Furnace - NEW'!AV22+'Res .95+% Res Furnace - Replace'!AW22+'Res Water Heating .67 EF'!AW22+'Programmable Thermostats'!AW22+'Comm 95+ Furnace - New'!AW22+'Comm 95+% Furnace - Replace'!AW22+Custom!AW22,0) -> 1825 | AZ22: 30626 | BB22: =+ROUND('Res .95+% Res Furnace - NEW'!BA22+'Res .95+% Res Furnace - Replace'!BB22+'Res Water Heating .67 EF'!BB22+'Programmable Thermostats'!BB22+'Comm 95+ Furnace - New'!BB22+'Comm 95+% Furnace - Replace'!BB22+Custom!BB22,0) -> 0 | BC22: =+ROUND('Res .95+% Res Furnace - NEW'!BB22+'Res .95+% Res Furnace - Replace'!BC22+'Res Water Heating .67 EF'!BC22+'Programmable Thermostats'!BC22+'Comm 95+ Furnace - New'!BC22+'Comm 95+% Furnace - Replace'!BC22+Custom!BC22,0) -> 0 | BD22: 0 | BE22: 30626 | BH22: 2023 | BI22: =+ROUND('Res .95+% Res Furnace - NEW'!BH22+'Res .95+% Res Furnace - Replace'!BI22+'Res Water Heating .67 EF'!BI22+'Programmable Thermostats'!BI22+'Comm 95+ Furnace - New'!BI22+'Comm 95+% Furnace - Replace'!BI22+Custom!BI22,0) -> 0 | BJ22: =+ROUND('Res .95+% Res Furnace - NEW'!BI22+'Res .95+% Res Furnace - Replace'!BJ22+'Res Water Heating .67 EF'!BJ22+'Programmable Thermostats'!BJ22+'Comm 95+ Furnace - New'!BJ22+'Comm 95+% Furnace - Replace'!BJ22+Custom!BJ22,0) -> 4254 | BK22: =+ROUND('Res .95+% Res Furnace - NEW'!BJ22+'Res .95+% Res Furnace - Replace'!BK22+'Res Water Heating .67 EF'!BK22+'Programmable Thermostats'!BK22+'Comm 95+ Furnace - New'!BK22+'Comm 95+% Furnace - Replace'!BK22+Custom!BK22,0) -> 55 | BL22: =+ROUND('Res .95+% Res Furnace - NEW'!BK22+'Res .95+% Res Furnace - Replace'!BL22+'Res Water Heating .67 EF'!BL22+'Programmable Thermostats'!BL22+'Comm 95+ Furnace - New'!BL22+'Comm 95+% Furnace - Replace'!BL22+Custom!BL22,0) -> 34534 | BM22: =+ROUND('Res .95+% Res Furnace - NEW'!BL22+'Res .95+% Res Furnace - Replace'!BM22+'Res Water Heating .67 EF'!BM22+'Programmable Thermostats'!BM22+'Comm 95+ Furnace - New'!BM22+'Comm 95+% Furnace - Replace'!BM22+Custom!BM22,0) -> 1 | BN22: =+ROUND('Res .95+% Res Furnace - NEW'!BM22+'Res .95+% Res Furnace - Replace'!BN22+'Res Water Heating .67 EF'!BN22+'Programmable Thermostats'!BN22+'Comm 95+ Furnace - New'!BN22+'Comm 95+% Furnace - Replace'!BN22+Custom!BN22,0) -> 48807 | BP22: 83341 | BR22: =+ROUND('Res .95+% Res Furnace - NEW'!BQ22+'Res .95+% Res Furnace - Replace'!BR22+'Res Water Heating .67 EF'!BR22+'Programmable Thermostats'!BR22+'Comm 95+ Furnace - New'!BR22+'Comm 95+% Furnace - Replace'!BR22+Custom!BR22,0) -> 0 | BT22: 83341 | BW22: 2023 | BX22: 14434 | BY22: 6561 | BZ22: 7806 | CA22: 28801 | CC22: 0 | CD22: 0 | CE22: 0 | CG22: 28801 | DB22: =$J15 -> 2
A23: 5) Peak Reduction Factor = | E23: 20) Project Life (Years) = | J23: 10 | L23: 2024 | M23: =+ROUND('Res .95+% Res Furnace - NEW'!M23+'Res .95+% Res Furnace - Replace'!M23+'Res Water Heating .67 EF'!M23+'Programmable Thermostats'!M23+'Comm 95+ Furnace - New'!M23+'Comm 95+% Furnace - Replace'!M23+Custom!M23,0) -> 4254 | N23: =+ROUND('Res .95+% Res Furnace - NEW'!N23+'Res .95+% Res Furnace - Replace'!N23+'Res Water Heating .67 EF'!N23+'Programmable Thermostats'!N23+'Comm 95+ Furnace - New'!N23+'Comm 95+% Furnace - Replace'!N23+Custom!N23,0) -> 25 | O23: =+ROUND('Res .95+% Res Furnace - NEW'!O23+'Res .95+% Res Furnace - Replace'!O23+'Res Water Heating .67 EF'!O23+'Programmable Thermostats'!O23+'Comm 95+ Furnace - New'!O23+'Comm 95+% Furnace - Replace'!O23+Custom!O23,0) -> 14940 | P23: =+ROUND('Res .95+% Res Furnace - NEW'!P23+'Res .95+% Res Furnace - Replace'!P23+'Res Water Heating .67 EF'!P23+'Programmable Thermostats'!P23+'Comm 95+ Furnace - New'!P23+'Comm 95+% Furnace - Replace'!P23+Custom!P23,0) -> 0 | Q23: =+ROUND('Res .95+% Res Furnace - NEW'!Q23+'Res .95+% Res Furnace - Replace'!Q23+'Res Water Heating .67 EF'!Q23+'Programmable Thermostats'!Q23+'Comm 95+ Furnace - New'!Q23+'Comm 95+% Furnace - Replace'!Q23+Custom!Q23,0) -> 0 | R23: =+ROUND('Res .95+% Res Furnace - NEW'!R23+'Res .95+% Res Furnace - Replace'!R23+'Res Water Heating .67 EF'!R23+'Programmable Thermostats'!R23+'Comm 95+ Furnace - New'!R23+'Comm 95+% Furnace - Replace'!R23+Custom!R23,0) -> 14940 | S23: =+ROUND('Res .95+% Res Furnace - NEW'!S23+'Res .95+% Res Furnace - Replace'!S23+'Res Water Heating .67 EF'!S23+'Programmable Thermostats'!S23+'Comm 95+ Furnace - New'!S23+'Comm 95+% Furnace - Replace'!S23+Custom!S23,0) -> 43 | T23: =+ROUND('Res .95+% Res Furnace - NEW'!T23+'Res .95+% Res Furnace - Replace'!T23+'Res Water Heating .67 EF'!T23+'Programmable Thermostats'!T23+'Comm 95+ Furnace - New'!T23+'Comm 95+% Furnace - Replace'!T23+Custom!T23,0) -> 1092 | U23: =+ROUND('Res .95+% Res Furnace - NEW'!U23+'Res .95+% Res Furnace - Replace'!U23+'Res Water Heating .67 EF'!U23+'Programmable Thermostats'!U23+'Comm 95+ Furnace - New'!U23+'Comm 95+% Furnace - Replace'!U23+Custom!U23,0) -> 6645 | V23: 21585 | X23: =+ROUND('Res .95+% Res Furnace - NEW'!X23+'Res .95+% Res Furnace - Replace'!X23+'Res Water Heating .67 EF'!X23+'Programmable Thermostats'!X23+'Comm 95+ Furnace - New'!X23+'Comm 95+% Furnace - Replace'!X23+Custom!X23,0) -> 6742 | Y23: =+ROUND('Res .95+% Res Furnace - NEW'!Y23+'Res .95+% Res Furnace - Replace'!Y23+'Res Water Heating .67 EF'!Y23+'Programmable Thermostats'!Y23+'Comm 95+ Furnace - New'!Y23+'Comm 95+% Furnace - Replace'!Y23+Custom!Y23,0) -> 0 | Z23: =+ROUND('Res .95+% Res Furnace - NEW'!Z23+'Res .95+% Res Furnace - Replace'!Z23+'Res Water Heating .67 EF'!Z23+'Programmable Thermostats'!Z23+'Comm 95+ Furnace - New'!Z23+'Comm 95+% Furnace - Replace'!Z23+Custom!Z23,0) -> 0 | AA23: 6742 | AB23: 14843 | AE23: 2024 | AF23: 14940 | AG23: 6645 | AH23: 21585 | AJ23: 0 | AK23: 0 | AL23: 0 | AN23: 21585 | AQ23: 2024 | AR23: 14940 | AS23: 6645 | AT23: 21585 | AU23: =+ROUND('Res .95+% Res Furnace - NEW'!AT23+'Res .95+% Res Furnace - Replace'!AU23+'Res Water Heating .67 EF'!AU23+'Programmable Thermostats'!AU23+'Comm 95+ Furnace - New'!AU23+'Comm 95+% Furnace - Replace'!AU23+Custom!AU23,0) -> 8059 | AV23: =+ROUND('Res .95+% Res Furnace - NEW'!AU23+'Res .95+% Res Furnace - Replace'!AV23+'Res Water Heating .67 EF'!AV23+'Programmable Thermostats'!AV23+'Comm 95+ Furnace - New'!AV23+'Comm 95+% Furnace - Replace'!AV23+Custom!AV23,0) -> 3 | AW23: =+ROUND('Res .95+% Res Furnace - NEW'!AV23+'Res .95+% Res Furnace - Replace'!AW23+'Res Water Heating .67 EF'!AW23+'Programmable Thermostats'!AW23+'Comm 95+ Furnace - New'!AW23+'Comm 95+% Furnace - Replace'!AW23+Custom!AW23,0) -> 1868 | AZ23: 31512 | BB23: =+ROUND('Res .95+% Res Furnace - NEW'!BA23+'Res .95+% Res Furnace - Replace'!BB23+'Res Water Heating .67 EF'!BB23+'Programmable Thermostats'!BB23+'Comm 95+ Furnace - New'!BB23+'Comm 95+% Furnace - Replace'!BB23+Custom!BB23,0) -> 0 | BC23: =+ROUND('Res .95+% Res Furnace - NEW'!BB23+'Res .95+% Res Furnace - Replace'!BC23+'Res Water Heating .67 EF'!BC23+'Programmable Thermostats'!BC23+'Comm 95+ Furnace - New'!BC23+'Comm 95+% Furnace - Replace'!BC23+Custom!BC23,0) -> 0 | BD23: 0 | BE23: 31512 | BH23: 2024 | BI23: =+ROUND('Res .95+% Res Furnace - NEW'!BH23+'Res .95+% Res Furnace - Replace'!BI23+'Res Water Heating .67 EF'!BI23+'Programmable Thermostats'!BI23+'Comm 95+ Furnace - New'!BI23+'Comm 95+% Furnace - Replace'!BI23+Custom!BI23,0) -> 0 | BJ23: =+ROUND('Res .95+% Res Furnace - NEW'!BI23+'Res .95+% Res Furnace - Replace'!BJ23+'Res Water Heating .67 EF'!BJ23+'Programmable Thermostats'!BJ23+'Comm 95+ Furnace - New'!BJ23+'Comm 95+% Furnace - Replace'!BJ23+Custom!BJ23,0) -> 4254 | BK23: =+ROUND('Res .95+% Res Furnace - NEW'!BJ23+'Res .95+% Res Furnace - Replace'!BK23+'Res Water Heating .67 EF'!BK23+'Programmable Thermostats'!BK23+'Comm 95+ Furnace - New'!BK23+'Comm 95+% Furnace - Replace'!BK23+Custom!BK23,0) -> 57 | BL23: =+ROUND('Res .95+% Res Furnace - NEW'!BK23+'Res .95+% Res Furnace - Replace'!BL23+'Res Water Heating .67 EF'!BL23+'Programmable Thermostats'!BL23+'Comm 95+ Furnace - New'!BL23+'Comm 95+% Furnace - Replace'!BL23+Custom!BL23,0) -> 35742 | BM23: =+ROUND('Res .95+% Res Furnace - NEW'!BL23+'Res .95+% Res Furnace - Replace'!BM23+'Res Water Heating .67 EF'!BM23+'Programmable Thermostats'!BM23+'Comm 95+ Furnace - New'!BM23+'Comm 95+% Furnace - Replace'!BM23+Custom!BM23,0) -> 1 | BN23: =+ROUND('Res .95+% Res Furnace - NEW'!BM23+'Res .95+% Res Furnace - Replace'!BN23+'Res Water Heating .67 EF'!BN23+'Programmable Thermostats'!BN23+'Comm 95+ Furnace - New'!BN23+'Comm 95+% Furnace - Replace'!BN23+Custom!BN23,0) -> 50317 | BP23: 86059 | BR23: =+ROUND('Res .95+% Res Furnace - NEW'!BQ23+'Res .95+% Res Furnace - Replace'!BR23+'Res Water Heating .67 EF'!BR23+'Programmable Thermostats'!BR23+'Comm 95+ Furnace - New'!BR23+'Comm 95+% Furnace - Replace'!BR23+Custom!BR23,0) -> 0 | BT23: 86059 | BW23: 2024 | BX23: 14940 | BY23: 6645 | BZ23: 8059 | CA23: 29644 | CC23: 0 | CD23: 0 | CE23: 0 | CG23: 29644 | DB23: =$J16 -> 3
J24: 11 | L24: 2025 | M24: =+ROUND('Res .95+% Res Furnace - NEW'!M24+'Res .95+% Res Furnace - Replace'!M24+'Res Water Heating .67 EF'!M24+'Programmable Thermostats'!M24+'Comm 95+ Furnace - New'!M24+'Comm 95+% Furnace - Replace'!M24+Custom!M24,0) -> 3795 | N24: =+ROUND('Res .95+% Res Furnace - NEW'!N24+'Res .95+% Res Furnace - Replace'!N24+'Res Water Heating .67 EF'!N24+'Programmable Thermostats'!N24+'Comm 95+ Furnace - New'!N24+'Comm 95+% Furnace - Replace'!N24+Custom!N24,0) -> 25 | O24: =+ROUND('Res .95+% Res Furnace - NEW'!O24+'Res .95+% Res Furnace - Replace'!O24+'Res Water Heating .67 EF'!O24+'Programmable Thermostats'!O24+'Comm 95+ Furnace - New'!O24+'Comm 95+% Furnace - Replace'!O24+Custom!O24,0) -> 13795 | P24: =+ROUND('Res .95+% Res Furnace - NEW'!P24+'Res .95+% Res Furnace - Replace'!P24+'Res Water Heating .67 EF'!P24+'Programmable Thermostats'!P24+'Comm 95+ Furnace - New'!P24+'Comm 95+% Furnace - Replace'!P24+Custom!P24,0) -> 0 | Q24: =+ROUND('Res .95+% Res Furnace - NEW'!Q24+'Res .95+% Res Furnace - Replace'!Q24+'Res Water Heating .67 EF'!Q24+'Programmable Thermostats'!Q24+'Comm 95+ Furnace - New'!Q24+'Comm 95+% Furnace - Replace'!Q24+Custom!Q24,0) -> 0 | R24: =+ROUND('Res .95+% Res Furnace - NEW'!R24+'Res .95+% Res Furnace - Replace'!R24+'Res Water Heating .67 EF'!R24+'Programmable Thermostats'!R24+'Comm 95+ Furnace - New'!R24+'Comm 95+% Furnace - Replace'!R24+Custom!R24,0) -> 13795 | S24: =+ROUND('Res .95+% Res Furnace - NEW'!S24+'Res .95+% Res Furnace - Replace'!S24+'Res Water Heating .67 EF'!S24+'Programmable Thermostats'!S24+'Comm 95+ Furnace - New'!S24+'Comm 95+% Furnace - Replace'!S24+Custom!S24,0) -> 38 | T24: =+ROUND('Res .95+% Res Furnace - NEW'!T24+'Res .95+% Res Furnace - Replace'!T24+'Res Water Heating .67 EF'!T24+'Programmable Thermostats'!T24+'Comm 95+ Furnace - New'!T24+'Comm 95+% Furnace - Replace'!T24+Custom!T24,0) -> 1099 | U24: =+ROUND('Res .95+% Res Furnace - NEW'!U24+'Res .95+% Res Furnace - Replace'!U24+'Res Water Heating .67 EF'!U24+'Programmable Thermostats'!U24+'Comm 95+ Furnace - New'!U24+'Comm 95+% Furnace - Replace'!U24+Custom!U24,0) -> 5966 | V24: 19761 | X24: =+ROUND('Res .95+% Res Furnace - NEW'!X24+'Res .95+% Res Furnace - Replace'!X24+'Res Water Heating .67 EF'!X24+'Programmable Thermostats'!X24+'Comm 95+ Furnace - New'!X24+'Comm 95+% Furnace - Replace'!X24+Custom!X24,0) -> 6217 | Y24: =+ROUND('Res .95+% Res Furnace - NEW'!Y24+'Res .95+% Res Furnace - Replace'!Y24+'Res Water Heating .67 EF'!Y24+'Programmable Thermostats'!Y24+'Comm 95+ Furnace - New'!Y24+'Comm 95+% Furnace - Replace'!Y24+Custom!Y24,0) -> 0 | Z24: =+ROUND('Res .95+% Res Furnace - NEW'!Z24+'Res .95+% Res Furnace - Replace'!Z24+'Res Water Heating .67 EF'!Z24+'Programmable Thermostats'!Z24+'Comm 95+ Furnace - New'!Z24+'Comm 95+% Furnace - Replace'!Z24+Custom!Z24,0) -> 0 | AA24: 6217 | AB24: 13544 | AE24: 2025 | AF24: 13795 | AG24: 5966 | AH24: 19761 | AJ24: 0 | AK24: 0 | AL24: 0 | AN24: 19761 | AQ24: 2025 | AR24: 13795 | AS24: 5966 | AT24: 19761 | AU24: =+ROUND('Res .95+% Res Furnace - NEW'!AT24+'Res .95+% Res Furnace - Replace'!AU24+'Res Water Heating .67 EF'!AU24+'Programmable Thermostats'!AU24+'Comm 95+ Furnace - New'!AU24+'Comm 95+% Furnace - Replace'!AU24+Custom!AU24,0) -> 8561 | AV24: =+ROUND('Res .95+% Res Furnace - NEW'!AU24+'Res .95+% Res Furnace - Replace'!AV24+'Res Water Heating .67 EF'!AV24+'Programmable Thermostats'!AV24+'Comm 95+ Furnace - New'!AV24+'Comm 95+% Furnace - Replace'!AV24+Custom!AV24,0) -> 3 | AW24: =+ROUND('Res .95+% Res Furnace - NEW'!AV24+'Res .95+% Res Furnace - Replace'!AW24+'Res Water Heating .67 EF'!AW24+'Programmable Thermostats'!AW24+'Comm 95+ Furnace - New'!AW24+'Comm 95+% Furnace - Replace'!AW24+Custom!AW24,0) -> 1704 | AZ24: 30026 | BB24: =+ROUND('Res .95+% Res Furnace - NEW'!BA24+'Res .95+% Res Furnace - Replace'!BB24+'Res Water Heating .67 EF'!BB24+'Programmable Thermostats'!BB24+'Comm 95+ Furnace - New'!BB24+'Comm 95+% Furnace - Replace'!BB24+Custom!BB24,0) -> 0 | BC24: =+ROUND('Res .95+% Res Furnace - NEW'!BB24+'Res .95+% Res Furnace - Replace'!BC24+'Res Water Heating .67 EF'!BC24+'Programmable Thermostats'!BC24+'Comm 95+ Furnace - New'!BC24+'Comm 95+% Furnace - Replace'!BC24+Custom!BC24,0) -> 0 | BD24: 0 | BE24: 30026 | BH24: 2025 | BI24: =+ROUND('Res .95+% Res Furnace - NEW'!BH24+'Res .95+% Res Furnace - Replace'!BI24+'Res Water Heating .67 EF'!BI24+'Programmable Thermostats'!BI24+'Comm 95+ Furnace - New'!BI24+'Comm 95+% Furnace - Replace'!BI24+Custom!BI24,0) -> 0 | BJ24: =+ROUND('Res .95+% Res Furnace - NEW'!BI24+'Res .95+% Res Furnace - Replace'!BJ24+'Res Water Heating .67 EF'!BJ24+'Programmable Thermostats'!BJ24+'Comm 95+ Furnace - New'!BJ24+'Comm 95+% Furnace - Replace'!BJ24+Custom!BJ24,0) -> 3795 | BK24: =+ROUND('Res .95+% Res Furnace - NEW'!BJ24+'Res .95+% Res Furnace - Replace'!BK24+'Res Water Heating .67 EF'!BK24+'Programmable Thermostats'!BK24+'Comm 95+ Furnace - New'!BK24+'Comm 95+% Furnace - Replace'!BK24+Custom!BK24,0) -> 59 | BL24: =+ROUND('Res .95+% Res Furnace - NEW'!BK24+'Res .95+% Res Furnace - Replace'!BL24+'Res Water Heating .67 EF'!BL24+'Programmable Thermostats'!BL24+'Comm 95+ Furnace - New'!BL24+'Comm 95+% Furnace - Replace'!BL24+Custom!BL24,0) -> 32992 | BM24: =+ROUND('Res .95+% Res Furnace - NEW'!BL24+'Res .95+% Res Furnace - Replace'!BM24+'Res Water Heating .67 EF'!BM24+'Programmable Thermostats'!BM24+'Comm 95+ Furnace - New'!BM24+'Comm 95+% Furnace - Replace'!BM24+Custom!BM24,0) -> 1 | BN24: =+ROUND('Res .95+% Res Furnace - NEW'!BM24+'Res .95+% Res Furnace - Replace'!BN24+'Res Water Heating .67 EF'!BN24+'Programmable Thermostats'!BN24+'Comm 95+ Furnace - New'!BN24+'Comm 95+% Furnace - Replace'!BN24+Custom!BN24,0) -> 52080 | BP24: 85072 | BR24: =+ROUND('Res .95+% Res Furnace - NEW'!BQ24+'Res .95+% Res Furnace - Replace'!BR24+'Res Water Heating .67 EF'!BR24+'Programmable Thermostats'!BR24+'Comm 95+ Furnace - New'!BR24+'Comm 95+% Furnace - Replace'!BR24+Custom!BR24,0) -> 0 | BT24: 85072 | BW24: 2025 | BX24: 13795 | BY24: 5966 | BZ24: 8561 | CA24: 28322 | CC24: 0 | CD24: 0 | CE24: 0 | CG24: 28322 | DB24: =$J17 -> 4
A25: 6) Variable O&M ($/Dk) = | E25: 21) Avg. Dk/Part. Saved = | J25: 12 | L25: 2026 | M25: =+ROUND('Res .95+% Res Furnace - NEW'!M25+'Res .95+% Res Furnace - Replace'!M25+'Res Water Heating .67 EF'!M25+'Programmable Thermostats'!M25+'Comm 95+ Furnace - New'!M25+'Comm 95+% Furnace - Replace'!M25+Custom!M25,0) -> 3795 | N25: =+ROUND('Res .95+% Res Furnace - NEW'!N25+'Res .95+% Res Furnace - Replace'!N25+'Res Water Heating .67 EF'!N25+'Programmable Thermostats'!N25+'Comm 95+ Furnace - New'!N25+'Comm 95+% Furnace - Replace'!N25+Custom!N25,0) -> 26 | O25: =+ROUND('Res .95+% Res Furnace - NEW'!O25+'Res .95+% Res Furnace - Replace'!O25+'Res Water Heating .67 EF'!O25+'Programmable Thermostats'!O25+'Comm 95+ Furnace - New'!O25+'Comm 95+% Furnace - Replace'!O25+Custom!O25,0) -> 14277 | P25: =+ROUND('Res .95+% Res Furnace - NEW'!P25+'Res .95+% Res Furnace - Replace'!P25+'Res Water Heating .67 EF'!P25+'Programmable Thermostats'!P25+'Comm 95+ Furnace - New'!P25+'Comm 95+% Furnace - Replace'!P25+Custom!P25,0) -> 0 | Q25: =+ROUND('Res .95+% Res Furnace - NEW'!Q25+'Res .95+% Res Furnace - Replace'!Q25+'Res Water Heating .67 EF'!Q25+'Programmable Thermostats'!Q25+'Comm 95+ Furnace - New'!Q25+'Comm 95+% Furnace - Replace'!Q25+Custom!Q25,0) -> 0 | R25: =+ROUND('Res .95+% Res Furnace - NEW'!R25+'Res .95+% Res Furnace - Replace'!R25+'Res Water Heating .67 EF'!R25+'Programmable Thermostats'!R25+'Comm 95+ Furnace - New'!R25+'Comm 95+% Furnace - Replace'!R25+Custom!R25,0) -> 14277 | S25: =+ROUND('Res .95+% Res Furnace - NEW'!S25+'Res .95+% Res Furnace - Replace'!S25+'Res Water Heating .67 EF'!S25+'Programmable Thermostats'!S25+'Comm 95+ Furnace - New'!S25+'Comm 95+% Furnace - Replace'!S25+Custom!S25,0) -> 38 | T25: =+ROUND('Res .95+% Res Furnace - NEW'!T25+'Res .95+% Res Furnace - Replace'!T25+'Res Water Heating .67 EF'!T25+'Programmable Thermostats'!T25+'Comm 95+ Furnace - New'!T25+'Comm 95+% Furnace - Replace'!T25+Custom!T25,0) -> 1113 | U25: =+ROUND('Res .95+% Res Furnace - NEW'!U25+'Res .95+% Res Furnace - Replace'!U25+'Res Water Heating .67 EF'!U25+'Programmable Thermostats'!U25+'Comm 95+ Furnace - New'!U25+'Comm 95+% Furnace - Replace'!U25+Custom!U25,0) -> 6042 | V25: 20319 | X25: =+ROUND('Res .95+% Res Furnace - NEW'!X25+'Res .95+% Res Furnace - Replace'!X25+'Res Water Heating .67 EF'!X25+'Programmable Thermostats'!X25+'Comm 95+ Furnace - New'!X25+'Comm 95+% Furnace - Replace'!X25+Custom!X25,0) -> 6435 | Y25: =+ROUND('Res .95+% Res Furnace - NEW'!Y25+'Res .95+% Res Furnace - Replace'!Y25+'Res Water Heating .67 EF'!Y25+'Programmable Thermostats'!Y25+'Comm 95+ Furnace - New'!Y25+'Comm 95+% Furnace - Replace'!Y25+Custom!Y25,0) -> 0 | Z25: =+ROUND('Res .95+% Res Furnace - NEW'!Z25+'Res .95+% Res Furnace - Replace'!Z25+'Res Water Heating .67 EF'!Z25+'Programmable Thermostats'!Z25+'Comm 95+ Furnace - New'!Z25+'Comm 95+% Furnace - Replace'!Z25+Custom!Z25,0) -> 0 | AA25: 6435 | AB25: 13884 | AE25: 2026 | AF25: 14277 | AG25: 6042 | AH25: 20319 | AJ25: 0 | AK25: 0 | AL25: 0 | AN25: 20319 | AQ25: 2026 | AR25: 14277 | AS25: 6042 | AT25: 20319 | AU25: =+ROUND('Res .95+% Res Furnace - NEW'!AT25+'Res .95+% Res Furnace - Replace'!AU25+'Res Water Heating .67 EF'!AU25+'Programmable Thermostats'!AU25+'Comm 95+ Furnace - New'!AU25+'Comm 95+% Furnace - Replace'!AU25+Custom!AU25,0) -> 8813 | AV25: =+ROUND('Res .95+% Res Furnace - NEW'!AU25+'Res .95+% Res Furnace - Replace'!AV25+'Res Water Heating .67 EF'!AV25+'Programmable Thermostats'!AV25+'Comm 95+ Furnace - New'!AV25+'Comm 95+% Furnace - Replace'!AV25+Custom!AV25,0) -> 3 | AW25: =+ROUND('Res .95+% Res Furnace - NEW'!AV25+'Res .95+% Res Furnace - Replace'!AW25+'Res Water Heating .67 EF'!AW25+'Programmable Thermostats'!AW25+'Comm 95+ Furnace - New'!AW25+'Comm 95+% Furnace - Replace'!AW25+Custom!AW25,0) -> 1746 | AZ25: 30878 | BB25: =+ROUND('Res .95+% Res Furnace - NEW'!BA25+'Res .95+% Res Furnace - Replace'!BB25+'Res Water Heating .67 EF'!BB25+'Programmable Thermostats'!BB25+'Comm 95+ Furnace - New'!BB25+'Comm 95+% Furnace - Replace'!BB25+Custom!BB25,0) -> 0 | BC25: =+ROUND('Res .95+% Res Furnace - NEW'!BB25+'Res .95+% Res Furnace - Replace'!BC25+'Res Water Heating .67 EF'!BC25+'Programmable Thermostats'!BC25+'Comm 95+ Furnace - New'!BC25+'Comm 95+% Furnace - Replace'!BC25+Custom!BC25,0) -> 0 | BD25: 0 | BE25: 30878 | BH25: 2026 | BI25: =+ROUND('Res .95+% Res Furnace - NEW'!BH25+'Res .95+% Res Furnace - Replace'!BI25+'Res Water Heating .67 EF'!BI25+'Programmable Thermostats'!BI25+'Comm 95+ Furnace - New'!BI25+'Comm 95+% Furnace - Replace'!BI25+Custom!BI25,0) -> 0 | BJ25: =+ROUND('Res .95+% Res Furnace - NEW'!BI25+'Res .95+% Res Furnace - Replace'!BJ25+'Res Water Heating .67 EF'!BJ25+'Programmable Thermostats'!BJ25+'Comm 95+ Furnace - New'!BJ25+'Comm 95+% Furnace - Replace'!BJ25+Custom!BJ25,0) -> 3795 | BK25: =+ROUND('Res .95+% Res Furnace - NEW'!BJ25+'Res .95+% Res Furnace - Replace'!BK25+'Res Water Heating .67 EF'!BK25+'Programmable Thermostats'!BK25+'Comm 95+ Furnace - New'!BK25+'Comm 95+% Furnace - Replace'!BK25+Custom!BK25,0) -> 61 | BL25: =+ROUND('Res .95+% Res Furnace - NEW'!BK25+'Res .95+% Res Furnace - Replace'!BL25+'Res Water Heating .67 EF'!BL25+'Programmable Thermostats'!BL25+'Comm 95+ Furnace - New'!BL25+'Comm 95+% Furnace - Replace'!BL25+Custom!BL25,0) -> 34145 | BM25: =+ROUND('Res .95+% Res Furnace - NEW'!BL25+'Res .95+% Res Furnace - Replace'!BM25+'Res Water Heating .67 EF'!BM25+'Programmable Thermostats'!BM25+'Comm 95+ Furnace - New'!BM25+'Comm 95+% Furnace - Replace'!BM25+Custom!BM25,0) -> 1 | BN25: =+ROUND('Res .95+% Res Furnace - NEW'!BM25+'Res .95+% Res Furnace - Replace'!BN25+'Res Water Heating .67 EF'!BN25+'Programmable Thermostats'!BN25+'Comm 95+ Furnace - New'!BN25+'Comm 95+% Furnace - Replace'!BN25+Custom!BN25,0) -> 54091 | BP25: 88236 | BR25: =+ROUND('Res .95+% Res Furnace - NEW'!BQ25+'Res .95+% Res Furnace - Replace'!BR25+'Res Water Heating .67 EF'!BR25+'Programmable Thermostats'!BR25+'Comm 95+ Furnace - New'!BR25+'Comm 95+% Furnace - Replace'!BR25+Custom!BR25,0) -> 0 | BT25: 88236 | BW25: 2026 | BX25: 14277 | BY25: 6042 | BZ25: 8813 | CA25: 29132 | CC25: 0 | CD25: 0 | CE25: 0 | CG25: 29132
A26: Escalation Rate = | J26: 13 | L26: 2027 | M26: =+ROUND('Res .95+% Res Furnace - NEW'!M26+'Res .95+% Res Furnace - Replace'!M26+'Res Water Heating .67 EF'!M26+'Programmable Thermostats'!M26+'Comm 95+ Furnace - New'!M26+'Comm 95+% Furnace - Replace'!M26+Custom!M26,0) -> 3795 | N26: =+ROUND('Res .95+% Res Furnace - NEW'!N26+'Res .95+% Res Furnace - Replace'!N26+'Res Water Heating .67 EF'!N26+'Programmable Thermostats'!N26+'Comm 95+ Furnace - New'!N26+'Comm 95+% Furnace - Replace'!N26+Custom!N26,0) -> 27 | O26: =+ROUND('Res .95+% Res Furnace - NEW'!O26+'Res .95+% Res Furnace - Replace'!O26+'Res Water Heating .67 EF'!O26+'Programmable Thermostats'!O26+'Comm 95+ Furnace - New'!O26+'Comm 95+% Furnace - Replace'!O26+Custom!O26,0) -> 14778 | P26: =+ROUND('Res .95+% Res Furnace - NEW'!P26+'Res .95+% Res Furnace - Replace'!P26+'Res Water Heating .67 EF'!P26+'Programmable Thermostats'!P26+'Comm 95+ Furnace - New'!P26+'Comm 95+% Furnace - Replace'!P26+Custom!P26,0) -> 0 | Q26: =+ROUND('Res .95+% Res Furnace - NEW'!Q26+'Res .95+% Res Furnace - Replace'!Q26+'Res Water Heating .67 EF'!Q26+'Programmable Thermostats'!Q26+'Comm 95+ Furnace - New'!Q26+'Comm 95+% Furnace - Replace'!Q26+Custom!Q26,0) -> 0 | R26: =+ROUND('Res .95+% Res Furnace - NEW'!R26+'Res .95+% Res Furnace - Replace'!R26+'Res Water Heating .67 EF'!R26+'Programmable Thermostats'!R26+'Comm 95+ Furnace - New'!R26+'Comm 95+% Furnace - Replace'!R26+Custom!R26,0) -> 14778 | S26: =+ROUND('Res .95+% Res Furnace - NEW'!S26+'Res .95+% Res Furnace - Replace'!S26+'Res Water Heating .67 EF'!S26+'Programmable Thermostats'!S26+'Comm 95+ Furnace - New'!S26+'Comm 95+% Furnace - Replace'!S26+Custom!S26,0) -> 38 | T26: =+ROUND('Res .95+% Res Furnace - NEW'!T26+'Res .95+% Res Furnace - Replace'!T26+'Res Water Heating .67 EF'!T26+'Programmable Thermostats'!T26+'Comm 95+ Furnace - New'!T26+'Comm 95+% Furnace - Replace'!T26+Custom!T26,0) -> 1120 | U26: =+ROUND('Res .95+% Res Furnace - NEW'!U26+'Res .95+% Res Furnace - Replace'!U26+'Res Water Heating .67 EF'!U26+'Programmable Thermostats'!U26+'Comm 95+ Furnace - New'!U26+'Comm 95+% Furnace - Replace'!U26+Custom!U26,0) -> 6080 | V26: 20858 | X26: =+ROUND('Res .95+% Res Furnace - NEW'!X26+'Res .95+% Res Furnace - Replace'!X26+'Res Water Heating .67 EF'!X26+'Programmable Thermostats'!X26+'Comm 95+ Furnace - New'!X26+'Comm 95+% Furnace - Replace'!X26+Custom!X26,0) -> 6663 | Y26: =+ROUND('Res .95+% Res Furnace - NEW'!Y26+'Res .95+% Res Furnace - Replace'!Y26+'Res Water Heating .67 EF'!Y26+'Programmable Thermostats'!Y26+'Comm 95+ Furnace - New'!Y26+'Comm 95+% Furnace - Replace'!Y26+Custom!Y26,0) -> 0 | Z26: =+ROUND('Res .95+% Res Furnace - NEW'!Z26+'Res .95+% Res Furnace - Replace'!Z26+'Res Water Heating .67 EF'!Z26+'Programmable Thermostats'!Z26+'Comm 95+ Furnace - New'!Z26+'Comm 95+% Furnace - Replace'!Z26+Custom!Z26,0) -> 0 | AA26: 6663 | AB26: 14195 | AE26: 2027 | AF26: 14778 | AG26: 6080 | AH26: 20858 | AJ26: 0 | AK26: 0 | AL26: 0 | AN26: 20858 | AQ26: 2027 | AR26: 14778 | AS26: 6080 | AT26: 20858 | AU26: =+ROUND('Res .95+% Res Furnace - NEW'!AT26+'Res .95+% Res Furnace - Replace'!AU26+'Res Water Heating .67 EF'!AU26+'Programmable Thermostats'!AU26+'Comm 95+ Furnace - New'!AU26+'Comm 95+% Furnace - Replace'!AU26+Custom!AU26,0) -> 9065 | AV26: =+ROUND('Res .95+% Res Furnace - NEW'!AU26+'Res .95+% Res Furnace - Replace'!AV26+'Res Water Heating .67 EF'!AV26+'Programmable Thermostats'!AV26+'Comm 95+ Furnace - New'!AV26+'Comm 95+% Furnace - Replace'!AV26+Custom!AV26,0) -> 3 | AW26: =+ROUND('Res .95+% Res Furnace - NEW'!AV26+'Res .95+% Res Furnace - Replace'!AW26+'Res Water Heating .67 EF'!AW26+'Programmable Thermostats'!AW26+'Comm 95+ Furnace - New'!AW26+'Comm 95+% Furnace - Replace'!AW26+Custom!AW26,0) -> 1784 | AZ26: 31707 | BB26: =+ROUND('Res .95+% Res Furnace - NEW'!BA26+'Res .95+% Res Furnace - Replace'!BB26+'Res Water Heating .67 EF'!BB26+'Programmable Thermostats'!BB26+'Comm 95+ Furnace - New'!BB26+'Comm 95+% Furnace - Replace'!BB26+Custom!BB26,0) -> 0 | BC26: =+ROUND('Res .95+% Res Furnace - NEW'!BB26+'Res .95+% Res Furnace - Replace'!BC26+'Res Water Heating .67 EF'!BC26+'Programmable Thermostats'!BC26+'Comm 95+ Furnace - New'!BC26+'Comm 95+% Furnace - Replace'!BC26+Custom!BC26,0) -> 0 | BD26: 0 | BE26: 31707 | BH26: 2027 | BI26: =+ROUND('Res .95+% Res Furnace - NEW'!BH26+'Res .95+% Res Furnace - Replace'!BI26+'Res Water Heating .67 EF'!BI26+'Programmable Thermostats'!BI26+'Comm 95+ Furnace - New'!BI26+'Comm 95+% Furnace - Replace'!BI26+Custom!BI26,0) -> 0 | BJ26: =+ROUND('Res .95+% Res Furnace - NEW'!BI26+'Res .95+% Res Furnace - Replace'!BJ26+'Res Water Heating .67 EF'!BJ26+'Programmable Thermostats'!BJ26+'Comm 95+ Furnace - New'!BJ26+'Comm 95+% Furnace - Replace'!BJ26+Custom!BJ26,0) -> 3795 | BK26: =+ROUND('Res .95+% Res Furnace - NEW'!BJ26+'Res .95+% Res Furnace - Replace'!BK26+'Res Water Heating .67 EF'!BK26+'Programmable Thermostats'!BK26+'Comm 95+ Furnace - New'!BK26+'Comm 95+% Furnace - Replace'!BK26+Custom!BK26,0) -> 63 | BL26: =+ROUND('Res .95+% Res Furnace - NEW'!BK26+'Res .95+% Res Furnace - Replace'!BL26+'Res Water Heating .67 EF'!BL26+'Programmable Thermostats'!BL26+'Comm 95+ Furnace - New'!BL26+'Comm 95+% Furnace - Replace'!BL26+Custom!BL26,0) -> 35341 | BM26: =+ROUND('Res .95+% Res Furnace - NEW'!BL26+'Res .95+% Res Furnace - Replace'!BM26+'Res Water Heating .67 EF'!BM26+'Programmable Thermostats'!BM26+'Comm 95+ Furnace - New'!BM26+'Comm 95+% Furnace - Replace'!BM26+Custom!BM26,0) -> 2 | BN26: =+ROUND('Res .95+% Res Furnace - NEW'!BM26+'Res .95+% Res Furnace - Replace'!BN26+'Res Water Heating .67 EF'!BN26+'Programmable Thermostats'!BN26+'Comm 95+ Furnace - New'!BN26+'Comm 95+% Furnace - Replace'!BN26+Custom!BN26,0) -> 55854 | BP26: 91195 | BR26: =+ROUND('Res .95+% Res Furnace - NEW'!BQ26+'Res .95+% Res Furnace - Replace'!BR26+'Res Water Heating .67 EF'!BR26+'Programmable Thermostats'!BR26+'Comm 95+ Furnace - New'!BR26+'Comm 95+% Furnace - Replace'!BR26+Custom!BR26,0) -> 0 | BT26: 91195 | BW26: 2027 | BX26: 14778 | BY26: 6080 | BZ26: 9065 | CA26: 29923 | CC26: 0 | CD26: 0 | CE26: 0 | CG26: 29923
E27: 22) Avg Non-Gas Fuel Units/Part. Saved = | J27: 14 | L27: 2028 | M27: =+ROUND('Res .95+% Res Furnace - NEW'!M27+'Res .95+% Res Furnace - Replace'!M27+'Res Water Heating .67 EF'!M27+'Programmable Thermostats'!M27+'Comm 95+ Furnace - New'!M27+'Comm 95+% Furnace - Replace'!M27+Custom!M27,0) -> 3795 | N27: =+ROUND('Res .95+% Res Furnace - NEW'!N27+'Res .95+% Res Furnace - Replace'!N27+'Res Water Heating .67 EF'!N27+'Programmable Thermostats'!N27+'Comm 95+ Furnace - New'!N27+'Comm 95+% Furnace - Replace'!N27+Custom!N27,0) -> 28 | O27: =+ROUND('Res .95+% Res Furnace - NEW'!O27+'Res .95+% Res Furnace - Replace'!O27+'Res Water Heating .67 EF'!O27+'Programmable Thermostats'!O27+'Comm 95+ Furnace - New'!O27+'Comm 95+% Furnace - Replace'!O27+Custom!O27,0) -> 15295 | P27: =+ROUND('Res .95+% Res Furnace - NEW'!P27+'Res .95+% Res Furnace - Replace'!P27+'Res Water Heating .67 EF'!P27+'Programmable Thermostats'!P27+'Comm 95+ Furnace - New'!P27+'Comm 95+% Furnace - Replace'!P27+Custom!P27,0) -> 0 | Q27: =+ROUND('Res .95+% Res Furnace - NEW'!Q27+'Res .95+% Res Furnace - Replace'!Q27+'Res Water Heating .67 EF'!Q27+'Programmable Thermostats'!Q27+'Comm 95+ Furnace - New'!Q27+'Comm 95+% Furnace - Replace'!Q27+Custom!Q27,0) -> 0 | R27: =+ROUND('Res .95+% Res Furnace - NEW'!R27+'Res .95+% Res Furnace - Replace'!R27+'Res Water Heating .67 EF'!R27+'Programmable Thermostats'!R27+'Comm 95+ Furnace - New'!R27+'Comm 95+% Furnace - Replace'!R27+Custom!R27,0) -> 15295 | S27: =+ROUND('Res .95+% Res Furnace - NEW'!S27+'Res .95+% Res Furnace - Replace'!S27+'Res Water Heating .67 EF'!S27+'Programmable Thermostats'!S27+'Comm 95+ Furnace - New'!S27+'Comm 95+% Furnace - Replace'!S27+Custom!S27,0) -> 38 | T27: =+ROUND('Res .95+% Res Furnace - NEW'!T27+'Res .95+% Res Furnace - Replace'!T27+'Res Water Heating .67 EF'!T27+'Programmable Thermostats'!T27+'Comm 95+ Furnace - New'!T27+'Comm 95+% Furnace - Replace'!T27+Custom!T27,0) -> 1134 | U27: =+ROUND('Res .95+% Res Furnace - NEW'!U27+'Res .95+% Res Furnace - Replace'!U27+'Res Water Heating .67 EF'!U27+'Programmable Thermostats'!U27+'Comm 95+ Furnace - New'!U27+'Comm 95+% Furnace - Replace'!U27+Custom!U27,0) -> 6156 | V27: 21451 | X27: =+ROUND('Res .95+% Res Furnace - NEW'!X27+'Res .95+% Res Furnace - Replace'!X27+'Res Water Heating .67 EF'!X27+'Programmable Thermostats'!X27+'Comm 95+ Furnace - New'!X27+'Comm 95+% Furnace - Replace'!X27+Custom!X27,0) -> 6895 | Y27: =+ROUND('Res .95+% Res Furnace - NEW'!Y27+'Res .95+% Res Furnace - Replace'!Y27+'Res Water Heating .67 EF'!Y27+'Programmable Thermostats'!Y27+'Comm 95+ Furnace - New'!Y27+'Comm 95+% Furnace - Replace'!Y27+Custom!Y27,0) -> 0 | Z27: =+ROUND('Res .95+% Res Furnace - NEW'!Z27+'Res .95+% Res Furnace - Replace'!Z27+'Res Water Heating .67 EF'!Z27+'Programmable Thermostats'!Z27+'Comm 95+ Furnace - New'!Z27+'Comm 95+% Furnace - Replace'!Z27+Custom!Z27,0) -> 0 | AA27: 6895 | AB27: 14556 | AE27: 2028 | AF27: 15295 | AG27: 6156 | AH27: 21451 | AJ27: 0 | AK27: 0 | AL27: 0 | AN27: 21451 | AQ27: 2028 | AR27: 15295 | AS27: 6156 | AT27: 21451 | AU27: =+ROUND('Res .95+% Res Furnace - NEW'!AT27+'Res .95+% Res Furnace - Replace'!AU27+'Res Water Heating .67 EF'!AU27+'Programmable Thermostats'!AU27+'Comm 95+ Furnace - New'!AU27+'Comm 95+% Furnace - Replace'!AU27+Custom!AU27,0) -> 9317 | AV27: =+ROUND('Res .95+% Res Furnace - NEW'!AU27+'Res .95+% Res Furnace - Replace'!AV27+'Res Water Heating .67 EF'!AV27+'Programmable Thermostats'!AV27+'Comm 95+ Furnace - New'!AV27+'Comm 95+% Furnace - Replace'!AV27+Custom!AV27,0) -> 3 | AW27: =+ROUND('Res .95+% Res Furnace - NEW'!AV27+'Res .95+% Res Furnace - Replace'!AW27+'Res Water Heating .67 EF'!AW27+'Programmable Thermostats'!AW27+'Comm 95+ Furnace - New'!AW27+'Comm 95+% Furnace - Replace'!AW27+Custom!AW27,0) -> 1825 | AZ27: 32593 | BB27: =+ROUND('Res .95+% Res Furnace - NEW'!BA27+'Res .95+% Res Furnace - Replace'!BB27+'Res Water Heating .67 EF'!BB27+'Programmable Thermostats'!BB27+'Comm 95+ Furnace - New'!BB27+'Comm 95+% Furnace - Replace'!BB27+Custom!BB27,0) -> 0 | BC27: =+ROUND('Res .95+% Res Furnace - NEW'!BB27+'Res .95+% Res Furnace - Replace'!BC27+'Res Water Heating .67 EF'!BC27+'Programmable Thermostats'!BC27+'Comm 95+ Furnace - New'!BC27+'Comm 95+% Furnace - Replace'!BC27+Custom!BC27,0) -> 0 | BD27: 0 | BE27: 32593 | BH27: 2028 | BI27: =+ROUND('Res .95+% Res Furnace - NEW'!BH27+'Res .95+% Res Furnace - Replace'!BI27+'Res Water Heating .67 EF'!BI27+'Programmable Thermostats'!BI27+'Comm 95+ Furnace - New'!BI27+'Comm 95+% Furnace - Replace'!BI27+Custom!BI27,0) -> 0 | BJ27: =+ROUND('Res .95+% Res Furnace - NEW'!BI27+'Res .95+% Res Furnace - Replace'!BJ27+'Res Water Heating .67 EF'!BJ27+'Programmable Thermostats'!BJ27+'Comm 95+ Furnace - New'!BJ27+'Comm 95+% Furnace - Replace'!BJ27+Custom!BJ27,0) -> 3795 | BK27: =+ROUND('Res .95+% Res Furnace - NEW'!BJ27+'Res .95+% Res Furnace - Replace'!BK27+'Res Water Heating .67 EF'!BK27+'Programmable Thermostats'!BK27+'Comm 95+ Furnace - New'!BK27+'Comm 95+% Furnace - Replace'!BK27+Custom!BK27,0) -> 66 | BL27: =+ROUND('Res .95+% Res Furnace - NEW'!BK27+'Res .95+% Res Furnace - Replace'!BL27+'Res Water Heating .67 EF'!BL27+'Programmable Thermostats'!BL27+'Comm 95+ Furnace - New'!BL27+'Comm 95+% Furnace - Replace'!BL27+Custom!BL27,0) -> 36579 | BM27: =+ROUND('Res .95+% Res Furnace - NEW'!BL27+'Res .95+% Res Furnace - Replace'!BM27+'Res Water Heating .67 EF'!BM27+'Programmable Thermostats'!BM27+'Comm 95+ Furnace - New'!BM27+'Comm 95+% Furnace - Replace'!BM27+Custom!BM27,0) -> 2 | BN27: =+ROUND('Res .95+% Res Furnace - NEW'!BM27+'Res .95+% Res Furnace - Replace'!BN27+'Res Water Heating .67 EF'!BN27+'Programmable Thermostats'!BN27+'Comm 95+ Furnace - New'!BN27+'Comm 95+% Furnace - Replace'!BN27+Custom!BN27,0) -> 57868 | BP27: 94447 | BR27: =+ROUND('Res .95+% Res Furnace - NEW'!BQ27+'Res .95+% Res Furnace - Replace'!BR27+'Res Water Heating .67 EF'!BR27+'Programmable Thermostats'!BR27+'Comm 95+ Furnace - New'!BR27+'Comm 95+% Furnace - Replace'!BR27+Custom!BR27,0) -> 0 | BT27: 94447 | BW27: 2028 | BX27: 15295 | BY27: 6156 | BZ27: 9317 | CA27: 30768 | CC27: 0 | CD27: 0 | CE27: 0 | CG27: 30768
A28: 7) Non-Gas Fuel Cost ($/Fuel Unit) = | E28: 22a) Avg Additional Non-Gas Fuel Units/ Part. Used = | J28: 15 | L28: 2029 | M28: =+ROUND('Res .95+% Res Furnace - NEW'!M28+'Res .95+% Res Furnace - Replace'!M28+'Res Water Heating .67 EF'!M28+'Programmable Thermostats'!M28+'Comm 95+ Furnace - New'!M28+'Comm 95+% Furnace - Replace'!M28+Custom!M28,0) -> 3795 | N28: =+ROUND('Res .95+% Res Furnace - NEW'!N28+'Res .95+% Res Furnace - Replace'!N28+'Res Water Heating .67 EF'!N28+'Programmable Thermostats'!N28+'Comm 95+ Furnace - New'!N28+'Comm 95+% Furnace - Replace'!N28+Custom!N28,0) -> 29 | O28: =+ROUND('Res .95+% Res Furnace - NEW'!O28+'Res .95+% Res Furnace - Replace'!O28+'Res Water Heating .67 EF'!O28+'Programmable Thermostats'!O28+'Comm 95+ Furnace - New'!O28+'Comm 95+% Furnace - Replace'!O28+Custom!O28,0) -> 15830 | P28: =+ROUND('Res .95+% Res Furnace - NEW'!P28+'Res .95+% Res Furnace - Replace'!P28+'Res Water Heating .67 EF'!P28+'Programmable Thermostats'!P28+'Comm 95+ Furnace - New'!P28+'Comm 95+% Furnace - Replace'!P28+Custom!P28,0) -> 0 | Q28: =+ROUND('Res .95+% Res Furnace - NEW'!Q28+'Res .95+% Res Furnace - Replace'!Q28+'Res Water Heating .67 EF'!Q28+'Programmable Thermostats'!Q28+'Comm 95+ Furnace - New'!Q28+'Comm 95+% Furnace - Replace'!Q28+Custom!Q28,0) -> 0 | R28: =+ROUND('Res .95+% Res Furnace - NEW'!R28+'Res .95+% Res Furnace - Replace'!R28+'Res Water Heating .67 EF'!R28+'Programmable Thermostats'!R28+'Comm 95+ Furnace - New'!R28+'Comm 95+% Furnace - Replace'!R28+Custom!R28,0) -> 15830 | S28: =+ROUND('Res .95+% Res Furnace - NEW'!S28+'Res .95+% Res Furnace - Replace'!S28+'Res Water Heating .67 EF'!S28+'Programmable Thermostats'!S28+'Comm 95+ Furnace - New'!S28+'Comm 95+% Furnace - Replace'!S28+Custom!S28,0) -> 38 | T28: =+ROUND('Res .95+% Res Furnace - NEW'!T28+'Res .95+% Res Furnace - Replace'!T28+'Res Water Heating .67 EF'!T28+'Programmable Thermostats'!T28+'Comm 95+ Furnace - New'!T28+'Comm 95+% Furnace - Replace'!T28+Custom!T28,0) -> 1141 | U28: =+ROUND('Res .95+% Res Furnace - NEW'!U28+'Res .95+% Res Furnace - Replace'!U28+'Res Water Heating .67 EF'!U28+'Programmable Thermostats'!U28+'Comm 95+ Furnace - New'!U28+'Comm 95+% Furnace - Replace'!U28+Custom!U28,0) -> 6195 | V28: 22025 | X28: =+ROUND('Res .95+% Res Furnace - NEW'!X28+'Res .95+% Res Furnace - Replace'!X28+'Res Water Heating .67 EF'!X28+'Programmable Thermostats'!X28+'Comm 95+ Furnace - New'!X28+'Comm 95+% Furnace - Replace'!X28+Custom!X28,0) -> 7136 | Y28: =+ROUND('Res .95+% Res Furnace - NEW'!Y28+'Res .95+% Res Furnace - Replace'!Y28+'Res Water Heating .67 EF'!Y28+'Programmable Thermostats'!Y28+'Comm 95+ Furnace - New'!Y28+'Comm 95+% Furnace - Replace'!Y28+Custom!Y28,0) -> 0 | Z28: =+ROUND('Res .95+% Res Furnace - NEW'!Z28+'Res .95+% Res Furnace - Replace'!Z28+'Res Water Heating .67 EF'!Z28+'Programmable Thermostats'!Z28+'Comm 95+ Furnace - New'!Z28+'Comm 95+% Furnace - Replace'!Z28+Custom!Z28,0) -> 0 | AA28: 7136 | AB28: 14889 | AE28: 2029 | AF28: 15830 | AG28: 6195 | AH28: 22025 | AJ28: 0 | AK28: 0 | AL28: 0 | AN28: 22025 | AQ28: 2029 | AR28: 15830 | AS28: 6195 | AT28: 22025 | AU28: =+ROUND('Res .95+% Res Furnace - NEW'!AT28+'Res .95+% Res Furnace - Replace'!AU28+'Res Water Heating .67 EF'!AU28+'Programmable Thermostats'!AU28+'Comm 95+ Furnace - New'!AU28+'Comm 95+% Furnace - Replace'!AU28+Custom!AU28,0) -> 9569 | AV28: =+ROUND('Res .95+% Res Furnace - NEW'!AU28+'Res .95+% Res Furnace - Replace'!AV28+'Res Water Heating .67 EF'!AV28+'Programmable Thermostats'!AV28+'Comm 95+ Furnace - New'!AV28+'Comm 95+% Furnace - Replace'!AV28+Custom!AV28,0) -> 3 | AW28: =+ROUND('Res .95+% Res Furnace - NEW'!AV28+'Res .95+% Res Furnace - Replace'!AW28+'Res Water Heating .67 EF'!AW28+'Programmable Thermostats'!AW28+'Comm 95+ Furnace - New'!AW28+'Comm 95+% Furnace - Replace'!AW28+Custom!AW28,0) -> 1867 | AZ28: 33461 | BB28: =+ROUND('Res .95+% Res Furnace - NEW'!BA28+'Res .95+% Res Furnace - Replace'!BB28+'Res Water Heating .67 EF'!BB28+'Programmable Thermostats'!BB28+'Comm 95+ Furnace - New'!BB28+'Comm 95+% Furnace - Replace'!BB28+Custom!BB28,0) -> 0 | BC28: =+ROUND('Res .95+% Res Furnace - NEW'!BB28+'Res .95+% Res Furnace - Replace'!BC28+'Res Water Heating .67 EF'!BC28+'Programmable Thermostats'!BC28+'Comm 95+ Furnace - New'!BC28+'Comm 95+% Furnace - Replace'!BC28+Custom!BC28,0) -> 0 | BD28: 0 | BE28: 33461 | BH28: 2029 | BI28: =+ROUND('Res .95+% Res Furnace - NEW'!BH28+'Res .95+% Res Furnace - Replace'!BI28+'Res Water Heating .67 EF'!BI28+'Programmable Thermostats'!BI28+'Comm 95+ Furnace - New'!BI28+'Comm 95+% Furnace - Replace'!BI28+Custom!BI28,0) -> 0 | BJ28: =+ROUND('Res .95+% Res Furnace - NEW'!BI28+'Res .95+% Res Furnace - Replace'!BJ28+'Res Water Heating .67 EF'!BJ28+'Programmable Thermostats'!BJ28+'Comm 95+ Furnace - New'!BJ28+'Comm 95+% Furnace - Replace'!BJ28+Custom!BJ28,0) -> 3795 | BK28: =+ROUND('Res .95+% Res Furnace - NEW'!BJ28+'Res .95+% Res Furnace - Replace'!BK28+'Res Water Heating .67 EF'!BK28+'Programmable Thermostats'!BK28+'Comm 95+ Furnace - New'!BK28+'Comm 95+% Furnace - Replace'!BK28+Custom!BK28,0) -> 68 | BL28: =+ROUND('Res .95+% Res Furnace - NEW'!BK28+'Res .95+% Res Furnace - Replace'!BL28+'Res Water Heating .67 EF'!BL28+'Programmable Thermostats'!BL28+'Comm 95+ Furnace - New'!BL28+'Comm 95+% Furnace - Replace'!BL28+Custom!BL28,0) -> 37858 | BM28: =+ROUND('Res .95+% Res Furnace - NEW'!BL28+'Res .95+% Res Furnace - Replace'!BM28+'Res Water Heating .67 EF'!BM28+'Programmable Thermostats'!BM28+'Comm 95+ Furnace - New'!BM28+'Comm 95+% Furnace - Replace'!BM28+Custom!BM28,0) -> 2 | BN28: =+ROUND('Res .95+% Res Furnace - NEW'!BM28+'Res .95+% Res Furnace - Replace'!BN28+'Res Water Heating .67 EF'!BN28+'Programmable Thermostats'!BN28+'Comm 95+ Furnace - New'!BN28+'Comm 95+% Furnace - Replace'!BN28+Custom!BN28,0) -> 59878 | BP28: 97736 | BR28: =+ROUND('Res .95+% Res Furnace - NEW'!BQ28+'Res .95+% Res Furnace - Replace'!BR28+'Res Water Heating .67 EF'!BR28+'Programmable Thermostats'!BR28+'Comm 95+ Furnace - New'!BR28+'Comm 95+% Furnace - Replace'!BR28+Custom!BR28,0) -> 0 | BT28: 97736 | BW28: 2029 | BX28: 15830 | BY28: 6195 | BZ28: 9569 | CA28: 31594 | CC28: 0 | CD28: 0 | CE28: 0 | CG28: 31594
A29: Escalation Rate = | J29: 16 | L29: 2030 | M29: =+ROUND('Res .95+% Res Furnace - NEW'!M29+'Res .95+% Res Furnace - Replace'!M29+'Res Water Heating .67 EF'!M29+'Programmable Thermostats'!M29+'Comm 95+ Furnace - New'!M29+'Comm 95+% Furnace - Replace'!M29+Custom!M29,0) -> 3795 | N29: =+ROUND('Res .95+% Res Furnace - NEW'!N29+'Res .95+% Res Furnace - Replace'!N29+'Res Water Heating .67 EF'!N29+'Programmable Thermostats'!N29+'Comm 95+ Furnace - New'!N29+'Comm 95+% Furnace - Replace'!N29+Custom!N29,0) -> 30 | O29: =+ROUND('Res .95+% Res Furnace - NEW'!O29+'Res .95+% Res Furnace - Replace'!O29+'Res Water Heating .67 EF'!O29+'Programmable Thermostats'!O29+'Comm 95+ Furnace - New'!O29+'Comm 95+% Furnace - Replace'!O29+Custom!O29,0) -> 16383 | P29: =+ROUND('Res .95+% Res Furnace - NEW'!P29+'Res .95+% Res Furnace - Replace'!P29+'Res Water Heating .67 EF'!P29+'Programmable Thermostats'!P29+'Comm 95+ Furnace - New'!P29+'Comm 95+% Furnace - Replace'!P29+Custom!P29,0) -> 0 | Q29: =+ROUND('Res .95+% Res Furnace - NEW'!Q29+'Res .95+% Res Furnace - Replace'!Q29+'Res Water Heating .67 EF'!Q29+'Programmable Thermostats'!Q29+'Comm 95+ Furnace - New'!Q29+'Comm 95+% Furnace - Replace'!Q29+Custom!Q29,0) -> 0 | R29: =+ROUND('Res .95+% Res Furnace - NEW'!R29+'Res .95+% Res Furnace - Replace'!R29+'Res Water Heating .67 EF'!R29+'Programmable Thermostats'!R29+'Comm 95+ Furnace - New'!R29+'Comm 95+% Furnace - Replace'!R29+Custom!R29,0) -> 16383 | S29: =+ROUND('Res .95+% Res Furnace - NEW'!S29+'Res .95+% Res Furnace - Replace'!S29+'Res Water Heating .67 EF'!S29+'Programmable Thermostats'!S29+'Comm 95+ Furnace - New'!S29+'Comm 95+% Furnace - Replace'!S29+Custom!S29,0) -> 38 | T29: =+ROUND('Res .95+% Res Furnace - NEW'!T29+'Res .95+% Res Furnace - Replace'!T29+'Res Water Heating .67 EF'!T29+'Programmable Thermostats'!T29+'Comm 95+ Furnace - New'!T29+'Comm 95+% Furnace - Replace'!T29+Custom!T29,0) -> 1155 | U29: =+ROUND('Res .95+% Res Furnace - NEW'!U29+'Res .95+% Res Furnace - Replace'!U29+'Res Water Heating .67 EF'!U29+'Programmable Thermostats'!U29+'Comm 95+ Furnace - New'!U29+'Comm 95+% Furnace - Replace'!U29+Custom!U29,0) -> 6271 | V29: 22654 | X29: =+ROUND('Res .95+% Res Furnace - NEW'!X29+'Res .95+% Res Furnace - Replace'!X29+'Res Water Heating .67 EF'!X29+'Programmable Thermostats'!X29+'Comm 95+ Furnace - New'!X29+'Comm 95+% Furnace - Replace'!X29+Custom!X29,0) -> 7385 | Y29: =+ROUND('Res .95+% Res Furnace - NEW'!Y29+'Res .95+% Res Furnace - Replace'!Y29+'Res Water Heating .67 EF'!Y29+'Programmable Thermostats'!Y29+'Comm 95+ Furnace - New'!Y29+'Comm 95+% Furnace - Replace'!Y29+Custom!Y29,0) -> 0 | Z29: =+ROUND('Res .95+% Res Furnace - NEW'!Z29+'Res .95+% Res Furnace - Replace'!Z29+'Res Water Heating .67 EF'!Z29+'Programmable Thermostats'!Z29+'Comm 95+ Furnace - New'!Z29+'Comm 95+% Furnace - Replace'!Z29+Custom!Z29,0) -> 0 | AA29: 7385 | AB29: 15269 | AE29: 2030 | AF29: 16383 | AG29: 6271 | AH29: 22654 | AJ29: 0 | AK29: 0 | AL29: 0 | AN29: 22654 | AQ29: 2030 | AR29: 16383 | AS29: 6271 | AT29: 22654 | AU29: =+ROUND('Res .95+% Res Furnace - NEW'!AT29+'Res .95+% Res Furnace - Replace'!AU29+'Res Water Heating .67 EF'!AU29+'Programmable Thermostats'!AU29+'Comm 95+ Furnace - New'!AU29+'Comm 95+% Furnace - Replace'!AU29+Custom!AU29,0) -> 10073 | AV29: =+ROUND('Res .95+% Res Furnace - NEW'!AU29+'Res .95+% Res Furnace - Replace'!AV29+'Res Water Heating .67 EF'!AV29+'Programmable Thermostats'!AV29+'Comm 95+ Furnace - New'!AV29+'Comm 95+% Furnace - Replace'!AV29+Custom!AV29,0) -> 4 | AW29: =+ROUND('Res .95+% Res Furnace - NEW'!AV29+'Res .95+% Res Furnace - Replace'!AW29+'Res Water Heating .67 EF'!AW29+'Programmable Thermostats'!AW29+'Comm 95+ Furnace - New'!AW29+'Comm 95+% Furnace - Replace'!AW29+Custom!AW29,0) -> 1913 | AZ29: 34640 | BB29: =+ROUND('Res .95+% Res Furnace - NEW'!BA29+'Res .95+% Res Furnace - Replace'!BB29+'Res Water Heating .67 EF'!BB29+'Programmable Thermostats'!BB29+'Comm 95+ Furnace - New'!BB29+'Comm 95+% Furnace - Replace'!BB29+Custom!BB29,0) -> 0 | BC29: =+ROUND('Res .95+% Res Furnace - NEW'!BB29+'Res .95+% Res Furnace - Replace'!BC29+'Res Water Heating .67 EF'!BC29+'Programmable Thermostats'!BC29+'Comm 95+ Furnace - New'!BC29+'Comm 95+% Furnace - Replace'!BC29+Custom!BC29,0) -> 0 | BD29: 0 | BE29: 34640 | BH29: 2030 | BI29: =+ROUND('Res .95+% Res Furnace - NEW'!BH29+'Res .95+% Res Furnace - Replace'!BI29+'Res Water Heating .67 EF'!BI29+'Programmable Thermostats'!BI29+'Comm 95+ Furnace - New'!BI29+'Comm 95+% Furnace - Replace'!BI29+Custom!BI29,0) -> 0 | BJ29: =+ROUND('Res .95+% Res Furnace - NEW'!BI29+'Res .95+% Res Furnace - Replace'!BJ29+'Res Water Heating .67 EF'!BJ29+'Programmable Thermostats'!BJ29+'Comm 95+ Furnace - New'!BJ29+'Comm 95+% Furnace - Replace'!BJ29+Custom!BJ29,0) -> 3795 | BK29: =+ROUND('Res .95+% Res Furnace - NEW'!BJ29+'Res .95+% Res Furnace - Replace'!BK29+'Res Water Heating .67 EF'!BK29+'Programmable Thermostats'!BK29+'Comm 95+ Furnace - New'!BK29+'Comm 95+% Furnace - Replace'!BK29+Custom!BK29,0) -> 70 | BL29: =+ROUND('Res .95+% Res Furnace - NEW'!BK29+'Res .95+% Res Furnace - Replace'!BL29+'Res Water Heating .67 EF'!BL29+'Programmable Thermostats'!BL29+'Comm 95+ Furnace - New'!BL29+'Comm 95+% Furnace - Replace'!BL29+Custom!BL29,0) -> 39182 | BM29: =+ROUND('Res .95+% Res Furnace - NEW'!BL29+'Res .95+% Res Furnace - Replace'!BM29+'Res Water Heating .67 EF'!BM29+'Programmable Thermostats'!BM29+'Comm 95+ Furnace - New'!BM29+'Comm 95+% Furnace - Replace'!BM29+Custom!BM29,0) -> 2 | BN29: =+ROUND('Res .95+% Res Furnace - NEW'!BM29+'Res .95+% Res Furnace - Replace'!BN29+'Res Water Heating .67 EF'!BN29+'Programmable Thermostats'!BN29+'Comm 95+ Furnace - New'!BN29+'Comm 95+% Furnace - Replace'!BN29+Custom!BN29,0) -> 61893 | BP29: 101075 | BR29: =+ROUND('Res .95+% Res Furnace - NEW'!BQ29+'Res .95+% Res Furnace - Replace'!BR29+'Res Water Heating .67 EF'!BR29+'Programmable Thermostats'!BR29+'Comm 95+ Furnace - New'!BR29+'Comm 95+% Furnace - Replace'!BR29+Custom!BR29,0) -> 0 | BT29: 101075 | BW29: 2030 | BX29: 16383 | BY29: 6271 | BZ29: 10073 | CA29: 32727 | CC29: 0 | CD29: 0 | CE29: 0 | CG29: 32727
E30: 23) Number of Participants = | F30: =+'Total Program Inputs'!C22 -> 500 | J30: 17 | L30: 2031 | M30: =+ROUND('Res .95+% Res Furnace - NEW'!M30+'Res .95+% Res Furnace - Replace'!M30+'Res Water Heating .67 EF'!M30+'Programmable Thermostats'!M30+'Comm 95+ Furnace - New'!M30+'Comm 95+% Furnace - Replace'!M30+Custom!M30,0) -> 3795 | N30: =+ROUND('Res .95+% Res Furnace - NEW'!N30+'Res .95+% Res Furnace - Replace'!N30+'Res Water Heating .67 EF'!N30+'Programmable Thermostats'!N30+'Comm 95+ Furnace - New'!N30+'Comm 95+% Furnace - Replace'!N30+Custom!N30,0) -> 31 | O30: =+ROUND('Res .95+% Res Furnace - NEW'!O30+'Res .95+% Res Furnace - Replace'!O30+'Res Water Heating .67 EF'!O30+'Programmable Thermostats'!O30+'Comm 95+ Furnace - New'!O30+'Comm 95+% Furnace - Replace'!O30+Custom!O30,0) -> 16956 | P30: =+ROUND('Res .95+% Res Furnace - NEW'!P30+'Res .95+% Res Furnace - Replace'!P30+'Res Water Heating .67 EF'!P30+'Programmable Thermostats'!P30+'Comm 95+ Furnace - New'!P30+'Comm 95+% Furnace - Replace'!P30+Custom!P30,0) -> 0 | Q30: =+ROUND('Res .95+% Res Furnace - NEW'!Q30+'Res .95+% Res Furnace - Replace'!Q30+'Res Water Heating .67 EF'!Q30+'Programmable Thermostats'!Q30+'Comm 95+ Furnace - New'!Q30+'Comm 95+% Furnace - Replace'!Q30+Custom!Q30,0) -> 0 | R30: =+ROUND('Res .95+% Res Furnace - NEW'!R30+'Res .95+% Res Furnace - Replace'!R30+'Res Water Heating .67 EF'!R30+'Programmable Thermostats'!R30+'Comm 95+ Furnace - New'!R30+'Comm 95+% Furnace - Replace'!R30+Custom!R30,0) -> 16956 | S30: =+ROUND('Res .95+% Res Furnace - NEW'!S30+'Res .95+% Res Furnace - Replace'!S30+'Res Water Heating .67 EF'!S30+'Programmable Thermostats'!S30+'Comm 95+ Furnace - New'!S30+'Comm 95+% Furnace - Replace'!S30+Custom!S30,0) -> 38 | T30: =+ROUND('Res .95+% Res Furnace - NEW'!T30+'Res .95+% Res Furnace - Replace'!T30+'Res Water Heating .67 EF'!T30+'Programmable Thermostats'!T30+'Comm 95+ Furnace - New'!T30+'Comm 95+% Furnace - Replace'!T30+Custom!T30,0) -> 1169 | U30: =+ROUND('Res .95+% Res Furnace - NEW'!U30+'Res .95+% Res Furnace - Replace'!U30+'Res Water Heating .67 EF'!U30+'Programmable Thermostats'!U30+'Comm 95+ Furnace - New'!U30+'Comm 95+% Furnace - Replace'!U30+Custom!U30,0) -> 6346 | V30: 23302 | X30: =+ROUND('Res .95+% Res Furnace - NEW'!X30+'Res .95+% Res Furnace - Replace'!X30+'Res Water Heating .67 EF'!X30+'Programmable Thermostats'!X30+'Comm 95+ Furnace - New'!X30+'Comm 95+% Furnace - Replace'!X30+Custom!X30,0) -> 7643 | Y30: =+ROUND('Res .95+% Res Furnace - NEW'!Y30+'Res .95+% Res Furnace - Replace'!Y30+'Res Water Heating .67 EF'!Y30+'Programmable Thermostats'!Y30+'Comm 95+ Furnace - New'!Y30+'Comm 95+% Furnace - Replace'!Y30+Custom!Y30,0) -> 0 | Z30: =+ROUND('Res .95+% Res Furnace - NEW'!Z30+'Res .95+% Res Furnace - Replace'!Z30+'Res Water Heating .67 EF'!Z30+'Programmable Thermostats'!Z30+'Comm 95+ Furnace - New'!Z30+'Comm 95+% Furnace - Replace'!Z30+Custom!Z30,0) -> 0 | AA30: 7643 | AB30: 15659 | AE30: 2031 | AF30: 16956 | AG30: 6346 | AH30: 23302 | AJ30: 0 | AK30: 0 | AL30: 0 | AN30: 23302 | AQ30: 2031 | AR30: 16956 | AS30: 6346 | AT30: 23302 | AU30: =+ROUND('Res .95+% Res Furnace - NEW'!AT30+'Res .95+% Res Furnace - Replace'!AU30+'Res Water Heating .67 EF'!AU30+'Programmable Thermostats'!AU30+'Comm 95+ Furnace - New'!AU30+'Comm 95+% Furnace - Replace'!AU30+Custom!AU30,0) -> 10324 | AV30: =+ROUND('Res .95+% Res Furnace - NEW'!AU30+'Res .95+% Res Furnace - Replace'!AV30+'Res Water Heating .67 EF'!AV30+'Programmable Thermostats'!AV30+'Comm 95+ Furnace - New'!AV30+'Comm 95+% Furnace - Replace'!AV30+Custom!AV30,0) -> 4 | AW30: =+ROUND('Res .95+% Res Furnace - NEW'!AV30+'Res .95+% Res Furnace - Replace'!AW30+'Res Water Heating .67 EF'!AW30+'Programmable Thermostats'!AW30+'Comm 95+ Furnace - New'!AW30+'Comm 95+% Furnace - Replace'!AW30+Custom!AW30,0) -> 1954 | AZ30: 35580 | BB30: =+ROUND('Res .95+% Res Furnace - NEW'!BA30+'Res .95+% Res Furnace - Replace'!BB30+'Res Water Heating .67 EF'!BB30+'Programmable Thermostats'!BB30+'Comm 95+ Furnace - New'!BB30+'Comm 95+% Furnace - Replace'!BB30+Custom!BB30,0) -> 0 | BC30: =+ROUND('Res .95+% Res Furnace - NEW'!BB30+'Res .95+% Res Furnace - Replace'!BC30+'Res Water Heating .67 EF'!BC30+'Programmable Thermostats'!BC30+'Comm 95+ Furnace - New'!BC30+'Comm 95+% Furnace - Replace'!BC30+Custom!BC30,0) -> 0 | BD30: 0 | BE30: 35580 | BH30: 2031 | BI30: =+ROUND('Res .95+% Res Furnace - NEW'!BH30+'Res .95+% Res Furnace - Replace'!BI30+'Res Water Heating .67 EF'!BI30+'Programmable Thermostats'!BI30+'Comm 95+ Furnace - New'!BI30+'Comm 95+% Furnace - Replace'!BI30+Custom!BI30,0) -> 0 | BJ30: =+ROUND('Res .95+% Res Furnace - NEW'!BI30+'Res .95+% Res Furnace - Replace'!BJ30+'Res Water Heating .67 EF'!BJ30+'Programmable Thermostats'!BJ30+'Comm 95+ Furnace - New'!BJ30+'Comm 95+% Furnace - Replace'!BJ30+Custom!BJ30,0) -> 3795 | BK30: =+ROUND('Res .95+% Res Furnace - NEW'!BJ30+'Res .95+% Res Furnace - Replace'!BK30+'Res Water Heating .67 EF'!BK30+'Programmable Thermostats'!BK30+'Comm 95+ Furnace - New'!BK30+'Comm 95+% Furnace - Replace'!BK30+Custom!BK30,0) -> 73 | BL30: =+ROUND('Res .95+% Res Furnace - NEW'!BK30+'Res .95+% Res Furnace - Replace'!BL30+'Res Water Heating .67 EF'!BL30+'Programmable Thermostats'!BL30+'Comm 95+ Furnace - New'!BL30+'Comm 95+% Furnace - Replace'!BL30+Custom!BL30,0) -> 40556 | BM30: =+ROUND('Res .95+% Res Furnace - NEW'!BL30+'Res .95+% Res Furnace - Replace'!BM30+'Res Water Heating .67 EF'!BM30+'Programmable Thermostats'!BM30+'Comm 95+ Furnace - New'!BM30+'Comm 95+% Furnace - Replace'!BM30+Custom!BM30,0) -> 2 | BN30: =+ROUND('Res .95+% Res Furnace - NEW'!BM30+'Res .95+% Res Furnace - Replace'!BN30+'Res Water Heating .67 EF'!BN30+'Programmable Thermostats'!BN30+'Comm 95+ Furnace - New'!BN30+'Comm 95+% Furnace - Replace'!BN30+Custom!BN30,0) -> 64154 | BP30: 104710 | BR30: =+ROUND('Res .95+% Res Furnace - NEW'!BQ30+'Res .95+% Res Furnace - Replace'!BR30+'Res Water Heating .67 EF'!BR30+'Programmable Thermostats'!BR30+'Comm 95+ Furnace - New'!BR30+'Comm 95+% Furnace - Replace'!BR30+Custom!BR30,0) -> 0 | BT30: 104710 | BW30: 2031 | BX30: 16956 | BY30: 6346 | BZ30: 10324 | CA30: 33626 | CC30: 0 | CD30: 0 | CE30: 0 | CG30: 33626 | DB30: =$J18 -> 5
A31: 8) Non-Gas Fuel Loss Factor | J31: 18 | L31: 2032 | M31: =+ROUND('Res .95+% Res Furnace - NEW'!M31+'Res .95+% Res Furnace - Replace'!M31+'Res Water Heating .67 EF'!M31+'Programmable Thermostats'!M31+'Comm 95+ Furnace - New'!M31+'Comm 95+% Furnace - Replace'!M31+Custom!M31,0) -> 3795 | N31: =+ROUND('Res .95+% Res Furnace - NEW'!N31+'Res .95+% Res Furnace - Replace'!N31+'Res Water Heating .67 EF'!N31+'Programmable Thermostats'!N31+'Comm 95+ Furnace - New'!N31+'Comm 95+% Furnace - Replace'!N31+Custom!N31,0) -> 32 | O31: =+ROUND('Res .95+% Res Furnace - NEW'!O31+'Res .95+% Res Furnace - Replace'!O31+'Res Water Heating .67 EF'!O31+'Programmable Thermostats'!O31+'Comm 95+ Furnace - New'!O31+'Comm 95+% Furnace - Replace'!O31+Custom!O31,0) -> 17552 | P31: =+ROUND('Res .95+% Res Furnace - NEW'!P31+'Res .95+% Res Furnace - Replace'!P31+'Res Water Heating .67 EF'!P31+'Programmable Thermostats'!P31+'Comm 95+ Furnace - New'!P31+'Comm 95+% Furnace - Replace'!P31+Custom!P31,0) -> 0 | Q31: =+ROUND('Res .95+% Res Furnace - NEW'!Q31+'Res .95+% Res Furnace - Replace'!Q31+'Res Water Heating .67 EF'!Q31+'Programmable Thermostats'!Q31+'Comm 95+ Furnace - New'!Q31+'Comm 95+% Furnace - Replace'!Q31+Custom!Q31,0) -> 0 | R31: =+ROUND('Res .95+% Res Furnace - NEW'!R31+'Res .95+% Res Furnace - Replace'!R31+'Res Water Heating .67 EF'!R31+'Programmable Thermostats'!R31+'Comm 95+ Furnace - New'!R31+'Comm 95+% Furnace - Replace'!R31+Custom!R31,0) -> 17552 | S31: =+ROUND('Res .95+% Res Furnace - NEW'!S31+'Res .95+% Res Furnace - Replace'!S31+'Res Water Heating .67 EF'!S31+'Programmable Thermostats'!S31+'Comm 95+ Furnace - New'!S31+'Comm 95+% Furnace - Replace'!S31+Custom!S31,0) -> 38 | T31: =+ROUND('Res .95+% Res Furnace - NEW'!T31+'Res .95+% Res Furnace - Replace'!T31+'Res Water Heating .67 EF'!T31+'Programmable Thermostats'!T31+'Comm 95+ Furnace - New'!T31+'Comm 95+% Furnace - Replace'!T31+Custom!T31,0) -> 1176 | U31: =+ROUND('Res .95+% Res Furnace - NEW'!U31+'Res .95+% Res Furnace - Replace'!U31+'Res Water Heating .67 EF'!U31+'Programmable Thermostats'!U31+'Comm 95+ Furnace - New'!U31+'Comm 95+% Furnace - Replace'!U31+Custom!U31,0) -> 6384 | V31: 23936 | X31: =+ROUND('Res .95+% Res Furnace - NEW'!X31+'Res .95+% Res Furnace - Replace'!X31+'Res Water Heating .67 EF'!X31+'Programmable Thermostats'!X31+'Comm 95+ Furnace - New'!X31+'Comm 95+% Furnace - Replace'!X31+Custom!X31,0) -> 7910 | Y31: =+ROUND('Res .95+% Res Furnace - NEW'!Y31+'Res .95+% Res Furnace - Replace'!Y31+'Res Water Heating .67 EF'!Y31+'Programmable Thermostats'!Y31+'Comm 95+ Furnace - New'!Y31+'Comm 95+% Furnace - Replace'!Y31+Custom!Y31,0) -> 0 | Z31: =+ROUND('Res .95+% Res Furnace - NEW'!Z31+'Res .95+% Res Furnace - Replace'!Z31+'Res Water Heating .67 EF'!Z31+'Programmable Thermostats'!Z31+'Comm 95+ Furnace - New'!Z31+'Comm 95+% Furnace - Replace'!Z31+Custom!Z31,0) -> 0 | AA31: 7910 | AB31: 16026 | AE31: 2032 | AF31: 17552 | AG31: 6384 | AH31: 23936 | AJ31: 0 | AK31: 0 | AL31: 0 | AN31: 23936 | AQ31: 2032 | AR31: 17552 | AS31: 6384 | AT31: 23936 | AU31: =+ROUND('Res .95+% Res Furnace - NEW'!AT31+'Res .95+% Res Furnace - Replace'!AU31+'Res Water Heating .67 EF'!AU31+'Programmable Thermostats'!AU31+'Comm 95+ Furnace - New'!AU31+'Comm 95+% Furnace - Replace'!AU31+Custom!AU31,0) -> 10828 | AV31: =+ROUND('Res .95+% Res Furnace - NEW'!AU31+'Res .95+% Res Furnace - Replace'!AV31+'Res Water Heating .67 EF'!AV31+'Programmable Thermostats'!AV31+'Comm 95+ Furnace - New'!AV31+'Comm 95+% Furnace - Replace'!AV31+Custom!AV31,0) -> 4 | AW31: =+ROUND('Res .95+% Res Furnace - NEW'!AV31+'Res .95+% Res Furnace - Replace'!AW31+'Res Water Heating .67 EF'!AW31+'Programmable Thermostats'!AW31+'Comm 95+ Furnace - New'!AW31+'Comm 95+% Furnace - Replace'!AW31+Custom!AW31,0) -> 2000 | AZ31: 36764 | BB31: =+ROUND('Res .95+% Res Furnace - NEW'!BA31+'Res .95+% Res Furnace - Replace'!BB31+'Res Water Heating .67 EF'!BB31+'Programmable Thermostats'!BB31+'Comm 95+ Furnace - New'!BB31+'Comm 95+% Furnace - Replace'!BB31+Custom!BB31,0) -> 0 | BC31: =+ROUND('Res .95+% Res Furnace - NEW'!BB31+'Res .95+% Res Furnace - Replace'!BC31+'Res Water Heating .67 EF'!BC31+'Programmable Thermostats'!BC31+'Comm 95+ Furnace - New'!BC31+'Comm 95+% Furnace - Replace'!BC31+Custom!BC31,0) -> 0 | BD31: 0 | BE31: 36764 | BH31: 2032 | BI31: =+ROUND('Res .95+% Res Furnace - NEW'!BH31+'Res .95+% Res Furnace - Replace'!BI31+'Res Water Heating .67 EF'!BI31+'Programmable Thermostats'!BI31+'Comm 95+ Furnace - New'!BI31+'Comm 95+% Furnace - Replace'!BI31+Custom!BI31,0) -> 0 | BJ31: =+ROUND('Res .95+% Res Furnace - NEW'!BI31+'Res .95+% Res Furnace - Replace'!BJ31+'Res Water Heating .67 EF'!BJ31+'Programmable Thermostats'!BJ31+'Comm 95+ Furnace - New'!BJ31+'Comm 95+% Furnace - Replace'!BJ31+Custom!BJ31,0) -> 3795 | BK31: =+ROUND('Res .95+% Res Furnace - NEW'!BJ31+'Res .95+% Res Furnace - Replace'!BK31+'Res Water Heating .67 EF'!BK31+'Programmable Thermostats'!BK31+'Comm 95+ Furnace - New'!BK31+'Comm 95+% Furnace - Replace'!BK31+Custom!BK31,0) -> 75 | BL31: =+ROUND('Res .95+% Res Furnace - NEW'!BK31+'Res .95+% Res Furnace - Replace'!BL31+'Res Water Heating .67 EF'!BL31+'Programmable Thermostats'!BL31+'Comm 95+ Furnace - New'!BL31+'Comm 95+% Furnace - Replace'!BL31+Custom!BL31,0) -> 41975 | BM31: =+ROUND('Res .95+% Res Furnace - NEW'!BL31+'Res .95+% Res Furnace - Replace'!BM31+'Res Water Heating .67 EF'!BM31+'Programmable Thermostats'!BM31+'Comm 95+ Furnace - New'!BM31+'Comm 95+% Furnace - Replace'!BM31+Custom!BM31,0) -> 2 | BN31: =+ROUND('Res .95+% Res Furnace - NEW'!BM31+'Res .95+% Res Furnace - Replace'!BN31+'Res Water Heating .67 EF'!BN31+'Programmable Thermostats'!BN31+'Comm 95+ Furnace - New'!BN31+'Comm 95+% Furnace - Replace'!BN31+Custom!BN31,0) -> 66420 | BP31: 108395 | BR31: =+ROUND('Res .95+% Res Furnace - NEW'!BQ31+'Res .95+% Res Furnace - Replace'!BR31+'Res Water Heating .67 EF'!BR31+'Programmable Thermostats'!BR31+'Comm 95+ Furnace - New'!BR31+'Comm 95+% Furnace - Replace'!BR31+Custom!BR31,0) -> 0 | BT31: 108395 | BW31: 2032 | BX31: 17552 | BY31: 6384 | BZ31: 10828 | CA31: 34764 | CC31: 0 | CD31: 0 | CE31: 0 | CG31: 34764 | DB31: =$J19 -> 6
E32: 24) Total Annual Dk Saved = | F32: =+'Total Program Inputs'!E22 -> 4254 | J32: 19 | L32: 2033 | M32: =+ROUND('Res .95+% Res Furnace - NEW'!M32+'Res .95+% Res Furnace - Replace'!M32+'Res Water Heating .67 EF'!M32+'Programmable Thermostats'!M32+'Comm 95+ Furnace - New'!M32+'Comm 95+% Furnace - Replace'!M32+Custom!M32,0) -> 3795 | N32: =+ROUND('Res .95+% Res Furnace - NEW'!N32+'Res .95+% Res Furnace - Replace'!N32+'Res Water Heating .67 EF'!N32+'Programmable Thermostats'!N32+'Comm 95+ Furnace - New'!N32+'Comm 95+% Furnace - Replace'!N32+Custom!N32,0) -> 34 | O32: =+ROUND('Res .95+% Res Furnace - NEW'!O32+'Res .95+% Res Furnace - Replace'!O32+'Res Water Heating .67 EF'!O32+'Programmable Thermostats'!O32+'Comm 95+ Furnace - New'!O32+'Comm 95+% Furnace - Replace'!O32+Custom!O32,0) -> 18167 | P32: =+ROUND('Res .95+% Res Furnace - NEW'!P32+'Res .95+% Res Furnace - Replace'!P32+'Res Water Heating .67 EF'!P32+'Programmable Thermostats'!P32+'Comm 95+ Furnace - New'!P32+'Comm 95+% Furnace - Replace'!P32+Custom!P32,0) -> 0 | Q32: =+ROUND('Res .95+% Res Furnace - NEW'!Q32+'Res .95+% Res Furnace - Replace'!Q32+'Res Water Heating .67 EF'!Q32+'Programmable Thermostats'!Q32+'Comm 95+ Furnace - New'!Q32+'Comm 95+% Furnace - Replace'!Q32+Custom!Q32,0) -> 0 | R32: =+ROUND('Res .95+% Res Furnace - NEW'!R32+'Res .95+% Res Furnace - Replace'!R32+'Res Water Heating .67 EF'!R32+'Programmable Thermostats'!R32+'Comm 95+ Furnace - New'!R32+'Comm 95+% Furnace - Replace'!R32+Custom!R32,0) -> 18167 | S32: =+ROUND('Res .95+% Res Furnace - NEW'!S32+'Res .95+% Res Furnace - Replace'!S32+'Res Water Heating .67 EF'!S32+'Programmable Thermostats'!S32+'Comm 95+ Furnace - New'!S32+'Comm 95+% Furnace - Replace'!S32+Custom!S32,0) -> 38 | T32: =+ROUND('Res .95+% Res Furnace - NEW'!T32+'Res .95+% Res Furnace - Replace'!T32+'Res Water Heating .67 EF'!T32+'Programmable Thermostats'!T32+'Comm 95+ Furnace - New'!T32+'Comm 95+% Furnace - Replace'!T32+Custom!T32,0) -> 1190 | U32: =+ROUND('Res .95+% Res Furnace - NEW'!U32+'Res .95+% Res Furnace - Replace'!U32+'Res Water Heating .67 EF'!U32+'Programmable Thermostats'!U32+'Comm 95+ Furnace - New'!U32+'Comm 95+% Furnace - Replace'!U32+Custom!U32,0) -> 6460 | V32: 24627 | X32: =+ROUND('Res .95+% Res Furnace - NEW'!X32+'Res .95+% Res Furnace - Replace'!X32+'Res Water Heating .67 EF'!X32+'Programmable Thermostats'!X32+'Comm 95+ Furnace - New'!X32+'Comm 95+% Furnace - Replace'!X32+Custom!X32,0) -> 8188 | Y32: =+ROUND('Res .95+% Res Furnace - NEW'!Y32+'Res .95+% Res Furnace - Replace'!Y32+'Res Water Heating .67 EF'!Y32+'Programmable Thermostats'!Y32+'Comm 95+ Furnace - New'!Y32+'Comm 95+% Furnace - Replace'!Y32+Custom!Y32,0) -> 0 | Z32: =+ROUND('Res .95+% Res Furnace - NEW'!Z32+'Res .95+% Res Furnace - Replace'!Z32+'Res Water Heating .67 EF'!Z32+'Programmable Thermostats'!Z32+'Comm 95+ Furnace - New'!Z32+'Comm 95+% Furnace - Replace'!Z32+Custom!Z32,0) -> 0 | AA32: 8188 | AB32: 16439 | AE32: 2033 | AF32: 18167 | AG32: 6460 | AH32: 24627 | AJ32: 0 | AK32: 0 | AL32: 0 | AN32: 24627 | AQ32: 2033 | AR32: 18167 | AS32: 6460 | AT32: 24627 | AU32: =+ROUND('Res .95+% Res Furnace - NEW'!AT32+'Res .95+% Res Furnace - Replace'!AU32+'Res Water Heating .67 EF'!AU32+'Programmable Thermostats'!AU32+'Comm 95+ Furnace - New'!AU32+'Comm 95+% Furnace - Replace'!AU32+Custom!AU32,0) -> 11079 | AV32: =+ROUND('Res .95+% Res Furnace - NEW'!AU32+'Res .95+% Res Furnace - Replace'!AV32+'Res Water Heating .67 EF'!AV32+'Programmable Thermostats'!AV32+'Comm 95+ Furnace - New'!AV32+'Comm 95+% Furnace - Replace'!AV32+Custom!AV32,0) -> 4 | AW32: =+ROUND('Res .95+% Res Furnace - NEW'!AV32+'Res .95+% Res Furnace - Replace'!AW32+'Res Water Heating .67 EF'!AW32+'Programmable Thermostats'!AW32+'Comm 95+ Furnace - New'!AW32+'Comm 95+% Furnace - Replace'!AW32+Custom!AW32,0) -> 2045 | AZ32: 37751 | BB32: =+ROUND('Res .95+% Res Furnace - NEW'!BA32+'Res .95+% Res Furnace - Replace'!BB32+'Res Water Heating .67 EF'!BB32+'Programmable Thermostats'!BB32+'Comm 95+ Furnace - New'!BB32+'Comm 95+% Furnace - Replace'!BB32+Custom!BB32,0) -> 0 | BC32: =+ROUND('Res .95+% Res Furnace - NEW'!BB32+'Res .95+% Res Furnace - Replace'!BC32+'Res Water Heating .67 EF'!BC32+'Programmable Thermostats'!BC32+'Comm 95+ Furnace - New'!BC32+'Comm 95+% Furnace - Replace'!BC32+Custom!BC32,0) -> 0 | BD32: 0 | BE32: 37751 | BH32: 2033 | BI32: =+ROUND('Res .95+% Res Furnace - NEW'!BH32+'Res .95+% Res Furnace - Replace'!BI32+'Res Water Heating .67 EF'!BI32+'Programmable Thermostats'!BI32+'Comm 95+ Furnace - New'!BI32+'Comm 95+% Furnace - Replace'!BI32+Custom!BI32,0) -> 0 | BJ32: =+ROUND('Res .95+% Res Furnace - NEW'!BI32+'Res .95+% Res Furnace - Replace'!BJ32+'Res Water Heating .67 EF'!BJ32+'Programmable Thermostats'!BJ32+'Comm 95+ Furnace - New'!BJ32+'Comm 95+% Furnace - Replace'!BJ32+Custom!BJ32,0) -> 3795 | BK32: =+ROUND('Res .95+% Res Furnace - NEW'!BJ32+'Res .95+% Res Furnace - Replace'!BK32+'Res Water Heating .67 EF'!BK32+'Programmable Thermostats'!BK32+'Comm 95+ Furnace - New'!BK32+'Comm 95+% Furnace - Replace'!BK32+Custom!BK32,0) -> 78 | BL32: =+ROUND('Res .95+% Res Furnace - NEW'!BK32+'Res .95+% Res Furnace - Replace'!BL32+'Res Water Heating .67 EF'!BL32+'Programmable Thermostats'!BL32+'Comm 95+ Furnace - New'!BL32+'Comm 95+% Furnace - Replace'!BL32+Custom!BL32,0) -> 43443 | BM32: =+ROUND('Res .95+% Res Furnace - NEW'!BL32+'Res .95+% Res Furnace - Replace'!BM32+'Res Water Heating .67 EF'!BM32+'Programmable Thermostats'!BM32+'Comm 95+ Furnace - New'!BM32+'Comm 95+% Furnace - Replace'!BM32+Custom!BM32,0) -> 2 | BN32: =+ROUND('Res .95+% Res Furnace - NEW'!BM32+'Res .95+% Res Furnace - Replace'!BN32+'Res Water Heating .67 EF'!BN32+'Programmable Thermostats'!BN32+'Comm 95+ Furnace - New'!BN32+'Comm 95+% Furnace - Replace'!BN32+Custom!BN32,0) -> 68687 | BP32: 112130 | BR32: =+ROUND('Res .95+% Res Furnace - NEW'!BQ32+'Res .95+% Res Furnace - Replace'!BR32+'Res Water Heating .67 EF'!BR32+'Programmable Thermostats'!BR32+'Comm 95+ Furnace - New'!BR32+'Comm 95+% Furnace - Replace'!BR32+Custom!BR32,0) -> 0 | BT32: 112130 | BW32: 2033 | BX32: 18167 | BY32: 6460 | BZ32: 11079 | CA32: 35706 | CC32: 0 | CD32: 0 | CE32: 0 | CG32: 35706 | DB32: =$J20 -> 7
A33: 9) Gas Environmental Damage Factor = | J33: 20 | L33: 2034 | M33: =+ROUND('Res .95+% Res Furnace - NEW'!M33+'Res .95+% Res Furnace - Replace'!M33+'Res Water Heating .67 EF'!M33+'Programmable Thermostats'!M33+'Comm 95+ Furnace - New'!M33+'Comm 95+% Furnace - Replace'!M33+Custom!M33,0) -> 3795 | N33: =+ROUND('Res .95+% Res Furnace - NEW'!N33+'Res .95+% Res Furnace - Replace'!N33+'Res Water Heating .67 EF'!N33+'Programmable Thermostats'!N33+'Comm 95+ Furnace - New'!N33+'Comm 95+% Furnace - Replace'!N33+Custom!N33,0) -> 35 | O33: =+ROUND('Res .95+% Res Furnace - NEW'!O33+'Res .95+% Res Furnace - Replace'!O33+'Res Water Heating .67 EF'!O33+'Programmable Thermostats'!O33+'Comm 95+ Furnace - New'!O33+'Comm 95+% Furnace - Replace'!O33+Custom!O33,0) -> 18800 | P33: =+ROUND('Res .95+% Res Furnace - NEW'!P33+'Res .95+% Res Furnace - Replace'!P33+'Res Water Heating .67 EF'!P33+'Programmable Thermostats'!P33+'Comm 95+ Furnace - New'!P33+'Comm 95+% Furnace - Replace'!P33+Custom!P33,0) -> 0 | Q33: =+ROUND('Res .95+% Res Furnace - NEW'!Q33+'Res .95+% Res Furnace - Replace'!Q33+'Res Water Heating .67 EF'!Q33+'Programmable Thermostats'!Q33+'Comm 95+ Furnace - New'!Q33+'Comm 95+% Furnace - Replace'!Q33+Custom!Q33,0) -> 0 | R33: =+ROUND('Res .95+% Res Furnace - NEW'!R33+'Res .95+% Res Furnace - Replace'!R33+'Res Water Heating .67 EF'!R33+'Programmable Thermostats'!R33+'Comm 95+ Furnace - New'!R33+'Comm 95+% Furnace - Replace'!R33+Custom!R33,0) -> 18800 | S33: =+ROUND('Res .95+% Res Furnace - NEW'!S33+'Res .95+% Res Furnace - Replace'!S33+'Res Water Heating .67 EF'!S33+'Programmable Thermostats'!S33+'Comm 95+ Furnace - New'!S33+'Comm 95+% Furnace - Replace'!S33+Custom!S33,0) -> 38 | T33: =+ROUND('Res .95+% Res Furnace - NEW'!T33+'Res .95+% Res Furnace - Replace'!T33+'Res Water Heating .67 EF'!T33+'Programmable Thermostats'!T33+'Comm 95+ Furnace - New'!T33+'Comm 95+% Furnace - Replace'!T33+Custom!T33,0) -> 1204 | U33: =+ROUND('Res .95+% Res Furnace - NEW'!U33+'Res .95+% Res Furnace - Replace'!U33+'Res Water Heating .67 EF'!U33+'Programmable Thermostats'!U33+'Comm 95+ Furnace - New'!U33+'Comm 95+% Furnace - Replace'!U33+Custom!U33,0) -> 6536 | V33: 25336 | X33: =+ROUND('Res .95+% Res Furnace - NEW'!X33+'Res .95+% Res Furnace - Replace'!X33+'Res Water Heating .67 EF'!X33+'Programmable Thermostats'!X33+'Comm 95+ Furnace - New'!X33+'Comm 95+% Furnace - Replace'!X33+Custom!X33,0) -> 8474 | Y33: =+ROUND('Res .95+% Res Furnace - NEW'!Y33+'Res .95+% Res Furnace - Replace'!Y33+'Res Water Heating .67 EF'!Y33+'Programmable Thermostats'!Y33+'Comm 95+ Furnace - New'!Y33+'Comm 95+% Furnace - Replace'!Y33+Custom!Y33,0) -> 0 | Z33: =+ROUND('Res .95+% Res Furnace - NEW'!Z33+'Res .95+% Res Furnace - Replace'!Z33+'Res Water Heating .67 EF'!Z33+'Programmable Thermostats'!Z33+'Comm 95+ Furnace - New'!Z33+'Comm 95+% Furnace - Replace'!Z33+Custom!Z33,0) -> 0 | AA33: 8474 | AB33: 16862 | AE33: 2034 | AF33: 18800 | AG33: 6536 | AH33: 25336 | AJ33: 0 | AK33: 0 | AL33: 0 | AN33: 25336 | AQ33: 2034 | AR33: 18800 | AS33: 6536 | AT33: 25336 | AU33: =+ROUND('Res .95+% Res Furnace - NEW'!AT33+'Res .95+% Res Furnace - Replace'!AU33+'Res Water Heating .67 EF'!AU33+'Programmable Thermostats'!AU33+'Comm 95+ Furnace - New'!AU33+'Comm 95+% Furnace - Replace'!AU33+Custom!AU33,0) -> 11583 | AV33: =+ROUND('Res .95+% Res Furnace - NEW'!AU33+'Res .95+% Res Furnace - Replace'!AV33+'Res Water Heating .67 EF'!AV33+'Programmable Thermostats'!AV33+'Comm 95+ Furnace - New'!AV33+'Comm 95+% Furnace - Replace'!AV33+Custom!AV33,0) -> 4 | AW33: =+ROUND('Res .95+% Res Furnace - NEW'!AV33+'Res .95+% Res Furnace - Replace'!AW33+'Res Water Heating .67 EF'!AW33+'Programmable Thermostats'!AW33+'Comm 95+ Furnace - New'!AW33+'Comm 95+% Furnace - Replace'!AW33+Custom!AW33,0) -> 2095 | AZ33: 39014 | BB33: =+ROUND('Res .95+% Res Furnace - NEW'!BA33+'Res .95+% Res Furnace - Replace'!BB33+'Res Water Heating .67 EF'!BB33+'Programmable Thermostats'!BB33+'Comm 95+ Furnace - New'!BB33+'Comm 95+% Furnace - Replace'!BB33+Custom!BB33,0) -> 0 | BC33: =+ROUND('Res .95+% Res Furnace - NEW'!BB33+'Res .95+% Res Furnace - Replace'!BC33+'Res Water Heating .67 EF'!BC33+'Programmable Thermostats'!BC33+'Comm 95+ Furnace - New'!BC33+'Comm 95+% Furnace - Replace'!BC33+Custom!BC33,0) -> 0 | BD33: 0 | BE33: 39014 | BH33: 2034 | BI33: =+ROUND('Res .95+% Res Furnace - NEW'!BH33+'Res .95+% Res Furnace - Replace'!BI33+'Res Water Heating .67 EF'!BI33+'Programmable Thermostats'!BI33+'Comm 95+ Furnace - New'!BI33+'Comm 95+% Furnace - Replace'!BI33+Custom!BI33,0) -> 0 | BJ33: =+ROUND('Res .95+% Res Furnace - NEW'!BI33+'Res .95+% Res Furnace - Replace'!BJ33+'Res Water Heating .67 EF'!BJ33+'Programmable Thermostats'!BJ33+'Comm 95+ Furnace - New'!BJ33+'Comm 95+% Furnace - Replace'!BJ33+Custom!BJ33,0) -> 3795 | BK33: =+ROUND('Res .95+% Res Furnace - NEW'!BJ33+'Res .95+% Res Furnace - Replace'!BK33+'Res Water Heating .67 EF'!BK33+'Programmable Thermostats'!BK33+'Comm 95+ Furnace - New'!BK33+'Comm 95+% Furnace - Replace'!BK33+Custom!BK33,0) -> 81 | BL33: =+ROUND('Res .95+% Res Furnace - NEW'!BK33+'Res .95+% Res Furnace - Replace'!BL33+'Res Water Heating .67 EF'!BL33+'Programmable Thermostats'!BL33+'Comm 95+ Furnace - New'!BL33+'Comm 95+% Furnace - Replace'!BL33+Custom!BL33,0) -> 44965 | BM33: =+ROUND('Res .95+% Res Furnace - NEW'!BL33+'Res .95+% Res Furnace - Replace'!BM33+'Res Water Heating .67 EF'!BM33+'Programmable Thermostats'!BM33+'Comm 95+ Furnace - New'!BM33+'Comm 95+% Furnace - Replace'!BM33+Custom!BM33,0) -> 2 | BN33: =+ROUND('Res .95+% Res Furnace - NEW'!BM33+'Res .95+% Res Furnace - Replace'!BN33+'Res Water Heating .67 EF'!BN33+'Programmable Thermostats'!BN33+'Comm 95+ Furnace - New'!BN33+'Comm 95+% Furnace - Replace'!BN33+Custom!BN33,0) -> 71200 | BP33: 116165 | BR33: =+ROUND('Res .95+% Res Furnace - NEW'!BQ33+'Res .95+% Res Furnace - Replace'!BR33+'Res Water Heating .67 EF'!BR33+'Programmable Thermostats'!BR33+'Comm 95+ Furnace - New'!BR33+'Comm 95+% Furnace - Replace'!BR33+Custom!BR33,0) -> 0 | BT33: 116165 | BW33: 2034 | BX33: 18800 | BY33: 6536 | BZ33: 11583 | CA33: 36919 | CC33: 0 | CD33: 0 | CE33: 0 | CG33: 36919
A34: Escalation Rate = | E34: 25) Incentive/Participant = | J34: 21 | L34: 2035 | M34: =+ROUND('Res .95+% Res Furnace - NEW'!M34+'Res .95+% Res Furnace - Replace'!M34+'Res Water Heating .67 EF'!M34+'Programmable Thermostats'!M34+'Comm 95+ Furnace - New'!M34+'Comm 95+% Furnace - Replace'!M34+Custom!M34,0) -> 0 | N34: =+ROUND('Res .95+% Res Furnace - NEW'!N34+'Res .95+% Res Furnace - Replace'!N34+'Res Water Heating .67 EF'!N34+'Programmable Thermostats'!N34+'Comm 95+ Furnace - New'!N34+'Comm 95+% Furnace - Replace'!N34+Custom!N34,0) -> 36 | O34: =+ROUND('Res .95+% Res Furnace - NEW'!O34+'Res .95+% Res Furnace - Replace'!O34+'Res Water Heating .67 EF'!O34+'Programmable Thermostats'!O34+'Comm 95+ Furnace - New'!O34+'Comm 95+% Furnace - Replace'!O34+Custom!O34,0) -> 0 | P34: =+ROUND('Res .95+% Res Furnace - NEW'!P34+'Res .95+% Res Furnace - Replace'!P34+'Res Water Heating .67 EF'!P34+'Programmable Thermostats'!P34+'Comm 95+ Furnace - New'!P34+'Comm 95+% Furnace - Replace'!P34+Custom!P34,0) -> 0 | Q34: =+ROUND('Res .95+% Res Furnace - NEW'!Q34+'Res .95+% Res Furnace - Replace'!Q34+'Res Water Heating .67 EF'!Q34+'Programmable Thermostats'!Q34+'Comm 95+ Furnace - New'!Q34+'Comm 95+% Furnace - Replace'!Q34+Custom!Q34,0) -> 0 | R34: =+ROUND('Res .95+% Res Furnace - NEW'!R34+'Res .95+% Res Furnace - Replace'!R34+'Res Water Heating .67 EF'!R34+'Programmable Thermostats'!R34+'Comm 95+ Furnace - New'!R34+'Comm 95+% Furnace - Replace'!R34+Custom!R34,0) -> 0 | S34: =+ROUND('Res .95+% Res Furnace - NEW'!S34+'Res .95+% Res Furnace - Replace'!S34+'Res Water Heating .67 EF'!S34+'Programmable Thermostats'!S34+'Comm 95+ Furnace - New'!S34+'Comm 95+% Furnace - Replace'!S34+Custom!S34,0) -> 0 | T34: =+ROUND('Res .95+% Res Furnace - NEW'!T34+'Res .95+% Res Furnace - Replace'!T34+'Res Water Heating .67 EF'!T34+'Programmable Thermostats'!T34+'Comm 95+ Furnace - New'!T34+'Comm 95+% Furnace - Replace'!T34+Custom!T34,0) -> 1218 | U34: =+ROUND('Res .95+% Res Furnace - NEW'!U34+'Res .95+% Res Furnace - Replace'!U34+'Res Water Heating .67 EF'!U34+'Programmable Thermostats'!U34+'Comm 95+ Furnace - New'!U34+'Comm 95+% Furnace - Replace'!U34+Custom!U34,0) -> 0 | V34: 0 | X34: =+ROUND('Res .95+% Res Furnace - NEW'!X34+'Res .95+% Res Furnace - Replace'!X34+'Res Water Heating .67 EF'!X34+'Programmable Thermostats'!X34+'Comm 95+ Furnace - New'!X34+'Comm 95+% Furnace - Replace'!X34+Custom!X34,0) -> 0 | Y34: =+ROUND('Res .95+% Res Furnace - NEW'!Y34+'Res .95+% Res Furnace - Replace'!Y34+'Res Water Heating .67 EF'!Y34+'Programmable Thermostats'!Y34+'Comm 95+ Furnace - New'!Y34+'Comm 95+% Furnace - Replace'!Y34+Custom!Y34,0) -> 0 | Z34: =+ROUND('Res .95+% Res Furnace - NEW'!Z34+'Res .95+% Res Furnace - Replace'!Z34+'Res Water Heating .67 EF'!Z34+'Programmable Thermostats'!Z34+'Comm 95+ Furnace - New'!Z34+'Comm 95+% Furnace - Replace'!Z34+Custom!Z34,0) -> 0 | AA34: 0 | AB34: 0 | AE34: 2035 | AF34: 0 | AG34: 0 | AH34: 0 | AJ34: 0 | AK34: 0 | AL34: 0 | AN34: 0 | AQ34: 2035 | AR34: 0 | AS34: 0 | AT34: 0 | AU34: =+ROUND('Res .95+% Res Furnace - NEW'!AT34+'Res .95+% Res Furnace - Replace'!AU34+'Res Water Heating .67 EF'!AU34+'Programmable Thermostats'!AU34+'Comm 95+ Furnace - New'!AU34+'Comm 95+% Furnace - Replace'!AU34+Custom!AU34,0) -> 0 | AV34: =+ROUND('Res .95+% Res Furnace - NEW'!AU34+'Res .95+% Res Furnace - Replace'!AV34+'Res Water Heating .67 EF'!AV34+'Programmable Thermostats'!AV34+'Comm 95+ Furnace - New'!AV34+'Comm 95+% Furnace - Replace'!AV34+Custom!AV34,0) -> 4 | AW34: =+ROUND('Res .95+% Res Furnace - NEW'!AV34+'Res .95+% Res Furnace - Replace'!AW34+'Res Water Heating .67 EF'!AW34+'Programmable Thermostats'!AW34+'Comm 95+ Furnace - New'!AW34+'Comm 95+% Furnace - Replace'!AW34+Custom!AW34,0) -> 0 | AZ34: 0 | BB34: =+ROUND('Res .95+% Res Furnace - NEW'!BA34+'Res .95+% Res Furnace - Replace'!BB34+'Res Water Heating .67 EF'!BB34+'Programmable Thermostats'!BB34+'Comm 95+ Furnace - New'!BB34+'Comm 95+% Furnace - Replace'!BB34+Custom!BB34,0) -> 0 | BC34: =+ROUND('Res .95+% Res Furnace - NEW'!BB34+'Res .95+% Res Furnace - Replace'!BC34+'Res Water Heating .67 EF'!BC34+'Programmable Thermostats'!BC34+'Comm 95+ Furnace - New'!BC34+'Comm 95+% Furnace - Replace'!BC34+Custom!BC34,0) -> 0 | BD34: 0 | BE34: 0 | BH34: 2035 | BI34: =+ROUND('Res .95+% Res Furnace - NEW'!BH34+'Res .95+% Res Furnace - Replace'!BI34+'Res Water Heating .67 EF'!BI34+'Programmable Thermostats'!BI34+'Comm 95+ Furnace - New'!BI34+'Comm 95+% Furnace - Replace'!BI34+Custom!BI34,0) -> 0 | BJ34: =+ROUND('Res .95+% Res Furnace - NEW'!BI34+'Res .95+% Res Furnace - Replace'!BJ34+'Res Water Heating .67 EF'!BJ34+'Programmable Thermostats'!BJ34+'Comm 95+ Furnace - New'!BJ34+'Comm 95+% Furnace - Replace'!BJ34+Custom!BJ34,0) -> 0 | BK34: =+ROUND('Res .95+% Res Furnace - NEW'!BJ34+'Res .95+% Res Furnace - Replace'!BK34+'Res Water Heating .67 EF'!BK34+'Programmable Thermostats'!BK34+'Comm 95+ Furnace - New'!BK34+'Comm 95+% Furnace - Replace'!BK34+Custom!BK34,0) -> 83 | BL34: =+ROUND('Res .95+% Res Furnace - NEW'!BK34+'Res .95+% Res Furnace - Replace'!BL34+'Res Water Heating .67 EF'!BL34+'Programmable Thermostats'!BL34+'Comm 95+ Furnace - New'!BL34+'Comm 95+% Furnace - Replace'!BL34+Custom!BL34,0) -> 0 | BM34: =+ROUND('Res .95+% Res Furnace - NEW'!BL34+'Res .95+% Res Furnace - Replace'!BM34+'Res Water Heating .67 EF'!BM34+'Programmable Thermostats'!BM34+'Comm 95+ Furnace - New'!BM34+'Comm 95+% Furnace - Replace'!BM34+Custom!BM34,0) -> 2 | BN34: =+ROUND('Res .95+% Res Furnace - NEW'!BM34+'Res .95+% Res Furnace - Replace'!BN34+'Res Water Heating .67 EF'!BN34+'Programmable Thermostats'!BN34+'Comm 95+ Furnace - New'!BN34+'Comm 95+% Furnace - Replace'!BN34+Custom!BN34,0) -> 0 | BP34: 0 | BR34: =+ROUND('Res .95+% Res Furnace - NEW'!BQ34+'Res .95+% Res Furnace - Replace'!BR34+'Res Water Heating .67 EF'!BR34+'Programmable Thermostats'!BR34+'Comm 95+ Furnace - New'!BR34+'Comm 95+% Furnace - Replace'!BR34+Custom!BR34,0) -> 0 | BT34: 0 | BW34: 2035 | BX34: 0 | BY34: 0 | BZ34: 0 | CA34: 0 | CC34: 0 | CD34: 0 | CE34: 0 | CG34: 0
J35: 22 | L35: 2036 | M35: =+ROUND('Res .95+% Res Furnace - NEW'!M35+'Res .95+% Res Furnace - Replace'!M35+'Res Water Heating .67 EF'!M35+'Programmable Thermostats'!M35+'Comm 95+ Furnace - New'!M35+'Comm 95+% Furnace - Replace'!M35+Custom!M35,0) -> 0 | N35: =+ROUND('Res .95+% Res Furnace - NEW'!N35+'Res .95+% Res Furnace - Replace'!N35+'Res Water Heating .67 EF'!N35+'Programmable Thermostats'!N35+'Comm 95+ Furnace - New'!N35+'Comm 95+% Furnace - Replace'!N35+Custom!N35,0) -> 0 | O35: =+ROUND('Res .95+% Res Furnace - NEW'!O35+'Res .95+% Res Furnace - Replace'!O35+'Res Water Heating .67 EF'!O35+'Programmable Thermostats'!O35+'Comm 95+ Furnace - New'!O35+'Comm 95+% Furnace - Replace'!O35+Custom!O35,0) -> 0 | P35: =+ROUND('Res .95+% Res Furnace - NEW'!P35+'Res .95+% Res Furnace - Replace'!P35+'Res Water Heating .67 EF'!P35+'Programmable Thermostats'!P35+'Comm 95+ Furnace - New'!P35+'Comm 95+% Furnace - Replace'!P35+Custom!P35,0) -> 0 | Q35: =+ROUND('Res .95+% Res Furnace - NEW'!Q35+'Res .95+% Res Furnace - Replace'!Q35+'Res Water Heating .67 EF'!Q35+'Programmable Thermostats'!Q35+'Comm 95+ Furnace - New'!Q35+'Comm 95+% Furnace - Replace'!Q35+Custom!Q35,0) -> 0 | R35: =+ROUND('Res .95+% Res Furnace - NEW'!R35+'Res .95+% Res Furnace - Replace'!R35+'Res Water Heating .67 EF'!R35+'Programmable Thermostats'!R35+'Comm 95+ Furnace - New'!R35+'Comm 95+% Furnace - Replace'!R35+Custom!R35,0) -> 0 | S35: =+ROUND('Res .95+% Res Furnace - NEW'!S35+'Res .95+% Res Furnace - Replace'!S35+'Res Water Heating .67 EF'!S35+'Programmable Thermostats'!S35+'Comm 95+ Furnace - New'!S35+'Comm 95+% Furnace - Replace'!S35+Custom!S35,0) -> 0 | T35: =+ROUND('Res .95+% Res Furnace - NEW'!T35+'Res .95+% Res Furnace - Replace'!T35+'Res Water Heating .67 EF'!T35+'Programmable Thermostats'!T35+'Comm 95+ Furnace - New'!T35+'Comm 95+% Furnace - Replace'!T35+Custom!T35,0) -> 0 | U35: =+ROUND('Res .95+% Res Furnace - NEW'!U35+'Res .95+% Res Furnace - Replace'!U35+'Res Water Heating .67 EF'!U35+'Programmable Thermostats'!U35+'Comm 95+ Furnace - New'!U35+'Comm 95+% Furnace - Replace'!U35+Custom!U35,0) -> 0 | V35: =ROUND(+U35+R35,0) -> 0 | X35: =+ROUND('Res .95+% Res Furnace - NEW'!X35+'Res .95+% Res Furnace - Replace'!X35+'Res Water Heating .67 EF'!X35+'Programmable Thermostats'!X35+'Comm 95+ Furnace - New'!X35+'Comm 95+% Furnace - Replace'!X35+Custom!X35,0) -> 0 | Y35: =+ROUND('Res .95+% Res Furnace - NEW'!Y35+'Res .95+% Res Furnace - Replace'!Y35+'Res Water Heating .67 EF'!Y35+'Programmable Thermostats'!Y35+'Comm 95+ Furnace - New'!Y35+'Comm 95+% Furnace - Replace'!Y35+Custom!Y35,0) -> 0 | Z35: =+ROUND('Res .95+% Res Furnace - NEW'!Z35+'Res .95+% Res Furnace - Replace'!Z35+'Res Water Heating .67 EF'!Z35+'Programmable Thermostats'!Z35+'Comm 95+ Furnace - New'!Z35+'Comm 95+% Furnace - Replace'!Z35+Custom!Z35,0) -> 0 | AA35: 0 | AB35: 0 | AE35: 2036 | AF35: =+R35 -> 0 | AG35: =+U35 -> 0 | AH35: =+AG35+AF35 -> 0 | AJ35: =ROUND(Y35,0) -> 0 | AK35: =ROUND(Z35,0) -> 0 | AL35: =SUM(AJ35:AK35) -> 0 | AN35: =+AH35-AL35 -> 0 | AQ35: 2036 | AR35: =AF35 -> 0 | AS35: =+AG35 -> 0 | AT35: =+AH35 -> 0 | AU35: =+ROUND('Res .95+% Res Furnace - NEW'!AT35+'Res .95+% Res Furnace - Replace'!AU35+'Res Water Heating .67 EF'!AU35+'Programmable Thermostats'!AU35+'Comm 95+ Furnace - New'!AU35+'Comm 95+% Furnace - Replace'!AU35+Custom!AU35,0) -> 0 | AV35: =+ROUND('Res .95+% Res Furnace - NEW'!AU35+'Res .95+% Res Furnace - Replace'!AV35+'Res Water Heating .67 EF'!AV35+'Programmable Thermostats'!AV35+'Comm 95+ Furnace - New'!AV35+'Comm 95+% Furnace - Replace'!AV35+Custom!AV35,0) -> 0 | AW35: =+ROUND('Res .95+% Res Furnace - NEW'!AV35+'Res .95+% Res Furnace - Replace'!AW35+'Res Water Heating .67 EF'!AW35+'Programmable Thermostats'!AW35+'Comm 95+ Furnace - New'!AW35+'Comm 95+% Furnace - Replace'!AW35+Custom!AW35,0) -> 0 | AZ35: =ROUND(AR35+AS35+AU35+AW35+AY35,0) -> 0 | BB35: =+ROUND('Res .95+% Res Furnace - NEW'!BA35+'Res .95+% Res Furnace - Replace'!BB35+'Res Water Heating .67 EF'!BB35+'Programmable Thermostats'!BB35+'Comm 95+ Furnace - New'!BB35+'Comm 95+% Furnace - Replace'!BB35+Custom!BB35,0) -> 0 | BC35: =+ROUND('Res .95+% Res Furnace - NEW'!BB35+'Res .95+% Res Furnace - Replace'!BC35+'Res Water Heating .67 EF'!BC35+'Programmable Thermostats'!BC35+'Comm 95+ Furnace - New'!BC35+'Comm 95+% Furnace - Replace'!BC35+Custom!BC35,0) -> 0 | BD35: =BB35+BC35 -> 0 | BE35: =AZ35-BD35 -> 0 | BH35: 2036 | BI35: =+ROUND('Res .95+% Res Furnace - NEW'!BH35+'Res .95+% Res Furnace - Replace'!BI35+'Res Water Heating .67 EF'!BI35+'Programmable Thermostats'!BI35+'Comm 95+ Furnace - New'!BI35+'Comm 95+% Furnace - Replace'!BI35+Custom!BI35,0) -> 0 | BJ35: =+ROUND('Res .95+% Res Furnace - NEW'!BI35+'Res .95+% Res Furnace - Replace'!BJ35+'Res Water Heating .67 EF'!BJ35+'Programmable Thermostats'!BJ35+'Comm 95+ Furnace - New'!BJ35+'Comm 95+% Furnace - Replace'!BJ35+Custom!BJ35,0) -> 0 | BK35: =+ROUND('Res .95+% Res Furnace - NEW'!BJ35+'Res .95+% Res Furnace - Replace'!BK35+'Res Water Heating .67 EF'!BK35+'Programmable Thermostats'!BK35+'Comm 95+ Furnace - New'!BK35+'Comm 95+% Furnace - Replace'!BK35+Custom!BK35,0) -> 0 | BL35: =+ROUND('Res .95+% Res Furnace - NEW'!BK35+'Res .95+% Res Furnace - Replace'!BL35+'Res Water Heating .67 EF'!BL35+'Programmable Thermostats'!BL35+'Comm 95+ Furnace - New'!BL35+'Comm 95+% Furnace - Replace'!BL35+Custom!BL35,0) -> 0 | BM35: =+ROUND('Res .95+% Res Furnace - NEW'!BL35+'Res .95+% Res Furnace - Replace'!BM35+'Res Water Heating .67 EF'!BM35+'Programmable Thermostats'!BM35+'Comm 95+ Furnace - New'!BM35+'Comm 95+% Furnace - Replace'!BM35+Custom!BM35,0) -> 0 | BN35: =+ROUND('Res .95+% Res Furnace - NEW'!BM35+'Res .95+% Res Furnace - Replace'!BN35+'Res Water Heating .67 EF'!BN35+'Programmable Thermostats'!BN35+'Comm 95+ Furnace - New'!BN35+'Comm 95+% Furnace - Replace'!BN35+Custom!BN35,0) -> 0 | BP35: =BI35+BL35+BN35+BO35 -> 0 | BR35: =+ROUND('Res .95+% Res Furnace - NEW'!BQ35+'Res .95+% Res Furnace - Replace'!BR35+'Res Water Heating .67 EF'!BR35+'Programmable Thermostats'!BR35+'Comm 95+ Furnace - New'!BR35+'Comm 95+% Furnace - Replace'!BR35+Custom!BR35,0) -> 0 | BT35: 0 | BW35: 2036 | BX35: 0 | BY35: =U35 -> 0 | BZ35: =AU35 -> 0 | CA35: =SUM(BX35:BZ35) -> 0 | CC35: =BB35 -> 0 | CD35: =BC35 -> 0 | CE35: =SUM(CC35:CD35) -> 0 | CG35: 0 | DB35: =$J21 -> 8
A36: 10) Non Gas Fuel Environmental Damage Factor = | E36: 26) Distribution Delivery Charge
A37: Escalation Rate = | K37: Total = | M37: =SUM(M14:M35) -> 80490 | V37: =SUM(V14:V35) -> 416266 | AA37: =SUM(AA14:AA35) -> 245539 | AB37: =SUM(AB14:AB35) -> 170727 | AD37: Total = | AH37: =SUM(AH14:AH35) -> 416266 | AL37: =SUM(AL14:AL35) -> 114563 | AN37: =SUM(AN14:AN35) -> 301703 | AP37: Total = | AZ37: =SUM(AZ14:AZ35) -> 621064 | BD37: =SUM(BD14:BD35) -> 193715 | BE37: =SUM(BE14:BE35) -> 427349 | BG37: Total = | BJ37: =SUM(BJ14:BJ35) -> 80490 | BP37: =SUM(BP14:BP35) -> 1847701 | BR37: =SUM(BR14:BR35) -> 185792 | BT37: =SUM(BT14:BT35) -> 1661909 | BZ37: Total = | CA37: =SUM(CA14:CA35) -> 585230 | CE37: =SUM(CE14:CE35) -> 193715 | CG37: =SUM(CG14:CG35) -> 391515 | DB37: =$J22 -> 9
E38: 27) Effective Income Tax Rate = | T38: NPV = | V38: =ROUND(V14+NPV($C$41,V15:V35),0) -> 216905 | AA38: =ROUND(AA14+NPV($C$41,AA15:AA35),0) -> 181606 | AB38: =ROUND(AB14+NPV($C$41,AB15:AB35),0) -> 35299 | AG38: NPV = | AH38: =ROUND(AH14+NPV($C$41,AH15:AH35),0) -> 216905 | AL38: =ROUND(AL14+NPV($C$41,AL15:AL35),0) -> 114563 | AN38: =+AH38-AL38 -> 102342 | AW38: NPV = | AZ38: =ROUND(AZ14+NPV($C$43,AZ15:AZ35),0) -> 442868 | BD38: =ROUND(BD14+NPV($C$43,BD15:BD35),0) -> 193715 | BE38: =AZ38-BD38 -> 249153 | BN38: NPV = | BP38: =ROUND(BP14+NPV($C$39,BP15:BP35),0) -> 848302 | BR38: =ROUND(BR14+NPV($C$39,BR15:BR35),0) -> 185792 | BT38: =ROUND(BT14+NPV($C$39,BT15:BT35),0) -> 662510 | BZ38: NPV = | CA38: =ROUND(CA14+NPV($C$41,CA15:CA35),0) -> 301553 | CE38: =ROUND(CE14+NPV($C$41,CE15:CE35),0) -> 193715 | CG38: =ROUND(CG14+NPV($C$41,CG15:CG35),0) -> 107838
A39: 11) Participant Discount Rate = | C39: =+'Gas Input Table Summary'!D26 -> 0.1 | E39: (Federal & State Taxes)
K40: Total NPV = | N40: =AB38 -> 35299 | AD40: Total NPV = | AG40: =AN38 -> 102342 | AP40: Total NPV = | AS40: =BE38 -> 249153 | BG40: Total NPV = | BJ40: =BT38 -> 662510 | BV40: Total NPV = | BY40: =CG38 -> 107838 | DB40: =$J23 -> 10
A41: 12) Utility Discount Rate = | C41: =+'Gas Input Table Summary'!D27 -> 0.076 | E41: Test Results | F41: NPV | G41: B/C | K41: Benefit/Cost Ratio = | N41: =ROUND(V38/AA38,2) -> 1.19 | AD41: Benefit/Cost Ratio = | AG41: =ROUND(AH38/AL38,2) -> 1.89 | AP41: Benefit/Cost Ratio = | AS41: =ROUND(AZ38/BD38,2) -> 2.29 | BG41: Benefit/Cost Ratio = | BJ41: =ROUND(BP38/BR38,20) -> 4.565869359 | BV41: Benefit/Cost Ratio = | BY41: =ROUND(CA38/CE38,2) -> 1.56 | DB41: =$J24 -> 11
E42: Ratepayer Impact Measure Test | F42: =N40 -> 35299 | G42: =N41 -> 1.19 | DB42: =$J25 -> 12
A43: 13) Societal Discount Rate = | C43: =+'Gas Input Table Summary'!D28 -> 0.0356 | E43: Utility Cost Test | F43: =AG40 -> 102342 | G43: =AG41 -> 1.89 | BG43: Worksheet Calculations | BV43: Worksheet Calculations | DB43: =$J26 -> 13
E44: Societal Test | F44: =AS40 -> 249153 | G44: =AS41 -> 2.29 | J44: Worksheet Calculations | AD44: Worksheet Calculations | AP44: Worksheet Calculations | BG44: (A) | BH44: = Table 1 (N) | BV44: (A) | BW44: = Table 1 (F)
A45: 14) General Input Data Year = | C45: =+'Gas Input Table Summary'!D29 -> 2014 | E45: Participant Test | F45: =BJ40 -> 662510 | G45: =BJ41 -> 4.565869359 | J45: (A) | K45: = Average Dk/Participant Saved (21) x Number of Participants (23) for Project Life (20) | T45: (I) | U45: = (G) x (H) | AD45: (A) | AE45: = Table 1 (F) | AP45: (A) | AQ45: = Table 1 (F) | AW45: (H) | AZ45: = Table 2 (F) | BG45: (B) | BH45: = Table 1 (A) | BV45: (B) | BW45: = Table 1 (I)
E46: Total Resource Cost Test | F46: =BY40 -> 107838 | G46: =BY41 -> 1.56 | J46: (B) | K46: = Commodity Cost (3) escalated | T46: (J) | U46: = (F) + (I) | AD46: (B) | AE46: = Table 1 (I) | AP46: (G) | AQ46: = Table 1 (I) | AW46: (I) | AZ46: = Direct Part. Costs (17) x No. of Part. (23) - Table 1 (N) | BG46: (C) | BH46: = Retail Rate (1) escalated. | BV46: (C) | BW46: = Table 3 (D)
A47: 15) Project Analysis Year 1 = | C47: =+'Gas Input Table Summary'!D30 -> 2015 | J47: (C) | K47: = (A) x (B) | T47: (K) | U47: = Distribution Delivery Charge (26) escalated. | AD47: (C) | AE47: = Table 1 (J) | AP47: (C) | AQ47: = Non-Gas Fuel Cost (7), adjusted for losses (8), escalated.. | AW47: (J) | AZ47: = (H) + (I) | BG47: (D) | BH47: =(B) x (C) | BV47: (D) | BW47: = (A) + (B) + (C)
J48: (D) | K48: = Variable O&M Cost (6), escalated | T48: (L) | U48: = (A) x (K) x (1-Inverse of Tax Rate (27) | AD48: (D) | AE48: = Table 1 (M) | AP48: (D) | AQ48: = (C) x [Avg. Non-Gas Fuel Units/Part.Saved (22) x No. of Part. (23) | AW48: (K) | AZ48: = (G) - (J) | BG48: (E) | BH48: = Non-Gas Fuel Retail Rate (2), escalated. | BV48: (E) | BW48: = Table 3 (H)
J49: (E) | K49: = (A) x (D) | T49: (M) | U49: = Admin & Operating Costs (16a) | AD49: (E) | AE49: = Table 1 (N) | AP49: (E) | AQ49: = Gas Environmental Damage Factor (9), escalated | BG49: (F) | BH49: = (E) x [Avg. Non-Gas Fuel Units/Part.Saved (22) x No. of Part. (23) | BV49: (F) | BW49: = Table 3 (I) | DB49: =$J27 -> 14
J50: (F) | K50: = (C) + (E) | T50: (N) | U50: = Incentive Costs (16b) | AD50: (F) | AE50: = (D) + (E) | AP50: (F) | AQ50: = Table 1 (A) x (E) | BG50: (G) | BH50: = (A) + (D) + (F) | BV50: (G) | BW50: = (E) + (F) | DB50: =$J28 -> 15
J51: (G) | K51: = (A) x Peak Reduction Factor (5) | T51: (O) | U51: = (L) + (M) + (N) | AD51: (G) | AE51: = (C) - (F) | AP51: (G) | AQ51: = (A) + (B) + (D) + (F) | BG51: (H) | BH51: = Direct Participant Costs (17) x Number of Participants (23) | BV51: (H) | BW51: = (D) - (G) | DB51: =$J29 -> 16
J52: (H) | K52: = Demand Cost (4) escalated. | T52: (P) | U52: = (J) - (O) | BG52: (I) | BH52: = (G) - (H)

Sheet Res .95+% Res Furnace - NEW
A1: NATURAL GAS CONSERVATION PROGRAMS/DEMAND-SIDE MANAGEMENT | K1: Table 1 | AC1: Table 2 | AO1: Table 3 | BF1: Table 4 | BU1: Table 5
A2: BEN/COST ANALYSIS FOR GAS CONSERVATION | K2: Ratepayer Impact Measure Test | AC2: Utility Cost Test | AO2: Societal Test | BF2: Participant Test | BU2: Total Resource Cost Test
A4: Company: | B4: Montana-Dakota Utilities Co. | K4: Company: | M4: =B4 -> Montana-Dakota Utilities Co. | AC4: Company: | AE4: =B4 -> Montana-Dakota Utilities Co. | AO4: Company: | AQ4: =AE4 -> Montana-Dakota Utilities Co. | BG4: Company: | BH4: =AQ4 -> Montana-Dakota Utilities Co. | BV4: Company: | BW4: =BH4 -> Montana-Dakota Utilities Co.
A5: Project: | B5: Residential 95+% AFUE Furnace - New | K5: Project: | M5: =$B$5 -> Residential 95+% AFUE Furnace - New | AC5: Project: | AE5: =$B$5 -> Residential 95+% AFUE Furnace - New | AO5: Project: | AQ5: =$B$5 -> Residential 95+% AFUE Furnace - New | BG5: Project: | BH5: =$B$5 -> Residential 95+% AFUE Furnace - New | BV5: Project: | BW5: =$B$5 -> Residential 95+% AFUE Furnace - New
A6: Program Years: | B6: Actual 2015
N7: Benefits | X7: Costs | AE7: Benefits | AI7: Costs | AQ7: Benefits | BA7: Costs | BH7: Benefits | BQ7: Costs | BW7: Benefits | CB7: Costs
A8: Input Data | F8: 2015 | AB8: Annual | AM8: Annual | AS8: Non-Gas | BD8: Annual | BS8: Annual | CF8: Annual
M9: Total | N9: Gas | O9: Gas | P9: Variable | Q9: Variable | R9: Total | S9: Peak Dk | T9: Demand | U9: Total | W9: Distribution | Y9: Program | AA9: Total | AB9: Benefits | AE9: Total | AF9: Total | AG9: Annual | AI9: Program | AK9: Utility | AM9: Benefits | AQ9: Total | AR9: Total | AS9: Energy | AT9: Non-Gas | AU9: Environmental | AV9: Environmental | AY9: Annual | BA9: Utility | BB9: Participants' | BC9: Annual | BD9: Benefits | BI9: Total | BK9: Gas | BL9: Non-Gas | BM9: Non-Gas | BO9: Total | BQ9: Direct | BS9: Benefits | BW9: Total | BX9: Total | BY9: Non-Gas | BZ9: Total | CB9: Utility | CC9: Participants' | CF9: Benefits
A10: 1) Retail Rate ($/Dk) = | C10: =+'Gas Input Table Summary'!$D$7 -> 5.972 | E10: 16) Utility Project Costs | M10: Energy | N10: Commodity | O10: Commodity | P10: O & M | Q10: O & M | R10: Energy | S10: Demand | T10: Savings | U10: Demand | V10: Total | W10: Delivery | X10: Lost | Y10: Admin | Z10: Incentive | AA10: Program | AB10: Less | AE10: Energy | AF10: Demand | AG10: Total | AI10: Admin | AJ10: Incentive | AK10: Program | AM10: Less | AQ10: Energy | AR10: Demand | AS10: Savings | AT10: Energy | AU10: Damage | AV10: Damage | AY10: Total | BA10: Program | BB10: Costs Net | BC10: Total | BD10: Less | BH10: Incentives | BI10: Energy | BJ10: Retail | BK10: Bill | BL10: Fuel | BM10: Energy | BO10: Annual | BQ10: Participant | BS10: Less | BW10: Energy | BX10: Demand | BY10: Energy | BZ10: Annual | CB10: Program | CC10: Costs Net | CD10: Total | CF10: Less
A11: Escalation Rate = | C11: =+'Gas Input Table Summary'!$D$8 -> 0.035 | E11: 16a) Administrative & Operating Costs = | F11: =+'Total Program Inputs'!K11 -> 3031 | J11: t | M11: Reduction | N11: Cost/Dk | O11: Savings | P11: Cost/Dk | Q11: Savings | R11: Savings | S11: Reduction | T11: Per Unit | U11: Savings | V11: Savings | W11: Charge | X11: Margin | Y11: Costs | Z11: Costs | AA11: Costs | AB11: Costs | AE11: Savings | AF11: Savings | AG11: Savings | AI11: Costs | AJ11: Costs | AK11: Costs | AM11: Costs | AQ11: Savings | AR11: Savings | AS11: ($/Part.) | AT11: Savings | AU11: Savings/Dk | AV11: Savings | AY11: Savings | BA11: Costs | BB11: of Rebate | BC11: Costs | BD11: Costs | BH11: Received | BI11: Reduction | BJ11: Rate | BK11: Savings | BL11: Retail Rate | BM11: Savings | BO11: Benefits | BQ11: Costs | BS11: Costs | BW11: Savings | BX11: Savings | BY11: Savings | BZ11: Benefits | CB11: Costs | CC11: of Rebate | CD11: Costs | CF11: Costs
E12: 16b) Incentive Costs = | F12: =+'Total Program Inputs'!G11 -> 40800 | L12: Year | M12: (A) | N12: (B) | O12: (C) | P12: (D) | Q12: (E) | R12: (F) | S12: (G) | T12: (H) | U12: (I) | V12: (J) | W12: (K) | X12: (L) | Y12: (M) | Z12: (N) | AA12: (O) | AB12: (P) | AD12: Year | AE12: (A) | AF12: (B) | AG12: (C) | AI12: (D) | AJ12: (E) | AK12: (F) | AM12: (G) | AP12: Year | AQ12: (A) | AR12: (B) | AS12: (C) | AT12: (D) | AU12: (E) | AV12: (F) | AY12: (G) | BA12: (H) | BB12: (I) | BC12: (J) | BD12: (K) | BG12: Year | BH12: (A) | BI12: (B) | BJ12: (C) | BK12: (D) | BL12: (E) | BM12: (F) | BO12: (G) | BQ12: (H) | BS12: (I) | BV12: Year | BW12: (A) | BX12: (B) | BY12: (C) | BZ12: (D) | CB12: (E) | CC12: (F) | CD12: (G) | CF12: (H)
A13: 2) Non-Gas Fuel Retail Rate ($/Fuel Unit) = | C13: =+'Gas Input Table Summary'!$D$9 -> 0.14206 | E13: 16c) Total Utility Project Costs = | F13: =SUM(F11:F12) -> 43831
A14: Escalation Rate = | C14: =+'Gas Input Table Summary'!$D$10 -> 0.035 | J14: =$C$47-$C$45 -> 1 | L14: =$C$47 -> 2015 | M14: =ROUND(IF($C$47+$F$23>L14,F25*F30,0),0) -> 1086 | N14: =ROUND($C$17*(1),3) -> 2.577 | O14: =ROUND(M14*N14,0) -> 2799 | P14: =ROUND($C$25*(1+$C$26)^J14,3) -> 0 | Q14: =ROUND(M14*P14,0) -> 0 | R14: =O14+Q14 -> 2799 | S14: =ROUND(M14*$C$23,1) -> 10.9 | T14: =ROUND($C$20*(1),0) -> 142 | U14: =ROUND(S14*T14,0) -> 1548 | V14: =ROUND(+U14+R14,0) -> 4347 | W14: =ROUND($H$36*(1+$C$11)^J14,3) -> 1.805 | X14: =ROUND((1-$H$38)*(W14*M14),0) -> 1274 | Y14: =ROUND($F$11,0) -> 3031 | Z14: =ROUND($F$12,0) -> 40800 | AA14: =SUM(X14:Z14) -> 45105 | AB14: =V14-AA14 -> -40758 | AD14: =$C$47 -> 2015 | AE14: =+R14 -> 2799 | AF14: =+U14 -> 1548 | AG14: =+AF14+AE14 -> 4347 | AI14: =ROUND(Y14,0) -> 3031 | AJ14: =ROUND(Z14,0) -> 40800 | AK14: =SUM(AI14:AJ14) -> 43831 | AM14: =+AG14-AK14 -> -39484 | AP14: =$C$47 -> 2015 | AQ14: =AE14 -> 2799 | AR14: =+AF14 -> 1548 | AS14: =ROUND(($C$28/(1-$C$31))*(1+$C$29)^J14,3) -> 0.024 | AT14: =ROUND(IF($C$47+$F$23>$AP14,$F$30*$F$27,0)*AS14,0) -> 2389 | AU14: =ROUND($C$33*(1+$C$34)^J14,3) -> 0.358 | AV14: =ROUND(AU14*M14,0) -> 389 | AY14: =ROUND(AQ14+AR14+AT14+AV14+AX14,0) -> 7125 | BA14: =ROUND($F$13,0) -> 43831 | BB14: =ROUND((F15*F30)-Z14,0) -> 272 | BC14: =BA14+BB14 -> 44103 | BD14: =AY14-BC14 -> -36978 | BG14: =$C$47 -> 2015 | BH14: =+F12 -> 40800 | BI14: =+M14 -> 1086 | BJ14: =ROUND($C$10*(1+$C$11)^J14,3) -> 6.181 | BK14: =ROUND(BI14*BJ14,0) -> 6713 | BL14: =ROUND($C$13*(1+$C$14)^J14,3) -> 0.147 | BM14: =ROUND(IF($C$47+$F$23>$BG14,$F$30*$F$27,0)*BL14,0) -> 14634 | BO14: =BH14+BK14+BM14+BN14 -> 62147 | BQ14: =ROUND(F15*F30,0) -> 41072 | BS14: =BO14-BQ14 -> 21075 | BV14: =$C$47 -> 2015 | BW14: =$R14 -> 2799 | BX14: =U14 -> 1548 | BY14: =AT14 -> 2389 | BZ14: =SUM(BW14:BY14) -> 6736 | CB14: =BA14 -> 43831 | CC14: =BB14 -> 272 | CD14: =SUM(CB14:CC14) -> 44103 | CF14: =BZ14-CD14 -> -37367
A15: Non-Gas Fuel Units (ie. kWh,Gallons, etc) = | C15: =+'Gas Input Table Summary'!$D$11 -> Kwh | E15: 17) Direct Participant Costs ($/Part.) = | F15: =ROUND('Database Inputs'!K10,0) -> 302 | J15: =J14+1 -> 2 | L15: =L14+1 -> 2016 | M15: =ROUND(IF($C$47+$F$23>L15,$F$25*$F$30,0)+IF($C$48+$G$23>L15,$G$25*$G$30,0),0) -> 1086 | N15: =ROUND($C$17*(1+$C$18)^J14,3) -> 2.667 | O15: 2896 | P15: 0 | Q15: =ROUND(M15*P15,0) -> 0 | R15: 2896 | S15: 10.9 | T15: =ROUND($C$20*(1+$C$21)^J14,0) -> 144 | U15: =ROUND(S15*T15,0) -> 1570 | V15: =ROUND(+U15+R15,0) -> 4466 | W15: 1.868 | X15: 1319 | Y15: =ROUND($G$11,0) -> 0 | Z15: =ROUND($G$12,0) -> 0 | AA15: 1319 | AB15: 3147 | AD15: =AD14+1 -> 2016 | AE15: 2896 | AF15: 1570 | AG15: =+AF15+AE15 -> 4466 | AI15: 0 | AJ15: 0 | AK15: 0 | AM15: 4466 | AP15: =AP14+1 -> 2016 | AQ15: 2896 | AR15: 1570 | AS15: 0.025 | AT15: =ROUND((IF($C$47+$F$23>$AP15,$F$27*$F$30,0)+IF($C$48+$G$23>AP15,$G$27*$G$30,0))*AS15,0) -> 2489 | AU15: 0.366 | AV15: 397 | AY15: =ROUND(AQ15+AR15+AT15+AV15+AX15,0) -> 7352 | BA15: =ROUND($G$13,0) -> 0 | BB15: =ROUND(($G$15*$G$30)-$Z$15,0) -> 0 | BC15: =BA15+BB15 -> 0 | BD15: 7352 | BG15: =BG14+1 -> 2016 | BH15: =+G12 -> 0 | BI15: 1086 | BJ15: 6.397 | BK15: =ROUND(BI15*BJ15,0) -> 6947 | BL15: 0.152 | BM15: =ROUND((IF($C$47+$F$23>BG15,$F$27*$F$30,0)+IF($C$48+$G$23>BG15,$G$27*$G$30,0))*BL15,0) -> 15132 | BO15: 22079 | BQ15: =ROUND($G$15*$G$30,0) -> 0 | BS15: =BO15-BQ15 -> 22079 | BV15: =BV14+1 -> 2016 | BW15: 2896 | BX15: 1570 | BY15: =AT15 -> 2489 | BZ15: =SUM(BW15:BY15) -> 6955 | CB15: =BA15 -> 0 | CC15: 0 | CD15: =SUM(CB15:CC15) -> 0 | CF15: =BZ15-CD15 -> 6955
J16: 3 | L16: 2017 | M16: =ROUND(IF($C$47+$F$23>L16,$F$25*$F$30,0)+IF($C$48+$G$23>L16,$G$25*$G$30,0)+IF($C$49+$H$23>L16,$H$25*$H$30,0),0) -> 1086 | N16: =ROUND($C$17*(1+$C$18)^J15,3) -> 2.761 | O16: 2998 | P16: 0 | Q16: 0 | R16: 2998 | S16: 10.9 | T16: =ROUND($C$20*(1+$C$21)^J15,0) -> 145 | U16: =ROUND(S16*T16,0) -> 1581 | V16: 4579 | W16: 1.934 | X16: 1365 | Y16: =ROUND($H$11,0) -> 0 | Z16: =ROUND($H$12,0) -> 0 | AA16: 1365 | AB16: 3214 | AD16: 2017 | AE16: 2998 | AF16: 1581 | AG16: =+AF16+AE16 -> 4579 | AI16: 0 | AJ16: 0 | AK16: 0 | AM16: 4579 | AP16: 2017 | AQ16: 2998 | AR16: 1581 | AS16: 0.025 | AT16: =ROUND((IF($C$47+$F$23>$AP16,$F$27*$F$30,0)+IF($C$48+$G$23>AP16,$G$27*$G$30,0)+IF($C$49+$H$23>AP16,$H$27*$H$30,0))*AS16,0) -> 2489 | AU16: 0.375 | AV16: 407 | AY16: 7475 | BA16: =ROUND($H$13,0) -> 0 | BB16: =ROUND(($H$15*$H$30)-$Z$16,0) -> 0 | BC16: 0 | BD16: 7475 | BG16: 2017 | BH16: =ROUND(H12,0) -> 0 | BI16: 1086 | BJ16: 6.621 | BK16: =ROUND(BI16*BJ16,0) -> 7190 | BL16: 0.158 | BM16: =ROUND((IF($C$47+$F$23>BG16,$F$27*$F$30,0)+IF($C$49+$H$23>BG16,$H$27*$H$30,0)+IF($C$48+$G$23>BG16,$G$27*$G$30,0))*BL16,0) -> 15729 | BO16: 22919 | BQ16: =ROUND($H$15*$H$30,0) -> 0 | BS16: 22919 | BV16: 2017 | BW16: 2998 | BX16: 1581 | BY16: 2489 | BZ16: 7068 | CB16: 0 | CC16: 0 | CD16: 0 | CF16: =BZ16-CD16 -> 7068
A17: 3) Commodity Cost ($/Dk) = | C17: =+'Gas Input Table Summary'!$D$12 -> 2.577 | E17: 18) Participant Non-Energy Costs (Annual $/Part.) = | F17: =+'Gas Input Table Summary'!$D$35 -> 0 | J17: 4 | L17: 2018 | M17: =ROUND(IF($C$47+$F$23>L17,$F$25*$F$30,0)+IF($C$48+$G$23>L17,$G$25*$G$30,0)+IF($C$49+$H$23>L17,$H$25*$H$30,0),0) -> 1086 | N17: 2.857 | O17: 3103 | P17: 0 | Q17: 0 | R17: 3103 | S17: 10.9 | T17: 147 | U17: 1602 | V17: 4705 | W17: 2.001 | X17: 1413 | Y17: 0 | Z17: 0 | AA17: 1413 | AB17: 3292 | AD17: 2018 | AE17: 3103 | AF17: 1602 | AG17: 4705 | AI17: 0 | AJ17: 0 | AK17: 0 | AM17: 4705 | AP17: 2018 | AQ17: 3103 | AR17: 1602 | AS17: 0.026 | AT17: 2588 | AU17: 0.383 | AV17: 416 | AY17: 7709 | BA17: 0 | BB17: 0 | BC17: 0 | BD17: 7709 | BG17: 2018 | BH17: 0 | BI17: 1086 | BJ17: 6.853 | BK17: 7442 | BL17: 0.163 | BM17: =ROUND((IF($C$47+$F$23>BG17,$F$27*$F$30,0)+IF($C$49+$H$23>BG17,$H$27*$H$30,0)+IF($C$48+$G$23>BG17,$G$27*$G$30,0))*BL17,0) -> 16227 | BO17: 23669 | BQ17: =+BB17 -> 0 | BS17: 23669 | BV17: 2018 | BW17: 3103 | BX17: 1602 | BY17: 2588 | BZ17: 7293 | CB17: 0 | CC17: 0 | CD17: 0 | CF17: 7293
A18: Escalation Rate = | C18: =+'Gas Input Table Summary'!$D$13 -> 0.035 | E18: Escalation Rate = | F18: =+'Gas Input Table Summary'!$D$38 -> 0 | J18: 5 | L18: 2019 | M18: 1086 | N18: 2.957 | O18: 3211 | P18: 0 | Q18: 0 | R18: 3211 | S18: 10.9 | T18: 148 | U18: 1613 | V18: 4824 | W18: 2.071 | X18: 1462 | Y18: 0 | Z18: 0 | AA18: 1462 | AB18: 3362 | AD18: 2019 | AE18: 3211 | AF18: 1613 | AG18: 4824 | AI18: 0 | AJ18: 0 | AK18: 0 | AM18: 4824 | AP18: 2019 | AQ18: 3211 | AR18: 1613 | AS18: 0.027 | AT18: 2688 | AU18: 0.392 | AV18: 426 | AY18: 7938 | BA18: 0 | BB18: 0 | BC18: 0 | BD18: 7938 | BG18: 2019 | BH18: 0 | BI18: 1086 | BJ18: 7.093 | BK18: 7703 | BL18: 0.169 | BM18: 16824 | BO18: 24527 | BQ18: 0 | BS18: 24527 | BV18: 2019 | BW18: 3211 | BX18: 1613 | BY18: 2688 | BZ18: 7512 | CB18: 0 | CC18: 0 | CD18: 0 | CF18: 7512 | DA18: t
J19: 6 | L19: 2020 | M19: 1086 | N19: 3.061 | O19: 3324 | P19: 0 | Q19: 0 | R19: 3324 | S19: 10.9 | T19: 149 | U19: 1624 | V19: 4948 | W19: 2.144 | X19: 1513 | Y19: 0 | Z19: 0 | AA19: 1513 | AB19: 3435 | AD19: 2020 | AE19: 3324 | AF19: 1624 | AG19: 4948 | AI19: 0 | AJ19: 0 | AK19: 0 | AM19: 4948 | AP19: 2020 | AQ19: 3324 | AR19: 1624 | AS19: 0.028 | AT19: 2787 | AU19: 0.401 | AV19: 435 | AY19: 8170 | BA19: 0 | BB19: 0 | BC19: 0 | BD19: 8170 | BG19: 2020 | BH19: 0 | BI19: 1086 | BJ19: 7.341 | BK19: 7972 | BL19: 0.175 | BM19: 17422 | BO19: 25394 | BQ19: 0 | BS19: 25394 | BV19: 2020 | BW19: 3324 | BX19: 1624 | BY19: 2787 | BZ19: 7735 | CB19: 0 | CC19: 0 | CD19: 0 | CF19: 7735
A20: 4) Demand Cost ($/Unit/Yr) = | C20: =+'Gas Input Table Summary'!$D$14 -> 142.21 | E20: 19) Participant Non-Energy Savings (Annual $/Part) = | F20: =+'Gas Input Table Summary'!$D$41 -> 0 | J20: 7 | L20: 2021 | M20: 1086 | N20: 3.168 | O20: 3440 | P20: 0 | Q20: 0 | R20: 3440 | S20: 10.9 | T20: 151 | U20: 1646 | V20: 5086 | W20: 2.219 | X20: 1566 | Y20: 0 | Z20: 0 | AA20: 1566 | AB20: 3520 | AD20: 2021 | AE20: 3440 | AF20: 1646 | AG20: 5086 | AI20: 0 | AJ20: 0 | AK20: 0 | AM20: 5086 | AP20: 2021 | AQ20: 3440 | AR20: 1646 | AS20: 0.029 | AT20: 2887 | AU20: 0.41 | AV20: 445 | AY20: 8418 | BA20: 0 | BB20: 0 | BC20: 0 | BD20: 8418 | BG20: 2021 | BH20: 0 | BI20: 1086 | BJ20: 7.598 | BK20: 8251 | BL20: 0.181 | BM20: 18019 | BO20: 26270 | BQ20: 0 | BS20: 26270 | BV20: 2021 | BW20: 3440 | BX20: 1646 | BY20: 2887 | BZ20: 7973 | CB20: 0 | CC20: 0 | CD20: 0 | CF20: 7973
A21: Escalation Rate = | C21: =+'Gas Input Table Summary'!$D$15 -> 0.01 | E21: Escalation Rate = | F21: =+'Gas Input Table Summary'!$D$44 -> 0 | J21: 8 | L21: 2022 | M21: 1086 | N21: 3.279 | O21: 3561 | P21: 0 | Q21: 0 | R21: 3561 | S21: 10.9 | T21: 152 | U21: 1657 | V21: 5218 | W21: 2.297 | X21: 1621 | Y21: 0 | Z21: 0 | AA21: 1621 | AB21: 3597 | AD21: 2022 | AE21: 3561 | AF21: 1657 | AG21: 5218 | AI21: 0 | AJ21: 0 | AK21: 0 | AM21: 5218 | AP21: 2022 | AQ21: 3561 | AR21: 1657 | AS21: 0.03 | AT21: 2987 | AU21: 0.42 | AV21: 456 | AY21: 8661 | BA21: 0 | BB21: 0 | BC21: 0 | BD21: 8661 | BG21: 2022 | BH21: 0 | BI21: 1086 | BJ21: 7.864 | BK21: 8540 | BL21: 0.187 | BM21: 18616 | BO21: 27156 | BQ21: 0 | BS21: 27156 | BV21: 2022 | BW21: 3561 | BX21: 1657 | BY21: 2987 | BZ21: 8205 | CB21: 0 | CC21: 0 | CD21: 0 | CF21: 8205 | DA21: =$J14 -> 1
J22: 9 | L22: 2023 | M22: 1086 | N22: 3.393 | O22: 3685 | P22: 0 | Q22: 0 | R22: 3685 | S22: 10.9 | T22: 154 | U22: 1679 | V22: 5364 | W22: 2.377 | X22: 1678 | Y22: 0 | Z22: 0 | AA22: 1678 | AB22: 3686 | AD22: 2023 | AE22: 3685 | AF22: 1679 | AG22: 5364 | AI22: 0 | AJ22: 0 | AK22: 0 | AM22: 5364 | AP22: 2023 | AQ22: 3685 | AR22: 1679 | AS22: 0.031 | AT22: 3086 | AU22: 0.429 | AV22: 466 | AY22: 8916 | BA22: 0 | BB22: 0 | BC22: 0 | BD22: 8916 | BG22: 2023 | BH22: 0 | BI22: 1086 | BJ22: 8.139 | BK22: 8839 | BL22: 0.194 | BM22: 19313 | BO22: 28152 | BQ22: 0 | BS22: 28152 | BV22: 2023 | BW22: 3685 | BX22: 1679 | BY22: 3086 | BZ22: 8450 | CB22: 0 | CC22: 0 | CD22: 0 | CF22: 8450 | DA22: =$J15 -> 2
A23: 5) Peak Reduction Factor = | C23: =+'Gas Input Table Summary'!$D$16 -> 0.01 | E23: 20) Project Life (Years) = | F23: =ROUND('Database Inputs'!D10,0) -> 20 | J23: 10 | L23: 2024 | M23: 1086 | N23: 3.512 | O23: 3814 | P23: 0 | Q23: 0 | R23: 3814 | S23: 10.9 | T23: 156 | U23: 1700 | V23: 5514 | W23: 2.46 | X23: 1737 | Y23: 0 | Z23: 0 | AA23: 1737 | AB23: 3777 | AD23: 2024 | AE23: 3814 | AF23: 1700 | AG23: 5514 | AI23: 0 | AJ23: 0 | AK23: 0 | AM23: 5514 | AP23: 2024 | AQ23: 3814 | AR23: 1700 | AS23: 0.032 | AT23: 3186 | AU23: 0.439 | AV23: 477 | AY23: 9177 | BA23: 0 | BB23: 0 | BC23: 0 | BD23: 9177 | BG23: 2024 | BH23: 0 | BI23: 1086 | BJ23: 8.424 | BK23: 9148 | BL23: 0.2 | BM23: 19910 | BO23: 29058 | BQ23: 0 | BS23: 29058 | BV23: 2024 | BW23: 3814 | BX23: 1700 | BY23: 3186 | BZ23: 8700 | CB23: 0 | CC23: 0 | CD23: 0 | CF23: 8700 | DA23: =$J16 -> 3
J24: 11 | L24: 2025 | M24: 1086 | N24: 3.635 | O24: 3948 | P24: 0 | Q24: 0 | R24: 3948 | S24: 10.9 | T24: 157 | U24: 1711 | V24: 5659 | W24: 2.546 | X24: 1797 | Y24: 0 | Z24: 0 | AA24: 1797 | AB24: 3862 | AD24: 2025 | AE24: 3948 | AF24: 1711 | AG24: 5659 | AI24: 0 | AJ24: 0 | AK24: 0 | AM24: 5659 | AP24: 2025 | AQ24: 3948 | AR24: 1711 | AS24: 0.034 | AT24: 3385 | AU24: 0.449 | AV24: 488 | AY24: 9532 | BA24: 0 | BB24: 0 | BC24: 0 | BD24: 9532 | BG24: 2025 | BH24: 0 | BI24: 1086 | BJ24: 8.719 | BK24: 9469 | BL24: 0.207 | BM24: 20607 | BO24: 30076 | BQ24: 0 | BS24: 30076 | BV24: 2025 | BW24: 3948 | BX24: 1711 | BY24: 3385 | BZ24: 9044 | CB24: 0 | CC24: 0 | CD24: 0 | CF24: 9044 | DA24: =$J17 -> 4
A25: 6) Variable O&M ($/Dk) = | C25: =+'Gas Input Table Summary'!$D$17 -> 0 | E25: 21) Avg. Dk/Part. Saved = | F25: =+ROUND(F32/F30,3) -> 7.985 | J25: 12 | L25: 2026 | M25: 1086 | N25: 3.762 | O25: 4086 | P25: 0 | Q25: 0 | R25: 4086 | S25: 10.9 | T25: 159 | U25: 1733 | V25: 5819 | W25: 2.635 | X25: 1860 | Y25: 0 | Z25: 0 | AA25: 1860 | AB25: 3959 | AD25: 2026 | AE25: 4086 | AF25: 1733 | AG25: 5819 | AI25: 0 | AJ25: 0 | AK25: 0 | AM25: 5819 | AP25: 2026 | AQ25: 4086 | AR25: 1733 | AS25: 0.035 | AT25: 3484 | AU25: 0.46 | AV25: 500 | AY25: 9803 | BA25: 0 | BB25: 0 | BC25: 0 | BD25: 9803 | BG25: 2026 | BH25: 0 | BI25: 1086 | BJ25: 9.024 | BK25: 9800 | BL25: 0.215 | BM25: 21404 | BO25: 31204 | BQ25: 0 | BS25: 31204 | BV25: 2026 | BW25: 4086 | BX25: 1733 | BY25: 3484 | BZ25: 9303 | CB25: 0 | CC25: 0 | CD25: 0 | CF25: 9303
A26: Escalation Rate = | C26: =+'Gas Input Table Summary'!$D$18 -> 0 | J26: 13 | L26: 2027 | M26: 1086 | N26: 3.894 | O26: 4229 | P26: 0 | Q26: 0 | R26: 4229 | S26: 10.9 | T26: 160 | U26: 1744 | V26: 5973 | W26: 2.728 | X26: 1926 | Y26: 0 | Z26: 0 | AA26: 1926 | AB26: 4047 | AD26: 2027 | AE26: 4229 | AF26: 1744 | AG26: 5973 | AI26: 0 | AJ26: 0 | AK26: 0 | AM26: 5973 | AP26: 2027 | AQ26: 4229 | AR26: 1744 | AS26: 0.036 | AT26: 3584 | AU26: 0.47 | AV26: 510 | AY26: 10067 | BA26: 0 | BB26: 0 | BC26: 0 | BD26: 10067 | BG26: 2027 | BH26: 0 | BI26: 1086 | BJ26: 9.34 | BK26: 10143 | BL26: 0.222 | BM26: 22101 | BO26: 32244 | BQ26: 0 | BS26: 32244 | BV26: 2027 | BW26: 4229 | BX26: 1744 | BY26: 3584 | BZ26: 9557 | CB26: 0 | CC26: 0 | CD26: 0 | CF26: 9557
E27: 22) Avg Non-Gas Fuel Units/Part. Saved = | F27: =+'Database Inputs'!H10 -> 732 | J27: 14 | L27: 2028 | M27: 1086 | N27: 4.03 | O27: 4377 | P27: 0 | Q27: 0 | R27: 4377 | S27: 10.9 | T27: 162 | U27: 1766 | V27: 6143 | W27: 2.823 | X27: 1993 | Y27: 0 | Z27: 0 | AA27: 1993 | AB27: 4150 | AD27: 2028 | AE27: 4377 | AF27: 1766 | AG27: 6143 | AI27: 0 | AJ27: 0 | AK27: 0 | AM27: 6143 | AP27: 2028 | AQ27: 4377 | AR27: 1766 | AS27: 0.037 | AT27: 3683 | AU27: 0.481 | AV27: 522 | AY27: 10348 | BA27: 0 | BB27: 0 | BC27: 0 | BD27: 10348 | BG27: 2028 | BH27: 0 | BI27: 1086 | BJ27: 9.667 | BK27: 10498 | BL27: 0.23 | BM27: 22897 | BO27: 33395 | BQ27: 0 | BS27: 33395 | BV27: 2028 | BW27: 4377 | BX27: 1766 | BY27: 3683 | BZ27: 9826 | CB27: 0 | CC27: 0 | CD27: 0 | CF27: 9826
A28: 7) Non-Gas Fuel Cost ($/Fuel Unit) = | C28: =+'Gas Input Table Summary'!$D$19 -> 0.0218 | E28: 22a) Avg Additional Non-Gas Fuel Units/ Part. Used = | F28: 0 | J28: 15 | L28: 2029 | M28: 1086 | N28: 4.171 | O28: 4530 | P28: 0 | Q28: 0 | R28: 4530 | S28: 10.9 | T28: 163 | U28: 1777 | V28: 6307 | W28: 2.922 | X28: 2063 | Y28: 0 | Z28: 0 | AA28: 2063 | AB28: 4244 | AD28: 2029 | AE28: 4530 | AF28: 1777 | AG28: 6307 | AI28: 0 | AJ28: 0 | AK28: 0 | AM28: 6307 | AP28: 2029 | AQ28: 4530 | AR28: 1777 | AS28: 0.038 | AT28: 3783 | AU28: 0.492 | AV28: 534 | AY28: 10624 | BA28: 0 | BB28: 0 | BC28: 0 | BD28: 10624 | BG28: 2029 | BH28: 0 | BI28: 1086 | BJ28: 10.005 | BK28: 10865 | BL28: 0.238 | BM28: 23693 | BO28: 34558 | BQ28: 0 | BS28: 34558 | BV28: 2029 | BW28: 4530 | BX28: 1777 | BY28: 3783 | BZ28: 10090 | CB28: 0 | CC28: 0 | CD28: 0 | CF28: 10090
A29: Escalation Rate = | C29: =+'Gas Input Table Summary'!$D$20 -> 0.035 | J29: 16 | L29: 2030 | M29: 1086 | N29: 4.317 | O29: 4688 | P29: 0 | Q29: 0 | R29: 4688 | S29: 10.9 | T29: 165 | U29: 1799 | V29: 6487 | W29: 3.024 | X29: 2135 | Y29: 0 | Z29: 0 | AA29: 2135 | AB29: 4352 | AD29: 2030 | AE29: 4688 | AF29: 1799 | AG29: 6487 | AI29: 0 | AJ29: 0 | AK29: 0 | AM29: 6487 | AP29: 2030 | AQ29: 4688 | AR29: 1799 | AS29: 0.04 | AT29: 3982 | AU29: 0.504 | AV29: 547 | AY29: 11016 | BA29: 0 | BB29: 0 | BC29: 0 | BD29: 11016 | BG29: 2030 | BH29: 0 | BI29: 1086 | BJ29: 10.355 | BK29: 11246 | BL29: 0.246 | BM29: 24490 | BO29: 35736 | BQ29: 0 | BS29: 35736 | BV29: 2030 | BW29: 4688 | BX29: 1799 | BY29: 3982 | BZ29: 10469 | CB29: 0 | CC29: 0 | CD29: 0 | CF29: 10469
E30: 23) Number of Participants = | F30: =+'Total Program Inputs'!C11 -> 136 | J30: 17 | L30: 2031 | M30: 1086 | N30: 4.468 | O30: 4852 | P30: 0 | Q30: 0 | R30: 4852 | S30: 10.9 | T30: 167 | U30: 1820 | V30: 6672 | W30: 3.13 | X30: 2209 | Y30: 0 | Z30: 0 | AA30: 2209 | AB30: 4463 | AD30: 2031 | AE30: 4852 | AF30: 1820 | AG30: 6672 | AI30: 0 | AJ30: 0 | AK30: 0 | AM30: 6672 | AP30: 2031 | AQ30: 4852 | AR30: 1820 | AS30: 0.041 | AT30: 4082 | AU30: 0.515 | AV30: 559 | AY30: 11313 | BA30: 0 | BB30: 0 | BC30: 0 | BD30: 11313 | BG30: 2031 | BH30: 0 | BI30: 1086 | BJ30: 10.718 | BK30: 11640 | BL30: 0.255 | BM30: 25386 | BO30: 37026 | BQ30: 0 | BS30: 37026 | BV30: 2031 | BW30: 4852 | BX30: 1820 | BY30: 4082 | BZ30: 10754 | CB30: 0 | CC30: 0 | CD30: 0 | CF30: 10754 | DA30: =$J18 -> 5
A31: 8) Non-Gas Fuel Loss Factor | C31: =+'Gas Input Table Summary'!$D$21 -> 0.051 | J31: 18 | L31: 2032 | M31: 1086 | N31: 4.625 | O31: 5023 | P31: 0 | Q31: 0 | R31: 5023 | S31: 10.9 | T31: 168 | U31: 1831 | V31: 6854 | W31: 3.239 | X31: 2286 | Y31: 0 | Z31: 0 | AA31: 2286 | AB31: 4568 | AD31: 2032 | AE31: 5023 | AF31: 1831 | AG31: 6854 | AI31: 0 | AJ31: 0 | AK31: 0 | AM31: 6854 | AP31: 2032 | AQ31: 5023 | AR31: 1831 | AS31: 0.043 | AT31: 4281 | AU31: 0.527 | AV31: 572 | AY31: 11707 | BA31: 0 | BB31: 0 | BC31: 0 | BD31: 11707 | BG31: 2032 | BH31: 0 | BI31: 1086 | BJ31: 11.093 | BK31: 12047 | BL31: 0.264 | BM31: 26282 | BO31: 38329 | BQ31: 0 | BS31: 38329 | BV31: 2032 | BW31: 5023 | BX31: 1831 | BY31: 4281 | BZ31: 11135 | CB31: 0 | CC31: 0 | CD31: 0 | CF31: 11135 | DA31: =$J19 -> 6
E32: 24) Total Annual Dk Saved = | F32: =+'Total Program Inputs'!E11 -> 1086 | J32: 19 | L32: 2033 | M32: 1086 | N32: 4.787 | O32: 5199 | P32: 0 | Q32: 0 | R32: 5199 | S32: 10.9 | T32: 170 | U32: 1853 | V32: 7052 | W32: 3.353 | X32: 2367 | Y32: 0 | Z32: 0 | AA32: 2367 | AB32: 4685 | AD32: 2033 | AE32: 5199 | AF32: 1853 | AG32: 7052 | AI32: 0 | AJ32: 0 | AK32: 0 | AM32: 7052 | AP32: 2033 | AQ32: 5199 | AR32: 1853 | AS32: 0.044 | AT32: 4380 | AU32: 0.539 | AV32: 585 | AY32: 12017 | BA32: 0 | BB32: 0 | BC32: 0 | BD32: 12017 | BG32: 2033 | BH32: 0 | BI32: 1086 | BJ32: 11.481 | BK32: 12468 | BL32: 0.273 | BM32: 27178 | BO32: 39646 | BQ32: 0 | BS32: 39646 | BV32: 2033 | BW32: 5199 | BX32: 1853 | BY32: 4380 | BZ32: 11432 | CB32: 0 | CC32: 0 | CD32: 0 | CF32: 11432 | DA32: =$J20 -> 7
A33: 9) Gas Environmental Damage Factor = | C33: =+'Gas Input Table Summary'!$D$22 -> 0.35 | J33: 20 | L33: 2034 | M33: 1086 | N33: 4.954 | O33: 5380 | P33: 0 | Q33: 0 | R33: 5380 | S33: 10.9 | T33: 172 | U33: 1875 | V33: 7255 | W33: 3.47 | X33: 2449 | Y33: 0 | Z33: 0 | AA33: 2449 | AB33: 4806 | AD33: 2034 | AE33: 5380 | AF33: 1875 | AG33: 7255 | AI33: 0 | AJ33: 0 | AK33: 0 | AM33: 7255 | AP33: 2034 | AQ33: 5380 | AR33: 1875 | AS33: 0.046 | AT33: 4579 | AU33: 0.552 | AV33: 599 | AY33: 12433 | BA33: 0 | BB33: 0 | BC33: 0 | BD33: 12433 | BG33: 2034 | BH33: 0 | BI33: 1086 | BJ33: 11.883 | BK33: 12905 | BL33: 0.283 | BM33: 28173 | BO33: 41078 | BQ33: 0 | BS33: 41078 | BV33: 2034 | BW33: 5380 | BX33: 1875 | BY33: 4579 | BZ33: 11834 | CB33: 0 | CC33: 0 | CD33: 0 | CF33: 11834
A34: Escalation Rate = | C34: =+'Gas Input Table Summary'!$D$23 -> 0.023 | E34: 25) Incentive/Participant = | F34: =+ROUND(F12/F30,0) -> 300 | J34: 21 | L34: 2035 | M34: 0 | N34: 5.128 | O34: 0 | P34: 0 | Q34: 0 | R34: 0 | S34: 0 | T34: 174 | U34: 0 | V34: 0 | W34: 3.592 | X34: 0 | Y34: 0 | Z34: 0 | AA34: 0 | AB34: 0 | AD34: 2035 | AE34: 0 | AF34: 0 | AG34: 0 | AI34: 0 | AJ34: 0 | AK34: 0 | AM34: 0 | AP34: 2035 | AQ34: 0 | AR34: 0 | AS34: 0.047 | AT34: 0 | AU34: 0.564 | AV34: 0 | AY34: 0 | BA34: 0 | BB34: 0 | BC34: 0 | BD34: 0 | BG34: 2035 | BH34: 0 | BI34: 0 | BJ34: 12.299 | BK34: 0 | BL34: 0.293 | BM34: 0 | BO34: 0 | BQ34: 0 | BS34: 0 | BV34: 2035 | BW34: 0 | BX34: 0 | BY34: 0 | BZ34: 0 | CB34: 0 | CC34: 0 | CD34: 0 | CF34: 0
DA35: =$J21 -> 8
A36: 10) Non Gas Fuel Environmental Damage Factor = | C36: =+'Gas Input Table Summary'!$D$24 -> 0 | E36: 26) Distribution Delivery Charge | H36: =+'Gas Input Table Summary'!$D$58 -> 1.744 | K36: Total = | M36: =SUM(M14:M34) -> 21720 | V36: =SUM(V14:V34) -> 113272 | AA36: =SUM(AA14:AA34) -> 79864 | AB36: =SUM(AB14:AB34) -> 33408 | AC36: Total = | AG36: =SUM(AG14:AG34) -> 113272 | AK36: =SUM(AK14:AK34) -> 43831 | AM36: =SUM(AM14:AM34) -> 69441 | AO36: Total = | AY36: =SUM(AY14:AY34) -> 189801 | BC36: =SUM(BC14:BC34) -> 44103 | BD36: =SUM(BD14:BD34) -> 145698 | BF36: Total = | BI36: =SUM(BI14:BI34) -> 21720 | BO36: =SUM(BO14:BO34) -> 644663 | BQ36: =SUM(BQ14:BQ34) -> 41072 | BS36: =SUM(BS14:BS34) -> 603591 | BY36: Total = | BZ36: =SUM(BZ14:BZ34) -> 180071 | CD36: =SUM(CD14:CD34) -> 44103 | CF36: =SUM(CF14:CF34) -> 135968
A37: Escalation Rate = | C37: =+'Gas Input Table Summary'!$D$25 -> 0 | T37: NPV = | V37: =ROUND(V14+NPV($C$41,V15:V34),0) -> 57822 | AA37: =ROUND(AA14+NPV($C$41,AA15:AA34),0) -> 61895 | AB37: =ROUND(AB14+NPV($C$41,AB15:AB34),0) -> -4073 | AF37: NPV = | AG37: =ROUND(AG14+NPV($C$41,AG15:AG34),0) -> 57822 | AK37: =ROUND(AK14+NPV($C$41,AK15:AK34),0) -> 43831 | AM37: =+AG37-AK37 -> 13991 | AV37: NPV = | AY37: =ROUND(AY14+NPV($C$43,AY15:AY34),0) -> 134262 | BC37: =ROUND(BC14+NPV($C$43,BC15:BC34),0) -> 44103 | BD37: =AY37-BC37 -> 90159 | BM37: NPV = | BO37: =ROUND(BO14+NPV($C$39,BO15:BO34),0) -> 295307 | BQ37: =ROUND(BQ14+NPV($C$39,BQ15:BQ34),0) -> 41072 | BS37: =ROUND(BS14+NPV($C$39,BS15:BS34),0) -> 254235 | BY37: NPV = | BZ37: =ROUND(BZ14+NPV($C$41,BZ15:BZ34),0) -> 91288 | CD37: =ROUND(CD14+NPV($C$41,CD15:CD34),0) -> 44103 | CF37: =ROUND(CF14+NPV($C$41,CF15:CF34),0) -> 47185 | DA37: =$J22 -> 9
E38: 27) Effective Income Tax Rate = | H38: =+'Gas Input Table Summary'!$D$59 -> 0.35
A39: 11) Participant Discount Rate = | C39: =+'Gas Input Table Summary'!$D$26 -> 0.1 | E39: (Federal & State Taxes) | K39: Total NPV = | N39: =AB37 -> -4073 | AC39: Total NPV = | AF39: =AM37 -> 13991 | AO39: Total NPV = | AR39: =BD37 -> 90159 | BF39: Total NPV = | BI39: =BS37 -> 254235 | BU39: Total NPV = | BX39: =CF37 -> 47185
K40: Benefit/Cost Ratio = | N40: =ROUND(V37/AA37,2) -> 0.93 | AC40: Benefit/Cost Ratio = | AF40: =ROUND(AG37/AK37,2) -> 1.32 | AO40: Benefit/Cost Ratio = | AR40: =ROUND(AY37/BC37,2) -> 3.04 | BF40: Benefit/Cost Ratio = | BI40: =ROUND(BO37/BQ37,20) -> 7.189983444 | BU40: Benefit/Cost Ratio = | BX40: =ROUND(BZ37/CD37,2) -> 2.07 | DA40: =$J23 -> 10
A41: 12) Utility Discount Rate = | C41: =+'Gas Input Table Summary'!$D$27 -> 0.076 | E41: Test Results | F41: NPV | G41: B/C | DA41: =$J24 -> 11
E42: Ratepayer Impact Measure Test | F42: =N39 -> -4073 | G42: =N40 -> 0.93 | DA42: =$J25 -> 12
A43: 13) Societal Discount Rate = | C43: =+'Gas Input Table Summary'!$D$28 -> 0.0356 | E43: Utility Cost Test | F43: =AF39 -> 13991 | G43: =AF40 -> 1.32 | J43: Worksheet Calculations | AC43: Worksheet Calculations | AO43: Worksheet Calculations | BF43: Worksheet Calculations | BU43: Worksheet Calculations | DA43: =$J26 -> 13
E44: Societal Test | F44: =AR39 -> 90159 | G44: =AR40 -> 3.04 | J44: (A) | K44: = Average Dk/Participant Saved (21) x Number of Participants (23) for Project Life (20) | T44: (I) | U44: = (G) x (H) | AC44: (A) | AD44: = Table 1 (F) | AO44: (A) | AP44: = Table 1 (F) | AV44: (H) | AY44: = Table 2 (F) | BF44: (A) | BG44: = Table 1 (N) | BU44: (A) | BV44: = Table 1 (F)
A45: 14) General Input Data Year = | C45: =+'Total Program'!C45 -> 2014 | E45: Participant Test | F45: =BI39 -> 254235 | G45: =BI40 -> 7.189983444 | J45: (B) | K45: = Commodity Cost (3) escalated | T45: (J) | U45: = (F) + (I) | AC45: (B) | AD45: = Table 1 (I) | AO45: (G) | AP45: = Table 1 (I) | AV45: (I) | AY45: = Direct Part. Costs (17) x No. of Part. (23) - Table 1 (N) | BF45: (B) | BG45: = Table 1 (A) | BU45: (B) | BV45: = Table 1 (I)
E46: Total Resource Cost Test | F46: =BX39 -> 47185 | G46: =BX40 -> 2.07 | J46: (C) | K46: = (A) x (B) | T46: (K) | U46: = Distribution Delivery Charge (26) escalated. | AC46: (C) | AD46: = Table 1 (J) | AO46: (C) | AP46: = Non-Gas Fuel Cost (7), adjusted for losses (8), escalated.. | AV46: (J) | AY46: = (H) + (I) | BF46: (C) | BG46: = Retail Rate (1) escalated. | BU46: (C) | BV46: = Table 3 (D)
A47: 15) Project Analysis Year 1 = | C47: =+'Total Program'!C47 -> 2015 | J47: (D) | K47: = Variable O&M Cost (6), escalated | T47: (L) | U47: = (A) x (K) x (1-Inverse of Tax Rate (27) | AC47: (D) | AD47: = Table 1 (M) | AO47: (D) | AP47: = (C) x [Avg. Non-Gas Fuel Units/Part.Saved (22) x No. of Part. (23) | AV47: (K) | AY47: = (G) - (J) | BF47: (D) | BG47: =(B) x (C) | BU47: (D) | BV47: = (A) + (B) + (C)
J48: (E) | K48: = (A) x (D) | T48: (M) | U48: = Admin & Operating Costs (16a) | AC48: (E) | AD48: = Table 1 (N) | AO48: (E) | AP48: = Gas Environmental Damage Factor (9), escalated | BF48: (E) | BG48: = Non-Gas Fuel Retail Rate (2), escalated. | BU48: (E) | BV48: = Table 3 (H)
J49: (F) | K49: = (C) + (E) | T49: (N) | U49: = Incentive Costs (16b) | AC49: (F) | AD49: = (D) + (E) | AO49: (F) | AP49: = Table 1 (A) x (E) | BF49: (F) | BG49: = (E) x [Avg. Non-Gas Fuel Units/Part.Saved (22) x No. of Part. (23) | BU49: (F) | BV49: = Table 3 (I) | DA49: =$J27 -> 14
J50: (G) | K50: = (A) x Peak Reduction Factor (5) | T50: (O) | U50: = (L) + (M) + (N) | AC50: (G) | AD50: = (C) - (F) | AO50: (G) | AP50: = (A) + (B) + (D) + (F) | BF50: (G) | BG50: = (A) + (D) + (F) | BU50: (G) | BV50: = (E) + (F) | DA50: =$J28 -> 15
J51: (H) | K51: = Demand Cost (4) escalated. | T51: (P) | U51: = (J) - (O) | BF51: (H) | BG51: = Direct Participant Costs (17) x Number of Participants (23) | BU51: (H) | BV51: = (D) - (G) | DA51: =$J29 -> 16
BF52: (I) | BG52: = (G) - (H)

Sheet Res .95+% Res Furnace - Replace
A1: NATURAL GAS CONSERVATION PROGRAMS/DEMAND-SIDE MANAGEMENT | K1: Table 1 | AD1: Table 2 | AP1: Table 3 | BG1: Table 4 | BV1: Table 5
A2: BEN/COST ANALYSIS FOR GAS CONSERVATION | K2: Ratepayer Impact Measure Test | AD2: Utility Cost Test | AP2: Societal Test | BG2: Participant Test | BV2: Total Resource Cost Test
A4: Company: | B4: Montana-Dakota Utilities Co. | K4: Company: | M4: =B4 -> Montana-Dakota Utilities Co. | AD4: Company: | AF4: =B4 -> Montana-Dakota Utilities Co. | AP4: Company: | AR4: =AF4 -> Montana-Dakota Utilities Co. | BH4: Company: | BI4: =AR4 -> Montana-Dakota Utilities Co. | BW4: Company: | BX4: =BI4 -> Montana-Dakota Utilities Co.
A5: Project: | B5: Residential 95+% AFUE Furnace - Replacement | K5: Project: | M5: =$B$5 -> Residential 95+% AFUE Furnace - Replacement | AD5: Project: | AF5: =$B$5 -> Residential 95+% AFUE Furnace - Replacement | AP5: Project: | AR5: =$B$5 -> Residential 95+% AFUE Furnace - Replacement | BH5: Project: | BI5: =$B$5 -> Residential 95+% AFUE Furnace - Replacement | BW5: Project: | BX5: =$B$5 -> Residential 95+% AFUE Furnace - Replacement
A6: Program Years: | B6: Actual 2015
N7: Benefits | X7: Costs | AF7: Benefits | AJ7: Costs | AR7: Benefits | BB7: Costs | BI7: Benefits | BR7: Costs | BX7: Benefits | CC7: Costs
A8: Input Data | F8: 2015 | AB8: Annual | AN8: Annual | AT8: Non-Gas | BE8: Annual | BT8: Annual | CG8: Annual
M9: Total | N9: Gas | O9: Gas | P9: Variable | Q9: Variable | R9: Total | S9: Peak Dk | T9: Demand | U9: Total | W9: Distribution | Y9: Program | AA9: Total | AB9: Benefits | AF9: Total | AG9: Total | AH9: Annual | AJ9: Program | AL9: Utility | AN9: Benefits | AR9: Total | AS9: Total | AT9: Energy | AU9: Non-Gas | AV9: Environmental | AW9: Environmental | AZ9: Annual | BB9: Utility | BC9: Participants' | BD9: Annual | BE9: Benefits | BJ9: Total | BL9: Gas | BM9: Non-Gas | BN9: Non-Gas | BP9: Total | BR9: Direct | BT9: Benefits | BX9: Total | BY9: Total | BZ9: Non-Gas | CA9: Total | CC9: Utility | CD9: Participants' | CG9: Benefits
A10: 1) Retail Rate ($/Dk) = | C10: =+'Gas Input Table Summary'!$D$7 -> 5.972 | E10: 16) Utility Project Costs | M10: Energy | N10: Commodity | O10: Commodity | P10: O & M | Q10: O & M | R10: Energy | S10: Demand | T10: Savings | U10: Demand | V10: Total | W10: Delivery | X10: Lost | Y10: Admin | Z10: Incentive | AA10: Program | AB10: Less | AF10: Energy | AG10: Demand | AH10: Total | AJ10: Admin | AK10: Incentive | AL10: Program | AN10: Less | AR10: Energy | AS10: Demand | AT10: Savings | AU10: Energy | AV10: Damage | AW10: Damage | AZ10: Total | BB10: Program | BC10: Costs Net | BD10: Total | BE10: Less | BI10: Incentives | BJ10: Energy | BK10: Retail | BL10: Bill | BM10: Fuel | BN10: Energy | BP10: Annual | BR10: Participant | BT10: Less | BX10: Energy | BY10: Demand | BZ10: Energy | CA10: Annual | CC10: Program | CD10: Costs Net | CE10: Total | CG10: Less
A11: Escalation Rate = | C11: =+'Gas Input Table Summary'!$D$8 -> 0.035 | E11: 16a) Administrative & Operating Costs = | F11: =+'Total Program Inputs'!K12 -> 4503 | J11: t | M11: Reduction | N11: Cost/Dk | O11: Savings | P11: Cost/Dk | Q11: Savings | R11: Savings | S11: Reduction | T11: Per Unit | U11: Savings | V11: Savings | W11: Charge | X11: Margin | Y11: Costs | Z11: Costs | AA11: Costs | AB11: Costs | AF11: Savings | AG11: Savings | AH11: Savings | AJ11: Costs | AK11: Costs | AL11: Costs | AN11: Costs | AR11: Savings | AS11: Savings | AT11: ($/Part.) | AU11: Savings | AV11: Savings/Dk | AW11: Savings | AZ11: Savings | BB11: Costs | BC11: of Rebate | BD11: Costs | BE11: Costs | BI11: Received | BJ11: Reduction | BK11: Rate | BL11: Savings | BM11: Retail Rate | BN11: Savings | BP11: Benefits | BR11: Costs | BT11: Costs | BX11: Savings | BY11: Savings | BZ11: Savings | CA11: Benefits | CC11: Costs | CD11: of Rebate | CE11: Costs | CG11: Costs
E12: 16b) Incentive Costs = | F12: =+'Total Program Inputs'!G12 -> 60600 | L12: Year | M12: (A) | N12: (B) | O12: (C) | P12: (D) | Q12: (E) | R12: (F) | S12: (G) | T12: (H) | U12: (I) | V12: (J) | W12: (K) | X12: (L) | Y12: (M) | Z12: (N) | AA12: (O) | AB12: (P) | AE12: Year | AF12: (A) | AG12: (B) | AH12: (C) | AJ12: (D) | AK12: (E) | AL12: (F) | AN12: (G) | AQ12: Year | AR12: (A) | AS12: (B) | AT12: (C) | AU12: (D) | AV12: (E) | AW12: (F) | AZ12: (G) | BB12: (H) | BC12: (I) | BD12: (J) | BE12: (K) | BH12: Year | BI12: (A) | BJ12: (B) | BK12: (C) | BL12: (D) | BM12: (E) | BN12: (F) | BP12: (G) | BR12: (H) | BT12: (I) | BW12: Year | BX12: (A) | BY12: (B) | BZ12: (C) | CA12: (D) | CC12: (E) | CD12: (F) | CE12: (G) | CG12: (H)
A13: 2) Non-Gas Fuel Retail Rate ($/Fuel Unit) = | C13: =+'Gas Input Table Summary'!$D$9 -> 0.14206 | E13: 16c) Total Utility Project Costs = | F13: =SUM(F11:F12) -> 65103
A14: Escalation Rate = | C14: =+'Gas Input Table Summary'!$D$10 -> 0.035 | J14: =$C$47-$C$45 -> 1 | L14: =$C$47 -> 2015 | M14: =ROUND(IF($C$47+$F$23>L14,F25*F30,0),0) -> 2559 | N14: =ROUND($C$17*(1),3) -> 2.577 | O14: =ROUND(M14*N14,0) -> 6595 | P14: =ROUND($C$25*(1+$C$26)^J14,3) -> 0 | Q14: =ROUND(M14*P14,0) -> 0 | R14: =O14+Q14 -> 6595 | S14: =ROUND(M14*$C$23,1) -> 25.6 | T14: =ROUND($C$20*(1),0) -> 142 | U14: =ROUND(S14*T14,0) -> 3635 | V14: =ROUND(+U14+R14,0) -> 10230 | W14: =ROUND($H$36*(1+$C$11)^J14,3) -> 1.805 | X14: =ROUND((1-$H$38)*(W14*M14),0) -> 3002 | Y14: =ROUND($F$11,0) -> 4503 | Z14: =ROUND($F$12,0) -> 60600 | AA14: =SUM(X14:Z14) -> 68105 | AB14: =V14-AA14 -> -57875 | AE14: =$C$47 -> 2015 | AF14: =+R14 -> 6595 | AG14: =+U14 -> 3635 | AH14: =+AG14+AF14 -> 10230 | AJ14: =ROUND(Y14,0) -> 4503 | AK14: =ROUND(Z14,0) -> 60600 | AL14: =SUM(AJ14:AK14) -> 65103 | AN14: =+AH14-AL14 -> -54873 | AQ14: =$C$47 -> 2015 | AR14: =AF14 -> 6595 | AS14: =+AG14 -> 3635 | AT14: =ROUND(($C$28/(1-$C$31))*(1+$C$29)^J14,3) -> 0.024 | AU14: =ROUND(IF($C$47+$F$23>$AQ14,$F$30*$F$27,0)*AT14,0) -> 3549 | AV14: =ROUND($C$33*(1+$C$34)^J14,3) -> 0.358 | AW14: =ROUND(AV14*M14,0) -> 916 | AZ14: =ROUND(AR14+AS14+AU14+AW14+AY14,0) -> 14695 | BB14: =ROUND($F$13,0) -> 65103 | BC14: =ROUND((F15*F30)-Z14,0) -> 70700 | BD14: =BB14+BC14 -> 135803 | BE14: =AZ14-BD14 -> -121108 | BH14: =$C$47 -> 2015 | BI14: =+F12 -> 60600 | BJ14: =+M14 -> 2559 | BK14: =ROUND($C$10*(1+$C$11)^J14,3) -> 6.181 | BL14: =ROUND(BJ14*BK14,0) -> 15817 | BM14: =ROUND($C$13*(1+$C$14)^J14,3) -> 0.147 | BN14: =ROUND(IF($C$47+$F$23>$BH14,$F$30*$F$27,0)*BM14,0) -> 21736 | BP14: =BI14+BL14+BN14+BO14 -> 98153 | BR14: =ROUND(F15*F30,0) -> 131300 | BT14: =BP14-BR14 -> -33147 | BW14: =$C$47 -> 2015 | BX14: =$R14 -> 6595 | BY14: =U14 -> 3635 | BZ14: =AU14 -> 3549 | CA14: =SUM(BX14:BZ14) -> 13779 | CC14: =BB14 -> 65103 | CD14: =BC14 -> 70700 | CE14: =SUM(CC14:CD14) -> 135803 | CG14: =CA14-CE14 -> -122024
A15: Non-Gas Fuel Units (ie. kWh,Gallons, etc) = | C15: =+'Gas Input Table Summary'!$D$11 -> Kwh | E15: 17) Direct Participant Costs ($/Part.) = | F15: =ROUND('Database Inputs'!K11,0) -> 650 | J15: =J14+1 -> 2 | L15: =L14+1 -> 2016 | M15: =ROUND(IF($C$47+$F$23>L15,$F$25*$F$30,0)+IF($C$48+$G$23>L15,$G$25*$G$30,0),0) -> 2559 | N15: =ROUND($C$17*(1+$C$18)^J14,3) -> 2.667 | O15: 6825 | P15: 0 | Q15: =ROUND(M15*P15,0) -> 0 | R15: 6825 | S15: 25.6 | T15: =ROUND($C$20*(1+$C$21)^J14,0) -> 144 | U15: =ROUND(S15*T15,0) -> 3686 | V15: =ROUND(+U15+R15,0) -> 10511 | W15: 1.868 | X15: 3107 | Y15: =ROUND($G$11,0) -> 0 | Z15: =ROUND($G$12,0) -> 0 | AA15: 3107 | AB15: 7404 | AE15: =AE14+1 -> 2016 | AF15: 6825 | AG15: 3686 | AH15: =+AG15+AF15 -> 10511 | AJ15: =ROUND(Y15,0) -> 0 | AK15: 0 | AL15: 0 | AN15: 10511 | AQ15: =AQ14+1 -> 2016 | AR15: 6825 | AS15: 3686 | AT15: 0.025 | AU15: =ROUND((IF($C$47+$F$23>$AQ15,$F$27*$F$30,0)+IF($C$48+$G$23>AQ15,$G$27*$G$30,0))*AT15,0) -> 3697 | AV15: 0.366 | AW15: 937 | AZ15: =ROUND(AR15+AS15+AU15+AW15+AY15,0) -> 15145 | BB15: =ROUND($G$13,0) -> 0 | BC15: =ROUND(($G$15*$G$30)-$Z$15,0) -> 0 | BD15: =BB15+BC15 -> 0 | BE15: 15145 | BH15: =BH14+1 -> 2016 | BI15: =+G12 -> 0 | BJ15: 2559 | BK15: 6.397 | BL15: =ROUND(BJ15*BK15,0) -> 16370 | BM15: 0.152 | BN15: =ROUND((IF($C$47+$F$23>BH15,$F$27*$F$30,0)+IF($C$48+$G$23>BH15,$G$27*$G$30,0))*BM15,0) -> 22475 | BP15: 38845 | BR15: =ROUND($G$15*$G$30,0) -> 0 | BT15: =BP15-BR15 -> 38845 | BW15: =BW14+1 -> 2016 | BX15: 6825 | BY15: =U15 -> 3686 | BZ15: =AU15 -> 3697 | CA15: =SUM(BX15:BZ15) -> 14208 | CC15: =BB15 -> 0 | CD15: 0 | CE15: =SUM(CC15:CD15) -> 0 | CG15: =CA15-CE15 -> 14208
J16: 3 | L16: 2017 | M16: =ROUND(IF($C$47+$F$23>L16,$F$25*$F$30,0)+IF($C$48+$G$23>L16,$G$25*$G$30,0)+IF($C$49+$H$23>L16,$H$25*$H$30,0),0) -> 2559 | N16: =ROUND($C$17*(1+$C$18)^J15,3) -> 2.761 | O16: 7065 | P16: 0 | Q16: 0 | R16: 7065 | S16: 25.6 | T16: =ROUND($C$20*(1+$C$21)^J15,0) -> 145 | U16: =ROUND(S16*T16,0) -> 3712 | V16: 10777 | W16: 1.934 | X16: 3217 | Y16: =ROUND($H$11,0) -> 0 | Z16: =ROUND($H$12,0) -> 0 | AA16: 3217 | AB16: 7560 | AE16: 2017 | AF16: 7065 | AG16: 3712 | AH16: =+AG16+AF16 -> 10777 | AJ16: 0 | AK16: 0 | AL16: 0 | AN16: 10777 | AQ16: 2017 | AR16: 7065 | AS16: 3712 | AT16: 0.025 | AU16: =ROUND((IF($C$47+$F$23>$AQ16,$F$27*$F$30,0)+IF($C$48+$G$23>AQ16,$G$27*$G$30,0)+IF($C$49+$H$23>AQ16,$H$27*$H$30,0))*AT16,0) -> 3697 | AV16: 0.375 | AW16: 960 | AZ16: 15434 | BB16: =ROUND($H$13,0) -> 0 | BC16: =ROUND(($H$15*$H$30)-$Z$16,0) -> 0 | BD16: 0 | BE16: 15434 | BH16: 2017 | BI16: =ROUND(H12,0) -> 0 | BJ16: 2559 | BK16: 6.621 | BL16: =ROUND(BJ16*BK16,0) -> 16943 | BM16: 0.158 | BN16: =ROUND((IF($C$47+$F$23>BH16,$F$27*$F$30,0)+IF($C$49+$H$23>BH16,$H$27*$H$30,0)+IF($C$48+$G$23>BH16,$G$27*$G$30,0))*BM16,0) -> 23363 | BP16: 40306 | BR16: =ROUND($H$15*$H$30,0) -> 0 | BT16: 40306 | BW16: 2017 | BX16: 7065 | BY16: 3712 | BZ16: 3697 | CA16: 14474 | CC16: 0 | CD16: 0 | CE16: 0 | CG16: =CA16-CE16 -> 14474
A17: 3) Commodity Cost ($/Dk) = | C17: =+'Gas Input Table Summary'!$D$12 -> 2.577 | E17: 18) Participant Non-Energy Costs (Annual $/Part.) = | F17: =+'Gas Input Table Summary'!$D$35 -> 0 | J17: 4 | L17: 2018 | M17: =ROUND(IF($C$47+$F$23>L17,$F$25*$F$30,0)+IF($C$48+$G$23>L17,$G$25*$G$30,0)+IF($C$49+$H$23>L17,$H$25*$H$30,0),0) -> 2559 | N17: 2.857 | O17: 7311 | P17: 0 | Q17: 0 | R17: 7311 | S17: 25.6 | T17: 147 | U17: 3763 | V17: 11074 | W17: 2.001 | X17: 3328 | Y17: 0 | Z17: 0 | AA17: 3328 | AB17: 7746 | AE17: 2018 | AF17: 7311 | AG17: 3763 | AH17: 11074 | AJ17: 0 | AK17: 0 | AL17: 0 | AN17: 11074 | AQ17: 2018 | AR17: 7311 | AS17: 3763 | AT17: 0.026 | AU17: =ROUND((IF($C$47+$F$23>$AQ17,$F$27*$F$30,0)+IF($C$48+$G$23>AQ17,$G$27*$G$30,0)+IF($C$49+$H$23>AQ17,$H$27*$H$30,0))*AT17,0) -> 3844 | AV17: 0.383 | AW17: 980 | AZ17: 15898 | BB17: 0 | BC17: 0 | BD17: 0 | BE17: 15898 | BH17: 2018 | BI17: 0 | BJ17: 2559 | BK17: 6.853 | BL17: 17537 | BM17: 0.163 | BN17: =ROUND((IF($C$47+$F$23>BH17,$F$27*$F$30,0)+IF($C$49+$H$23>BH17,$H$27*$H$30,0)+IF($C$48+$G$23>BH17,$G$27*$G$30,0))*BM17,0) -> 24102 | BP17: 41639 | BR17: =+BC17 -> 0 | BT17: 41639 | BW17: 2018 | BX17: 7311 | BY17: 3763 | BZ17: 3844 | CA17: 14918 | CC17: 0 | CD17: 0 | CE17: 0 | CG17: 14918
A18: Escalation Rate = | C18: =+'Gas Input Table Summary'!$D$13 -> 0.035 | E18: Escalation Rate = | F18: =+'Gas Input Table Summary'!$D$38 -> 0 | J18: 5 | L18: 2019 | M18: 2559 | N18: 2.957 | O18: 7567 | P18: 0 | Q18: 0 | R18: 7567 | S18: 25.6 | T18: 148 | U18: 3789 | V18: 11356 | W18: 2.071 | X18: 3445 | Y18: 0 | Z18: 0 | AA18: 3445 | AB18: 7911 | AE18: 2019 | AF18: 7567 | AG18: 3789 | AH18: 11356 | AJ18: 0 | AK18: 0 | AL18: 0 | AN18: 11356 | AQ18: 2019 | AR18: 7567 | AS18: 3789 | AT18: 0.027 | AU18: 3992 | AV18: 0.392 | AW18: 1003 | AZ18: 16351 | BB18: 0 | BC18: 0 | BD18: 0 | BE18: 16351 | BH18: 2019 | BI18: 0 | BJ18: 2559 | BK18: 7.093 | BL18: 18151 | BM18: 0.169 | BN18: 24989 | BP18: 43140 | BR18: 0 | BT18: 43140 | BW18: 2019 | BX18: 7567 | BY18: 3789 | BZ18: 3992 | CA18: 15348 | CC18: 0 | CD18: 0 | CE18: 0 | CG18: 15348 | DB18: t
J19: 6 | L19: 2020 | M19: 2559 | N19: 3.061 | O19: 7833 | P19: 0 | Q19: 0 | R19: 7833 | S19: 25.6 | T19: 149 | U19: 3814 | V19: 11647 | W19: 2.144 | X19: 3566 | Y19: 0 | Z19: 0 | AA19: 3566 | AB19: 8081 | AE19: 2020 | AF19: 7833 | AG19: 3814 | AH19: 11647 | AJ19: 0 | AK19: 0 | AL19: 0 | AN19: 11647 | AQ19: 2020 | AR19: 7833 | AS19: 3814 | AT19: 0.028 | AU19: 4140 | AV19: 0.401 | AW19: 1026 | AZ19: 16813 | BB19: 0 | BC19: 0 | BD19: 0 | BE19: 16813 | BH19: 2020 | BI19: 0 | BJ19: 2559 | BK19: 7.341 | BL19: 18786 | BM19: 0.175 | BN19: 25876 | BP19: 44662 | BR19: 0 | BT19: 44662 | BW19: 2020 | BX19: 7833 | BY19: 3814 | BZ19: 4140 | CA19: 15787 | CC19: 0 | CD19: 0 | CE19: 0 | CG19: 15787
A20: 4) Demand Cost ($/Unit/Yr) = | C20: =+'Gas Input Table Summary'!$D$14 -> 142.21 | E20: 19) Participant Non-Energy Savings (Annual $/Part) = | F20: =+'Gas Input Table Summary'!$D$41 -> 0 | J20: 7 | L20: 2021 | M20: 2559 | N20: 3.168 | O20: 8107 | P20: 0 | Q20: 0 | R20: 8107 | S20: 25.6 | T20: 151 | U20: 3866 | V20: 11973 | W20: 2.219 | X20: 3691 | Y20: 0 | Z20: 0 | AA20: 3691 | AB20: 8282 | AE20: 2021 | AF20: 8107 | AG20: 3866 | AH20: 11973 | AJ20: 0 | AK20: 0 | AL20: 0 | AN20: 11973 | AQ20: 2021 | AR20: 8107 | AS20: 3866 | AT20: 0.029 | AU20: 4288 | AV20: 0.41 | AW20: 1049 | AZ20: 17310 | BB20: 0 | BC20: 0 | BD20: 0 | BE20: 17310 | BH20: 2021 | BI20: 0 | BJ20: 2559 | BK20: 7.598 | BL20: 19443 | BM20: 0.181 | BN20: 26763 | BP20: 46206 | BR20: 0 | BT20: 46206 | BW20: 2021 | BX20: 8107 | BY20: 3866 | BZ20: 4288 | CA20: 16261 | CC20: 0 | CD20: 0 | CE20: 0 | CG20: 16261
A21: Escalation Rate = | C21: =+'Gas Input Table Summary'!$D$15 -> 0.01 | E21: Escalation Rate = | F21: =+'Gas Input Table Summary'!$D$44 -> 0 | J21: 8 | L21: 2022 | M21: 2559 | N21: 3.279 | O21: 8391 | P21: 0 | Q21: 0 | R21: 8391 | S21: 25.6 | T21: 152 | U21: 3891 | V21: 12282 | W21: 2.297 | X21: 3821 | Y21: 0 | Z21: 0 | AA21: 3821 | AB21: 8461 | AE21: 2022 | AF21: 8391 | AG21: 3891 | AH21: 12282 | AJ21: 0 | AK21: 0 | AL21: 0 | AN21: 12282 | AQ21: 2022 | AR21: 8391 | AS21: 3891 | AT21: 0.03 | AU21: 4436 | AV21: 0.42 | AW21: 1075 | AZ21: 17793 | BB21: 0 | BC21: 0 | BD21: 0 | BE21: 17793 | BH21: 2022 | BI21: 0 | BJ21: 2559 | BK21: 7.864 | BL21: 20124 | BM21: 0.187 | BN21: 27651 | BP21: 47775 | BR21: 0 | BT21: 47775 | BW21: 2022 | BX21: 8391 | BY21: 3891 | BZ21: 4436 | CA21: 16718 | CC21: 0 | CD21: 0 | CE21: 0 | CG21: 16718 | DB21: =$J14 -> 1
J22: 9 | L22: 2023 | M22: 2559 | N22: 3.393 | O22: 8683 | P22: 0 | Q22: 0 | R22: 8683 | S22: 25.6 | T22: 154 | U22: 3942 | V22: 12625 | W22: 2.377 | X22: 3954 | Y22: 0 | Z22: 0 | AA22: 3954 | AB22: 8671 | AE22: 2023 | AF22: 8683 | AG22: 3942 | AH22: 12625 | AJ22: 0 | AK22: 0 | AL22: 0 | AN22: 12625 | AQ22: 2023 | AR22: 8683 | AS22: 3942 | AT22: 0.031 | AU22: 4584 | AV22: 0.429 | AW22: 1098 | AZ22: 18307 | BB22: 0 | BC22: 0 | BD22: 0 | BE22: 18307 | BH22: 2023 | BI22: 0 | BJ22: 2559 | BK22: 8.139 | BL22: 20828 | BM22: 0.194 | BN22: 28686 | BP22: 49514 | BR22: 0 | BT22: 49514 | BW22: 2023 | BX22: 8683 | BY22: 3942 | BZ22: 4584 | CA22: 17209 | CC22: 0 | CD22: 0 | CE22: 0 | CG22: 17209 | DB22: =$J15 -> 2
A23: 5) Peak Reduction Factor = | C23: =+'Gas Input Table Summary'!$D$16 -> 0.01 | E23: 20) Project Life (Years) = | F23: =ROUND('Database Inputs'!D11,0) -> 20 | J23: 10 | L23: 2024 | M23: 2559 | N23: 3.512 | O23: 8987 | P23: 0 | Q23: 0 | R23: 8987 | S23: 25.6 | T23: 156 | U23: 3994 | V23: 12981 | W23: 2.46 | X23: 4092 | Y23: 0 | Z23: 0 | AA23: 4092 | AB23: 8889 | AE23: 2024 | AF23: 8987 | AG23: 3994 | AH23: 12981 | AJ23: 0 | AK23: 0 | AL23: 0 | AN23: 12981 | AQ23: 2024 | AR23: 8987 | AS23: 3994 | AT23: 0.032 | AU23: 4732 | AV23: 0.439 | AW23: 1123 | AZ23: 18836 | BB23: 0 | BC23: 0 | BD23: 0 | BE23: 18836 | BH23: 2024 | BI23: 0 | BJ23: 2559 | BK23: 8.424 | BL23: 21557 | BM23: 0.2 | BN23: 29573 | BP23: 51130 | BR23: 0 | BT23: 51130 | BW23: 2024 | BX23: 8987 | BY23: 3994 | BZ23: 4732 | CA23: 17713 | CC23: 0 | CD23: 0 | CE23: 0 | CG23: 17713 | DB23: =$J16 -> 3
J24: 11 | L24: 2025 | M24: 2559 | N24: 3.635 | O24: 9302 | P24: 0 | Q24: 0 | R24: 9302 | S24: 25.6 | T24: 157 | U24: 4019 | V24: 13321 | W24: 2.546 | X24: 4235 | Y24: 0 | Z24: 0 | AA24: 4235 | AB24: 9086 | AE24: 2025 | AF24: 9302 | AG24: 4019 | AH24: 13321 | AJ24: 0 | AK24: 0 | AL24: 0 | AN24: 13321 | AQ24: 2025 | AR24: 9302 | AS24: 4019 | AT24: 0.034 | AU24: 5027 | AV24: 0.449 | AW24: 1149 | AZ24: 19497 | BB24: 0 | BC24: 0 | BD24: 0 | BE24: 19497 | BH24: 2025 | BI24: 0 | BJ24: 2559 | BK24: 8.719 | BL24: 22312 | BM24: 0.207 | BN24: 30608 | BP24: 52920 | BR24: 0 | BT24: 52920 | BW24: 2025 | BX24: 9302 | BY24: 4019 | BZ24: 5027 | CA24: 18348 | CC24: 0 | CD24: 0 | CE24: 0 | CG24: 18348 | DB24: =$J17 -> 4
A25: 6) Variable O&M ($/Dk) = | C25: =+'Gas Input Table Summary'!$D$17 -> 0 | E25: 21) Avg. Dk/Part. Saved = | F25: =+ROUND(F32/F30,3) -> 12.668 | J25: 12 | L25: 2026 | M25: 2559 | N25: 3.762 | O25: 9627 | P25: 0 | Q25: 0 | R25: 9627 | S25: 25.6 | T25: 159 | U25: 4070 | V25: 13697 | W25: 2.635 | X25: 4383 | Y25: 0 | Z25: 0 | AA25: 4383 | AB25: 9314 | AE25: 2026 | AF25: 9627 | AG25: 4070 | AH25: 13697 | AJ25: 0 | AK25: 0 | AL25: 0 | AN25: 13697 | AQ25: 2026 | AR25: 9627 | AS25: 4070 | AT25: 0.035 | AU25: 5175 | AV25: 0.46 | AW25: 1177 | AZ25: 20049 | BB25: 0 | BC25: 0 | BD25: 0 | BE25: 20049 | BH25: 2026 | BI25: 0 | BJ25: 2559 | BK25: 9.024 | BL25: 23092 | BM25: 0.215 | BN25: 31791 | BP25: 54883 | BR25: 0 | BT25: 54883 | BW25: 2026 | BX25: 9627 | BY25: 4070 | BZ25: 5175 | CA25: 18872 | CC25: 0 | CD25: 0 | CE25: 0 | CG25: 18872
A26: Escalation Rate = | C26: =+'Gas Input Table Summary'!$D$18 -> 0 | J26: 13 | L26: 2027 | M26: 2559 | N26: 3.894 | O26: 9965 | P26: 0 | Q26: 0 | R26: 9965 | S26: 25.6 | T26: 160 | U26: 4096 | V26: 14061 | W26: 2.728 | X26: 4538 | Y26: 0 | Z26: 0 | AA26: 4538 | AB26: 9523 | AE26: 2027 | AF26: 9965 | AG26: 4096 | AH26: 14061 | AJ26: 0 | AK26: 0 | AL26: 0 | AN26: 14061 | AQ26: 2027 | AR26: 9965 | AS26: 4096 | AT26: 0.036 | AU26: 5323 | AV26: 0.47 | AW26: 1203 | AZ26: 20587 | BB26: 0 | BC26: 0 | BD26: 0 | BE26: 20587 | BH26: 2027 | BI26: 0 | BJ26: 2559 | BK26: 9.34 | BL26: 23901 | BM26: 0.222 | BN26: 32826 | BP26: 56727 | BR26: 0 | BT26: 56727 | BW26: 2027 | BX26: 9965 | BY26: 4096 | BZ26: 5323 | CA26: 19384 | CC26: 0 | CD26: 0 | CE26: 0 | CG26: 19384
E27: 22) Avg Non-Gas Fuel Units/Part. Saved = | F27: =+'Database Inputs'!H11 -> 732 | J27: 14 | L27: 2028 | M27: 2559 | N27: 4.03 | O27: 10313 | P27: 0 | Q27: 0 | R27: 10313 | S27: 25.6 | T27: 162 | U27: 4147 | V27: 14460 | W27: 2.823 | X27: 4696 | Y27: 0 | Z27: 0 | AA27: 4696 | AB27: 9764 | AE27: 2028 | AF27: 10313 | AG27: 4147 | AH27: 14460 | AJ27: 0 | AK27: 0 | AL27: 0 | AN27: 14460 | AQ27: 2028 | AR27: 10313 | AS27: 4147 | AT27: 0.037 | AU27: 5471 | AV27: 0.481 | AW27: 1231 | AZ27: 21162 | BB27: 0 | BC27: 0 | BD27: 0 | BE27: 21162 | BH27: 2028 | BI27: 0 | BJ27: 2559 | BK27: 9.667 | BL27: 24738 | BM27: 0.23 | BN27: 34009 | BP27: 58747 | BR27: 0 | BT27: 58747 | BW27: 2028 | BX27: 10313 | BY27: 4147 | BZ27: 5471 | CA27: 19931 | CC27: 0 | CD27: 0 | CE27: 0 | CG27: 19931
A28: 7) Non-Gas Fuel Cost ($/Fuel Unit) = | C28: =+'Gas Input Table Summary'!$D$19 -> 0.0218 | E28: 22a) Avg Additional Non-Gas Fuel Units/ Part. Used = | F28: 0 | J28: 15 | L28: 2029 | M28: 2559 | N28: 4.171 | O28: 10674 | P28: 0 | Q28: 0 | R28: 10674 | S28: 25.6 | T28: 163 | U28: 4173 | V28: 14847 | W28: 2.922 | X28: 4860 | Y28: 0 | Z28: 0 | AA28: 4860 | AB28: 9987 | AE28: 2029 | AF28: 10674 | AG28: 4173 | AH28: 14847 | AJ28: 0 | AK28: 0 | AL28: 0 | AN28: 14847 | AQ28: 2029 | AR28: 10674 | AS28: 4173 | AT28: 0.038 | AU28: 5619 | AV28: 0.492 | AW28: 1259 | AZ28: 21725 | BB28: 0 | BC28: 0 | BD28: 0 | BE28: 21725 | BH28: 2029 | BI28: 0 | BJ28: 2559 | BK28: 10.005 | BL28: 25603 | BM28: 0.238 | BN28: 35192 | BP28: 60795 | BR28: 0 | BT28: 60795 | BW28: 2029 | BX28: 10674 | BY28: 4173 | BZ28: 5619 | CA28: 20466 | CC28: 0 | CD28: 0 | CE28: 0 | CG28: 20466
A29: Escalation Rate = | C29: =+'Gas Input Table Summary'!$D$20 -> 0.035 | J29: 16 | L29: 2030 | M29: 2559 | N29: 4.317 | O29: 11047 | P29: 0 | Q29: 0 | R29: 11047 | S29: 25.6 | T29: 165 | U29: 4224 | V29: 15271 | W29: 3.024 | X29: 5030 | Y29: 0 | Z29: 0 | AA29: 5030 | AB29: 10241 | AE29: 2030 | AF29: 11047 | AG29: 4224 | AH29: 15271 | AJ29: 0 | AK29: 0 | AL29: 0 | AN29: 15271 | AQ29: 2030 | AR29: 11047 | AS29: 4224 | AT29: 0.04 | AU29: 5915 | AV29: 0.504 | AW29: 1290 | AZ29: 22476 | BB29: 0 | BC29: 0 | BD29: 0 | BE29: 22476 | BH29: 2030 | BI29: 0 | BJ29: 2559 | BK29: 10.355 | BL29: 26498 | BM29: 0.246 | BN29: 36375 | BP29: 62873 | BR29: 0 | BT29: 62873 | BW29: 2030 | BX29: 11047 | BY29: 4224 | BZ29: 5915 | CA29: 21186 | CC29: 0 | CD29: 0 | CE29: 0 | CG29: 21186
E30: 23) Number of Participants = | F30: =+'Total Program Inputs'!C12 -> 202 | J30: 17 | L30: 2031 | M30: 2559 | N30: 4.468 | O30: 11434 | P30: 0 | Q30: 0 | R30: 11434 | S30: 25.6 | T30: 167 | U30: 4275 | V30: 15709 | W30: 3.13 | X30: 5206 | Y30: 0 | Z30: 0 | AA30: 5206 | AB30: 10503 | AE30: 2031 | AF30: 11434 | AG30: 4275 | AH30: 15709 | AJ30: 0 | AK30: 0 | AL30: 0 | AN30: 15709 | AQ30: 2031 | AR30: 11434 | AS30: 4275 | AT30: 0.041 | AU30: 6062 | AV30: 0.515 | AW30: 1318 | AZ30: 23089 | BB30: 0 | BC30: 0 | BD30: 0 | BE30: 23089 | BH30: 2031 | BI30: 0 | BJ30: 2559 | BK30: 10.718 | BL30: 27427 | BM30: 0.255 | BN30: 37705 | BP30: 65132 | BR30: 0 | BT30: 65132 | BW30: 2031 | BX30: 11434 | BY30: 4275 | BZ30: 6062 | CA30: 21771 | CC30: 0 | CD30: 0 | CE30: 0 | CG30: 21771 | DB30: =$J18 -> 5
A31: 8) Non-Gas Fuel Loss Factor | C31: =+'Gas Input Table Summary'!$D$21 -> 0.051 | J31: 18 | L31: 2032 | M31: 2559 | N31: 4.625 | O31: 11835 | P31: 0 | Q31: 0 | R31: 11835 | S31: 25.6 | T31: 168 | U31: 4301 | V31: 16136 | W31: 3.239 | X31: 5388 | Y31: 0 | Z31: 0 | AA31: 5388 | AB31: 10748 | AE31: 2032 | AF31: 11835 | AG31: 4301 | AH31: 16136 | AJ31: 0 | AK31: 0 | AL31: 0 | AN31: 16136 | AQ31: 2032 | AR31: 11835 | AS31: 4301 | AT31: 0.043 | AU31: 6358 | AV31: 0.527 | AW31: 1349 | AZ31: 23843 | BB31: 0 | BC31: 0 | BD31: 0 | BE31: 23843 | BH31: 2032 | BI31: 0 | BJ31: 2559 | BK31: 11.093 | BL31: 28387 | BM31: 0.264 | BN31: 39036 | BP31: 67423 | BR31: 0 | BT31: 67423 | BW31: 2032 | BX31: 11835 | BY31: 4301 | BZ31: 6358 | CA31: 22494 | CC31: 0 | CD31: 0 | CE31: 0 | CG31: 22494 | DB31: =$J19 -> 6
E32: 24) Total Annual Dk Saved = | F32: =+'Total Program Inputs'!E12 -> 2559 | J32: 19 | L32: 2033 | M32: 2559 | N32: 4.787 | O32: 12250 | P32: 0 | Q32: 0 | R32: 12250 | S32: 25.6 | T32: 170 | U32: 4352 | V32: 16602 | W32: 3.353 | X32: 5577 | Y32: 0 | Z32: 0 | AA32: 5577 | AB32: 11025 | AE32: 2033 | AF32: 12250 | AG32: 4352 | AH32: 16602 | AJ32: 0 | AK32: 0 | AL32: 0 | AN32: 16602 | AQ32: 2033 | AR32: 12250 | AS32: 4352 | AT32: 0.044 | AU32: 6506 | AV32: 0.539 | AW32: 1379 | AZ32: 24487 | BB32: 0 | BC32: 0 | BD32: 0 | BE32: 24487 | BH32: 2033 | BI32: 0 | BJ32: 2559 | BK32: 11.481 | BL32: 29380 | BM32: 0.273 | BN32: 40367 | BP32: 69747 | BR32: 0 | BT32: 69747 | BW32: 2033 | BX32: 12250 | BY32: 4352 | BZ32: 6506 | CA32: 23108 | CC32: 0 | CD32: 0 | CE32: 0 | CG32: 23108 | DB32: =$J20 -> 7
A33: 9) Gas Environmental Damage Factor = | C33: =+'Gas Input Table Summary'!$D$22 -> 0.35 | J33: 20 | L33: 2034 | M33: 2559 | N33: 4.954 | O33: 12677 | P33: 0 | Q33: 0 | R33: 12677 | S33: 25.6 | T33: 172 | U33: 4403 | V33: 17080 | W33: 3.47 | X33: 5772 | Y33: 0 | Z33: 0 | AA33: 5772 | AB33: 11308 | AE33: 2034 | AF33: 12677 | AG33: 4403 | AH33: 17080 | AJ33: 0 | AK33: 0 | AL33: 0 | AN33: 17080 | AQ33: 2034 | AR33: 12677 | AS33: 4403 | AT33: 0.046 | AU33: 6802 | AV33: 0.552 | AW33: 1413 | AZ33: 25295 | BB33: 0 | BC33: 0 | BD33: 0 | BE33: 25295 | BH33: 2034 | BI33: 0 | BJ33: 2559 | BK33: 11.883 | BL33: 30409 | BM33: 0.283 | BN33: 41846 | BP33: 72255 | BR33: 0 | BT33: 72255 | BW33: 2034 | BX33: 12677 | BY33: 4403 | BZ33: 6802 | CA33: 23882 | CC33: 0 | CD33: 0 | CE33: 0 | CG33: 23882
A34: Escalation Rate = | C34: =+'Gas Input Table Summary'!$D$23 -> 0.023 | E34: 25) Incentive/Participant = | F34: =+ROUND(F12/F30,0) -> 300 | J34: 21 | L34: 2035 | M34: 0 | N34: 5.128 | O34: 0 | P34: 0 | Q34: 0 | R34: 0 | S34: 0 | T34: 174 | U34: 0 | V34: 0 | W34: 3.592 | X34: 0 | Y34: 0 | Z34: 0 | AA34: 0 | AB34: 0 | AE34: 2035 | AF34: 0 | AG34: 0 | AH34: 0 | AJ34: 0 | AK34: 0 | AL34: 0 | AN34: 0 | AQ34: 2035 | AR34: 0 | AS34: 0 | AT34: 0.047 | AU34: 0 | AV34: 0.564 | AW34: 0 | AZ34: 0 | BB34: 0 | BC34: 0 | BD34: 0 | BE34: 0 | BH34: 2035 | BI34: 0 | BJ34: 0 | BK34: 12.299 | BL34: 0 | BM34: 0.293 | BN34: 0 | BP34: 0 | BR34: 0 | BT34: 0 | BW34: 2035 | BX34: 0 | BY34: 0 | BZ34: 0 | CA34: 0 | CC34: 0 | CD34: 0 | CE34: 0 | CG34: 0
DB35: =$J21 -> 8
A36: 10) Non Gas Fuel Environmental Damage Factor = | C36: =+'Gas Input Table Summary'!$D$24 -> 0 | E36: 26) Distribution Delivery Charge | H36: =+'Gas Input Table Summary'!D58 -> 1.744 | K36: Total = | M36: =SUM(M14:M34) -> 51180 | V36: =SUM(V14:V34) -> 266640 | AA36: =SUM(AA14:AA34) -> 150011 | AB36: =SUM(AB14:AB34) -> 116629 | AD36: Total = | AH36: =SUM(AH14:AH34) -> 266640 | AL36: =SUM(AL14:AL34) -> 65103 | AN36: =SUM(AN14:AN34) -> 201537 | AP36: Total = | AZ36: =SUM(AZ14:AZ34) -> 388792 | BD36: =SUM(BD14:BD34) -> 135803 | BE36: =SUM(BE14:BE34) -> 252989 | BG36: Total = | BJ36: =SUM(BJ14:BJ34) -> 51180 | BP36: =SUM(BP14:BP34) -> 1122872 | BR36: =SUM(BR14:BR34) -> 131300 | BT36: =SUM(BT14:BT34) -> 991572 | BZ36: Total = | CA36: =SUM(CA14:CA34) -> 365857 | CE36: =SUM(CE14:CE34) -> 135803 | CG36: =SUM(CG14:CG34) -> 230054
A37: Escalation Rate = | C37: =+'Gas Input Table Summary'!$D$25 -> 0 | T37: NPV = | V37: =ROUND(V14+NPV($C$41,V15:V34),0) -> 136107 | AA37: =ROUND(AA14+NPV($C$41,AA15:AA34),0) -> 107669 | AB37: =ROUND(AB14+NPV($C$41,AB15:AB34),0) -> 28438 | AG37: NPV = | AH37: =ROUND(AH14+NPV($C$41,AH15:AH34),0) -> 136107 | AL37: =ROUND(AL14+NPV($C$41,AL15:AL34),0) -> 65103 | AN37: =+AH37-AL37 -> 71004 | AW37: NPV = | AZ37: =ROUND(AZ14+NPV($C$43,AZ15:AZ34),0) -> 275270 | BD37: =ROUND(BD14+NPV($C$43,BD15:BD34),0) -> 135803 | BE37: =AZ37-BD37 -> 139467 | BN37: NPV = | BP37: =ROUND(BP14+NPV($C$39,BP15:BP34),0) -> 508303 | BR37: =ROUND(BR14+NPV($C$39,BR15:BR34),0) -> 131300 | BT37: =ROUND(BT14+NPV($C$39,BT15:BT34),0) -> 377003 | BZ37: NPV = | CA37: =ROUND(CA14+NPV($C$41,CA15:CA34),0) -> 185813 | CE37: =ROUND(CE14+NPV($C$41,CE15:CE34),0) -> 135803 | CG37: =ROUND(CG14+NPV($C$41,CG15:CG34),0) -> 50010 | DB37: =$J22 -> 9
E38: 27) Effective Income Tax Rate = | H38: =+'Gas Input Table Summary'!D59 -> 0.35
A39: 11) Participant Discount Rate = | C39: =+'Gas Input Table Summary'!$D$26 -> 0.1 | E39: (Federal & State Taxes) | K39: Total NPV = | N39: =AB37 -> 28438 | AD39: Total NPV = | AG39: =AN37 -> 71004 | AP39: Total NPV = | AS39: =BE37 -> 139467 | BG39: Total NPV = | BJ39: =BT37 -> 377003 | BV39: Total NPV = | BY39: =CG37 -> 50010
K40: Benefit/Cost Ratio = | N40: =ROUND(V37/AA37,2) -> 1.26 | AD40: Benefit/Cost Ratio = | AG40: =ROUND(AH37/AL37,2) -> 2.09 | AP40: Benefit/Cost Ratio = | AS40: =ROUND(AZ37/BD37,2) -> 2.03 | BG40: Benefit/Cost Ratio = | BJ40: =ROUND(BP37/BR37,20) -> 3.871309977 | BV40: Benefit/Cost Ratio = | BY40: =ROUND(CA37/CE37,2) -> 1.37 | DB40: =$J23 -> 10
A41: 12) Utility Discount Rate = | C41: =+'Gas Input Table Summary'!$D$27 -> 0.076 | E41: Test Results | F41: NPV | G41: B/C | DB41: =$J24 -> 11
E42: Ratepayer Impact Measure Test | F42: =N39 -> 28438 | G42: =N40 -> 1.26 | DB42: =$J25 -> 12
A43: 13) Societal Discount Rate = | C43: =+'Gas Input Table Summary'!$D$28 -> 0.0356 | E43: Utility Cost Test | F43: =AG39 -> 71004 | G43: =AG40 -> 2.09 | J43: Worksheet Calculations | AD43: Worksheet Calculations | AP43: Worksheet Calculations | BG43: Worksheet Calculations | BV43: Worksheet Calculations | DB43: =$J26 -> 13
E44: Societal Test | F44: =AS39 -> 139467 | G44: =AS40 -> 2.03 | J44: (A) | K44: = Average Dk/Participant Saved (21) x Number of Participants (23) for Project Life (20) | T44: (I) | U44: = (G) x (H) | AD44: (A) | AE44: = Table 1 (F) | AP44: (A) | AQ44: = Table 1 (F) | AW44: (H) | AZ44: = Table 2 (F) | BG44: (A) | BH44: = Table 1 (N) | BV44: (A) | BW44: = Table 1 (F)
A45: 14) General Input Data Year = | C45: =+'Res .95+% Res Furnace - NEW'!C45 -> 2014 | E45: Participant Test | F45: =BJ39 -> 377003 | G45: =BJ40 -> 3.871309977 | J45: (B) | K45: = Commodity Cost (3) escalated | T45: (J) | U45: = (F) + (I) | AD45: (B) | AE45: = Table 1 (I) | AP45: (G) | AQ45: = Table 1 (I) | AW45: (I) | AZ45: = Direct Part. Costs (17) x No. of Part. (23) - Table 1 (N) | BG45: (B) | BH45: = Table 1 (A) | BV45: (B) | BW45: = Table 1 (I)
E46: Total Resource Cost Test | F46: =BY39 -> 50010 | G46: =BY40 -> 1.37 | J46: (C) | K46: = (A) x (B) | T46: (K) | U46: = Distribution Delivery Charge (26) escalated. | AD46: (C) | AE46: = Table 1 (J) | AP46: (C) | AQ46: = Non-Gas Fuel Cost (7), adjusted for losses (8), escalated.. | AW46: (J) | AZ46: = (H) + (I) | BG46: (C) | BH46: = Retail Rate (1) escalated. | BV46: (C) | BW46: = Table 3 (D)
A47: 15) Project Analysis Year 1 = | C47: =+'Res .95+% Res Furnace - NEW'!C47 -> 2015 | J47: (D) | K47: = Variable O&M Cost (6), escalated | T47: (L) | U47: = (A) x (K) x (1-Inverse of Tax Rate (27) | AD47: (D) | AE47: = Table 1 (M) | AP47: (D) | AQ47: = (C) x [Avg. Non-Gas Fuel Units/Part.Saved (22) x No. of Part. (23) | AW47: (K) | AZ47: = (G) - (J) | BG47: (D) | BH47: =(B) x (C) | BV47: (D) | BW47: = (A) + (B) + (C)
J48: (E) | K48: = (A) x (D) | T48: (M) | U48: = Admin & Operating Costs (16a) | AD48: (E) | AE48: = Table 1 (N) | AP48: (E) | AQ48: = Gas Environmental Damage Factor (9), escalated | BG48: (E) | BH48: = Non-Gas Fuel Retail Rate (2), escalated. | BV48: (E) | BW48: = Table 3 (H)
J49: (F) | K49: = (C) + (E) | T49: (N) | U49: = Incentive Costs (16b) | AD49: (F) | AE49: = (D) + (E) | AP49: (F) | AQ49: = Table 1 (A) x (E) | BG49: (F) | BH49: = (E) x [Avg. Non-Gas Fuel Units/Part.Saved (22) x No. of Part. (23) | BV49: (F) | BW49: = Table 3 (I) | DB49: =$J27 -> 14
J50: (G) | K50: = (A) x Peak Reduction Factor (5) | T50: (O) | U50: = (L) + (M) + (N) | AD50: (G) | AE50: = (C) - (F) | AP50: (G) | AQ50: = (A) + (B) + (D) + (F) | BG50: (G) | BH50: = (A) + (D) + (F) | BV50: (G) | BW50: = (E) + (F) | DB50: =$J28 -> 15
J51: (H) | K51: = Demand Cost (4) escalated. | T51: (P) | U51: = (J) - (O) | BG51: (H) | BH51: = Direct Participant Costs (17) x Number of Participants (23) | BV51: (H) | BW51: = (D) - (G) | DB51: =$J29 -> 16
BG52: (I) | BH52: = (G) - (H)

Sheet Res Water Heating .67 EF
A1: NATURAL GAS CONSERVATION PROGRAMS/DEMAND-SIDE MANAGEMENT | K1: Table 1 | AD1: Table 2 | AP1: Table 3 | BG1: Table 4 | BV1: Table 5
A2: BEN/COST ANALYSIS FOR GAS CONSERVATION | K2: Ratepayer Impact Measure Test | AD2: Utility Cost Test | AP2: Societal Test | BG2: Participant Test | BV2: Total Resource Cost Test
A4: Company: | B4: Montana-Dakota Utilities Co. | K4: Company: | M4: =B4 -> Montana-Dakota Utilities Co. | AD4: Company: | AF4: =B4 -> Montana-Dakota Utilities Co. | AP4: Company: | AR4: =AF4 -> Montana-Dakota Utilities Co. | BH4: Company: | BI4: =AR4 -> Montana-Dakota Utilities Co. | BW4: Company: | BX4: =BI4 -> Montana-Dakota Utilities Co.
A5: Project: | B5: Residential Water Heating .67 EF | K5: Project: | M5: =$B$5 -> Residential Water Heating .67 EF | AD5: Project: | AF5: =$B$5 -> Residential Water Heating .67 EF | AP5: Project: | AR5: =$B$5 -> Residential Water Heating .67 EF | BH5: Project: | BI5: =$B$5 -> Residential Water Heating .67 EF | BW5: Project: | BX5: =$B$5 -> Residential Water Heating .67 EF
A6: Program Years: | B6: Actual 2014
N7: Benefits | X7: Costs | AF7: Benefits | AJ7: Costs | AR7: Benefits | BB7: Costs | BI7: Benefits | BR7: Costs | BX7: Benefits | CC7: Costs
A8: Input Data | F8: 2015 | AB8: Annual | AN8: Annual | AT8: Non-Gas | BE8: Annual | BT8: Annual | CG8: Annual
M9: Total | N9: Gas | O9: Gas | P9: Variable | Q9: Variable | R9: Total | S9: Peak Dk | T9: Demand | U9: Total | W9: Distribution | Y9: Program | AA9: Total | AB9: Benefits | AF9: Total | AG9: Total | AH9: Annual | AJ9: Program | AL9: Utility | AN9: Benefits | AR9: Total | AS9: Total | AT9: Energy | AU9: Non-Gas | AV9: Environmental | AW9: Environmental | AZ9: Annual | BB9: Utility | BC9: Participants' | BD9: Annual | BE9: Benefits | BJ9: Total | BL9: Gas | BM9: Non-Gas | BN9: Non-Gas | BP9: Total | BR9: Direct | BT9: Benefits | BX9: Total | BY9: Total | BZ9: Non-Gas | CA9: Total | CC9: Utility | CD9: Participants' | CG9: Benefits
A10: 1) Retail Rate ($/Dk) = | C10: =+'Gas Input Table Summary'!$D$7 -> 5.972 | E10: 16) Utility Project Costs | M10: Energy | N10: Commodity | O10: Commodity | P10: O & M | Q10: O & M | R10: Energy | S10: Demand | T10: Savings | U10: Demand | V10: Total | W10: Delivery | X10: Lost | Y10: Admin | Z10: Incentive | AA10: Program | AB10: Less | AF10: Energy | AG10: Demand | AH10: Total | AJ10: Admin | AK10: Incentive | AL10: Program | AN10: Less | AR10: Energy | AS10: Demand | AT10: Savings | AU10: Energy | AV10: Damage | AW10: Damage | AZ10: Total | BB10: Program | BC10: Costs Net | BD10: Total | BE10: Less | BI10: Incentives | BJ10: Energy | BK10: Retail | BL10: Bill | BM10: Fuel | BN10: Energy | BP10: Annual | BR10: Participant | BT10: Less | BX10: Energy | BY10: Demand | BZ10: Energy | CA10: Annual | CC10: Program | CD10: Costs Net | CE10: Total | CG10: Less
A11: Escalation Rate = | C11: =+'Gas Input Table Summary'!$D$8 -> 0.035 | E11: 16a) Administrative & Operating Costs = | F11: =+'Total Program Inputs'!K13 -> 29 | J11: t | M11: Reduction | N11: Cost/Dk | O11: Savings | P11: Cost/Dk | Q11: Savings | R11: Savings | S11: Reduction | T11: Per Unit | U11: Savings | V11: Savings | W11: Charge | X11: Margin | Y11: Costs | Z11: Costs | AA11: Costs | AB11: Costs | AF11: Savings | AG11: Savings | AH11: Savings | AJ11: Costs | AK11: Costs | AL11: Costs | AN11: Costs | AR11: Savings | AS11: Savings | AT11: ($/Part.) | AU11: Savings | AV11: Savings/Dk | AW11: Savings | AZ11: Savings | BB11: Costs | BC11: of Rebate | BD11: Costs | BE11: Costs | BI11: Received | BJ11: Reduction | BK11: Rate | BL11: Savings | BM11: Retail Rate | BN11: Savings | BP11: Benefits | BR11: Costs | BT11: Costs | BX11: Savings | BY11: Savings | BZ11: Savings | CA11: Benefits | CC11: Costs | CD11: of Rebate | CE11: Costs | CG11: Costs
E12: 16b) Incentive Costs = | F12: =+'Total Program Inputs'!G13 -> 400 | L12: Year | M12: (A) | N12: (B) | O12: (C) | P12: (D) | Q12: (E) | R12: (F) | S12: (G) | T12: (H) | U12: (I) | V12: (J) | W12: (K) | X12: (L) | Y12: (M) | Z12: (N) | AA12: (O) | AB12: (P) | AE12: Year | AF12: (A) | AG12: (B) | AH12: (C) | AJ12: (D) | AK12: (E) | AL12: (F) | AN12: (G) | AQ12: Year | AR12: (A) | AS12: (B) | AT12: (C) | AU12: (D) | AV12: (E) | AW12: (F) | AZ12: (G) | BB12: (H) | BC12: (I) | BD12: (J) | BE12: (K) | BH12: Year | BI12: (A) | BJ12: (B) | BK12: (C) | BL12: (D) | BM12: (E) | BN12: (F) | BP12: (G) | BR12: (H) | BT12: (I) | BW12: Year | BX12: (A) | BY12: (B) | BZ12: (C) | CA12: (D) | CC12: (E) | CD12: (F) | CE12: (G) | CG12: (H)
A13: 2) Non-Gas Fuel Retail Rate ($/Fuel Unit) = | C13: =+'Gas Input Table Summary'!$D$9 -> 0.14206 | E13: 16c) Total Utility Project Costs = | F13: =SUM(F11:F12) -> 429
A14: Escalation Rate = | C14: =+'Gas Input Table Summary'!$D$10 -> 0.035 | J14: =$C$47-$C$45 -> 1 | L14: =$C$47 -> 2015 | M14: =ROUND(IF($C$47+$F$23>L14,F25*F30,0),0) -> 18 | N14: =ROUND($C$17*(1),3) -> 2.577 | O14: =ROUND(M14*N14,0) -> 46 | P14: =ROUND($C$25*(1+$C$26)^J14,3) -> 0 | Q14: =ROUND(M14*P14,0) -> 0 | R14: =O14+Q14 -> 46 | S14: =ROUND(M14*$C$23,1) -> 0.2 | T14: =ROUND($C$20*(1),0) -> 142 | U14: =ROUND(S14*T14,0) -> 28 | V14: =ROUND(+U14+R14,0) -> 74 | W14: =ROUND($H$36*(1+$C$11)^J14,3) -> 1.805 | X14: =ROUND((1-$H$38)*(W14*M14),0) -> 21 | Y14: =ROUND($F$11,0) -> 29 | Z14: =ROUND($F$12,0) -> 400 | AA14: =SUM(X14:Z14) -> 450 | AB14: =V14-AA14 -> -376 | AE14: =$C$47 -> 2015 | AF14: =+R14 -> 46 | AG14: =+U14 -> 28 | AH14: =+AG14+AF14 -> 74 | AJ14: =ROUND(Y14,0) -> 29 | AK14: =ROUND(Z14,0) -> 400 | AL14: =SUM(AJ14:AK14) -> 429 | AN14: =+AH14-AL14 -> -355 | AQ14: =$C$47 -> 2015 | AR14: =AF14 -> 46 | AS14: =+AG14 -> 28 | AT14: =ROUND(($C$28/(1-$C$31))*(1+$C$29)^J14,3) -> 0.024 | AU14: =ROUND(IF($C$47+$F$23>$AQ14,$F$30*$F$27,0)*AT14,0) -> 0 | AV14: =ROUND($C$33*(1+$C$34)^J14,3) -> 0.358 | AW14: =ROUND(AV14*M14,0) -> 6 | AZ14: =ROUND(AR14+AS14+AU14+AW14+AY14,0) -> 80 | BB14: =ROUND($F$13,0) -> 429 | BC14: =ROUND((F15*F30)-Z14,0) -> 0 | BD14: =BB14+BC14 -> 429 | BE14: =AZ14-BD14 -> -349 | BH14: =$C$47 -> 2015 | BI14: =+F12 -> 400 | BJ14: =+M14 -> 18 | BK14: =ROUND($C$10*(1+$C$11)^J14,3) -> 6.181 | BL14: =ROUND(BJ14*BK14,0) -> 111 | BM14: =ROUND($C$13*(1+$C$14)^J14,3) -> 0.147 | BN14: =ROUND(IF($C$47+$F$23>$BH14,$F$30*$F$27,0)*BM14,0) -> 0 | BP14: =BI14+BL14+BN14+BO14 -> 511 | BR14: =ROUND(F15*F30,0) -> 400 | BT14: =BP14-BR14 -> 111 | BW14: =$C$47 -> 2015 | BX14: =$R14 -> 46 | BY14: =U14 -> 28 | BZ14: =AU14 -> 0 | CA14: =SUM(BX14:BZ14) -> 74 | CC14: =BB14 -> 429 | CD14: =BC14 -> 0 | CE14: =SUM(CC14:CD14) -> 429 | CG14: =CA14-CE14 -> -355
A15: Non-Gas Fuel Units (ie. kWh,Gallons, etc) = | C15: =+'Gas Input Table Summary'!$D$11 -> Kwh | E15: 17) Direct Participant Costs ($/Part.) = | F15: =ROUND('Database Inputs'!K12,0) -> 100 | J15: =J14+1 -> 2 | L15: =L14+1 -> 2016 | M15: =ROUND(IF($C$47+$F$23>L15,$F$25*$F$30,0)+IF($C$48+$G$23>L15,$G$25*$G$30,0),0) -> 18 | N15: =ROUND($C$17*(1+$C$18)^J14,3) -> 2.667 | O15: 48 | P15: 0 | Q15: =ROUND(M15*P15,0) -> 0 | R15: 48 | S15: 0.2 | T15: =ROUND($C$20*(1+$C$21)^J14,0) -> 144 | U15: =ROUND(S15*T15,0) -> 29 | V15: =ROUND(+U15+R15,0) -> 77 | W15: 1.868 | X15: 22 | Y15: =ROUND($G$11,0) -> 0 | Z15: =ROUND($G$12,0) -> 0 | AA15: 22 | AB15: 55 | AE15: =AE14+1 -> 2016 | AF15: 48 | AG15: 29 | AH15: =+AG15+AF15 -> 77 | AJ15: =ROUND(Y15,0) -> 0 | AK15: 0 | AL15: 0 | AN15: 77 | AQ15: =AQ14+1 -> 2016 | AR15: 48 | AS15: 29 | AT15: 0.025 | AU15: =ROUND((IF($C$47+$F$23>$AQ15,$F$27*$F$30,0)+IF($C$48+$G$23>AQ15,$G$27*$G$30,0))*AT15,0) -> 0 | AV15: 0.366 | AW15: 7 | AZ15: =ROUND(AR15+AS15+AU15+AW15+AY15,0) -> 84 | BB15: =ROUND($G$13,0) -> 0 | BC15: =ROUND(($G$15*$G$30)-$Z$15,0) -> 0 | BD15: =BB15+BC15 -> 0 | BE15: 84 | BH15: =BH14+1 -> 2016 | BI15: =+G12 -> 0 | BJ15: 18 | BK15: 6.397 | BL15: =ROUND(BJ15*BK15,0) -> 115 | BM15: 0.152 | BN15: =ROUND((IF($C$47+$F$23>BH15,$F$27*$F$30,0)+IF($C$48+$G$23>BH15,$G$27*$G$30,0))*BM15,0) -> 0 | BP15: 115 | BR15: =ROUND($G$15*$G$30,0) -> 0 | BT15: =BP15-BR15 -> 115 | BW15: =BW14+1 -> 2016 | BX15: 48 | BY15: =U15 -> 29 | BZ15: =AU15 -> 0 | CA15: =SUM(BX15:BZ15) -> 77 | CC15: =BB15 -> 0 | CD15: 0 | CE15: =SUM(CC15:CD15) -> 0 | CG15: =CA15-CE15 -> 77
J16: 3 | L16: 2017 | M16: =ROUND(IF($C$47+$F$23>L16,$F$25*$F$30,0)+IF($C$48+$G$23>L16,$G$25*$G$30,0)+IF($C$49+$H$23>L16,$H$25*$H$30,0),0) -> 18 | N16: =ROUND($C$17*(1+$C$18)^J15,3) -> 2.761 | O16: 50 | P16: 0 | Q16: 0 | R16: 50 | S16: 0.2 | T16: =ROUND($C$20*(1+$C$21)^J15,0) -> 145 | U16: =ROUND(S16*T16,0) -> 29 | V16: 79 | W16: 1.934 | X16: 23 | Y16: =ROUND($H$11,0) -> 0 | Z16: =ROUND($H$12,0) -> 0 | AA16: 23 | AB16: 56 | AE16: 2017 | AF16: 50 | AG16: 29 | AH16: =+AG16+AF16 -> 79 | AJ16: 0 | AK16: 0 | AL16: 0 | AN16: 79 | AQ16: 2017 | AR16: 50 | AS16: 29 | AT16: 0.025 | AU16: =ROUND((IF($C$47+$F$23>$AQ16,$F$27*$F$30,0)+IF($C$48+$G$23>AQ16,$G$27*$G$30,0)+IF($C$49+$H$23>AQ16,$H$27*$H$30,0))*AT16,0) -> 0 | AV16: 0.375 | AW16: 7 | AZ16: 86 | BB16: =ROUND($H$13,0) -> 0 | BC16: =ROUND(($H$15*$H$30)-$Z$16,0) -> 0 | BD16: 0 | BE16: 86 | BH16: 2017 | BI16: =ROUND(H12,0) -> 0 | BJ16: 18 | BK16: 6.621 | BL16: =ROUND(BJ16*BK16,0) -> 119 | BM16: 0.158 | BN16: =ROUND((IF($C$47+$F$23>BH16,$F$27*$F$30,0)+IF($C$49+$H$23>BH16,$H$27*$H$30,0)+IF($C$48+$G$23>BH16,$G$27*$G$30,0))*BM16,0) -> 0 | BP16: 119 | BR16: =ROUND($H$15*$H$30,0) -> 0 | BT16: 119 | BW16: 2017 | BX16: 50 | BY16: 29 | BZ16: 0 | CA16: 79 | CC16: 0 | CD16: 0 | CE16: 0 | CG16: =CA16-CE16 -> 79
A17: 3) Commodity Cost ($/Dk) = | C17: =+'Gas Input Table Summary'!$D$12 -> 2.577 | E17: 18) Participant Non-Energy Costs (Annual $/Part.) = | F17: =+'Gas Input Table Summary'!$D$35 -> 0 | J17: 4 | L17: 2018 | M17: =ROUND(IF($C$47+$F$23>L17,$F$25*$F$30,0)+IF($C$48+$G$23>L17,$G$25*$G$30,0)+IF($C$49+$H$23>L17,$H$25*$H$30,0),0) -> 18 | N17: 2.857 | O17: 51 | P17: 0 | Q17: 0 | R17: 51 | S17: 0.2 | T17: 147 | U17: 29 | V17: 80 | W17: 2.001 | X17: 23 | Y17: 0 | Z17: 0 | AA17: 23 | AB17: 57 | AE17: 2018 | AF17: 51 | AG17: 29 | AH17: 80 | AJ17: 0 | AK17: 0 | AL17: 0 | AN17: 80 | AQ17: 2018 | AR17: 51 | AS17: 29 | AT17: 0.026 | AU17: =ROUND((IF($C$47+$F$23>$AQ17,$F$27*$F$30,0)+IF($C$48+$G$23>AQ17,$G$27*$G$30,0)+IF($C$49+$H$23>AQ17,$H$27*$H$30,0))*AT17,0) -> 0 | AV17: 0.383 | AW17: 7 | AZ17: 87 | BB17: 0 | BC17: 0 | BD17: 0 | BE17: 87 | BH17: 2018 | BI17: 0 | BJ17: 18 | BK17: 6.853 | BL17: 123 | BM17: 0.163 | BN17: =ROUND((IF($C$47+$F$23>BH17,$F$27*$F$30,0)+IF($C$49+$H$23>BH17,$H$27*$H$30,0)+IF($C$48+$G$23>BH17,$G$27*$G$30,0))*BM17,0) -> 0 | BP17: 123 | BR17: =+BC17 -> 0 | BT17: 123 | BW17: 2018 | BX17: 51 | BY17: 29 | BZ17: 0 | CA17: 80 | CC17: 0 | CD17: 0 | CE17: 0 | CG17: 80
A18: Escalation Rate = | C18: =+'Gas Input Table Summary'!$D$13 -> 0.035 | E18: Escalation Rate = | F18: =+'Gas Input Table Summary'!$D$38 -> 0 | J18: 5 | L18: 2019 | M18: 18 | N18: 2.957 | O18: 53 | P18: 0 | Q18: 0 | R18: 53 | S18: 0.2 | T18: 148 | U18: 30 | V18: 83 | W18: 2.071 | X18: 24 | Y18: 0 | Z18: 0 | AA18: 24 | AB18: 59 | AE18: 2019 | AF18: 53 | AG18: 30 | AH18: 83 | AJ18: 0 | AK18: 0 | AL18: 0 | AN18: 83 | AQ18: 2019 | AR18: 53 | AS18: 30 | AT18: 0.027 | AU18: 0 | AV18: 0.392 | AW18: 7 | AZ18: 90 | BB18: 0 | BC18: 0 | BD18: 0 | BE18: 90 | BH18: 2019 | BI18: 0 | BJ18: 18 | BK18: 7.093 | BL18: 128 | BM18: 0.169 | BN18: 0 | BP18: 128 | BR18: 0 | BT18: 128 | BW18: 2019 | BX18: 53 | BY18: 30 | BZ18: 0 | CA18: 83 | CC18: 0 | CD18: 0 | CE18: 0 | CG18: 83 | DB18: t
J19: 6 | L19: 2020 | M19: 18 | N19: 3.061 | O19: 55 | P19: 0 | Q19: 0 | R19: 55 | S19: 0.2 | T19: 149 | U19: 30 | V19: 85 | W19: 2.144 | X19: 25 | Y19: 0 | Z19: 0 | AA19: 25 | AB19: 60 | AE19: 2020 | AF19: 55 | AG19: 30 | AH19: 85 | AJ19: 0 | AK19: 0 | AL19: 0 | AN19: 85 | AQ19: 2020 | AR19: 55 | AS19: 30 | AT19: 0.028 | AU19: 0 | AV19: 0.401 | AW19: 7 | AZ19: 92 | BB19: 0 | BC19: 0 | BD19: 0 | BE19: 92 | BH19: 2020 | BI19: 0 | BJ19: 18 | BK19: 7.341 | BL19: 132 | BM19: 0.175 | BN19: 0 | BP19: 132 | BR19: 0 | BT19: 132 | BW19: 2020 | BX19: 55 | BY19: 30 | BZ19: 0 | CA19: 85 | CC19: 0 | CD19: 0 | CE19: 0 | CG19: 85
A20: 4) Demand Cost ($/Unit/Yr) = | C20: =+'Gas Input Table Summary'!$D$14 -> 142.21 | E20: 19) Participant Non-Energy Savings (Annual $/Part) = | F20: =+'Gas Input Table Summary'!$D$41 -> 0 | J20: 7 | L20: 2021 | M20: 18 | N20: 3.168 | O20: 57 | P20: 0 | Q20: 0 | R20: 57 | S20: 0.2 | T20: 151 | U20: 30 | V20: 87 | W20: 2.219 | X20: 26 | Y20: 0 | Z20: 0 | AA20: 26 | AB20: 61 | AE20: 2021 | AF20: 57 | AG20: 30 | AH20: 87 | AJ20: 0 | AK20: 0 | AL20: 0 | AN20: 87 | AQ20: 2021 | AR20: 57 | AS20: 30 | AT20: 0.029 | AU20: 0 | AV20: 0.41 | AW20: 7 | AZ20: 94 | BB20: 0 | BC20: 0 | BD20: 0 | BE20: 94 | BH20: 2021 | BI20: 0 | BJ20: 18 | BK20: 7.598 | BL20: 137 | BM20: 0.181 | BN20: 0 | BP20: 137 | BR20: 0 | BT20: 137 | BW20: 2021 | BX20: 57 | BY20: 30 | BZ20: 0 | CA20: 87 | CC20: 0 | CD20: 0 | CE20: 0 | CG20: 87
A21: Escalation Rate = | C21: =+'Gas Input Table Summary'!$D$15 -> 0.01 | E21: Escalation Rate = | F21: =+'Gas Input Table Summary'!$D$44 -> 0 | J21: 8 | L21: 2022 | M21: 18 | N21: 3.279 | O21: 59 | P21: 0 | Q21: 0 | R21: 59 | S21: 0.2 | T21: 152 | U21: 30 | V21: 89 | W21: 2.297 | X21: 27 | Y21: 0 | Z21: 0 | AA21: 27 | AB21: 62 | AE21: 2022 | AF21: 59 | AG21: 30 | AH21: 89 | AJ21: 0 | AK21: 0 | AL21: 0 | AN21: 89 | AQ21: 2022 | AR21: 59 | AS21: 30 | AT21: 0.03 | AU21: 0 | AV21: 0.42 | AW21: 8 | AZ21: 97 | BB21: 0 | BC21: 0 | BD21: 0 | BE21: 97 | BH21: 2022 | BI21: 0 | BJ21: 18 | BK21: 7.864 | BL21: 142 | BM21: 0.187 | BN21: 0 | BP21: 142 | BR21: 0 | BT21: 142 | BW21: 2022 | BX21: 59 | BY21: 30 | BZ21: 0 | CA21: 89 | CC21: 0 | CD21: 0 | CE21: 0 | CG21: 89 | DB21: =$J14 -> 1
J22: 9 | L22: 2023 | M22: 18 | N22: 3.393 | O22: 61 | P22: 0 | Q22: 0 | R22: 61 | S22: 0.2 | T22: 154 | U22: 31 | V22: 92 | W22: 2.377 | X22: 28 | Y22: 0 | Z22: 0 | AA22: 28 | AB22: 64 | AE22: 2023 | AF22: 61 | AG22: 31 | AH22: 92 | AJ22: 0 | AK22: 0 | AL22: 0 | AN22: 92 | AQ22: 2023 | AR22: 61 | AS22: 31 | AT22: 0.031 | AU22: 0 | AV22: 0.429 | AW22: 8 | AZ22: 100 | BB22: 0 | BC22: 0 | BD22: 0 | BE22: 100 | BH22: 2023 | BI22: 0 | BJ22: 18 | BK22: 8.139 | BL22: 147 | BM22: 0.194 | BN22: 0 | BP22: 147 | BR22: 0 | BT22: 147 | BW22: 2023 | BX22: 61 | BY22: 31 | BZ22: 0 | CA22: 92 | CC22: 0 | CD22: 0 | CE22: 0 | CG22: 92 | DB22: =$J15 -> 2
A23: 5) Peak Reduction Factor = | C23: =+'Gas Input Table Summary'!$D$16 -> 0.01 | E23: 20) Project Life (Years) = | F23: =ROUND('Database Inputs'!D12,0) -> 10 | J23: 10 | L23: 2024 | M23: 18 | N23: 3.512 | O23: 63 | P23: 0 | Q23: 0 | R23: 63 | S23: 0.2 | T23: 156 | U23: 31 | V23: 94 | W23: 2.46 | X23: 29 | Y23: 0 | Z23: 0 | AA23: 29 | AB23: 65 | AE23: 2024 | AF23: 63 | AG23: 31 | AH23: 94 | AJ23: 0 | AK23: 0 | AL23: 0 | AN23: 94 | AQ23: 2024 | AR23: 63 | AS23: 31 | AT23: 0.032 | AU23: 0 | AV23: 0.439 | AW23: 8 | AZ23: 102 | BB23: 0 | BC23: 0 | BD23: 0 | BE23: 102 | BH23: 2024 | BI23: 0 | BJ23: 18 | BK23: 8.424 | BL23: 152 | BM23: 0.2 | BN23: 0 | BP23: 152 | BR23: 0 | BT23: 152 | BW23: 2024 | BX23: 63 | BY23: 31 | BZ23: 0 | CA23: 94 | CC23: 0 | CD23: 0 | CE23: 0 | CG23: 94 | DB23: =$J16 -> 3
J24: 11 | L24: 2025 | M24: 0 | N24: 3.635 | O24: 0 | P24: 0 | Q24: 0 | R24: 0 | S24: 0 | T24: 157 | U24: 0 | V24: 0 | W24: 2.546 | X24: 0 | Y24: 0 | Z24: 0 | AA24: 0 | AB24: 0 | AE24: 2025 | AF24: 0 | AG24: 0 | AH24: 0 | AJ24: 0 | AK24: 0 | AL24: 0 | AN24: 0 | AQ24: 2025 | AR24: 0 | AS24: 0 | AT24: 0.034 | AU24: 0 | AV24: 0.449 | AW24: 0 | AZ24: 0 | BB24: 0 | BC24: 0 | BD24: 0 | BE24: 0 | BH24: 2025 | BI24: 0 | BJ24: 0 | BK24: 8.719 | BL24: 0 | BM24: 0.207 | BN24: 0 | BP24: 0 | BR24: 0 | BT24: 0 | BW24: 2025 | BX24: 0 | BY24: 0 | BZ24: 0 | CA24: 0 | CC24: 0 | CD24: 0 | CE24: 0 | CG24: 0 | DB24: =$J17 -> 4
A25: 6) Variable O&M ($/Dk) = | C25: =+'Gas Input Table Summary'!$D$17 -> 0 | E25: 21) Avg. Dk/Part. Saved = | F25: =+ROUND(F32/F30,3) -> 4.5 | J25: 12 | L25: 2026 | M25: 0 | N25: 3.762 | O25: 0 | P25: 0 | Q25: 0 | R25: 0 | S25: 0 | T25: 159 | U25: 0 | V25: 0 | W25: 2.635 | X25: 0 | Y25: 0 | Z25: 0 | AA25: 0 | AB25: 0 | AE25: 2026 | AF25: 0 | AG25: 0 | AH25: 0 | AJ25: 0 | AK25: 0 | AL25: 0 | AN25: 0 | AQ25: 2026 | AR25: 0 | AS25: 0 | AT25: 0.035 | AU25: 0 | AV25: 0.46 | AW25: 0 | AZ25: 0 | BB25: 0 | BC25: 0 | BD25: 0 | BE25: 0 | BH25: 2026 | BI25: 0 | BJ25: 0 | BK25: 9.024 | BL25: 0 | BM25: 0.215 | BN25: 0 | BP25: 0 | BR25: 0 | BT25: 0 | BW25: 2026 | BX25: 0 | BY25: 0 | BZ25: 0 | CA25: 0 | CC25: 0 | CD25: 0 | CE25: 0 | CG25: 0
A26: Escalation Rate = | C26: =+'Gas Input Table Summary'!$D$18 -> 0 | J26: 13 | L26: 2027 | M26: 0 | N26: 3.894 | O26: 0 | P26: 0 | Q26: 0 | R26: 0 | S26: 0 | T26: 160 | U26: 0 | V26: 0 | W26: 2.728 | X26: 0 | Y26: 0 | Z26: 0 | AA26: 0 | AB26: 0 | AE26: 2027 | AF26: 0 | AG26: 0 | AH26: 0 | AJ26: 0 | AK26: 0 | AL26: 0 | AN26: 0 | AQ26: 2027 | AR26: 0 | AS26: 0 | AT26: 0.036 | AU26: 0 | AV26: 0.47 | AW26: 0 | AZ26: 0 | BB26: 0 | BC26: 0 | BD26: 0 | BE26: 0 | BH26: 2027 | BI26: 0 | BJ26: 0 | BK26: 9.34 | BL26: 0 | BM26: 0.222 | BN26: 0 | BP26: 0 | BR26: 0 | BT26: 0 | BW26: 2027 | BX26: 0 | BY26: 0 | BZ26: 0 | CA26: 0 | CC26: 0 | CD26: 0 | CE26: 0 | CG26: 0
E27: 22) Avg Non-Gas Fuel Units/Part. Saved = | F27: =+'Database Inputs'!H12 -> 0 | J27: 14 | L27: 2028 | M27: 0 | N27: 4.03 | O27: 0 | P27: 0 | Q27: 0 | R27: 0 | S27: 0 | T27: 162 | U27: 0 | V27: 0 | W27: 2.823 | X27: 0 | Y27: 0 | Z27: 0 | AA27: 0 | AB27: 0 | AE27: 2028 | AF27: 0 | AG27: 0 | AH27: 0 | AJ27: 0 | AK27: 0 | AL27: 0 | AN27: 0 | AQ27: 2028 | AR27: 0 | AS27: 0 | AT27: 0.037 | AU27: 0 | AV27: 0.481 | AW27: 0 | AZ27: 0 | BB27: 0 | BC27: 0 | BD27: 0 | BE27: 0 | BH27: 2028 | BI27: 0 | BJ27: 0 | BK27: 9.667 | BL27: 0 | BM27: 0.23 | BN27: 0 | BP27: 0 | BR27: 0 | BT27: 0 | BW27: 2028 | BX27: 0 | BY27: 0 | BZ27: 0 | CA27: 0 | CC27: 0 | CD27: 0 | CE27: 0 | CG27: 0
A28: 7) Non-Gas Fuel Cost ($/Fuel Unit) = | C28: =+'Gas Input Table Summary'!$D$19 -> 0.0218 | E28: 22a) Avg Additional Non-Gas Fuel Units/ Part. Used = | F28: 0 | J28: 15 | L28: 2029 | M28: 0 | N28: 4.171 | O28: 0 | P28: 0 | Q28: 0 | R28: 0 | S28: 0 | T28: 163 | U28: 0 | V28: 0 | W28: 2.922 | X28: 0 | Y28: 0 | Z28: 0 | AA28: 0 | AB28: 0 | AE28: 2029 | AF28: 0 | AG28: 0 | AH28: 0 | AJ28: 0 | AK28: 0 | AL28: 0 | AN28: 0 | AQ28: 2029 | AR28: 0 | AS28: 0 | AT28: 0.038 | AU28: 0 | AV28: 0.492 | AW28: 0 | AZ28: 0 | BB28: 0 | BC28: 0 | BD28: 0 | BE28: 0 | BH28: 2029 | BI28: 0 | BJ28: 0 | BK28: 10.005 | BL28: 0 | BM28: 0.238 | BN28: 0 | BP28: 0 | BR28: 0 | BT28: 0 | BW28: 2029 | BX28: 0 | BY28: 0 | BZ28: 0 | CA28: 0 | CC28: 0 | CD28: 0 | CE28: 0 | CG28: 0
A29: Escalation Rate = | C29: =+'Gas Input Table Summary'!$D$20 -> 0.035 | J29: 16 | L29: 2030 | M29: 0 | N29: 4.317 | O29: 0 | P29: 0 | Q29: 0 | R29: 0 | S29: 0 | T29: 165 | U29: 0 | V29: 0 | W29: 3.024 | X29: 0 | Y29: 0 | Z29: 0 | AA29: 0 | AB29: 0 | AE29: 2030 | AF29: 0 | AG29: 0 | AH29: 0 | AJ29: 0 | AK29: 0 | AL29: 0 | AN29: 0 | AQ29: 2030 | AR29: 0 | AS29: 0 | AT29: 0.04 | AU29: 0 | AV29: 0.504 | AW29: 0 | AZ29: 0 | BB29: 0 | BC29: 0 | BD29: 0 | BE29: 0 | BH29: 2030 | BI29: 0 | BJ29: 0 | BK29: 10.355 | BL29: 0 | BM29: 0.246 | BN29: 0 | BP29: 0 | BR29: 0 | BT29: 0 | BW29: 2030 | BX29: 0 | BY29: 0 | BZ29: 0 | CA29: 0 | CC29: 0 | CD29: 0 | CE29: 0 | CG29: 0
E30: 23) Number of Participants = | F30: =+'Total Program Inputs'!C13 -> 4 | J30: 17 | L30: 2031 | M30: 0 | N30: 4.468 | O30: 0 | P30: 0 | Q30: 0 | R30: 0 | S30: 0 | T30: 167 | U30: 0 | V30: 0 | W30: 3.13 | X30: 0 | Y30: 0 | Z30: 0 | AA30: 0 | AB30: 0 | AE30: 2031 | AF30: 0 | AG30: 0 | AH30: 0 | AJ30: 0 | AK30: 0 | AL30: 0 | AN30: 0 | AQ30: 2031 | AR30: 0 | AS30: 0 | AT30: 0.041 | AU30: 0 | AV30: 0.515 | AW30: 0 | AZ30: 0 | BB30: 0 | BC30: 0 | BD30: 0 | BE30: 0 | BH30: 2031 | BI30: 0 | BJ30: 0 | BK30: 10.718 | BL30: 0 | BM30: 0.255 | BN30: 0 | BP30: 0 | BR30: 0 | BT30: 0 | BW30: 2031 | BX30: 0 | BY30: 0 | BZ30: 0 | CA30: 0 | CC30: 0 | CD30: 0 | CE30: 0 | CG30: 0 | DB30: =$J18 -> 5
A31: 8) Non-Gas Fuel Loss Factor | C31: =+'Gas Input Table Summary'!$D$21 -> 0.051 | J31: 18 | L31: 2032 | M31: 0 | N31: 4.625 | O31: 0 | P31: 0 | Q31: 0 | R31: 0 | S31: 0 | T31: 168 | U31: 0 | V31: 0 | W31: 3.239 | X31: 0 | Y31: 0 | Z31: 0 | AA31: 0 | AB31: 0 | AE31: 2032 | AF31: 0 | AG31: 0 | AH31: 0 | AJ31: 0 | AK31: 0 | AL31: 0 | AN31: 0 | AQ31: 2032 | AR31: 0 | AS31: 0 | AT31: 0.043 | AU31: 0 | AV31: 0.527 | AW31: 0 | AZ31: 0 | BB31: 0 | BC31: 0 | BD31: 0 | BE31: 0 | BH31: 2032 | BI31: 0 | BJ31: 0 | BK31: 11.093 | BL31: 0 | BM31: 0.264 | BN31: 0 | BP31: 0 | BR31: 0 | BT31: 0 | BW31: 2032 | BX31: 0 | BY31: 0 | BZ31: 0 | CA31: 0 | CC31: 0 | CD31: 0 | CE31: 0 | CG31: 0 | DB31: =$J19 -> 6
E32: 24) Total Annual Dk Saved = | F32: =+'Total Program Inputs'!E13 -> 18 | J32: 19 | L32: 2033 | M32: 0 | N32: 4.787 | O32: 0 | P32: 0 | Q32: 0 | R32: 0 | S32: 0 | T32: 170 | U32: 0 | V32: 0 | W32: 3.353 | X32: 0 | Y32: 0 | Z32: 0 | AA32: 0 | AB32: 0 | AE32: 2033 | AF32: 0 | AG32: 0 | AH32: 0 | AJ32: 0 | AK32: 0 | AL32: 0 | AN32: 0 | AQ32: 2033 | AR32: 0 | AS32: 0 | AT32: 0.044 | AU32: 0 | AV32: 0.539 | AW32: 0 | AZ32: 0 | BB32: 0 | BC32: 0 | BD32: 0 | BE32: 0 | BH32: 2033 | BI32: 0 | BJ32: 0 | BK32: 11.481 | BL32: 0 | BM32: 0.273 | BN32: 0 | BP32: 0 | BR32: 0 | BT32: 0 | BW32: 2033 | BX32: 0 | BY32: 0 | BZ32: 0 | CA32: 0 | CC32: 0 | CD32: 0 | CE32: 0 | CG32: 0 | DB32: =$J20 -> 7
A33: 9) Gas Environmental Damage Factor = | C33: =+'Gas Input Table Summary'!$D$22 -> 0.35 | J33: 20 | L33: 2034 | M33: 0 | N33: 4.954 | O33: 0 | P33: 0 | Q33: 0 | R33: 0 | S33: 0 | T33: 172 | U33: 0 | V33: 0 | W33: 3.47 | X33: 0 | Y33: 0 | Z33: 0 | AA33: 0 | AB33: 0 | AE33: 2034 | AF33: 0 | AG33: 0 | AH33: 0 | AJ33: 0 | AK33: 0 | AL33: 0 | AN33: 0 | AQ33: 2034 | AR33: 0 | AS33: 0 | AT33: 0.046 | AU33: 0 | AV33: 0.552 | AW33: 0 | AZ33: 0 | BB33: 0 | BC33: 0 | BD33: 0 | BE33: 0 | BH33: 2034 | BI33: 0 | BJ33: 0 | BK33: 11.883 | BL33: 0 | BM33: 0.283 | BN33: 0 | BP33: 0 | BR33: 0 | BT33: 0 | BW33: 2034 | BX33: 0 | BY33: 0 | BZ33: 0 | CA33: 0 | CC33: 0 | CD33: 0 | CE33: 0 | CG33: 0
A34: Escalation Rate = | C34: =+'Gas Input Table Summary'!$D$23 -> 0.023 | E34: 25) Incentive/Participant = | F34: =+ROUND(F12/F30,0) -> 100 | J34: 21 | L34: 2035 | M34: 0 | N34: 5.128 | O34: 0 | P34: 0 | Q34: 0 | R34: 0 | S34: 0 | T34: 174 | U34: 0 | V34: 0 | W34: 3.592 | X34: 0 | Y34: 0 | Z34: 0 | AA34: 0 | AB34: 0 | AE34: 2035 | AF34: 0 | AG34: 0 | AH34: 0 | AJ34: 0 | AK34: 0 | AL34: 0 | AN34: 0 | AQ34: 2035 | AR34: 0 | AS34: 0 | AT34: 0.047 | AU34: 0 | AV34: 0.564 | AW34: 0 | AZ34: 0 | BB34: 0 | BC34: 0 | BD34: 0 | BE34: 0 | BH34: 2035 | BI34: 0 | BJ34: 0 | BK34: 12.299 | BL34: 0 | BM34: 0.293 | BN34: 0 | BP34: 0 | BR34: 0 | BT34: 0 | BW34: 2035 | BX34: 0 | BY34: 0 | BZ34: 0 | CA34: 0 | CC34: 0 | CD34: 0 | CE34: 0 | CG34: 0
DB35: =$J21 -> 8
A36: 10) Non Gas Fuel Environmental Damage Factor = | C36: =+'Gas Input Table Summary'!$D$24 -> 0 | E36: 26) Distribution Delivery Charge | H36: =+'Gas Input Table Summary'!D58 -> 1.744 | K36: Total = | M36: =SUM(M14:M34) -> 180 | V36: =SUM(V14:V34) -> 840 | AA36: =SUM(AA14:AA34) -> 677 | AB36: =SUM(AB14:AB34) -> 163 | AD36: Total = | AH36: =SUM(AH14:AH34) -> 840 | AL36: =SUM(AL14:AL34) -> 429 | AN36: =SUM(AN14:AN34) -> 411 | AP36: Total = | AZ36: =SUM(AZ14:AZ34) -> 912 | BD36: =SUM(BD14:BD34) -> 429 | BE36: =SUM(BE14:BE34) -> 483 | BG36: Total = | BJ36: =SUM(BJ14:BJ34) -> 180 | BP36: =SUM(BP14:BP34) -> 1706 | BR36: =SUM(BR14:BR34) -> 400 | BT36: =SUM(BT14:BT34) -> 1306 | BZ36: Total = | CA36: =SUM(CA14:CA34) -> 840 | CE36: =SUM(CE14:CE34) -> 429 | CG36: =SUM(CG14:CG34) -> 411
A37: Escalation Rate = | C37: =+'Gas Input Table Summary'!$D$25 -> 0 | T37: NPV = | V37: =ROUND(V14+NPV($C$41,V15:V34),0) -> 608 | AA37: =ROUND(AA14+NPV($C$41,AA15:AA34),0) -> 608 | AB37: =ROUND(AB14+NPV($C$41,AB15:AB34),0) -> 1 | AG37: NPV = | AH37: =ROUND(AH14+NPV($C$41,AH15:AH34),0) -> 608 | AL37: =ROUND(AL14+NPV($C$41,AL15:AL34),0) -> 429 | AN37: =+AH37-AL37 -> 179 | AW37: NPV = | AZ37: =ROUND(AZ14+NPV($C$43,AZ15:AZ34),0) -> 777 | BD37: =ROUND(BD14+NPV($C$43,BD15:BD34),0) -> 429 | BE37: =AZ37-BD37 -> 348 | BN37: NPV = | BP37: =ROUND(BP14+NPV($C$39,BP15:BP34),0) -> 1259 | BR37: =ROUND(BR14+NPV($C$39,BR15:BR34),0) -> 400 | BT37: =ROUND(BT14+NPV($C$39,BT15:BT34),0) -> 859 | BZ37: NPV = | CA37: =ROUND(CA14+NPV($C$41,CA15:CA34),0) -> 608 | CE37: =ROUND(CE14+NPV($C$41,CE15:CE34),0) -> 429 | CG37: =ROUND(CG14+NPV($C$41,CG15:CG34),0) -> 179 | DB37: =$J22 -> 9
E38: 27) Effective Income Tax Rate = | H38: =+'Gas Input Table Summary'!D59 -> 0.35
A39: 11) Participant Discount Rate = | C39: =+'Gas Input Table Summary'!$D$26 -> 0.1 | E39: (Federal & State Taxes) | K39: Total NPV = | N39: =AB37 -> 1 | AD39: Total NPV = | AG39: =AN37 -> 179 | AP39: Total NPV = | AS39: =BE37 -> 348 | BG39: Total NPV = | BJ39: =BT37 -> 859 | BV39: Total NPV = | BY39: =CG37 -> 179
K40: Benefit/Cost Ratio = | N40: =ROUND(V37/AA37,2) -> 1 | AD40: Benefit/Cost Ratio = | AG40: =ROUND(AH37/AL37,2) -> 1.42 | AP40: Benefit/Cost Ratio = | AS40: =ROUND(AZ37/BD37,2) -> 1.81 | BG40: Benefit/Cost Ratio = | BJ40: =ROUND(BP37/BR37,20) -> 3.1475 | BV40: Benefit/Cost Ratio = | BY40: =ROUND(CA37/CE37,2) -> 1.42 | DB40: =$J23 -> 10
A41: 12) Utility Discount Rate = | C41: =+'Gas Input Table Summary'!$D$27 -> 0.076 | E41: Test Results | F41: NPV | G41: B/C | DB41: =$J24 -> 11
E42: Ratepayer Impact Measure Test | F42: =N39 -> 1 | G42: =N40 -> 1 | DB42: =$J25 -> 12
A43: 13) Societal Discount Rate = | C43: =+'Gas Input Table Summary'!$D$28 -> 0.0356 | E43: Utility Cost Test | F43: =AG39 -> 179 | G43: =AG40 -> 1.42 | J43: Worksheet Calculations | AD43: Worksheet Calculations | AP43: Worksheet Calculations | BG43: Worksheet Calculations | BV43: Worksheet Calculations | DB43: =$J26 -> 13
E44: Societal Test | F44: =AS39 -> 348 | G44: =AS40 -> 1.81 | J44: (A) | K44: = Average Dk/Participant Saved (21) x Number of Participants (23) for Project Life (20) | T44: (I) | U44: = (G) x (H) | AD44: (A) | AE44: = Table 1 (F) | AP44: (A) | AQ44: = Table 1 (F) | AW44: (H) | AZ44: = Table 2 (F) | BG44: (A) | BH44: = Table 1 (N) | BV44: (A) | BW44: = Table 1 (F)
A45: 14) General Input Data Year = | C45: =+'Res .95+% Res Furnace - NEW'!C45 -> 2014 | E45: Participant Test | F45: =BJ39 -> 859 | G45: =BJ40 -> 3.1475 | J45: (B) | K45: = Commodity Cost (3) escalated | T45: (J) | U45: = (F) + (I) | AD45: (B) | AE45: = Table 1 (I) | AP45: (G) | AQ45: = Table 1 (I) | AW45: (I) | AZ45: = Direct Part. Costs (17) x No. of Part. (23) - Table 1 (N) | BG45: (B) | BH45: = Table 1 (A) | BV45: (B) | BW45: = Table 1 (I)
E46: Total Resource Cost Test | F46: =BY39 -> 179 | G46: =BY40 -> 1.42 | J46: (C) | K46: = (A) x (B) | T46: (K) | U46: = Distribution Delivery Charge (26) escalated. | AD46: (C) | AE46: = Table 1 (J) | AP46: (C) | AQ46: = Non-Gas Fuel Cost (7), adjusted for losses (8), escalated.. | AW46: (J) | AZ46: = (H) + (I) | BG46: (C) | BH46: = Retail Rate (1) escalated. | BV46: (C) | BW46: = Table 3 (D)
A47: 15) Project Analysis Year 1 = | C47: =+'Res .95+% Res Furnace - NEW'!C47 -> 2015 | J47: (D) | K47: = Variable O&M Cost (6), escalated | T47: (L) | U47: = (A) x (K) x (1-Inverse of Tax Rate (27) | AD47: (D) | AE47: = Table 1 (M) | AP47: (D) | AQ47: = (C) x [Avg. Non-Gas Fuel Units/Part.Saved (22) x No. of Part. (23) | AW47: (K) | AZ47: = (G) - (J) | BG47: (D) | BH47: =(B) x (C) | BV47: (D) | BW47: = (A) + (B) + (C)
J48: (E) | K48: = (A) x (D) | T48: (M) | U48: = Admin & Operating Costs (16a) | AD48: (E) | AE48: = Table 1 (N) | AP48: (E) | AQ48: = Gas Environmental Damage Factor (9), escalated | BG48: (E) | BH48: = Non-Gas Fuel Retail Rate (2), escalated. | BV48: (E) | BW48: = Table 3 (H)
J49: (F) | K49: = (C) + (E) | T49: (N) | U49: = Incentive Costs (16b) | AD49: (F) | AE49: = (D) + (E) | AP49: (F) | AQ49: = Table 1 (A) x (E) | BG49: (F) | BH49: = (E) x [Avg. Non-Gas Fuel Units/Part.Saved (22) x No. of Part. (23) | BV49: (F) | BW49: = Table 3 (I) | DB49: =$J27 -> 14
J50: (G) | K50: = (A) x Peak Reduction Factor (5) | T50: (O) | U50: = (L) + (M) + (N) | AD50: (G) | AE50: = (C) - (F) | AP50: (G) | AQ50: = (A) + (B) + (D) + (F) | BG50: (G) | BH50: = (A) + (D) + (F) | BV50: (G) | BW50: = (E) + (F) | DB50: =$J28 -> 15
J51: (H) | K51: = Demand Cost (4) escalated. | T51: (P) | U51: = (J) - (O) | BG51: (H) | BH51: = Direct Participant Costs (17) x Number of Participants (23) | BV51: (H) | BW51: = (D) - (G) | DB51: =$J29 -> 16
BG52: (I) | BH52: = (G) - (H)

Sheet Programmable Thermostats
A1: NATURAL GAS CONSERVATION PROGRAMS/DEMAND-SIDE MANAGEMENT | K1: Table 1 | AD1: Table 2 | AP1: Table 3 | BG1: Table 4 | BV1: Table 5
A2: BEN/COST ANALYSIS FOR GAS CONSERVATION | K2: Ratepayer Impact Measure Test | AD2: Utility Cost Test | AP2: Societal Test | BG2: Participant Test | BV2: Total Resource Cost Test
A4: Company: | B4: Montana-Dakota Utilities Co. | K4: Company: | M4: =B4 -> Montana-Dakota Utilities Co. | AD4: Company: | AF4: =B4 -> Montana-Dakota Utilities Co. | AP4: Company: | AR4: =AF4 -> Montana-Dakota Utilities Co. | BH4: Company: | BI4: =AR4 -> Montana-Dakota Utilities Co. | BW4: Company: | BX4: =BI4 -> Montana-Dakota Utilities Co.
A5: Project: | B5: ='Database Inputs'!A13 -> Programmable Thermostats | K5: Project: | M5: =$B$5 -> Programmable Thermostats | AD5: Project: | AF5: =$B$5 -> Programmable Thermostats | AP5: Project: | AR5: =$B$5 -> Programmable Thermostats | BH5: Project: | BI5: =$B$5 -> Programmable Thermostats | BW5: Project: | BX5: =$B$5 -> Programmable Thermostats
A6: Program Years: | B6: Actual 2015
N7: Benefits | X7: Costs | AF7: Benefits | AJ7: Costs | AR7: Benefits | BB7: Costs | BI7: Benefits | BR7: Costs | BX7: Benefits | CC7: Costs
A8: Input Data | F8: 2015 | AB8: Annual | AN8: Annual | AT8: Non-Gas | BE8: Annual | BT8: Annual | CG8: Annual
M9: Total | N9: Gas | O9: Gas | P9: Variable | Q9: Variable | R9: Total | S9: Peak Dk | T9: Demand | U9: Total | W9: Distribution | Y9: Program | AA9: Total | AB9: Benefits | AF9: Total | AG9: Total | AH9: Annual | AJ9: Program | AL9: Utility | AN9: Benefits | AR9: Total | AS9: Total | AT9: Energy | AU9: Non-Gas | AV9: Environmental | AW9: Environmental | AZ9: Annual | BB9: Utility | BC9: Participants' | BD9: Annual | BE9: Benefits | BJ9: Total | BL9: Gas | BM9: Non-Gas | BN9: Non-Gas | BP9: Total | BR9: Direct | BT9: Benefits | BX9: Total | BY9: Total | BZ9: Non-Gas | CA9: Total | CC9: Utility | CD9: Participants' | CG9: Benefits
A10: 1) Retail Rate ($/Dk) = | C10: =+'Gas Input Table Summary'!$D$7 -> 5.972 | E10: 16) Utility Project Costs | M10: Energy | N10: Commodity | O10: Commodity | P10: O & M | Q10: O & M | R10: Energy | S10: Demand | T10: Savings | U10: Demand | V10: Total | W10: Delivery | X10: Lost | Y10: Admin | Z10: Incentive | AA10: Program | AB10: Less | AF10: Energy | AG10: Demand | AH10: Total | AJ10: Admin | AK10: Incentive | AL10: Program | AN10: Less | AR10: Energy | AS10: Demand | AT10: Savings | AU10: Energy | AV10: Damage | AW10: Damage | AZ10: Total | BB10: Program | BC10: Costs Net | BD10: Total | BE10: Less | BI10: Incentives | BJ10: Energy | BK10: Retail | BL10: Bill | BM10: Fuel | BN10: Energy | BP10: Annual | BR10: Participant | BT10: Less | BX10: Energy | BY10: Demand | BZ10: Energy | CA10: Annual | CC10: Program | CD10: Costs Net | CE10: Total | CG10: Less
A11: Escalation Rate = | C11: =+'Gas Input Table Summary'!$D$8 -> 0.035 | E11: 16a) Administrative & Operating Costs = | F11: =+'Total Program Inputs'!K14 -> 226 | J11: t | M11: Reduction | N11: Cost/Dk | O11: Savings | P11: Cost/Dk | Q11: Savings | R11: Savings | S11: Reduction | T11: Per Unit | U11: Savings | V11: Savings | W11: Charge | X11: Margin | Y11: Costs | Z11: Costs | AA11: Costs | AB11: Costs | AF11: Savings | AG11: Savings | AH11: Savings | AJ11: Costs | AK11: Costs | AL11: Costs | AN11: Costs | AR11: Savings | AS11: Savings | AT11: ($/Part.) | AU11: Savings | AV11: Savings/Dk | AW11: Savings | AZ11: Savings | BB11: Costs | BC11: of Rebate | BD11: Costs | BE11: Costs | BI11: Received | BJ11: Reduction | BK11: Rate | BL11: Savings | BM11: Retail Rate | BN11: Savings | BP11: Benefits | BR11: Costs | BT11: Costs | BX11: Savings | BY11: Savings | BZ11: Savings | CA11: Benefits | CC11: Costs | CD11: of Rebate | CE11: Costs | CG11: Costs
E12: 16b) Incentive Costs = | F12: =+'Total Program Inputs'!G14 -> 3040 | L12: Year | M12: (A) | N12: (B) | O12: (C) | P12: (D) | Q12: (E) | R12: (F) | S12: (G) | T12: (H) | U12: (I) | V12: (J) | W12: (K) | X12: (L) | Y12: (M) | Z12: (N) | AA12: (O) | AB12: (P) | AE12: Year | AF12: (A) | AG12: (B) | AH12: (C) | AJ12: (D) | AK12: (E) | AL12: (F) | AN12: (G) | AQ12: Year | AR12: (A) | AS12: (B) | AT12: (C) | AU12: (D) | AV12: (E) | AW12: (F) | AZ12: (G) | BB12: (H) | BC12: (I) | BD12: (J) | BE12: (K) | BH12: Year | BI12: (A) | BJ12: (B) | BK12: (C) | BL12: (D) | BM12: (E) | BN12: (F) | BP12: (G) | BR12: (H) | BT12: (I) | BW12: Year | BX12: (A) | BY12: (B) | BZ12: (C) | CA12: (D) | CC12: (E) | CD12: (F) | CE12: (G) | CG12: (H)
A13: 2) Non-Gas Fuel Retail Rate ($/Fuel Unit) = | C13: =+'Gas Input Table Summary'!$D$9 -> 0.14206 | E13: 16c) Total Utility Project Costs = | F13: =SUM(F11:F12) -> 3266
A14: Escalation Rate = | C14: =+'Gas Input Table Summary'!$D$10 -> 0.035 | J14: =$C$47-$C$45 -> 1 | L14: =$C$47 -> 2015 | M14: =ROUND(IF($C$47+$F$23>L14,F25*F30,0),0) -> 441 | N14: =ROUND($C$17*(1),3) -> 2.577 | O14: =ROUND(M14*N14,0) -> 1136 | P14: =ROUND($C$25*(1+$C$26)^J14,3) -> 0 | Q14: =ROUND(M14*P14,0) -> 0 | R14: =O14+Q14 -> 1136 | S14: =ROUND(M14*$C$23,1) -> 4.4 | T14: =ROUND($C$20*(1),0) -> 142 | U14: =ROUND(S14*T14,0) -> 625 | V14: =ROUND(+U14+R14,0) -> 1761 | W14: =ROUND($H$36*(1+$C$11)^J14,3) -> 1.805 | X14: =ROUND((1-$H$38)*(W14*M14),0) -> 517 | Y14: =ROUND($F$11,0) -> 226 | Z14: =ROUND($F$12,0) -> 3040 | AA14: =SUM(X14:Z14) -> 3783 | AB14: =V14-AA14 -> -2022 | AE14: =$C$47 -> 2015 | AF14: =+R14 -> 1136 | AG14: =+U14 -> 625 | AH14: =+AG14+AF14 -> 1761 | AJ14: =ROUND(Y14,0) -> 226 | AK14: =ROUND(Z14,0) -> 3040 | AL14: =SUM(AJ14:AK14) -> 3266 | AN14: =+AH14-AL14 -> -1505 | AQ14: =$C$47 -> 2015 | AR14: =AF14 -> 1136 | AS14: =+AG14 -> 625 | AT14: =ROUND(($C$28/(1-$C$31))*(1+$C$29)^J14,3) -> 0.024 | AU14: =ROUND(IF($C$47+$F$23>$AQ14,$F$30*$F$27,0)*AT14,0) -> 0 | AV14: =ROUND($C$33*(1+$C$34)^J14,3) -> 0.358 | AW14: =ROUND(AV14*M14,0) -> 158 | AZ14: =ROUND(AR14+AS14+AU14+AW14+AY14,0) -> 1919 | BB14: =ROUND($F$13,0) -> 3266 | BC14: =ROUND((F15*F30)-Z14,0) -> 6080 | BD14: =BB14+BC14 -> 9346 | BE14: =AZ14-BD14 -> -7427 | BH14: =$C$47 -> 2015 | BI14: =+F12 -> 3040 | BJ14: =+M14 -> 441 | BK14: =ROUND($C$10*(1+$C$11)^J14,3) -> 6.181 | BL14: =ROUND(BJ14*BK14,0) -> 2726 | BM14: =ROUND($C$13*(1+$C$14)^J14,3) -> 0.147 | BN14: =ROUND(IF($C$47+$F$23>$BH14,$F$30*$F$27,0)*BM14,0) -> 0 | BP14: =BI14+BL14+BN14+BO14 -> 5766 | BR14: =ROUND(F15*F30,0) -> 9120 | BT14: =BP14-BR14 -> -3354 | BW14: =$C$47 -> 2015 | BX14: =$R14 -> 1136 | BY14: =U14 -> 625 | BZ14: =AU14 -> 0 | CA14: =SUM(BX14:BZ14) -> 1761 | CC14: =BB14 -> 3266 | CD14: =BC14 -> 6080 | CE14: =SUM(CC14:CD14) -> 9346 | CG14: =CA14-CE14 -> -7585
A15: Non-Gas Fuel Units (ie. kWh,Gallons, etc) = | C15: =+'Gas Input Table Summary'!$D$11 -> Kwh | E15: 17) Direct Participant Costs ($/Part.) = | F15: =ROUND('Database Inputs'!K13,0) -> 60 | J15: =J14+1 -> 2 | L15: =L14+1 -> 2016 | M15: =ROUND(IF($C$47+$F$23>L15,$F$25*$F$30,0)+IF($C$48+$G$23>L15,$G$25*$G$30,0),0) -> 441 | N15: =ROUND($C$17*(1+$C$18)^J14,3) -> 2.667 | O15: 1176 | P15: 0 | Q15: =ROUND(M15*P15,0) -> 0 | R15: 1176 | S15: 4.4 | T15: =ROUND($C$20*(1+$C$21)^J14,0) -> 144 | U15: =ROUND(S15*T15,0) -> 634 | V15: =ROUND(+U15+R15,0) -> 1810 | W15: 1.868 | X15: 535 | Y15: =ROUND($G$11,0) -> 0 | Z15: =ROUND($G$12,0) -> 0 | AA15: 535 | AB15: 1275 | AE15: =AE14+1 -> 2016 | AF15: 1176 | AG15: 634 | AH15: =+AG15+AF15 -> 1810 | AJ15: =ROUND(Y15,0) -> 0 | AK15: 0 | AL15: 0 | AN15: 1810 | AQ15: =AQ14+1 -> 2016 | AR15: 1176 | AS15: 634 | AT15: 0.025 | AU15: =ROUND((IF($C$47+$F$23>$AQ15,$F$27*$F$30,0)+IF($C$48+$G$23>AQ15,$G$27*$G$30,0))*AT15,0) -> 0 | AV15: 0.366 | AW15: 161 | AZ15: =ROUND(AR15+AS15+AU15+AW15+AY15,0) -> 1971 | BB15: =ROUND($G$13,0) -> 0 | BC15: =ROUND(($G$15*$G$30)-$Z$15,0) -> 0 | BD15: =BB15+BC15 -> 0 | BE15: 1971 | BH15: =BH14+1 -> 2016 | BI15: =+G12 -> 0 | BJ15: 441 | BK15: 6.397 | BL15: =ROUND(BJ15*BK15,0) -> 2821 | BM15: 0.152 | BN15: =ROUND((IF($C$47+$F$23>BH15,$F$27*$F$30,0)+IF($C$48+$G$23>BH15,$G$27*$G$30,0))*BM15,0) -> 0 | BP15: 2821 | BR15: =ROUND($G$15*$G$30,0) -> 0 | BT15: =BP15-BR15 -> 2821 | BW15: =BW14+1 -> 2016 | BX15: 1176 | BY15: =U15 -> 634 | BZ15: =AU15 -> 0 | CA15: =SUM(BX15:BZ15) -> 1810 | CC15: =BB15 -> 0 | CD15: 0 | CE15: =SUM(CC15:CD15) -> 0 | CG15: =CA15-CE15 -> 1810
J16: 3 | L16: 2017 | M16: =ROUND(IF($C$47+$F$23>L16,$F$25*$F$30,0)+IF($C$48+$G$23>L16,$G$25*$G$30,0)+IF($C$49+$H$23>L16,$H$25*$H$30,0),0) -> 441 | N16: =ROUND($C$17*(1+$C$18)^J15,3) -> 2.761 | O16: 1218 | P16: 0 | Q16: 0 | R16: 1218 | S16: 4.4 | T16: =ROUND($C$20*(1+$C$21)^J15,0) -> 145 | U16: =ROUND(S16*T16,0) -> 638 | V16: 1856 | W16: 1.934 | X16: 554 | Y16: =ROUND($H$11,0) -> 0 | Z16: =ROUND($H$12,0) -> 0 | AA16: 554 | AB16: 1302 | AE16: 2017 | AF16: 1218 | AG16: 638 | AH16: =+AG16+AF16 -> 1856 | AJ16: 0 | AK16: 0 | AL16: 0 | AN16: 1856 | AQ16: 2017 | AR16: 1218 | AS16: 638 | AT16: 0.025 | AU16: =ROUND((IF($C$47+$F$23>$AQ16,$F$27*$F$30,0)+IF($C$48+$G$23>AQ16,$G$27*$G$30,0)+IF($C$49+$H$23>AQ16,$H$27*$H$30,0))*AT16,0) -> 0 | AV16: 0.375 | AW16: 165 | AZ16: 2021 | BB16: =ROUND($H$13,0) -> 0 | BC16: =ROUND(($H$15*$H$30)-$Z$16,0) -> 0 | BD16: 0 | BE16: 2021 | BH16: 2017 | BI16: =ROUND(H12,0) -> 0 | BJ16: 441 | BK16: 6.621 | BL16: =ROUND(BJ16*BK16,0) -> 2920 | BM16: 0.158 | BN16: =ROUND((IF($C$47+$F$23>BH16,$F$27*$F$30,0)+IF($C$49+$H$23>BH16,$H$27*$H$30,0)+IF($C$48+$G$23>BH16,$G$27*$G$30,0))*BM16,0) -> 0 | BP16: 2920 | BR16: =ROUND($H$15*$H$30,0) -> 0 | BT16: 2920 | BW16: 2017 | BX16: 1218 | BY16: 638 | BZ16: 0 | CA16: 1856 | CC16: 0 | CD16: 0 | CE16: 0 | CG16: =CA16-CE16 -> 1856
A17: 3) Commodity Cost ($/Dk) = | C17: =+'Gas Input Table Summary'!$D$12 -> 2.577 | E17: 18) Participant Non-Energy Costs (Annual $/Part.) = | F17: =+'Gas Input Table Summary'!D35 -> 0 | J17: 4 | L17: 2018 | M17: =ROUND(IF($C$47+$F$23>L17,$F$25*$F$30,0)+IF($C$48+$G$23>L17,$G$25*$G$30,0)+IF($C$49+$H$23>L17,$H$25*$H$30,0),0) -> 441 | N17: 2.857 | O17: 1260 | P17: 0 | Q17: 0 | R17: 1260 | S17: 4.4 | T17: 147 | U17: 647 | V17: 1907 | W17: 2.001 | X17: 574 | Y17: 0 | Z17: 0 | AA17: 574 | AB17: 1333 | AE17: 2018 | AF17: 1260 | AG17: 647 | AH17: 1907 | AJ17: 0 | AK17: 0 | AL17: 0 | AN17: 1907 | AQ17: 2018 | AR17: 1260 | AS17: 647 | AT17: 0.026 | AU17: =ROUND((IF($C$47+$F$23>$AQ17,$F$27*$F$30,0)+IF($C$48+$G$23>AQ17,$G$27*$G$30,0)+IF($C$49+$H$23>AQ17,$H$27*$H$30,0))*AT17,0) -> 0 | AV17: 0.383 | AW17: 169 | AZ17: 2076 | BB17: 0 | BC17: 0 | BD17: 0 | BE17: 2076 | BH17: 2018 | BI17: 0 | BJ17: 441 | BK17: 6.853 | BL17: 3022 | BM17: 0.163 | BN17: =ROUND((IF($C$47+$F$23>BH17,$F$27*$F$30,0)+IF($C$49+$H$23>BH17,$H$27*$H$30,0)+IF($C$48+$G$23>BH17,$G$27*$G$30,0))*BM17,0) -> 0 | BP17: 3022 | BR17: =+BC17 -> 0 | BT17: 3022 | BW17: 2018 | BX17: 1260 | BY17: 647 | BZ17: 0 | CA17: 1907 | CC17: 0 | CD17: 0 | CE17: 0 | CG17: 1907
A18: Escalation Rate = | C18: =+'Gas Input Table Summary'!$D$13 -> 0.035 | E18: Escalation Rate = | F18: =+'Gas Input Table Summary'!D38 -> 0 | J18: 5 | L18: 2019 | M18: 441 | N18: 2.957 | O18: 1304 | P18: 0 | Q18: 0 | R18: 1304 | S18: 4.4 | T18: 148 | U18: 651 | V18: 1955 | W18: 2.071 | X18: 594 | Y18: 0 | Z18: 0 | AA18: 594 | AB18: 1361 | AE18: 2019 | AF18: 1304 | AG18: 651 | AH18: 1955 | AJ18: 0 | AK18: 0 | AL18: 0 | AN18: 1955 | AQ18: 2019 | AR18: 1304 | AS18: 651 | AT18: 0.027 | AU18: 0 | AV18: 0.392 | AW18: 173 | AZ18: 2128 | BB18: 0 | BC18: 0 | BD18: 0 | BE18: 2128 | BH18: 2019 | BI18: 0 | BJ18: 441 | BK18: 7.093 | BL18: 3128 | BM18: 0.169 | BN18: 0 | BP18: 3128 | BR18: 0 | BT18: 3128 | BW18: 2019 | BX18: 1304 | BY18: 651 | BZ18: 0 | CA18: 1955 | CC18: 0 | CD18: 0 | CE18: 0 | CG18: 1955 | DB18: t
J19: 6 | L19: 2020 | M19: 441 | N19: 3.061 | O19: 1350 | P19: 0 | Q19: 0 | R19: 1350 | S19: 4.4 | T19: 149 | U19: 656 | V19: 2006 | W19: 2.144 | X19: 615 | Y19: 0 | Z19: 0 | AA19: 615 | AB19: 1391 | AE19: 2020 | AF19: 1350 | AG19: 656 | AH19: 2006 | AJ19: 0 | AK19: 0 | AL19: 0 | AN19: 2006 | AQ19: 2020 | AR19: 1350 | AS19: 656 | AT19: 0.028 | AU19: 0 | AV19: 0.401 | AW19: 177 | AZ19: 2183 | BB19: 0 | BC19: 0 | BD19: 0 | BE19: 2183 | BH19: 2020 | BI19: 0 | BJ19: 441 | BK19: 7.341 | BL19: 3237 | BM19: 0.175 | BN19: 0 | BP19: 3237 | BR19: 0 | BT19: 3237 | BW19: 2020 | BX19: 1350 | BY19: 656 | BZ19: 0 | CA19: 2006 | CC19: 0 | CD19: 0 | CE19: 0 | CG19: 2006
A20: 4) Demand Cost ($/Unit/Yr) = | C20: =+'Gas Input Table Summary'!$D$14 -> 142.21 | E20: 19) Participant Non-Energy Savings (Annual $/Part) = | F20: =+'Gas Input Table Summary'!D41 -> 0 | J20: 7 | L20: 2021 | M20: 441 | N20: 3.168 | O20: 1397 | P20: 0 | Q20: 0 | R20: 1397 | S20: 4.4 | T20: 151 | U20: 664 | V20: 2061 | W20: 2.219 | X20: 636 | Y20: 0 | Z20: 0 | AA20: 636 | AB20: 1425 | AE20: 2021 | AF20: 1397 | AG20: 664 | AH20: 2061 | AJ20: 0 | AK20: 0 | AL20: 0 | AN20: 2061 | AQ20: 2021 | AR20: 1397 | AS20: 664 | AT20: 0.029 | AU20: 0 | AV20: 0.41 | AW20: 181 | AZ20: 2242 | BB20: 0 | BC20: 0 | BD20: 0 | BE20: 2242 | BH20: 2021 | BI20: 0 | BJ20: 441 | BK20: 7.598 | BL20: 3351 | BM20: 0.181 | BN20: 0 | BP20: 3351 | BR20: 0 | BT20: 3351 | BW20: 2021 | BX20: 1397 | BY20: 664 | BZ20: 0 | CA20: 2061 | CC20: 0 | CD20: 0 | CE20: 0 | CG20: 2061
A21: Escalation Rate = | C21: =+'Gas Input Table Summary'!$D$15 -> 0.01 | E21: Escalation Rate = | F21: =+'Gas Input Table Summary'!D44 -> 0 | J21: 8 | L21: 2022 | M21: 441 | N21: 3.279 | O21: 1446 | P21: 0 | Q21: 0 | R21: 1446 | S21: 4.4 | T21: 152 | U21: 669 | V21: 2115 | W21: 2.297 | X21: 658 | Y21: 0 | Z21: 0 | AA21: 658 | AB21: 1457 | AE21: 2022 | AF21: 1446 | AG21: 669 | AH21: 2115 | AJ21: 0 | AK21: 0 | AL21: 0 | AN21: 2115 | AQ21: 2022 | AR21: 1446 | AS21: 669 | AT21: 0.03 | AU21: 0 | AV21: 0.42 | AW21: 185 | AZ21: 2300 | BB21: 0 | BC21: 0 | BD21: 0 | BE21: 2300 | BH21: 2022 | BI21: 0 | BJ21: 441 | BK21: 7.864 | BL21: 3468 | BM21: 0.187 | BN21: 0 | BP21: 3468 | BR21: 0 | BT21: 3468 | BW21: 2022 | BX21: 1446 | BY21: 669 | BZ21: 0 | CA21: 2115 | CC21: 0 | CD21: 0 | CE21: 0 | CG21: 2115 | DB21: =$J14 -> 1
J22: 9 | L22: 2023 | M22: 441 | N22: 3.393 | O22: 1496 | P22: 0 | Q22: 0 | R22: 1496 | S22: 4.4 | T22: 154 | U22: 678 | V22: 2174 | W22: 2.377 | X22: 681 | Y22: 0 | Z22: 0 | AA22: 681 | AB22: 1493 | AE22: 2023 | AF22: 1496 | AG22: 678 | AH22: 2174 | AJ22: 0 | AK22: 0 | AL22: 0 | AN22: 2174 | AQ22: 2023 | AR22: 1496 | AS22: 678 | AT22: 0.031 | AU22: 0 | AV22: 0.429 | AW22: 189 | AZ22: 2363 | BB22: 0 | BC22: 0 | BD22: 0 | BE22: 2363 | BH22: 2023 | BI22: 0 | BJ22: 441 | BK22: 8.139 | BL22: 3589 | BM22: 0.194 | BN22: 0 | BP22: 3589 | BR22: 0 | BT22: 3589 | BW22: 2023 | BX22: 1496 | BY22: 678 | BZ22: 0 | CA22: 2174 | CC22: 0 | CD22: 0 | CE22: 0 | CG22: 2174 | DB22: =$J15 -> 2
A23: 5) Peak Reduction Factor = | C23: =+'Gas Input Table Summary'!$D$16 -> 0.01 | E23: 20) Project Life (Years) = | F23: =ROUND('Database Inputs'!D13,0) -> 10 | J23: 10 | L23: 2024 | M23: 441 | N23: 3.512 | O23: 1549 | P23: 0 | Q23: 0 | R23: 1549 | S23: 4.4 | T23: 156 | U23: 686 | V23: 2235 | W23: 2.46 | X23: 705 | Y23: 0 | Z23: 0 | AA23: 705 | AB23: 1530 | AE23: 2024 | AF23: 1549 | AG23: 686 | AH23: 2235 | AJ23: 0 | AK23: 0 | AL23: 0 | AN23: 2235 | AQ23: 2024 | AR23: 1549 | AS23: 686 | AT23: 0.032 | AU23: 0 | AV23: 0.439 | AW23: 194 | AZ23: 2429 | BB23: 0 | BC23: 0 | BD23: 0 | BE23: 2429 | BH23: 2024 | BI23: 0 | BJ23: 441 | BK23: 8.424 | BL23: 3715 | BM23: 0.2 | BN23: 0 | BP23: 3715 | BR23: 0 | BT23: 3715 | BW23: 2024 | BX23: 1549 | BY23: 686 | BZ23: 0 | CA23: 2235 | CC23: 0 | CD23: 0 | CE23: 0 | CG23: 2235 | DB23: =$J16 -> 3
J24: 11 | L24: 2025 | M24: 0 | N24: 3.635 | O24: 0 | P24: 0 | Q24: 0 | R24: 0 | S24: 0 | T24: 157 | U24: 0 | V24: 0 | W24: 2.546 | X24: 0 | Y24: 0 | Z24: 0 | AA24: 0 | AB24: 0 | AE24: 2025 | AF24: 0 | AG24: 0 | AH24: 0 | AJ24: 0 | AK24: 0 | AL24: 0 | AN24: 0 | AQ24: 2025 | AR24: 0 | AS24: 0 | AT24: 0.034 | AU24: 0 | AV24: 0.449 | AW24: 0 | AZ24: 0 | BB24: 0 | BC24: 0 | BD24: 0 | BE24: 0 | BH24: 2025 | BI24: 0 | BJ24: 0 | BK24: 8.719 | BL24: 0 | BM24: 0.207 | BN24: 0 | BP24: 0 | BR24: 0 | BT24: 0 | BW24: 2025 | BX24: 0 | BY24: 0 | BZ24: 0 | CA24: 0 | CC24: 0 | CD24: 0 | CE24: 0 | CG24: 0 | DB24: =$J17 -> 4
A25: 6) Variable O&M ($/Dk) = | C25: =+'Gas Input Table Summary'!$D$17 -> 0 | E25: 21) Avg. Dk/Part. Saved = | F25: =+ROUND(F32/F30,3) -> 2.901 | J25: 12 | L25: 2026 | M25: 0 | N25: 3.762 | O25: 0 | P25: 0 | Q25: 0 | R25: 0 | S25: 0 | T25: 159 | U25: 0 | V25: 0 | W25: 2.635 | X25: 0 | Y25: 0 | Z25: 0 | AA25: 0 | AB25: 0 | AE25: 2026 | AF25: 0 | AG25: 0 | AH25: 0 | AJ25: 0 | AK25: 0 | AL25: 0 | AN25: 0 | AQ25: 2026 | AR25: 0 | AS25: 0 | AT25: 0.035 | AU25: 0 | AV25: 0.46 | AW25: 0 | AZ25: 0 | BB25: 0 | BC25: 0 | BD25: 0 | BE25: 0 | BH25: 2026 | BI25: 0 | BJ25: 0 | BK25: 9.024 | BL25: 0 | BM25: 0.215 | BN25: 0 | BP25: 0 | BR25: 0 | BT25: 0 | BW25: 2026 | BX25: 0 | BY25: 0 | BZ25: 0 | CA25: 0 | CC25: 0 | CD25: 0 | CE25: 0 | CG25: 0
A26: Escalation Rate = | C26: =+'Gas Input Table Summary'!$D$18 -> 0 | J26: 13 | L26: 2027 | M26: 0 | N26: 3.894 | O26: 0 | P26: 0 | Q26: 0 | R26: 0 | S26: 0 | T26: 160 | U26: 0 | V26: 0 | W26: 2.728 | X26: 0 | Y26: 0 | Z26: 0 | AA26: 0 | AB26: 0 | AE26: 2027 | AF26: 0 | AG26: 0 | AH26: 0 | AJ26: 0 | AK26: 0 | AL26: 0 | AN26: 0 | AQ26: 2027 | AR26: 0 | AS26: 0 | AT26: 0.036 | AU26: 0 | AV26: 0.47 | AW26: 0 | AZ26: 0 | BB26: 0 | BC26: 0 | BD26: 0 | BE26: 0 | BH26: 2027 | BI26: 0 | BJ26: 0 | BK26: 9.34 | BL26: 0 | BM26: 0.222 | BN26: 0 | BP26: 0 | BR26: 0 | BT26: 0 | BW26: 2027 | BX26: 0 | BY26: 0 | BZ26: 0 | CA26: 0 | CC26: 0 | CD26: 0 | CE26: 0 | CG26: 0
E27: 22) Avg Non-Gas Fuel Units/Part. Saved = | F27: =+'Database Inputs'!H13 -> 0 | J27: 14 | L27: 2028 | M27: 0 | N27: 4.03 | O27: 0 | P27: 0 | Q27: 0 | R27: 0 | S27: 0 | T27: 162 | U27: 0 | V27: 0 | W27: 2.823 | X27: 0 | Y27: 0 | Z27: 0 | AA27: 0 | AB27: 0 | AE27: 2028 | AF27: 0 | AG27: 0 | AH27: 0 | AJ27: 0 | AK27: 0 | AL27: 0 | AN27: 0 | AQ27: 2028 | AR27: 0 | AS27: 0 | AT27: 0.037 | AU27: 0 | AV27: 0.481 | AW27: 0 | AZ27: 0 | BB27: 0 | BC27: 0 | BD27: 0 | BE27: 0 | BH27: 2028 | BI27: 0 | BJ27: 0 | BK27: 9.667 | BL27: 0 | BM27: 0.23 | BN27: 0 | BP27: 0 | BR27: 0 | BT27: 0 | BW27: 2028 | BX27: 0 | BY27: 0 | BZ27: 0 | CA27: 0 | CC27: 0 | CD27: 0 | CE27: 0 | CG27: 0
A28: 7) Non-Gas Fuel Cost ($/Fuel Unit) = | C28: =+'Gas Input Table Summary'!$D$19 -> 0.0218 | E28: 22a) Avg Additional Non-Gas Fuel Units/ Part. Used = | F28: 0 | J28: 15 | L28: 2029 | M28: 0 | N28: 4.171 | O28: 0 | P28: 0 | Q28: 0 | R28: 0 | S28: 0 | T28: 163 | U28: 0 | V28: 0 | W28: 2.922 | X28: 0 | Y28: 0 | Z28: 0 | AA28: 0 | AB28: 0 | AE28: 2029 | AF28: 0 | AG28: 0 | AH28: 0 | AJ28: 0 | AK28: 0 | AL28: 0 | AN28: 0 | AQ28: 2029 | AR28: 0 | AS28: 0 | AT28: 0.038 | AU28: 0 | AV28: 0.492 | AW28: 0 | AZ28: 0 | BB28: 0 | BC28: 0 | BD28: 0 | BE28: 0 | BH28: 2029 | BI28: 0 | BJ28: 0 | BK28: 10.005 | BL28: 0 | BM28: 0.238 | BN28: 0 | BP28: 0 | BR28: 0 | BT28: 0 | BW28: 2029 | BX28: 0 | BY28: 0 | BZ28: 0 | CA28: 0 | CC28: 0 | CD28: 0 | CE28: 0 | CG28: 0
A29: Escalation Rate = | C29: =+'Gas Input Table Summary'!$D$20 -> 0.035 | J29: 16 | L29: 2030 | M29: 0 | N29: 4.317 | O29: 0 | P29: 0 | Q29: 0 | R29: 0 | S29: 0 | T29: 165 | U29: 0 | V29: 0 | W29: 3.024 | X29: 0 | Y29: 0 | Z29: 0 | AA29: 0 | AB29: 0 | AE29: 2030 | AF29: 0 | AG29: 0 | AH29: 0 | AJ29: 0 | AK29: 0 | AL29: 0 | AN29: 0 | AQ29: 2030 | AR29: 0 | AS29: 0 | AT29: 0.04 | AU29: 0 | AV29: 0.504 | AW29: 0 | AZ29: 0 | BB29: 0 | BC29: 0 | BD29: 0 | BE29: 0 | BH29: 2030 | BI29: 0 | BJ29: 0 | BK29: 10.355 | BL29: 0 | BM29: 0.246 | BN29: 0 | BP29: 0 | BR29: 0 | BT29: 0 | BW29: 2030 | BX29: 0 | BY29: 0 | BZ29: 0 | CA29: 0 | CC29: 0 | CD29: 0 | CE29: 0 | CG29: 0
E30: 23) Number of Participants = | F30: =+'Total Program Inputs'!C14 -> 152 | J30: 17 | L30: 2031 | M30: 0 | N30: 4.468 | O30: 0 | P30: 0 | Q30: 0 | R30: 0 | S30: 0 | T30: 167 | U30: 0 | V30: 0 | W30: 3.13 | X30: 0 | Y30: 0 | Z30: 0 | AA30: 0 | AB30: 0 | AE30: 2031 | AF30: 0 | AG30: 0 | AH30: 0 | AJ30: 0 | AK30: 0 | AL30: 0 | AN30: 0 | AQ30: 2031 | AR30: 0 | AS30: 0 | AT30: 0.041 | AU30: 0 | AV30: 0.515 | AW30: 0 | AZ30: 0 | BB30: 0 | BC30: 0 | BD30: 0 | BE30: 0 | BH30: 2031 | BI30: 0 | BJ30: 0 | BK30: 10.718 | BL30: 0 | BM30: 0.255 | BN30: 0 | BP30: 0 | BR30: 0 | BT30: 0 | BW30: 2031 | BX30: 0 | BY30: 0 | BZ30: 0 | CA30: 0 | CC30: 0 | CD30: 0 | CE30: 0 | CG30: 0 | DB30: =$J18 -> 5
A31: 8) Non-Gas Fuel Loss Factor | C31: =+'Gas Input Table Summary'!$D$21 -> 0.051 | J31: 18 | L31: 2032 | M31: 0 | N31: 4.625 | O31: 0 | P31: 0 | Q31: 0 | R31: 0 | S31: 0 | T31: 168 | U31: 0 | V31: 0 | W31: 3.239 | X31: 0 | Y31: 0 | Z31: 0 | AA31: 0 | AB31: 0 | AE31: 2032 | AF31: 0 | AG31: 0 | AH31: 0 | AJ31: 0 | AK31: 0 | AL31: 0 | AN31: 0 | AQ31: 2032 | AR31: 0 | AS31: 0 | AT31: 0.043 | AU31: 0 | AV31: 0.527 | AW31: 0 | AZ31: 0 | BB31: 0 | BC31: 0 | BD31: 0 | BE31: 0 | BH31: 2032 | BI31: 0 | BJ31: 0 | BK31: 11.093 | BL31: 0 | BM31: 0.264 | BN31: 0 | BP31: 0 | BR31: 0 | BT31: 0 | BW31: 2032 | BX31: 0 | BY31: 0 | BZ31: 0 | CA31: 0 | CC31: 0 | CD31: 0 | CE31: 0 | CG31: 0 | DB31: =$J19 -> 6
E32: 24) Total Annual Dk Saved = | F32: =+'Total Program Inputs'!E14 -> 441 | J32: 19 | L32: 2033 | M32: 0 | N32: 4.787 | O32: 0 | P32: 0 | Q32: 0 | R32: 0 | S32: 0 | T32: 170 | U32: 0 | V32: 0 | W32: 3.353 | X32: 0 | Y32: 0 | Z32: 0 | AA32: 0 | AB32: 0 | AE32: 2033 | AF32: 0 | AG32: 0 | AH32: 0 | AJ32: 0 | AK32: 0 | AL32: 0 | AN32: 0 | AQ32: 2033 | AR32: 0 | AS32: 0 | AT32: 0.044 | AU32: 0 | AV32: 0.539 | AW32: 0 | AZ32: 0 | BB32: 0 | BC32: 0 | BD32: 0 | BE32: 0 | BH32: 2033 | BI32: 0 | BJ32: 0 | BK32: 11.481 | BL32: 0 | BM32: 0.273 | BN32: 0 | BP32: 0 | BR32: 0 | BT32: 0 | BW32: 2033 | BX32: 0 | BY32: 0 | BZ32: 0 | CA32: 0 | CC32: 0 | CD32: 0 | CE32: 0 | CG32: 0 | DB32: =$J20 -> 7
A33: 9) Gas Environmental Damage Factor = | C33: =+'Gas Input Table Summary'!$D$22 -> 0.35 | J33: 20 | L33: 2034 | M33: 0 | N33: 4.954 | O33: 0 | P33: 0 | Q33: 0 | R33: 0 | S33: 0 | T33: 172 | U33: 0 | V33: 0 | W33: 3.47 | X33: 0 | Y33: 0 | Z33: 0 | AA33: 0 | AB33: 0 | AE33: 2034 | AF33: 0 | AG33: 0 | AH33: 0 | AJ33: 0 | AK33: 0 | AL33: 0 | AN33: 0 | AQ33: 2034 | AR33: 0 | AS33: 0 | AT33: 0.046 | AU33: 0 | AV33: 0.552 | AW33: 0 | AZ33: 0 | BB33: 0 | BC33: 0 | BD33: 0 | BE33: 0 | BH33: 2034 | BI33: 0 | BJ33: 0 | BK33: 11.883 | BL33: 0 | BM33: 0.283 | BN33: 0 | BP33: 0 | BR33: 0 | BT33: 0 | BW33: 2034 | BX33: 0 | BY33: 0 | BZ33: 0 | CA33: 0 | CC33: 0 | CD33: 0 | CE33: 0 | CG33: 0
A34: Escalation Rate = | C34: =+'Gas Input Table Summary'!$D$23 -> 0.023 | E34: 25) Incentive/Participant = | F34: =+ROUND(F12/F30,0) -> 20 | J34: 21 | L34: 2035 | M34: 0 | N34: 5.128 | O34: 0 | P34: 0 | Q34: 0 | R34: 0 | S34: 0 | T34: 174 | U34: 0 | V34: 0 | W34: 3.592 | X34: 0 | Y34: 0 | Z34: 0 | AA34: 0 | AB34: 0 | AE34: 2035 | AF34: 0 | AG34: 0 | AH34: 0 | AJ34: 0 | AK34: 0 | AL34: 0 | AN34: 0 | AQ34: 2035 | AR34: 0 | AS34: 0 | AT34: 0.047 | AU34: 0 | AV34: 0.564 | AW34: 0 | AZ34: 0 | BB34: 0 | BC34: 0 | BD34: 0 | BE34: 0 | BH34: 2035 | BI34: 0 | BJ34: 0 | BK34: 12.299 | BL34: 0 | BM34: 0.293 | BN34: 0 | BP34: 0 | BR34: 0 | BT34: 0 | BW34: 2035 | BX34: 0 | BY34: 0 | BZ34: 0 | CA34: 0 | CC34: 0 | CD34: 0 | CE34: 0 | CG34: 0
DB35: =$J21 -> 8
A36: 10) Non Gas Fuel Environmental Damage Factor = | C36: =+'Gas Input Table Summary'!$D$24 -> 0 | E36: 26) Distribution Delivery Charge | H36: =+'Gas Input Table Summary'!D58 -> 1.744 | K36: Total = | M36: =SUM(M14:M34) -> 4410 | V36: =SUM(V14:V34) -> 19880 | AA36: =SUM(AA14:AA34) -> 9335 | AB36: =SUM(AB14:AB34) -> 10545 | AD36: Total = | AH36: =SUM(AH14:AH34) -> 19880 | AL36: =SUM(AL14:AL34) -> 3266 | AN36: =SUM(AN14:AN34) -> 16614 | AP36: Total = | AZ36: =SUM(AZ14:AZ34) -> 21632 | BD36: =SUM(BD14:BD34) -> 9346 | BE36: =SUM(BE14:BE34) -> 12286 | BG36: Total = | BJ36: =SUM(BJ14:BJ34) -> 4410 | BP36: =SUM(BP14:BP34) -> 35017 | BR36: =SUM(BR14:BR34) -> 9120 | BT36: =SUM(BT14:BT34) -> 25897 | BZ36: Total = | CA36: =SUM(CA14:CA34) -> 19880 | CE36: =SUM(CE14:CE34) -> 9346 | CG36: =SUM(CG14:CG34) -> 10534
A37: Escalation Rate = | C37: =+'Gas Input Table Summary'!$D$25 -> 0 | T37: NPV = | V37: =ROUND(V14+NPV($C$41,V15:V34),0) -> 14387 | AA37: =ROUND(AA14+NPV($C$41,AA15:AA34),0) -> 7637 | AB37: =ROUND(AB14+NPV($C$41,AB15:AB34),0) -> 6750 | AG37: NPV = | AH37: =ROUND(AH14+NPV($C$41,AH15:AH34),0) -> 14387 | AL37: =ROUND(AL14+NPV($C$41,AL15:AL34),0) -> 3266 | AN37: =+AH37-AL37 -> 11121 | AW37: NPV = | AZ37: =ROUND(AZ14+NPV($C$43,AZ15:AZ34),0) -> 18436 | BD37: =ROUND(BD14+NPV($C$43,BD15:BD34),0) -> 9346 | BE37: =AZ37-BD37 -> 9090 | BN37: NPV = | BP37: =ROUND(BP14+NPV($C$39,BP15:BP34),0) -> 24082 | BR37: =ROUND(BR14+NPV($C$39,BR15:BR34),0) -> 9120 | BT37: =ROUND(BT14+NPV($C$39,BT15:BT34),0) -> 14962 | BZ37: NPV = | CA37: =ROUND(CA14+NPV($C$41,CA15:CA34),0) -> 14387 | CE37: =ROUND(CE14+NPV($C$41,CE15:CE34),0) -> 9346 | CG37: =ROUND(CG14+NPV($C$41,CG15:CG34),0) -> 5041 | DB37: =$J22 -> 9
E38: 27) Effective Income Tax Rate = | H38: =+'Gas Input Table Summary'!D59 -> 0.35
A39: 11) Participant Discount Rate = | C39: =+'Gas Input Table Summary'!$D$26 -> 0.1 | E39: (Federal & State Taxes) | K39: Total NPV = | N39: =AB37 -> 6750 | AD39: Total NPV = | AG39: =AN37 -> 11121 | AP39: Total NPV = | AS39: =BE37 -> 9090 | BG39: Total NPV = | BJ39: =BT37 -> 14962 | BV39: Total NPV = | BY39: =CG37 -> 5041
K40: Benefit/Cost Ratio = | N40: =ROUND(V37/AA37,2) -> 1.88 | AD40: Benefit/Cost Ratio = | AG40: =ROUND(AH37/AL37,2) -> 4.41 | AP40: Benefit/Cost Ratio = | AS40: =ROUND(AZ37/BD37,2) -> 1.97 | BG40: Benefit/Cost Ratio = | BJ40: =ROUND(BP37/BR37,20) -> 2.640570175 | BV40: Benefit/Cost Ratio = | BY40: =ROUND(CA37/CE37,2) -> 1.54 | DB40: =$J23 -> 10
A41: 12) Utility Discount Rate = | C41: =+'Gas Input Table Summary'!$D$27 -> 0.076 | E41: Test Results | F41: NPV | G41: B/C | DB41: =$J24 -> 11
E42: Ratepayer Impact Measure Test | F42: =N39 -> 6750 | G42: =N40 -> 1.88 | DB42: =$J25 -> 12
A43: 13) Societal Discount Rate = | C43: =+'Gas Input Table Summary'!$D$28 -> 0.0356 | E43: Utility Cost Test | F43: =AG39 -> 11121 | G43: =AG40 -> 4.41 | J43: Worksheet Calculations | AD43: Worksheet Calculations | AP43: Worksheet Calculations | BG43: Worksheet Calculations | BV43: Worksheet Calculations | DB43: =$J26 -> 13
E44: Societal Test | F44: =AS39 -> 9090 | G44: =AS40 -> 1.97 | J44: (A) | K44: = Average Dk/Participant Saved (21) x Number of Participants (23) for Project Life (20) | T44: (I) | U44: = (G) x (H) | AD44: (A) | AE44: = Table 1 (F) | AP44: (A) | AQ44: = Table 1 (F) | AW44: (H) | AZ44: = Table 2 (F) | BG44: (A) | BH44: = Table 1 (N) | BV44: (A) | BW44: = Table 1 (F)
A45: 14) General Input Data Year = | C45: =+'Res .95+% Res Furnace - NEW'!C45 -> 2014 | E45: Participant Test | F45: =BJ39 -> 14962 | G45: =BJ40 -> 2.640570175 | J45: (B) | K45: = Commodity Cost (3) escalated | T45: (J) | U45: = (F) + (I) | AD45: (B) | AE45: = Table 1 (I) | AP45: (G) | AQ45: = Table 1 (I) | AW45: (I) | AZ45: = Direct Part. Costs (17) x No. of Part. (23) - Table 1 (N) | BG45: (B) | BH45: = Table 1 (A) | BV45: (B) | BW45: = Table 1 (I)
E46: Total Resource Cost Test | F46: =BY39 -> 5041 | G46: =BY40 -> 1.54 | J46: (C) | K46: = (A) x (B) | T46: (K) | U46: = Distribution Delivery Charge (26) escalated. | AD46: (C) | AE46: = Table 1 (J) | AP46: (C) | AQ46: = Non-Gas Fuel Cost (7), adjusted for losses (8), escalated.. | AW46: (J) | AZ46: = (H) + (I) | BG46: (C) | BH46: = Retail Rate (1) escalated. | BV46: (C) | BW46: = Table 3 (D)
A47: 15) Project Analysis Year 1 = | C47: =+'Res .95+% Res Furnace - NEW'!C47 -> 2015 | J47: (D) | K47: = Variable O&M Cost (6), escalated | T47: (L) | U47: = (A) x (K) x (1-Inverse of Tax Rate (27) | AD47: (D) | AE47: = Table 1 (M) | AP47: (D) | AQ47: = (C) x [Avg. Non-Gas Fuel Units/Part.Saved (22) x No. of Part. (23) | AW47: (K) | AZ47: = (G) - (J) | BG47: (D) | BH47: =(B) x (C) | BV47: (D) | BW47: = (A) + (B) + (C)
J48: (E) | K48: = (A) x (D) | T48: (M) | U48: = Admin & Operating Costs (16a) | AD48: (E) | AE48: = Table 1 (N) | AP48: (E) | AQ48: = Gas Environmental Damage Factor (9), escalated | BG48: (E) | BH48: = Non-Gas Fuel Retail Rate (2), escalated. | BV48: (E) | BW48: = Table 3 (H)
J49: (F) | K49: = (C) + (E) | T49: (N) | U49: = Incentive Costs (16b) | AD49: (F) | AE49: = (D) + (E) | AP49: (F) | AQ49: = Table 1 (A) x (E) | BG49: (F) | BH49: = (E) x [Avg. Non-Gas Fuel Units/Part.Saved (22) x No. of Part. (23) | BV49: (F) | BW49: = Table 3 (I) | DB49: =$J27 -> 14
J50: (G) | K50: = (A) x Peak Reduction Factor (5) | T50: (O) | U50: = (L) + (M) + (N) | AD50: (G) | AE50: = (C) - (F) | AP50: (G) | AQ50: = (A) + (B) + (D) + (F) | BG50: (G) | BH50: = (A) + (D) + (F) | BV50: (G) | BW50: = (E) + (F) | DB50: =$J28 -> 15
J51: (H) | K51: = Demand Cost (4) escalated. | T51: (P) | U51: = (J) - (O) | BG51: (H) | BH51: = Direct Participant Costs (17) x Number of Participants (23) | BV51: (H) | BW51: = (D) - (G) | DB51: =$J29 -> 16
BG52: (I) | BH52: = (G) - (H)

Sheet Comm 95+ Furnace - New
A1: NATURAL GAS CONSERVATION PROGRAMS/DEMAND-SIDE MANAGEMENT | K1: Table 1 | AD1: Table 2 | AP1: Table 3 | BG1: Table 4 | BV1: Table 5
A2: BEN/COST ANALYSIS FOR GAS CONSERVATION | K2: Ratepayer Impact Measure Test | AD2: Utility Cost Test | AP2: Societal Test | BG2: Participant Test | BV2: Total Resource Cost Test
A4: Company: | B4: Montana-Dakota Utilities Co. | K4: Company: | M4: =B4 -> Montana-Dakota Utilities Co. | AD4: Company: | AF4: =B4 -> Montana-Dakota Utilities Co. | AP4: Company: | AR4: =AF4 -> Montana-Dakota Utilities Co. | BH4: Company: | BI4: =AR4 -> Montana-Dakota Utilities Co. | BW4: Company: | BX4: =BI4 -> Montana-Dakota Utilities Co.
A5: Project: | B5: Commercial 95+% AFUE Furnace - New | K5: Project: | M5: =$B$5 -> Commercial 95+% AFUE Furnace - New | AD5: Project: | AF5: =$B$5 -> Commercial 95+% AFUE Furnace - New | AP5: Project: | AR5: =$B$5 -> Commercial 95+% AFUE Furnace - New | BH5: Project: | BI5: =$B$5 -> Commercial 95+% AFUE Furnace - New | BW5: Project: | BX5: =$B$5 -> Commercial 95+% AFUE Furnace - New
A6: Program Years: | B6: Actual 2015
N7: Benefits | X7: Costs | AF7: Benefits | AJ7: Costs | AR7: Benefits | BB7: Costs | BI7: Benefits | BR7: Costs | BX7: Benefits | CC7: Costs
A8: Input Data | F8: 2015 | AB8: Annual | AN8: Annual | AT8: Non-Gas | BE8: Annual | BT8: Annual | CG8: Annual
M9: Total | N9: Gas | O9: Gas | P9: Variable | Q9: Variable | R9: Total | S9: Peak Dk | T9: Demand | U9: Total | W9: Distribution | Y9: Program | AA9: Total | AB9: Benefits | AF9: Total | AG9: Total | AH9: Annual | AJ9: Program | AL9: Utility | AN9: Benefits | AR9: Total | AS9: Total | AT9: Energy | AU9: Non-Gas | AV9: Environmental | AW9: Environmental | AZ9: Annual | BB9: Utility | BC9: Participants' | BD9: Annual | BE9: Benefits | BJ9: Total | BL9: Gas | BM9: Non-Gas | BN9: Non-Gas | BP9: Total | BR9: Direct | BT9: Benefits | BX9: Total | BY9: Total | BZ9: Non-Gas | CA9: Total | CC9: Utility | CD9: Participants' | CG9: Benefits
A10: 1) Retail Rate ($/Dk) = | C10: =+'Gas Input Table Summary'!$E$7 -> 5.53 | E10: 16) Utility Project Costs | M10: Energy | N10: Commodity | O10: Commodity | P10: O & M | Q10: O & M | R10: Energy | S10: Demand | T10: Savings | U10: Demand | V10: Total | W10: Delivery | X10: Lost | Y10: Admin | Z10: Incentive | AA10: Program | AB10: Less | AF10: Energy | AG10: Demand | AH10: Total | AJ10: Admin | AK10: Incentive | AL10: Program | AN10: Less | AR10: Energy | AS10: Demand | AT10: Savings | AU10: Energy | AV10: Damage | AW10: Damage | AZ10: Total | BB10: Program | BC10: Costs Net | BD10: Total | BE10: Less | BI10: Incentives | BJ10: Energy | BK10: Retail | BL10: Bill | BM10: Fuel | BN10: Energy | BP10: Annual | BR10: Participant | BT10: Less | BX10: Energy | BY10: Demand | BZ10: Energy | CA10: Annual | CC10: Program | CD10: Costs Net | CE10: Total | CG10: Less
A11: Escalation Rate = | C11: =+'Gas Input Table Summary'!$E$8 -> 0.035 | E11: 16a) Administrative & Operating Costs = | F11: =+'Total Program Inputs'!K17 -> 0 | J11: t | M11: Reduction | N11: Cost/Dk | O11: Savings | P11: Cost/Dk | Q11: Savings | R11: Savings | S11: Reduction | T11: Per Unit | U11: Savings | V11: Savings | W11: Charge | X11: Margin | Y11: Costs | Z11: Costs | AA11: Costs | AB11: Costs | AF11: Savings | AG11: Savings | AH11: Savings | AJ11: Costs | AK11: Costs | AL11: Costs | AN11: Costs | AR11: Savings | AS11: Savings | AT11: ($/Part.) | AU11: Savings | AV11: Savings/Dk | AW11: Savings | AZ11: Savings | BB11: Costs | BC11: of Rebate | BD11: Costs | BE11: Costs | BI11: Received | BJ11: Reduction | BK11: Rate | BL11: Savings | BM11: Retail Rate | BN11: Savings | BP11: Benefits | BR11: Costs | BT11: Costs | BX11: Savings | BY11: Savings | BZ11: Savings | CA11: Benefits | CC11: Costs | CD11: of Rebate | CE11: Costs | CG11: Costs
E12: 16b) Incentive Costs = | F12: =+'Total Program Inputs'!G17 -> 0 | L12: Year | M12: (A) | N12: (B) | O12: (C) | P12: (D) | Q12: (E) | R12: (F) | S12: (G) | T12: (H) | U12: (I) | V12: (J) | W12: (K) | X12: (L) | Y12: (M) | Z12: (N) | AA12: (O) | AB12: (P) | AE12: Year | AF12: (A) | AG12: (B) | AH12: (C) | AJ12: (D) | AK12: (E) | AL12: (F) | AN12: (G) | AQ12: Year | AR12: (A) | AS12: (B) | AT12: (C) | AU12: (D) | AV12: (E) | AW12: (F) | AZ12: (G) | BB12: (H) | BC12: (I) | BD12: (J) | BE12: (K) | BH12: Year | BI12: (A) | BJ12: (B) | BK12: (C) | BL12: (D) | BM12: (E) | BN12: (F) | BP12: (G) | BR12: (H) | BT12: (I) | BW12: Year | BX12: (A) | BY12: (B) | BZ12: (C) | CA12: (D) | CC12: (E) | CD12: (F) | CE12: (G) | CG12: (H)
A13: 2) Non-Gas Fuel Retail Rate ($/Fuel Unit) = | C13: =+'Gas Input Table Summary'!$E$9 -> 0.135 | E13: 16c) Total Utility Project Costs = | F13: =SUM(F11:F12) -> 0
A14: Escalation Rate = | C14: =+'Gas Input Table Summary'!$E$10 -> 0.035 | J14: =$C$47-$C$45 -> 1 | L14: =$C$47 -> 2015 | M14: =ROUND(IF($C$47+$F$23>L14,F25*F30,0),0) -> 0 | N14: =ROUND($C$17*(1),3) -> 2.577 | O14: =ROUND(M14*N14,0) -> 0 | P14: =ROUND($C$25*(1+$C$26)^J14,3) -> 0 | Q14: =ROUND(M14*P14,0) -> 0 | R14: =O14+Q14 -> 0 | S14: =ROUND(M14*$C$23,1) -> 0 | T14: =ROUND($C$20*(1),0) -> 142 | U14: =ROUND(S14*T14,0) -> 0 | V14: =ROUND(+U14+R14,0) -> 0 | W14: =ROUND($H$36*(1+$C$11)^J14,3) -> 1.348 | X14: =ROUND((1-$H$38)*(W14*M14),0) -> 0 | Y14: =ROUND($F$11,0) -> 0 | Z14: =ROUND($F$12,0) -> 0 | AA14: =SUM(X14:Z14) -> 0 | AB14: =V14-AA14 -> 0 | AE14: =$C$47 -> 2015 | AF14: =+R14 -> 0 | AG14: =+U14 -> 0 | AH14: =+AG14+AF14 -> 0 | AJ14: =ROUND(Y14,0) -> 0 | AK14: =ROUND(Z14,0) -> 0 | AL14: =SUM(AJ14:AK14) -> 0 | AN14: =+AH14-AL14 -> 0 | AQ14: =$C$47 -> 2015 | AR14: =AF14 -> 0 | AS14: =+AG14 -> 0 | AT14: =ROUND(($C$28/(1-$C$31))*(1+$C$29)^J14,3) -> 0.024 | AU14: =ROUND(IF($C$47+$F$23>$AQ14,$F$30*$F$27,0)*AT14,0) -> 0 | AV14: =ROUND($C$33*(1+$C$34)^J14,3) -> 0.358 | AW14: =ROUND(AV14*M14,0) -> 0 | AZ14: =ROUND(AR14+AS14+AU14+AW14+AY14,0) -> 0 | BB14: =ROUND($F$13,0) -> 0 | BC14: =ROUND((F15*F30)-Z14,0) -> 0 | BD14: =BB14+BC14 -> 0 | BE14: =AZ14-BD14 -> 0 | BH14: =$C$47 -> 2015 | BI14: =+F12 -> 0 | BJ14: =+M14 -> 0 | BK14: =ROUND($C$10*(1+$C$11)^J14,3) -> 5.724 | BL14: =ROUND(BJ14*BK14,0) -> 0 | BM14: =ROUND($C$13*(1+$C$14)^J14,3) -> 0.14 | BN14: =ROUND(IF($C$47+$F$23>$BH14,$F$30*$F$27,0)*BM14,0) -> 0 | BP14: =BI14+BL14+BN14+BO14 -> 0 | BR14: =ROUND(F15*F30,0) -> 0 | BT14: =BP14-BR14 -> 0 | BW14: =$C$47 -> 2015 | BX14: =$R14 -> 0 | BY14: =U14 -> 0 | BZ14: =AU14 -> 0 | CA14: =SUM(BX14:BZ14) -> 0 | CC14: =BB14 -> 0 | CD14: =BC14 -> 0 | CE14: =SUM(CC14:CD14) -> 0 | CG14: =CA14-CE14 -> 0
A15: Non-Gas Fuel Units (ie. kWh,Gallons, etc) = | C15: =+'Gas Input Table Summary'!$E$11 -> Kwh | E15: 17) Direct Participant Costs ($/Part.) = | F15: =ROUND('Database Inputs'!K16,0) -> 302 | J15: =J14+1 -> 2 | L15: =L14+1 -> 2016 | M15: =ROUND(IF($C$47+$F$23>L15,$F$25*$F$30,0)+IF($C$48+$G$23>L15,$G$25*$G$30,0),0) -> 0 | N15: =ROUND($C$17*(1+$C$18)^J14,3) -> 2.667 | O15: 0 | P15: 0 | Q15: =ROUND(M15*P15,0) -> 0 | R15: 0 | S15: 0 | T15: =ROUND($C$20*(1+$C$21)^J14,0) -> 144 | U15: =ROUND(S15*T15,0) -> 0 | V15: =ROUND(+U15+R15,0) -> 0 | W15: 1.395 | X15: 0 | Y15: =ROUND($G$11,0) -> 0 | Z15: =ROUND($G$12,0) -> 0 | AA15: 0 | AB15: 0 | AE15: =AE14+1 -> 2016 | AF15: 0 | AG15: 0 | AH15: =+AG15+AF15 -> 0 | AJ15: =ROUND(Y15,0) -> 0 | AK15: 0 | AL15: 0 | AN15: 0 | AQ15: =AQ14+1 -> 2016 | AR15: 0 | AS15: 0 | AT15: 0.025 | AU15: =ROUND((IF($C$47+$F$23>$AQ15,$F$27*$F$30,0)+IF($C$48+$G$23>AQ15,$G$27*$G$30,0))*AT15,0) -> 0 | AV15: 0.366 | AW15: 0 | AZ15: =ROUND(AR15+AS15+AU15+AW15+AY15,0) -> 0 | BB15: =ROUND($G$13,0) -> 0 | BC15: =ROUND(($G$15*$G$30)-$Z$15,0) -> 0 | BD15: =BB15+BC15 -> 0 | BE15: 0 | BH15: =BH14+1 -> 2016 | BI15: =+G12 -> 0 | BJ15: 0 | BK15: 5.924 | BL15: =ROUND(BJ15*BK15,0) -> 0 | BM15: 0.145 | BN15: =ROUND((IF($C$47+$F$23>BH15,$F$27*$F$30,0)+IF($C$48+$G$23>BH15,$G$27*$G$30,0))*BM15,0) -> 0 | BP15: 0 | BR15: =ROUND($G$15*$G$30,0) -> 0 | BT15: =BP15-BR15 -> 0 | BW15: =BW14+1 -> 2016 | BX15: 0 | BY15: =U15 -> 0 | BZ15: =AU15 -> 0 | CA15: =SUM(BX15:BZ15) -> 0 | CC15: =BB15 -> 0 | CD15: 0 | CE15: =SUM(CC15:CD15) -> 0 | CG15: =CA15-CE15 -> 0
J16: 3 | L16: 2017 | M16: =ROUND(IF($C$47+$F$23>L16,$F$25*$F$30,0)+IF($C$48+$G$23>L16,$G$25*$G$30,0)+IF($C$49+$H$23>L16,$H$25*$H$30,0),0) -> 0 | N16: =ROUND($C$17*(1+$C$18)^J15,3) -> 2.761 | O16: 0 | P16: 0 | Q16: 0 | R16: 0 | S16: 0 | T16: =ROUND($C$20*(1+$C$21)^J15,0) -> 145 | U16: =ROUND(S16*T16,0) -> 0 | V16: 0 | W16: 1.444 | X16: 0 | Y16: =ROUND($H$11,0) -> 0 | Z16: =ROUND($H$12,0) -> 0 | AA16: 0 | AB16: 0 | AE16: 2017 | AF16: 0 | AG16: 0 | AH16: =+AG16+AF16 -> 0 | AJ16: 0 | AK16: 0 | AL16: 0 | AN16: 0 | AQ16: 2017 | AR16: 0 | AS16: 0 | AT16: 0.025 | AU16: =ROUND((IF($C$47+$F$23>$AQ16,$F$27*$F$30,0)+IF($C$48+$G$23>AQ16,$G$27*$G$30,0)+IF($C$49+$H$23>AQ16,$H$27*$H$30,0))*AT16,0) -> 0 | AV16: 0.375 | AW16: 0 | AZ16: 0 | BB16: =ROUND($H$13,0) -> 0 | BC16: =ROUND(($H$15*$H$30)-$Z$16,0) -> 0 | BD16: 0 | BE16: 0 | BH16: 2017 | BI16: =ROUND(H12,0) -> 0 | BJ16: 0 | BK16: 6.131 | BL16: =ROUND(BJ16*BK16,0) -> 0 | BM16: 0.15 | BN16: =ROUND((IF($C$47+$F$23>BH16,$F$27*$F$30,0)+IF($C$49+$H$23>BH16,$H$27*$H$30,0)+IF($C$48+$G$23>BH16,$G$27*$G$30,0))*BM16,0) -> 0 | BP16: 0 | BR16: =ROUND($H$15*$H$30,0) -> 0 | BT16: 0 | BW16: 2017 | BX16: 0 | BY16: 0 | BZ16: 0 | CA16: 0 | CC16: 0 | CD16: 0 | CE16: 0 | CG16: =CA16-CE16 -> 0
A17: 3) Commodity Cost ($/Dk) = | C17: =+'Gas Input Table Summary'!$E$12 -> 2.577 | E17: 18) Participant Non-Energy Costs (Annual $/Part.) = | F17: =+'Gas Input Table Summary'!$E$35 -> 0 | J17: 4 | L17: 2018 | M17: =ROUND(IF($C$47+$F$23>L17,$F$25*$F$30,0)+IF($C$48+$G$23>L17,$G$25*$G$30,0)+IF($C$49+$H$23>L17,$H$25*$H$30,0),0) -> 0 | N17: 2.857 | O17: 0 | P17: 0 | Q17: 0 | R17: 0 | S17: 0 | T17: 147 | U17: 0 | V17: 0 | W17: 1.494 | X17: 0 | Y17: 0 | Z17: 0 | AA17: 0 | AB17: 0 | AE17: 2018 | AF17: 0 | AG17: 0 | AH17: 0 | AJ17: 0 | AK17: 0 | AL17: 0 | AN17: 0 | AQ17: 2018 | AR17: 0 | AS17: 0 | AT17: 0.026 | AU17: =ROUND((IF($C$47+$F$23>$AQ17,$F$27*$F$30,0)+IF($C$48+$G$23>AQ17,$G$27*$G$30,0)+IF($C$49+$H$23>AQ17,$H$27*$H$30,0))*AT17,0) -> 0 | AV17: 0.383 | AW17: 0 | AZ17: 0 | BB17: 0 | BC17: 0 | BD17: 0 | BE17: 0 | BH17: 2018 | BI17: 0 | BJ17: 0 | BK17: 6.346 | BL17: 0 | BM17: 0.155 | BN17: =ROUND((IF($C$47+$F$23>BH17,$F$27*$F$30,0)+IF($C$49+$H$23>BH17,$H$27*$H$30,0)+IF($C$48+$G$23>BH17,$G$27*$G$30,0))*BM17,0) -> 0 | BP17: 0 | BR17: =+BC17 -> 0 | BT17: 0 | BW17: 2018 | BX17: 0 | BY17: 0 | BZ17: 0 | CA17: 0 | CC17: 0 | CD17: 0 | CE17: 0 | CG17: 0
A18: Escalation Rate = | C18: =+'Gas Input Table Summary'!$E$13 -> 0.035 | E18: Escalation Rate = | F18: =+'Gas Input Table Summary'!$E$38 -> 0 | J18: 5 | L18: 2019 | M18: 0 | N18: 2.957 | O18: 0 | P18: 0 | Q18: 0 | R18: 0 | S18: 0 | T18: 148 | U18: 0 | V18: 0 | W18: 1.546 | X18: 0 | Y18: 0 | Z18: 0 | AA18: 0 | AB18: 0 | AE18: 2019 | AF18: 0 | AG18: 0 | AH18: 0 | AJ18: 0 | AK18: 0 | AL18: 0 | AN18: 0 | AQ18: 2019 | AR18: 0 | AS18: 0 | AT18: 0.027 | AU18: 0 | AV18: 0.392 | AW18: 0 | AZ18: 0 | BB18: 0 | BC18: 0 | BD18: 0 | BE18: 0 | BH18: 2019 | BI18: 0 | BJ18: 0 | BK18: 6.568 | BL18: 0 | BM18: 0.16 | BN18: 0 | BP18: 0 | BR18: 0 | BT18: 0 | BW18: 2019 | BX18: 0 | BY18: 0 | BZ18: 0 | CA18: 0 | CC18: 0 | CD18: 0 | CE18: 0 | CG18: 0 | DB18: t
J19: 6 | L19: 2020 | M19: 0 | N19: 3.061 | O19: 0 | P19: 0 | Q19: 0 | R19: 0 | S19: 0 | T19: 149 | U19: 0 | V19: 0 | W19: 1.6 | X19: 0 | Y19: 0 | Z19: 0 | AA19: 0 | AB19: 0 | AE19: 2020 | AF19: 0 | AG19: 0 | AH19: 0 | AJ19: 0 | AK19: 0 | AL19: 0 | AN19: 0 | AQ19: 2020 | AR19: 0 | AS19: 0 | AT19: 0.028 | AU19: 0 | AV19: 0.401 | AW19: 0 | AZ19: 0 | BB19: 0 | BC19: 0 | BD19: 0 | BE19: 0 | BH19: 2020 | BI19: 0 | BJ19: 0 | BK19: 6.798 | BL19: 0 | BM19: 0.166 | BN19: 0 | BP19: 0 | BR19: 0 | BT19: 0 | BW19: 2020 | BX19: 0 | BY19: 0 | BZ19: 0 | CA19: 0 | CC19: 0 | CD19: 0 | CE19: 0 | CG19: 0
A20: 4) Demand Cost ($/Unit/Yr) = | C20: =+'Gas Input Table Summary'!$E$14 -> 142.21 | E20: 19) Participant Non-Energy Savings (Annual $/Part) = | F20: =+'Gas Input Table Summary'!$E$41 -> 0 | J20: 7 | L20: 2021 | M20: 0 | N20: 3.168 | O20: 0 | P20: 0 | Q20: 0 | R20: 0 | S20: 0 | T20: 151 | U20: 0 | V20: 0 | W20: 1.657 | X20: 0 | Y20: 0 | Z20: 0 | AA20: 0 | AB20: 0 | AE20: 2021 | AF20: 0 | AG20: 0 | AH20: 0 | AJ20: 0 | AK20: 0 | AL20: 0 | AN20: 0 | AQ20: 2021 | AR20: 0 | AS20: 0 | AT20: 0.029 | AU20: 0 | AV20: 0.41 | AW20: 0 | AZ20: 0 | BB20: 0 | BC20: 0 | BD20: 0 | BE20: 0 | BH20: 2021 | BI20: 0 | BJ20: 0 | BK20: 7.036 | BL20: 0 | BM20: 0.172 | BN20: 0 | BP20: 0 | BR20: 0 | BT20: 0 | BW20: 2021 | BX20: 0 | BY20: 0 | BZ20: 0 | CA20: 0 | CC20: 0 | CD20: 0 | CE20: 0 | CG20: 0
A21: Escalation Rate = | C21: =+'Gas Input Table Summary'!$E$15 -> 0.01 | E21: Escalation Rate = | F21: =+'Gas Input Table Summary'!$E$44 -> 0 | J21: 8 | L21: 2022 | M21: 0 | N21: 3.279 | O21: 0 | P21: 0 | Q21: 0 | R21: 0 | S21: 0 | T21: 152 | U21: 0 | V21: 0 | W21: 1.714 | X21: 0 | Y21: 0 | Z21: 0 | AA21: 0 | AB21: 0 | AE21: 2022 | AF21: 0 | AG21: 0 | AH21: 0 | AJ21: 0 | AK21: 0 | AL21: 0 | AN21: 0 | AQ21: 2022 | AR21: 0 | AS21: 0 | AT21: 0.03 | AU21: 0 | AV21: 0.42 | AW21: 0 | AZ21: 0 | BB21: 0 | BC21: 0 | BD21: 0 | BE21: 0 | BH21: 2022 | BI21: 0 | BJ21: 0 | BK21: 7.282 | BL21: 0 | BM21: 0.178 | BN21: 0 | BP21: 0 | BR21: 0 | BT21: 0 | BW21: 2022 | BX21: 0 | BY21: 0 | BZ21: 0 | CA21: 0 | CC21: 0 | CD21: 0 | CE21: 0 | CG21: 0 | DB21: =$J14 -> 1
J22: 9 | L22: 2023 | M22: 0 | N22: 3.393 | O22: 0 | P22: 0 | Q22: 0 | R22: 0 | S22: 0 | T22: 154 | U22: 0 | V22: 0 | W22: 1.774 | X22: 0 | Y22: 0 | Z22: 0 | AA22: 0 | AB22: 0 | AE22: 2023 | AF22: 0 | AG22: 0 | AH22: 0 | AJ22: 0 | AK22: 0 | AL22: 0 | AN22: 0 | AQ22: 2023 | AR22: 0 | AS22: 0 | AT22: 0.031 | AU22: 0 | AV22: 0.429 | AW22: 0 | AZ22: 0 | BB22: 0 | BC22: 0 | BD22: 0 | BE22: 0 | BH22: 2023 | BI22: 0 | BJ22: 0 | BK22: 7.537 | BL22: 0 | BM22: 0.184 | BN22: 0 | BP22: 0 | BR22: 0 | BT22: 0 | BW22: 2023 | BX22: 0 | BY22: 0 | BZ22: 0 | CA22: 0 | CC22: 0 | CD22: 0 | CE22: 0 | CG22: 0 | DB22: =$J15 -> 2
A23: 5) Peak Reduction Factor = | C23: =+'Gas Input Table Summary'!$E$16 -> 0.01 | E23: 20) Project Life (Years) = | F23: =ROUND('Database Inputs'!D16,0) -> 20 | J23: 10 | L23: 2024 | M23: 0 | N23: 3.512 | O23: 0 | P23: 0 | Q23: 0 | R23: 0 | S23: 0 | T23: 156 | U23: 0 | V23: 0 | W23: 1.837 | X23: 0 | Y23: 0 | Z23: 0 | AA23: 0 | AB23: 0 | AE23: 2024 | AF23: 0 | AG23: 0 | AH23: 0 | AJ23: 0 | AK23: 0 | AL23: 0 | AN23: 0 | AQ23: 2024 | AR23: 0 | AS23: 0 | AT23: 0.032 | AU23: 0 | AV23: 0.439 | AW23: 0 | AZ23: 0 | BB23: 0 | BC23: 0 | BD23: 0 | BE23: 0 | BH23: 2024 | BI23: 0 | BJ23: 0 | BK23: 7.801 | BL23: 0 | BM23: 0.19 | BN23: 0 | BP23: 0 | BR23: 0 | BT23: 0 | BW23: 2024 | BX23: 0 | BY23: 0 | BZ23: 0 | CA23: 0 | CC23: 0 | CD23: 0 | CE23: 0 | CG23: 0 | DB23: =$J16 -> 3
J24: 11 | L24: 2025 | M24: 0 | N24: 3.635 | O24: 0 | P24: 0 | Q24: 0 | R24: 0 | S24: 0 | T24: 157 | U24: 0 | V24: 0 | W24: 1.901 | X24: 0 | Y24: 0 | Z24: 0 | AA24: 0 | AB24: 0 | AE24: 2025 | AF24: 0 | AG24: 0 | AH24: 0 | AJ24: 0 | AK24: 0 | AL24: 0 | AN24: 0 | AQ24: 2025 | AR24: 0 | AS24: 0 | AT24: 0.034 | AU24: 0 | AV24: 0.449 | AW24: 0 | AZ24: 0 | BB24: 0 | BC24: 0 | BD24: 0 | BE24: 0 | BH24: 2025 | BI24: 0 | BJ24: 0 | BK24: 8.074 | BL24: 0 | BM24: 0.197 | BN24: 0 | BP24: 0 | BR24: 0 | BT24: 0 | BW24: 2025 | BX24: 0 | BY24: 0 | BZ24: 0 | CA24: 0 | CC24: 0 | CD24: 0 | CE24: 0 | CG24: 0 | DB24: =$J17 -> 4
A25: 6) Variable O&M ($/Dk) = | C25: =+'Gas Input Table Summary'!$E$17 -> 0 | E25: 21) Avg. Dk/Part. Saved = | F25: 0 | J25: 12 | L25: 2026 | M25: 0 | N25: 3.762 | O25: 0 | P25: 0 | Q25: 0 | R25: 0 | S25: 0 | T25: 159 | U25: 0 | V25: 0 | W25: 1.967 | X25: 0 | Y25: 0 | Z25: 0 | AA25: 0 | AB25: 0 | AE25: 2026 | AF25: 0 | AG25: 0 | AH25: 0 | AJ25: 0 | AK25: 0 | AL25: 0 | AN25: 0 | AQ25: 2026 | AR25: 0 | AS25: 0 | AT25: 0.035 | AU25: 0 | AV25: 0.46 | AW25: 0 | AZ25: 0 | BB25: 0 | BC25: 0 | BD25: 0 | BE25: 0 | BH25: 2026 | BI25: 0 | BJ25: 0 | BK25: 8.356 | BL25: 0 | BM25: 0.204 | BN25: 0 | BP25: 0 | BR25: 0 | BT25: 0 | BW25: 2026 | BX25: 0 | BY25: 0 | BZ25: 0 | CA25: 0 | CC25: 0 | CD25: 0 | CE25: 0 | CG25: 0
A26: Escalation Rate = | C26: =+'Gas Input Table Summary'!$E$18 -> 0 | J26: 13 | L26: 2027 | M26: 0 | N26: 3.894 | O26: 0 | P26: 0 | Q26: 0 | R26: 0 | S26: 0 | T26: 160 | U26: 0 | V26: 0 | W26: 2.036 | X26: 0 | Y26: 0 | Z26: 0 | AA26: 0 | AB26: 0 | AE26: 2027 | AF26: 0 | AG26: 0 | AH26: 0 | AJ26: 0 | AK26: 0 | AL26: 0 | AN26: 0 | AQ26: 2027 | AR26: 0 | AS26: 0 | AT26: 0.036 | AU26: 0 | AV26: 0.47 | AW26: 0 | AZ26: 0 | BB26: 0 | BC26: 0 | BD26: 0 | BE26: 0 | BH26: 2027 | BI26: 0 | BJ26: 0 | BK26: 8.649 | BL26: 0 | BM26: 0.211 | BN26: 0 | BP26: 0 | BR26: 0 | BT26: 0 | BW26: 2027 | BX26: 0 | BY26: 0 | BZ26: 0 | CA26: 0 | CC26: 0 | CD26: 0 | CE26: 0 | CG26: 0
E27: 22) Avg Non-Gas Fuel Units/Part. Saved = | F27: =+'Database Inputs'!H16 -> 732 | J27: 14 | L27: 2028 | M27: 0 | N27: 4.03 | O27: 0 | P27: 0 | Q27: 0 | R27: 0 | S27: 0 | T27: 162 | U27: 0 | V27: 0 | W27: 2.108 | X27: 0 | Y27: 0 | Z27: 0 | AA27: 0 | AB27: 0 | AE27: 2028 | AF27: 0 | AG27: 0 | AH27: 0 | AJ27: 0 | AK27: 0 | AL27: 0 | AN27: 0 | AQ27: 2028 | AR27: 0 | AS27: 0 | AT27: 0.037 | AU27: 0 | AV27: 0.481 | AW27: 0 | AZ27: 0 | BB27: 0 | BC27: 0 | BD27: 0 | BE27: 0 | BH27: 2028 | BI27: 0 | BJ27: 0 | BK27: 8.951 | BL27: 0 | BM27: 0.219 | BN27: 0 | BP27: 0 | BR27: 0 | BT27: 0 | BW27: 2028 | BX27: 0 | BY27: 0 | BZ27: 0 | CA27: 0 | CC27: 0 | CD27: 0 | CE27: 0 | CG27: 0
A28: 7) Non-Gas Fuel Cost ($/Fuel Unit) = | C28: =+'Gas Input Table Summary'!$E$19 -> 0.0218 | E28: 22a) Avg Additional Non-Gas Fuel Units/ Part. Used = | F28: 0 | J28: 15 | L28: 2029 | M28: 0 | N28: 4.171 | O28: 0 | P28: 0 | Q28: 0 | R28: 0 | S28: 0 | T28: 163 | U28: 0 | V28: 0 | W28: 2.181 | X28: 0 | Y28: 0 | Z28: 0 | AA28: 0 | AB28: 0 | AE28: 2029 | AF28: 0 | AG28: 0 | AH28: 0 | AJ28: 0 | AK28: 0 | AL28: 0 | AN28: 0 | AQ28: 2029 | AR28: 0 | AS28: 0 | AT28: 0.038 | AU28: 0 | AV28: 0.492 | AW28: 0 | AZ28: 0 | BB28: 0 | BC28: 0 | BD28: 0 | BE28: 0 | BH28: 2029 | BI28: 0 | BJ28: 0 | BK28: 9.265 | BL28: 0 | BM28: 0.226 | BN28: 0 | BP28: 0 | BR28: 0 | BT28: 0 | BW28: 2029 | BX28: 0 | BY28: 0 | BZ28: 0 | CA28: 0 | CC28: 0 | CD28: 0 | CE28: 0 | CG28: 0
A29: Escalation Rate = | C29: =+'Gas Input Table Summary'!$E$20 -> 0.035 | J29: 16 | L29: 2030 | M29: 0 | N29: 4.317 | O29: 0 | P29: 0 | Q29: 0 | R29: 0 | S29: 0 | T29: 165 | U29: 0 | V29: 0 | W29: 2.258 | X29: 0 | Y29: 0 | Z29: 0 | AA29: 0 | AB29: 0 | AE29: 2030 | AF29: 0 | AG29: 0 | AH29: 0 | AJ29: 0 | AK29: 0 | AL29: 0 | AN29: 0 | AQ29: 2030 | AR29: 0 | AS29: 0 | AT29: 0.04 | AU29: 0 | AV29: 0.504 | AW29: 0 | AZ29: 0 | BB29: 0 | BC29: 0 | BD29: 0 | BE29: 0 | BH29: 2030 | BI29: 0 | BJ29: 0 | BK29: 9.589 | BL29: 0 | BM29: 0.234 | BN29: 0 | BP29: 0 | BR29: 0 | BT29: 0 | BW29: 2030 | BX29: 0 | BY29: 0 | BZ29: 0 | CA29: 0 | CC29: 0 | CD29: 0 | CE29: 0 | CG29: 0
E30: 23) Number of Participants = | F30: =+'Total Program Inputs'!C17 -> 0 | J30: 17 | L30: 2031 | M30: 0 | N30: 4.468 | O30: 0 | P30: 0 | Q30: 0 | R30: 0 | S30: 0 | T30: 167 | U30: 0 | V30: 0 | W30: 2.337 | X30: 0 | Y30: 0 | Z30: 0 | AA30: 0 | AB30: 0 | AE30: 2031 | AF30: 0 | AG30: 0 | AH30: 0 | AJ30: 0 | AK30: 0 | AL30: 0 | AN30: 0 | AQ30: 2031 | AR30: 0 | AS30: 0 | AT30: 0.041 | AU30: 0 | AV30: 0.515 | AW30: 0 | AZ30: 0 | BB30: 0 | BC30: 0 | BD30: 0 | BE30: 0 | BH30: 2031 | BI30: 0 | BJ30: 0 | BK30: 9.925 | BL30: 0 | BM30: 0.242 | BN30: 0 | BP30: 0 | BR30: 0 | BT30: 0 | BW30: 2031 | BX30: 0 | BY30: 0 | BZ30: 0 | CA30: 0 | CC30: 0 | CD30: 0 | CE30: 0 | CG30: 0 | DB30: =$J18 -> 5
A31: 8) Non-Gas Fuel Loss Factor | C31: =+'Gas Input Table Summary'!$E$21 -> 0.051 | J31: 18 | L31: 2032 | M31: 0 | N31: 4.625 | O31: 0 | P31: 0 | Q31: 0 | R31: 0 | S31: 0 | T31: 168 | U31: 0 | V31: 0 | W31: 2.418 | X31: 0 | Y31: 0 | Z31: 0 | AA31: 0 | AB31: 0 | AE31: 2032 | AF31: 0 | AG31: 0 | AH31: 0 | AJ31: 0 | AK31: 0 | AL31: 0 | AN31: 0 | AQ31: 2032 | AR31: 0 | AS31: 0 | AT31: 0.043 | AU31: 0 | AV31: 0.527 | AW31: 0 | AZ31: 0 | BB31: 0 | BC31: 0 | BD31: 0 | BE31: 0 | BH31: 2032 | BI31: 0 | BJ31: 0 | BK31: 10.272 | BL31: 0 | BM31: 0.251 | BN31: 0 | BP31: 0 | BR31: 0 | BT31: 0 | BW31: 2032 | BX31: 0 | BY31: 0 | BZ31: 0 | CA31: 0 | CC31: 0 | CD31: 0 | CE31: 0 | CG31: 0 | DB31: =$J19 -> 6
E32: 24) Total Annual Dk Saved = | F32: =+'Total Program Inputs'!E17 -> 0 | J32: 19 | L32: 2033 | M32: 0 | N32: 4.787 | O32: 0 | P32: 0 | Q32: 0 | R32: 0 | S32: 0 | T32: 170 | U32: 0 | V32: 0 | W32: 2.503 | X32: 0 | Y32: 0 | Z32: 0 | AA32: 0 | AB32: 0 | AE32: 2033 | AF32: 0 | AG32: 0 | AH32: 0 | AJ32: 0 | AK32: 0 | AL32: 0 | AN32: 0 | AQ32: 2033 | AR32: 0 | AS32: 0 | AT32: 0.044 | AU32: 0 | AV32: 0.539 | AW32: 0 | AZ32: 0 | BB32: 0 | BC32: 0 | BD32: 0 | BE32: 0 | BH32: 2033 | BI32: 0 | BJ32: 0 | BK32: 10.631 | BL32: 0 | BM32: 0.26 | BN32: 0 | BP32: 0 | BR32: 0 | BT32: 0 | BW32: 2033 | BX32: 0 | BY32: 0 | BZ32: 0 | CA32: 0 | CC32: 0 | CD32: 0 | CE32: 0 | CG32: 0 | DB32: =$J20 -> 7
A33: 9) Gas Environmental Damage Factor = | C33: =+'Gas Input Table Summary'!$E$22 -> 0.35 | J33: 20 | L33: 2034 | M33: 0 | N33: 4.954 | O33: 0 | P33: 0 | Q33: 0 | R33: 0 | S33: 0 | T33: 172 | U33: 0 | V33: 0 | W33: 2.591 | X33: 0 | Y33: 0 | Z33: 0 | AA33: 0 | AB33: 0 | AE33: 2034 | AF33: 0 | AG33: 0 | AH33: 0 | AJ33: 0 | AK33: 0 | AL33: 0 | AN33: 0 | AQ33: 2034 | AR33: 0 | AS33: 0 | AT33: 0.046 | AU33: 0 | AV33: 0.552 | AW33: 0 | AZ33: 0 | BB33: 0 | BC33: 0 | BD33: 0 | BE33: 0 | BH33: 2034 | BI33: 0 | BJ33: 0 | BK33: 11.004 | BL33: 0 | BM33: 0.269 | BN33: 0 | BP33: 0 | BR33: 0 | BT33: 0 | BW33: 2034 | BX33: 0 | BY33: 0 | BZ33: 0 | CA33: 0 | CC33: 0 | CD33: 0 | CE33: 0 | CG33: 0
